Workbook

Sheet START
A1: =muni -> Choose name from list

Sheet Instructions
D2: 2020
X4: Yes
X5: No
W7: Type of Entities Range: | X7: Parent Municipality
X8: Consolidated Information
W10: Date linked | X10: 1
W11: Date | X11: =VLOOKUP(X10,W39:X55,2) -> M01 July | Y11: 2013-08-01
W19: MTREF Range: | X19: 2014
X20: 2015
X21: 2016
X22: 2017
X23: 2018
X24: 2019
X25: 2020
X26: 2021
X27: 2022
X28: 2023
X29: 2024
X30: 2025
X31: 2026
X32: 2027
X33: 2028
W34: MTREF Linked:
W35: MTREF: | X35: 10
X36: =INDEX(X19:X32,X35,1) -> 2023
W37: Fin Year:
X38: =MTREF&"/"&RIGHT(MTREF,2)+1 -> 2023/24
V39: Date/type of report | W39: 1 | X39: M01 July
W40: 2 | X40: M02 August
W41: 3 | X41: M03 September
W42: 4 | X42: M04 October
W43: 5 | X43: M05 November
W44: 6 | X44: M06 December
W45: 7 | X45: M07 January
W46: 8 | X46: M08 February
W47: 9 | X47: M09 March
W48: 10 | X48: M10 April
W49: 11 | X49: M11 May
W50: 12 | X50: M12 June
W51: 13 | X51: Q1 First Quarter
W52: 14 | X52: Q2 Second Quarter
W53: 15 | X53: Q3 Third Quarter
W54: 16 | X54: Q4 Fourth Quarter
W55: 17 | X55: Mid-Year Assessment

Sheet Template names (hidden)
A1: Common sheet headings
A2: Head1 | B2: =HLOOKUP(MTREF,Headings,2) -> 2022/23 | C2: Prior year -1
A3: Head2 | B3: =HLOOKUP(MTREF,Headings,5) -> Budget Year 2023/24 | C3: Year of approved budget
A4: Head2A | B4: =HLOOKUP(MTREF,Headings,4) -> 2023/24 | C4: Approved budget year
A5: Head3 | B5: =HLOOKUP(MTREF,Headings,3) -> 2023/24 Medium Term Revenue & Expenditure Framework | C5: MTREF header name
A6: Head5 | B6: Audited Outcome
A7: Head5A | B7: Outcome
A8: Head5B | B8: Pre-audit outcome
A9: Head6 | B9: Original Budget
A10: Head7 | B10: Adjusted Budget
A11: Head8 | B11: Full Year Forecast
A12: Head9 | B12: =HLOOKUP(MTREF,Headings,5) -> Budget Year 2023/24 | C12: 1st year of MTREF | D12: Year1
A13: Head10 | B13: =HLOOKUP(MTREF,Headings,6) -> Budget Year +1 2024/25 | C13: 2nd year of MTREF | D13: Year2
A14: Head11 | B14: =HLOOKUP(MTREF,Headings,7) -> Budget Year +2 2025/26 | C14: 3rd year of MTREF | D14: Year3
A15: Head12 | B15: Forecast 2010/11 | D15: Year4
A16: Head13 | B16: Forecast 2011/12 | D16: Year5
A17: Head14 | B17: Forecast 2012/13 | D17: Year6
A18: Head15 | B18: Forecast 2013/14 | D18: Year7
A19: Head16 | B19: Forecast 2014/15 | D19: Year8
A20: Head17 | B20: Forecast 2015/16 | D20: Year9
A21: Head18 | B21: Forecast 2016/17 | D21: Year10
A22: Head19 | B22: Forecast 2017/18 | D22: Year11
A23: Head20 | B23: Forecast 2018/19 | D23: Year12
A24: Head21 | B24: Forecast 2019/20 | D24: Year13
A25: Head22 | B25: Forecast 2020/21 | D25: Year14
A26: Head23 | B26: Forecast 2021/22 | D26: Year15
A27: Head24 | B27: Description | D27: Desc
A28: Head25 | B28: Schedule of funding diligence | D28: fdil
A29: Head26 | B29: Vote Description | D29: VDesc
A30: Head27 | B30: Ref
A31: Head27a | B31: References
A32: Head28 | B32: Surplus/ (Deficit) for the year | D32: Result
A33: Head29 | B33: Annual target 2007/08
A34: Head30 | B34: Revised target 2007/08
A35: Head31 | B35: Quarter ended 30 September
A36: Head32 | B36: Quarter ended 31 December
A37: Head33 | B37: Quarter ended 31 March
A38: Head34 | B38: Quarter ended 30 June
A39: Head35 | B39: Variance explanation
A40: Head36 | B40: YTD Actual 31 Dec
A41: Head37 | B41: YTD Budget 31 Dec
A42: Head38 | B42: Monthly actual
A43: Head39 | B43: YearTD actual
A44: Head40 | B44: YearTD budget
A45: Head41 | B45: YTD variance
A46: Head42 | B46: Surplus/ (Deficit) for the yr/period
A47: Head43 | B47: =Head3&" Summary" -> 2023/24 Medium Term Revenue & Expenditure Framework Summary
A48: Head44 | B48: 1996 Census
A49: Head45 | B49: 2001 Census
A50: Head46 | B50: - Adjustments Budget - Month YYYY
A51: Head47 | B51: Previous target year to complete
A52: Head48 | B52: Present value
A53: Head49 | B53: Virement
A54: Head50 | B54: Other Adjusts.
A55: Head51 | B55: Accum. Funds
A56: Head52 | B56: Multi-year capital
A57: Head53 | B57: Unfore. Unavoid.
A58: Head54 | B58: Prior Adjusted
A59: Head55 | B59: Nat. or Prov. Govt
A60: Head56 | B60: Total Adjusts.
A61: Head57 | B61: =date -> M01 July
A62: Head58 | B62: Parent muni.
A63: Head59 | B63: Downward adjusts
A64: Head60 | B64: Month | C64: Report header part name | D64: =date -> M01 July
A65: SFPerf1 | B65: Budgeted Financial Performance
A66: SFPerf2 | B66: Forecast Financial Performance
A67: SFPos1 | B67: Budgeted Financial Position
A68: SFPos2 | B68: Forecast Financial Position
A69: Cash1 | B69: Budget Cash Flow
A70: Cash2 | B70: Forecast Cash Flow
A71: RandM | B71: Expenditure includes repairs & maintenance of R'000
A72: Standard nomenclature
A73: Muni | B73: ='Lookup and lists'!B27 -> KZN225 Msunduzi
A74: Municipal Entities | B74: 1 | C74: Type of report: | D74: 1
A75: =IF((MuniEntities=1)*(MuniType=2),"YES","NO") -> NO | B75: Does this municipality have entities (consolidated budget and entity budgets required)? YES/NO
A76: s71 (Monthly Mayor report) schedules and charts
A77: S71sum | B77: =IF(Consolques="YES",E77,F77) -> Table C1 Monthly Budget Statement Summary | D77: Table C1 | E77: =D77&"Consolidated Monthly Budget Statement Summary" -> Table C1 Consolidated Monthly Budget Statement Summary | F77: =D77&"Monthly Budget Statement Summary" -> Table C1 Monthly Budget Statement Summary
A78: S71C | B78: Table C3 Monthly Budget Statement - Financial Performance (revenue and expenditure by municipal vote) | D78: Table C3 | E78: =D78&"Consolidated Monthly Budget Statement - Financial Performance (revenue and expenditure by municipal vote) " -> Table C3 Consolidated Monthly Budget Statement - Financial Performance (revenue and expenditure by municipal vote) | F78: =D78&"Monthly Budget Statement - Financial Performance (revenue and expenditure by municipal vote)" -> Table C3 Monthly Budget Statement - Financial Performance (revenue and expenditure by municipal vote)
A79: S71A | B79: =IF(Consolques="YES",E79,F79) -> Table C2 Monthly Budget Statement - Financial Performance (functional classification) | D79: Table C2 | E79: =D79&"Consolidated Monthly Budget Statement - Financial Performance (functional classification) " -> Table C2 Consolidated Monthly Budget Statement - Financial Performance (functional classification) | F79: =D79&"Monthly Budget Statement - Financial Performance (functional classification)" -> Table C2 Monthly Budget Statement - Financial Performance (functional classification)
A80: S71B | B80: =IF(Consolques="YES",E80,F80) -> Table C4 Monthly Budget Statement - Financial Performance (revenue and expenditure) | D80: Table C4 | E80: =D80&"Consolidated Monthly Budget Statement - Financial Performance (revenue and expenditure) " -> Table C4 Consolidated Monthly Budget Statement - Financial Performance (revenue and expenditure) | F80: =D80&"Monthly Budget Statement - Financial Performance (revenue and expenditure)" -> Table C4 Monthly Budget Statement - Financial Performance (revenue and expenditure)
A81: S71D | B81: =IF(Consolques="YES",E81,F81) -> Table C5 Monthly Budget Statement - Capital Expenditure (municipal vote, functional classification and funding) | D81: Table C5 | E81: =D81&"Consolidated Monthly Budget Statement - Capital Expenditure (municipal vote, functional classification and funding " -> Table C5 Consolidated Monthly Budget Statement - Capital Expenditure (municipal vote, functional classification and funding | F81: =D81&"Monthly Budget Statement - Capital Expenditure (municipal vote, functional classification and funding)" -> Table C5 Monthly Budget Statement - Capital Expenditure (municipal vote, functional classification and funding)
A82: S71E | B82: Table C6 Monthly Budget Statement - Financial Position | D82: Table C6 | E82: =D82&"Consolidated Monthly Budget Statement - Financial Position " -> Table C6 Consolidated Monthly Budget Statement - Financial Position | F82: =D82&"Monthly Budget Statement - Financial Position" -> Table C6 Monthly Budget Statement - Financial Position
A83: S71F | B83: Table C7 Monthly Budget Statement - Cash Flow | D83: Table C7 | E83: =D83&"Consolidated Monthly Budget Statement - Cash Flow " -> Table C7 Consolidated Monthly Budget Statement - Cash Flow | F83: =D83&"Monthly Budget Statement - Cash Flow " -> Table C7 Monthly Budget Statement - Cash Flow
A84: S71G | B84: =D84&"Material variance explanations " -> Supporting Table SC1 Material variance explanations | D84: Supporting Table SC1
A85: S71H | B85: =D85&"Monthly Budget Statement - performance indicators " -> Supporting Table SC2 Monthly Budget Statement - performance indicators | D85: Supporting Table SC2
A86: S71I | B86: =D86&"Monthly Budget Statement - aged debtors" -> Supporting Table SC3 Monthly Budget Statement - aged debtors | D86: Supporting Table SC3
A87: S71J | B87: =D87&"Monthly Budget Statement - aged creditors " -> Supporting Table SC4 Monthly Budget Statement - aged creditors | D87: Supporting Table SC4
A88: S71K | B88: =D88&"Monthly Budget Statement - investment portfolio " -> Supporting Table SC5 Monthly Budget Statement - investment portfolio | D88: Supporting Table SC5
A89: S71L | B89: =D89&"Monthly Budget Statement - transfers and grant receipts " -> Supporting Table SC6 Monthly Budget Statement - transfers and grant receipts | D89: Supporting Table SC6
A90: S71M | B90: =D90&" Monthly Budget Statement - transfers and grant expenditure " -> Supporting Table SC7(1) Monthly Budget Statement - transfers and grant expenditure | D90: Supporting Table SC7(1)
A91: S71N | B91: =D91&"Monthly Budget Statement - councillor and staff benefits " -> Supporting Table SC8 Monthly Budget Statement - councillor and staff benefits | D91: Supporting Table SC8
A92: S71O | B92: =D92&"Monthly Budget Statement - actuals and revised targets for cash receipts" -> Supporting Table SC9 Monthly Budget Statement - actuals and revised targets for cash receipts | D92: Supporting Table SC9
A93: S71P | B93: =IF(Consolques="YES",E93,F93) -> NOT REQUIRED - municipality does not have entities or this is the parent municipality's budget | D93: Supporting Table SC10 | E93: =D93&"Monthly Budget Statement - Parent Municipality Financial Performance (revenue and expenditure) " -> Supporting Table SC10 Monthly Budget Statement - Parent Municipality Financial Performance (revenue and expenditure) | F93: NOT REQUIRED - municipality does not have entities or this is the parent municipality's budget
A94: S71Q | B94: NOT REQUIRED - municipality does not have entities or this is the parent municipality's budget | D94: Supporting Table SC11 | E94: =D94&"Monthly Budget Statement - summary of municipal entities" -> Supporting Table SC11 Monthly Budget Statement - summary of municipal entities | F94: NOT REQUIRED - municipality does not have entities or this is the parent municipality's budget
A95: S71R | B95: Supporting Table SC12 Monthly Budget Statement - capital expenditure trend | D95: Supporting Table SC12 | E95: =D95&"Consolidated Monthly Budget Statement - capital expenditure trend " -> Supporting Table SC12 Consolidated Monthly Budget Statement - capital expenditure trend | F95: =D95&"Monthly Budget Statement - capital expenditure trend" -> Supporting Table SC12 Monthly Budget Statement - capital expenditure trend
A96: S71Sa | B96: Supporting Table SC13a Monthly Budget Statement - capital expenditure on new assets by asset class | D96: Supporting Table SC13a | E96: =D96&"Consolidated Monthly Budget Statement - capital expenditure on new assets by asset class" -> Supporting Table SC13a Consolidated Monthly Budget Statement - capital expenditure on new assets by asset class | F96: =D96&"Monthly Budget Statement - capital expenditure on new assets by asset class" -> Supporting Table SC13a Monthly Budget Statement - capital expenditure on new assets by asset class
A97: S71Sb | B97: Supporting Table SC13b Monthly Budget Statement - capital expenditure on renewal of existing assets by asset class | D97: Supporting Table SC13b | E97: =D97&"Consolidated Monthly Budget Statement - capital expenditure on renewal of existing assets by asset class" -> Supporting Table SC13b Consolidated Monthly Budget Statement - capital expenditure on renewal of existing assets by asset class | F97: =D97&"Monthly Budget Statement - capital expenditure on renewal of existing assets by asset class" -> Supporting Table SC13b Monthly Budget Statement - capital expenditure on renewal of existing assets by asset class
A98: S71Sc | B98: Supporting Table SC13c Monthly Budget Statement - expenditure on repairs and maintenance by asset class | D98: Supporting Table SC13c | E98: =D98&"Consolidated Monthly Budget Statement - expenditure on repairs and maintenance by asset class" -> Supporting Table SC13c Consolidated Monthly Budget Statement - expenditure on repairs and maintenance by asset class | F98: =D98&"Monthly Budget Statement - expenditure on repairs and maintenance by asset class" -> Supporting Table SC13c Monthly Budget Statement - expenditure on repairs and maintenance by asset class
A99: S71Sd | B99: Supporting Table SC13d Monthly Budget Statement - depreciation by asset class | D99: Supporting Table SC13d | E99: =D99&"Consolidated Monthly Budget Statement - depreciation by asset class" -> Supporting Table SC13d Consolidated Monthly Budget Statement - depreciation by asset class | F99: =D99&"Monthly Budget Statement - depreciation by asset class" -> Supporting Table SC13d Monthly Budget Statement - depreciation by asset class
A100: S71Se | B100: =IF(Consolques="YES",E100,F100) -> Supporting Table SC13e Monthly Budget Statement - capital expenditure on upgrading of existing assets by asset class | D100: Supporting Table SC13e | E100: =D100&"Consolidated Monthly Budget Statement - capital expenditure on upgrading of existing assets by asset class" -> Supporting Table SC13e Consolidated Monthly Budget Statement - capital expenditure on upgrading of existing assets by asset class | F100: =D100&"Monthly Budget Statement - capital expenditure on upgrading of existing assets by asset class" -> Supporting Table SC13e Monthly Budget Statement - capital expenditure on upgrading of existing assets by asset class
B101: s71 charts listing
B102: =D102&Head2A&" Capital Expenditure Monthly Trend: actual v target" -> Chart C1 2023/24 Capital Expenditure Monthly Trend: actual v target | D102: Chart C1
B103: =D103&Head2A&" Capital Expenditure: YTD actual v YTD target" -> Chart C2 2023/24 Capital Expenditure: YTD actual v YTD target | D103: Chart C2
B104: =D104&"Aged Consumer Debtors Analysis" -> Chart C3 Aged Consumer Debtors Analysis | D104: Chart C3
B105: =D105&"Consumer Debtors (total by Debtor Customer Category)" -> Chart C4 Consumer Debtors (total by Debtor Customer Category) | D105: Chart C4
B106: =D106&"Aged Creditors Analysis" -> Chart C5 Aged Creditors Analysis | D106: Chart C5
A107: S71T | B107: =D107&" Monthly Budget Statement - Expenditure against approved rollovers" -> Supporting Table SC7(2) Monthly Budget Statement - Expenditure against approved rollovers | D107: Supporting Table SC7(2)

Sheet Lookup and lists (hidden)
A1: Description | B1: 2013 | C1: 2014 | D1: 2015 | E1: 2016 | F1: 2017 | G1: 2018 | H1: 2019 | I1: 2020 | J1: 2021 | K1: 2022 | L1: 2023 | M1: 2024 | N1: 2025 | O1: 2026 | Q1: Grants: | R1: National - opex | S1: Provincial - opex | T1: National - capex | U1: Provincial - capex | V1: YESNO
A2: ='Template names'!C2 -> Prior year -1 | B2: =B1-1&"/"&RIGHT(B1,2)-0 -> 2012/13 | C2: =C1-1&"/"&RIGHT(C1,2)-0 -> 2013/14 | D2: =D1-1&"/"&RIGHT(D1,2)-0 -> 2014/15 | E2: =E1-1&"/"&RIGHT(E1,2)-0 -> 2015/16 | F2: =F1-1&"/"&RIGHT(F1,2)-0 -> 2016/17 | G2: 2017/18 | H2: 2018/19 | I2: 2019/20 | J2: 2020/21 | K2: 2021/22 | L2: 2022/23 | M2: 2023/24 | N2: 2024/25 | O2: 2025/26 | R2: Local Government Equitable Share | S2: Health subsidy | T2: Municipal Infrastructure Grant (MIG) | U2: Agriculture | V2: Yes
A3: ='Template names'!C5 -> MTREF header name | B3: =B1&"/"&RIGHT(B1,2)+1&" Medium Term Revenue & Expenditure Framework" -> 2013/14 Medium Term Revenue & Expenditure Framework | C3: =C1&"/"&RIGHT(C1,2)+1&" Medium Term Revenue & Expenditure Framework" -> 2014/15 Medium Term Revenue & Expenditure Framework | D3: =D1&"/"&RIGHT(D1,2)+1&" Medium Term Revenue & Expenditure Framework" -> 2015/16 Medium Term Revenue & Expenditure Framework | E3: =E1&"/"&RIGHT(E1,2)+1&" Medium Term Revenue & Expenditure Framework" -> 2016/17 Medium Term Revenue & Expenditure Framework | F3: =F1&"/"&RIGHT(F1,2)+1&" Medium Term Revenue & Expenditure Framework" -> 2017/18 Medium Term Revenue & Expenditure Framework | G3: 2018/19 Medium Term Revenue & Expenditure Framework | H3: 2019/20 Medium Term Revenue & Expenditure Framework | I3: 2020/21 Medium Term Revenue & Expenditure Framework | J3: 2021/22 Medium Term Revenue & Expenditure Framework | K3: 2022/23 Medium Term Revenue & Expenditure Framework | L3: 2023/24 Medium Term Revenue & Expenditure Framework | M3: 2024/25 Medium Term Revenue & Expenditure Framework | N3: 2025/26 Medium Term Revenue & Expenditure Framework | O3: 2026/27 Medium Term Revenue & Expenditure Framework | R3: RSC Levy Replacement | S3: Ambulance subsidy | T3: Public Transport and Systems | U3: Education | V3: No
A4: ='Template names'!C4 -> Approved budget year | B4: =B1&"/"&RIGHT(B1,2)+1 -> 2013/14 | C4: =C1&"/"&RIGHT(C1,2)+1 -> 2014/15 | D4: =D1&"/"&RIGHT(D1,2)+1 -> 2015/16 | E4: =E1&"/"&RIGHT(E1,2)+1 -> 2016/17 | F4: =F1&"/"&RIGHT(F1,2)+1 -> 2017/18 | G4: 2018/19 | H4: 2019/20 | I4: 2020/21 | J4: 2021/22 | K4: 2022/23 | L4: 2023/24 | M4: 2024/25 | N4: 2025/26 | O4: 2026/27 | R4: Finance Management | S4: Housing | T4: Rural Transport Services and Infrastructure | U4: Health
A5: ='Template names'!C12 -> 1st year of MTREF | B5: ="Budget Year "&B1&"/"&RIGHT(B1,2)+1 -> Budget Year 2013/14 | C5: ="Budget Year "&C1&"/"&RIGHT(C1,2)+1 -> Budget Year 2014/15 | D5: ="Budget Year "&D1&"/"&RIGHT(D1,2)+1 -> Budget Year 2015/16 | E5: ="Budget Year "&E1&"/"&RIGHT(E1,2)+1 -> Budget Year 2016/17 | F5: ="Budget Year "&F1&"/"&RIGHT(F1,2)+1 -> Budget Year 2017/18 | G5: Budget Year 2018/19 | H5: Budget Year 2019/20 | I5: Budget Year 2020/21 | J5: Budget Year 2021/22 | K5: Budget Year 2022/23 | L5: Budget Year 2023/24 | M5: Budget Year 2024/25 | N5: Budget Year 2025/26 | O5: Budget Year 2026/27 | R5: Municipal Systems Improvement | S5: Sport and Recreation | T5: Regional Bulk Infrastructure | U5: Housing and Local Government
A6: ='Template names'!C13 -> 2nd year of MTREF | B6: ="Budget Year +1 "&B1+1&"/"&RIGHT(B1,2)+2 -> Budget Year +1 2014/15 | C6: ="Budget Year +1 "&C1+1&"/"&RIGHT(C1,2)+2 -> Budget Year +1 2015/16 | D6: ="Budget Year +1 "&D1+1&"/"&RIGHT(D1,2)+2 -> Budget Year +1 2016/17 | E6: ="Budget Year +1 "&E1+1&"/"&RIGHT(E1,2)+2 -> Budget Year +1 2017/18 | F6: ="Budget Year +1 "&F1+1&"/"&RIGHT(F1,2)+2 -> Budget Year +1 2018/19 | G6: Budget Year +1 2019/20 | H6: Budget Year +1 2020/21 | I6: Budget Year +1 2021/22 | J6: Budget Year +1 2022/23 | K6: Budget Year +1 2023/24 | L6: Budget Year +1 2024/25 | M6: Budget Year +1 2025/26 | N6: Budget Year +1 2026/27 | O6: Budget Year +1 2027/28 | R6: Water Services Operating Subsidy | T6: Rural Households Infrastructure | U6: Other Departments
A7: ='Template names'!C14 -> 3rd year of MTREF | B7: ="Budget Year +2 "&B1+2&"/"&RIGHT(B1,2)+3 -> Budget Year +2 2015/16 | C7: ="Budget Year +2 "&C1+2&"/"&RIGHT(C1,2)+3 -> Budget Year +2 2016/17 | D7: ="Budget Year +2 "&D1+2&"/"&RIGHT(D1,2)+3 -> Budget Year +2 2017/18 | E7: ="Budget Year +2 "&E1+2&"/"&RIGHT(E1,2)+3 -> Budget Year +2 2018/19 | F7: ="Budget Year +2 "&F1+2&"/"&RIGHT(F1,2)+3 -> Budget Year +2 2019/20 | G7: Budget Year +2 2020/21 | H7: Budget Year +2 2021/22 | I7: Budget Year +2 2022/23 | J7: Budget Year +2 2023/24 | K7: Budget Year +2 2024/25 | L7: Budget Year +2 2025/26 | M7: Budget Year +2 2026/27 | N7: Budget Year +2 2027/28 | O7: Budget Year +2 2028/29 | R7: Energy Efficiency and Demand Management | T7: Neighbourhood Development Partnership | U7: Public Works, Roads, Transport
A8: NOTE: This sheet should not be directly amended - select headings from sheet 'S' | R8: Integrated National Electrification Programme | T8: 2010 FIFA World Cup Stadiums Development | U8: Sport and Recreation
R9: Municipal Drought Relief
R10: 2010 FIFA World Cup Operating
R11: Electricity Demand Side Management
R12: EPWP Incentive
A26: Name link | B26: 85
A27: Name of Muni | B27: =INDEX(B28:B311,B26,1) -> KZN225 Msunduzi
B28: Choose name from list | C28: Set name on 'Instructions' sheet
B29: BUF Buffalo City | C29: EC EASTERN CAPE
B30: NMA Nelson Mandela Bay | C30: EC EASTERN CAPE
B31: EC101 Dr Beyers Naude | C31: EC EASTERN CAPE
B32: EC102 Blue Crane Route | C32: EC EASTERN CAPE
B33: EC104 Makana | C33: EC EASTERN CAPE
B34: EC105 Ndlambe | C34: EC EASTERN CAPE
B35: EC106 Sundays River Valley | C35: EC EASTERN CAPE
B36: EC108 Kouga | C36: EC EASTERN CAPE
B37: EC109 Kou-Kamma | C37: EC EASTERN CAPE
B38: DC10 Sarah Baartman | C38: EC EASTERN CAPE
B39: EC121 Mbhashe | C39: EC EASTERN CAPE
B40: EC122 Mnquma | C40: EC EASTERN CAPE
B41: EC123 Great Kei | C41: EC EASTERN CAPE
B42: EC124 Amahlathi | C42: EC EASTERN CAPE
B43: EC126 Ngqushwa | C43: EC EASTERN CAPE
B44: EC129 Raymond Mhlaba | C44: EC EASTERN CAPE
B45: DC12 Amathole | C45: EC EASTERN CAPE
B46: EC131 Inxuba Yethemba | C46: EC EASTERN CAPE
B47: EC135 Intsika Yethu | C47: EC EASTERN CAPE
B48: EC136 Emalahleni (Ec) | C48: EC EASTERN CAPE
B49: EC137 Engcobo | C49: EC EASTERN CAPE
B50: EC138 Sakhisizwe | C50: EC EASTERN CAPE
B51: EC139 Enoch Mgijima | C51: EC EASTERN CAPE
B52: DC13 Chris Hani | C52: EC EASTERN CAPE
B53: EC141 Elundini | C53: EC EASTERN CAPE
B54: EC142 Senqu | C54: EC EASTERN CAPE
B55: EC145 Walter Sisulu | C55: EC EASTERN CAPE
B56: DC14 Joe Gqabi | C56: EC EASTERN CAPE
B57: EC153 Ngquza Hills | C57: EC EASTERN CAPE
B58: EC154 Port St Johns | C58: EC EASTERN CAPE
B59: EC155 Nyandeni | C59: EC EASTERN CAPE
B60: EC156 Mhlontlo | C60: EC EASTERN CAPE
B61: EC157 King Sabata Dalindyebo | C61: EC EASTERN CAPE
B62: DC15 O .R. Tambo | C62: EC EASTERN CAPE
B63: EC441 Matatiele | C63: EC EASTERN CAPE
B64: EC442 Umzimvubu | C64: EC EASTERN CAPE
B65: EC443 Winnie Madikizela Mandela | C65: EC EASTERN CAPE
B66: EC444 Ntabankulu | C66: EC EASTERN CAPE
B67: DC44 Alfred Nzo | C67: EC EASTERN CAPE
B68: MAN Mangaung | C68: FS FREE STATE
B69: FS161 Letsemeng | C69: FS FREE STATE
B70: FS162 Kopanong | C70: FS FREE STATE
B71: FS163 Mohokare | C71: FS FREE STATE
B72: DC16 Xhariep | C72: FS FREE STATE
B73: FS181 Masilonyana | C73: FS FREE STATE
B74: FS182 Tokologo | C74: FS FREE STATE
B75: FS183 Tswelopele | C75: FS FREE STATE
B76: FS184 Matjhabeng | C76: FS FREE STATE
B77: FS185 Nala | C77: FS FREE STATE
B78: DC18 Lejweleputswa | C78: FS FREE STATE
B79: FS191 Setsoto | C79: FS FREE STATE
B80: FS192 Dihlabeng | C80: FS FREE STATE
B81: FS193 Nketoana | C81: FS FREE STATE
B82: FS194 Maluti-a-Phofung | C82: FS FREE STATE
B83: FS195 Phumelela | C83: FS FREE STATE
B84: FS196 Mantsopa | C84: FS FREE STATE
B85: DC19 Thabo Mofutsanyana | C85: FS FREE STATE
B86: FS201 Moqhaka | C86: FS FREE STATE
B87: FS203 Ngwathe | C87: FS FREE STATE
B88: FS204 Metsimaholo | C88: FS FREE STATE
B89: FS205 Mafube | C89: FS FREE STATE
B90: DC20 Fezile Dabi | C90: FS FREE STATE
B91: EKU City of Ekurhuleni | C91: GT GAUTENG
B92: JHB City Of Johannesburg | C92: GT GAUTENG
B93: TSH City Of Tshwane | C93: GT GAUTENG
B94: GT421 Emfuleni | C94: GT GAUTENG
B95: GT422 Midvaal | C95: GT GAUTENG
B96: GT423 Lesedi | C96: GT GAUTENG
B97: DC42 Sedibeng | C97: GT GAUTENG
B98: GT481 Mogale City | C98: GT GAUTENG
B99: GT484 Merafong City | C99: GT GAUTENG
B100: GT485 Rand West City | C100: GT GAUTENG
B101: DC48 West Rand | C101: GT GAUTENG
B102: ETH eThekwini | C102: KZN KWAZULU-NATAL
B103: KZN212 Umdoni | C103: KZN KWAZULU-NATAL
B104: KZN213 Umzumbe | C104: KZN KWAZULU-NATAL
B105: KZN214 uMuziwabantu | C105: KZN KWAZULU-NATAL
B106: KZN216 Ray Nkonyeni | C106: KZN KWAZULU-NATAL
B107: DC21 Ugu | C107: KZN KWAZULU-NATAL
B108: KZN221 uMshwathi | C108: KZN KWAZULU-NATAL
B109: KZN222 uMngeni | C109: KZN KWAZULU-NATAL
B110: KZN223 Mpofana | C110: KZN KWAZULU-NATAL
B111: KZN224 Impendle | C111: KZN KWAZULU-NATAL
B112: KZN225 Msunduzi | C112: KZN KWAZULU-NATAL
B113: KZN226 Mkhambathini | C113: KZN KWAZULU-NATAL
B114: KZN227 Richmond | C114: KZN KWAZULU-NATAL
B115: DC22 uMgungundlovu | C115: KZN KWAZULU-NATAL
B116: KZN235 Okhahlamba | C116: KZN KWAZULU-NATAL
B117: KZN237 Inkosi Langalibalele | C117: KZN KWAZULU-NATAL
B118: KZN238 Alfred Duma | C118: KZN KWAZULU-NATAL
B119: DC23 Uthukela | C119: KZN KWAZULU-NATAL
B120: KZN241 Endumeni | C120: KZN KWAZULU-NATAL
B121: KZN242 Nquthu | C121: KZN KWAZULU-NATAL
B122: KZN244 Msinga | C122: KZN KWAZULU-NATAL
B123: KZN245 Umvoti | C123: KZN KWAZULU-NATAL
B124: DC24 Umzinyathi | C124: KZN KWAZULU-NATAL
B125: KZN252 Newcastle | C125: KZN KWAZULU-NATAL
B126: KZN253 Emadlangeni | C126: KZN KWAZULU-NATAL
B127: KZN254 Dannhauser | C127: KZN KWAZULU-NATAL
B128: DC25 Amajuba | C128: KZN KWAZULU-NATAL
B129: KZN261 eDumbe | C129: KZN KWAZULU-NATAL
B130: KZN262 uPhongolo | C130: KZN KWAZULU-NATAL
B131: KZN263 Abaqulusi | C131: KZN KWAZULU-NATAL
B132: KZN265 Nongoma | C132: KZN KWAZULU-NATAL
B133: KZN266 Ulundi | C133: KZN KWAZULU-NATAL
B134: DC26 Zululand | C134: KZN KWAZULU-NATAL
B135: KZN271 Umhlabuyalingana | C135: KZN KWAZULU-NATAL
B136: KZN272 Jozini | C136: KZN KWAZULU-NATAL
B137: KZN275 Mtubatuba | C137: KZN KWAZULU-NATAL
B138: KZN276 Hlabisa Big Five | C138: KZN KWAZULU-NATAL
B139: DC27 Umkhanyakude | C139: KZN KWAZULU-NATAL
B140: KZN281 Mfolozi | C140: KZN KWAZULU-NATAL
B141: KZN282 uMhlathuze | C141: KZN KWAZULU-NATAL
B142: KZN284 uMlalazi | C142: KZN KWAZULU-NATAL
B143: KZN285 Mthonjaneni | C143: KZN KWAZULU-NATAL
B144: KZN286 Nkandla | C144: KZN KWAZULU-NATAL
B145: DC28 King Cetshwayo | C145: KZN KWAZULU-NATAL
B146: KZN291 Mandeni | C146: KZN KWAZULU-NATAL
B147: KZN292 KwaDukuza | C147: KZN KWAZULU-NATAL
B148: KZN293 Ndwedwe | C148: KZN KWAZULU-NATAL
B149: KZN294 Maphumulo | C149: KZN KWAZULU-NATAL
B150: DC29 iLembe | C150: KZN KWAZULU-NATAL
B151: KZN433 Greater Kokstad | C151: KZN KWAZULU-NATAL
B152: KZN434 Ubuhlebezwe | C152: KZN KWAZULU-NATAL
B153: KZN435 Umzimkhulu | C153: KZN KWAZULU-NATAL
B154: KZN436 Dr Nkosazana Dlamini Zuma | C154: KZN KWAZULU-NATAL
B155: DC43 Harry Gwala | C155: KZN KWAZULU-NATAL
B156: LIM331 Greater Giyani | C156: LIM LIMPOPO
B157: LIM332 Greater Letaba | C157: LIM LIMPOPO
B158: LIM333 Greater Tzaneen | C158: LIM LIMPOPO
B159: LIM334 Ba-Phalaborwa | C159: LIM LIMPOPO
B160: LIM335 Maruleng | C160: LIM LIMPOPO
B161: DC33 Mopani | C161: LIM LIMPOPO
B162: LIM341 Musina | C162: LIM LIMPOPO
B163: LIM343 Thulamela | C163: LIM LIMPOPO
B164: LIM344 Makhado | C164: LIM LIMPOPO
B165: LIM345 Collins Chabane | C165: LIM LIMPOPO
B166: DC34 Vhembe | C166: LIM LIMPOPO
B167: LIM351 Blouberg | C167: LIM LIMPOPO
B168: LIM353 Molemole | C168: LIM LIMPOPO
B169: LIM354 Polokwane | C169: LIM LIMPOPO
B170: LIM355 Lepelle-Nkumpi | C170: LIM LIMPOPO
B171: DC35 Capricorn | C171: LIM LIMPOPO
B172: LIM361 Thabazimbi | C172: LIM LIMPOPO
B173: LIM362 Lephalale | C173: LIM LIMPOPO
B174: LIM366 Bela Bela | C174: LIM LIMPOPO
B175: LIM367 Mogalakwena | C175: LIM LIMPOPO
B176: LIM368 Modimolle-Mookgopong | C176: LIM LIMPOPO
B177: DC36 Waterberg | C177: LIM LIMPOPO
B178: LIM471 Ephraim Mogale | C178: LIM LIMPOPO
B179: LIM472 Elias Motsoaledi | C179: LIM LIMPOPO
B180: LIM473 Makhuduthamaga | C180: LIM LIMPOPO
B181: LIM476 Tubatse Fetakgomo | C181: LIM LIMPOPO
B182: DC47 Sekhukhune | C182: LIM LIMPOPO
B183: MP301 Albert Luthuli | C183: MP MPUMALANGA
B184: MP302 Msukaligwa | C184: MP MPUMALANGA
B185: MP303 Mkhondo | C185: MP MPUMALANGA
B186: MP304 Pixley Ka Seme (MP) | C186: MP MPUMALANGA
B187: MP305 Lekwa | C187: MP MPUMALANGA
B188: MP306 Dipaleseng | C188: MP MPUMALANGA
B189: MP307 Govan Mbeki | C189: MP MPUMALANGA
B190: DC30 Gert Sibande | C190: MP MPUMALANGA
B191: MP311 Victor Khanye | C191: MP MPUMALANGA
B192: MP312 Emalahleni (Mp) | C192: MP MPUMALANGA
B193: MP313 Steve Tshwete | C193: MP MPUMALANGA
B194: MP314 Emakhazeni | C194: MP MPUMALANGA
B195: MP315 Thembisile Hani | C195: MP MPUMALANGA
B196: MP316 Dr J.S. Moroka | C196: MP MPUMALANGA
B197: DC31 Nkangala | C197: MP MPUMALANGA
B198: MP321 Thaba Chweu | C198: MP MPUMALANGA
B199: MP324 Nkomazi | C199: MP MPUMALANGA
B200: MP325 Bushbuckridge | C200: MP MPUMALANGA
B201: MP326 City of Mbombela | C201: MP MPUMALANGA
B202: DC32 Ehlanzeni | C202: MP MPUMALANGA
B203: NC451 Joe Morolong | C203: NC NORTHERN CAPE
B204: NC452 Ga-Segonyana | C204: NC NORTHERN CAPE
B205: NC453 Gamagara | C205: NC NORTHERN CAPE
B206: DC45 John Taolo Gaetsewe | C206: NC NORTHERN CAPE
B207: NC061 Richtersveld | C207: NC NORTHERN CAPE
B208: NC062 Nama Khoi | C208: NC NORTHERN CAPE
B209: NC064 Kamiesberg | C209: NC NORTHERN CAPE
B210: NC065 Hantam | C210: NC NORTHERN CAPE
B211: NC066 Karoo Hoogland | C211: NC NORTHERN CAPE
B212: NC067 Khai-Ma | C212: NC NORTHERN CAPE
B213: DC6 Namakwa | C213: NC NORTHERN CAPE
... 73 more rows

Sheet Org structure
A1: Organisational Structure Votes | C1: Organisational Structure Sub-Votes | E1: Display Sub-Votes
A2: =B2&" - "&C2 -> Vote 1 - City Manager | B2: Vote 1 | C2: City Manager
A3: =B13&" - "& C13 -> Vote 2 - City Finance | B3: 1.1 | C3: Internal Audit and Compliance | D3: =CONCATENATE(B3, " - ", C3) -> 1,1 - Internal Audit and Compliance | E3: 1.1 - Internal Audit and Compliance
A4: =B24&" - "&C24 -> Vote 3 - Corporate Services | B4: 1.2 | C4: Office of the City Manager | D4: 1,2 - Office of the City Manager | E4: 1.2 - Office of the City Manager
A5: =B35&" - "&C35 -> Vote 4 - Community Services and Social Equity | B5: 1.3 | C5: Political Support | D5: 1,3 - Political Support | E5: 1.3 - Political Support
A6: =B46&" - "&C46 -> Vote 5 - Infrastructure Services | B6: 1.4 | C6: Strategic Planning | D6: 1,4 - Strategic Planning | E6: 1.4 - Strategic Planning
A7: =B57&" - "&C57 -> Vote 6 - Sustainable Development and City Enterprises | B7: 1.5 | C7: [Name of sub-vote] | D7: 1.5 - [Name of sub-vote]
A8: =B68&" - "&C68 -> Vote 7 - Electricity | B8: 1.6 | C8: [Name of sub-vote] | D8: 1.6 - [Name of sub-vote]
A9: =B79&" - "&C79 -> Vote 8 - [NAME OF VOTE 8] | B9: 1.7 | C9: [Name of sub-vote] | D9: 1.7 - [Name of sub-vote]
A10: =B90&" - "&C90 -> Vote 9 - [NAME OF VOTE 9] | B10: 1.8 | C10: [Name of sub-vote] | D10: 1.8 - [Name of sub-vote]
A11: =B101&" - "&C101 -> Vote 10 - [NAME OF VOTE 10] | B11: 1.9 | C11: [Name of sub-vote] | D11: 1.9 - [Name of sub-vote]
A12: =B112&" - "&C112 -> Vote 11 - [NAME OF VOTE 11] | B12: 1.10 | C12: [Name of sub-vote] | D12: 1.10 - [Name of sub-vote]
A13: =B123&" - "&C123 -> Vote 12 - [NAME OF VOTE 12] | B13: Vote 2 | C13: City Finance
A14: =B134&" - "&C134 -> Vote 13 - [NAME OF VOTE 13] | B14: 2.1 | C14: Asset Management | D14: =CONCATENATE(B14, " - ", C14) -> 2,1 - Asset Management | E14: 2.1 - Asset Management
A15: =B145&" - "&C145 -> Vote 14 - [NAME OF VOTE 14] | B15: 2.2 | C15: Budget and Treasury Management | D15: 2,2 - Budget and Treasury Management | E15: 2.2 - Budget and Treasury Management
A16: =B156&" - "&C156 -> Vote 15 - [NAME OF VOTE 15] | B16: 2.3 | C16: Expenditure Management | D16: 2,3 - Expenditure Management | E16: 2.3 - Expenditure Management
B17: 2.4 | C17: Revenue Management | D17: 2,4 - Revenue Management | E17: 2.4 - Revenue Management
B18: 2.5 | C18: Supply Chain Management | D18: 2,5 - Supply Chain Management | E18: 2.5 - Supply Chain Management
B19: 2.6 | C19: [Name of sub-vote] | D19: 2.6 - [Name of sub-vote]
B20: 2.7 | C20: [Name of sub-vote] | D20: 2.7 - [Name of sub-vote]
B21: 2.8 | C21: [Name of sub-vote] | D21: 2.8 - [Name of sub-vote]
B22: 2.9 | C22: [Name of sub-vote] | D22: 2.9 - [Name of sub-vote]
B23: 2.10 | C23: [Name of sub-vote] | D23: 2.10 - [Name of sub-vote]
B24: Vote 3 | C24: Corporate Services
B25: 3.1 | C25: Human Resources Management | D25: =CONCATENATE(B25, " - ", C25) -> 3,1 - Human Resources Management | E25: 3.1 - Human Resources Management
B26: 3.2 | C26: Information Technology | D26: 3,2 - Information Technology | E26: 3.2 - Information Technology
B27: 3.3 | C27: Legal Services | D27: 3,3 - Legal Services | E27: 3.3 - Legal Services
B28: 3.4 | C28: Secretariat and Auxiliary Services | D28: 3,4 - Secretariat and Auxiliary Services | E28: 3.4 - Secretariat and Auxiliary Services
B29: 3.5 | C29: General Manager: Corporate Service | D29: 3,5 - General Manager: Corporate Service | E29: 3.5 - General Manager: Corporate Service
B30: 3.6 | C30: [Name of sub-vote] | D30: 3.6 - [Name of sub-vote]
B31: 3.7 | C31: [Name of sub-vote] | D31: 3.7 - [Name of sub-vote]
B32: 3.8 | C32: [Name of sub-vote] | D32: 3.8 - [Name of sub-vote]
B33: 3.9 | C33: [Name of sub-vote] | D33: 3.9 - [Name of sub-vote]
B34: 3.10 | C34: [Name of sub-vote] | D34: 3.10 - [Name of sub-vote]
B35: Vote 4 | C35: Community Services and Social Equity
B36: 4.1 | C36: Area Based Management | D36: =CONCATENATE(B36, " - ", C36) -> 4,1 - Area Based Management | E36: 4.1 - Area Based Management
B37: 4.2 | C37: Public Safety, Emergency Services and Enforcement | D37: 4,2 - Public Safety, Emergency Services and Enforcement | E37: 4.2 - Public Safety, Emergency Services and Enforcement
B38: 4.3 | C38: Recreation and Facilities | D38: 4,3 - Recreation and Facilities | E38: 4.3 - Recreation and Facilities
B39: 4.4 | C39: Waste Management | D39: 4,4 - Waste Management | E39: 4.4 - Waste Management
B40: 4.5 | C40: [Name of sub-vote] | D40: 4.5 - [Name of sub-vote]
B41: 4.6 | C41: [Name of sub-vote] | D41: 4.6 - [Name of sub-vote]
B42: 4.7 | C42: [Name of sub-vote] | D42: 4.7 - [Name of sub-vote]
B43: 4.8 | C43: [Name of sub-vote] | D43: 4.8 - [Name of sub-vote]
B44: 4.9 | C44: [Name of sub-vote] | D44: 4.9 - [Name of sub-vote]
B45: 4.10 | C45: [Name of sub-vote] | D45: 4.10 - [Name of sub-vote]
B46: Vote 5 | C46: Infrastructure Services
B47: 5.1 | C47: Project Management Office | D47: =CONCATENATE(B47, " - ", C47) -> 5,1 - Project Management Office | E47: 5.1 - Project Management Office
B48: 5.2 | C48: Roads and Transportation | D48: 5,2 - Roads and Transportation | E48: 5.2 - Roads and Transportation
B49: 5.3 | C49: Water and Sanitation | D49: 5,3 - Water and Sanitation | E49: 5.3 - Water and Sanitation
B50: 5.4 | C50: General Manager: Infrastructure | D50: 5,4 - General Manager: Infrastructure | E50: 5.4 - General Manager: Infrastructure
B51: 5.5 | C51: [Name of sub-vote] | D51: 5.5 - [Name of sub-vote]
B52: 5.6 | C52: [Name of sub-vote] | D52: 5.6 - [Name of sub-vote]
B53: 5.7 | C53: [Name of sub-vote] | D53: 5.7 - [Name of sub-vote]
B54: 5.8 | C54: [Name of sub-vote] | D54: 5.8 - [Name of sub-vote]
B55: 5.9 | C55: [Name of sub-vote] | D55: 5.9 - [Name of sub-vote]
B56: 5.10 | C56: [Name of sub-vote] | D56: 5.10 - [Name of sub-vote]
B57: Vote 6 | C57: Sustainable Development and City Enterprises
B58: 6.1 | C58: City Entities | D58: =CONCATENATE(B58, " - ", C58) -> 6,1 - City Entities | E58: 6.1 - City Entities
B59: 6.2 | C59: Development Services | D59: 6,2 - Development Services | E59: 6.2 - Development Services
B60: 6.3 | C60: Human Settlement Development | D60: 6,3 - Human Settlement Development | E60: 6.3 - Human Settlement Development
B61: 6.4 | C61: Town Planning | D61: 6,4 - Town Planning | E61: 6.4 - Town Planning
B62: 6.5 | C62: General Manager: Sustainable Development and City Enterprises | D62: 6,5 - General Manager: Sustainable Development and City Enterprises | E62: 6.5 - General Manager: Sustainable Development and City Enterprises
B63: 6.6 | C63: [Name of sub-vote] | D63: 6.6 - [Name of sub-vote]
B64: 6.7 | C64: [Name of sub-vote] | D64: 6.7 - [Name of sub-vote]
B65: 6.8 | C65: [Name of sub-vote] | D65: 6.8 - [Name of sub-vote]
B66: 6.9 | C66: [Name of sub-vote] | D66: 6.9 - [Name of sub-vote]
B67: 6.10 | C67: [Name of sub-vote] | D67: 6.10 - [Name of sub-vote]
B68: Vote 7 | C68: Electricity
B69: 7.1 | C69: Electricity planning | D69: =CONCATENATE(B69, " - ", C69) -> 7,1 - Electricity planning | E69: 7.1 Electricity planning
B70: 7.2 | C70: Methods and Standards | D70: 7,2 - Methods and Standards | E70: 7.2 Methods and Standards
B71: 7.3 | C71: Operations and Maintenance | D71: 7,3 - Operations and Maintenance | E71: 7.3 Operations and Maintenance
B72: 7.4 | C72: Revenue Management | D72: 7,4 - Revenue Management | E72: 7.4 Revenue Management
B73: 7.5 | C73: General Manager Electricity | D73: 7,5 - General Manager Electricity | E73: 7.5 General Manager Electricity
B74: 7.6 | C74: [Name of sub-vote] | D74: 7.6 - [Name of sub-vote]
B75: 7.7 | C75: [Name of sub-vote] | D75: 7.7 - [Name of sub-vote]
B76: 7.8 | C76: [Name of sub-vote] | D76: 7.8 - [Name of sub-vote]
B77: 7.9 | C77: [Name of sub-vote] | D77: 7.9 - [Name of sub-vote]
B78: 7.10 | C78: [Name of sub-vote] | D78: 7.10 - [Name of sub-vote]
B79: Vote 8 | C79: [NAME OF VOTE 8]
B80: 8.1 | C80: [Name of sub-vote] | D80: =CONCATENATE(B80, " - ", C80) -> 8.1 - [Name of sub-vote] | E80: 8.1 - [Name of sub-vote]
B81: 8.2 | C81: [Name of sub-vote] | D81: 8.2 - [Name of sub-vote]
B82: 8.3 | C82: [Name of sub-vote] | D82: 8.3 - [Name of sub-vote]
B83: 8.4 | C83: [Name of sub-vote] | D83: 8.4 - [Name of sub-vote]
B84: 8.5 | C84: [Name of sub-vote] | D84: 8.5 - [Name of sub-vote]
B85: 8.6 | C85: [Name of sub-vote] | D85: 8.6 - [Name of sub-vote]
B86: 8.7 | C86: [Name of sub-vote] | D86: 8.7 - [Name of sub-vote]
B87: 8.8 | C87: [Name of sub-vote] | D87: 8.8 - [Name of sub-vote]
B88: 8.9 | C88: [Name of sub-vote] | D88: 8.9 - [Name of sub-vote]
B89: 8.10 | C89: [Name of sub-vote] | D89: 8.10 - [Name of sub-vote]
B90: Vote 9 | C90: [NAME OF VOTE 9]
B91: 9.1 | C91: [Name of sub-vote] | D91: =CONCATENATE(B91, " - ", C91) -> 9.1 - [Name of sub-vote] | E91: 9.1 - [Name of sub-vote]
B92: 9.2 | C92: [Name of sub-vote] | D92: 9.2 - [Name of sub-vote]
B93: 9.3 | C93: [Name of sub-vote] | D93: 9.3 - [Name of sub-vote]
B94: 9.4 | C94: [Name of sub-vote] | D94: 9.4 - [Name of sub-vote]
B95: 9.5 | C95: [Name of sub-vote] | D95: 9.5 - [Name of sub-vote]
B96: 9.6 | C96: [Name of sub-vote] | D96: 9.6 - [Name of sub-vote]
B97: 9.7 | C97: [Name of sub-vote] | D97: 9.7 - [Name of sub-vote]
B98: 9.8 | C98: [Name of sub-vote] | D98: 9.8 - [Name of sub-vote]
B99: 9.9 | C99: [Name of sub-vote] | D99: 9.9 - [Name of sub-vote]
B100: 9.10 | C100: [Name of sub-vote] | D100: 9.10 - [Name of sub-vote]
B101: Vote 10 | C101: [NAME OF VOTE 10]
B102: 10.1 | C102: [Name of sub-vote] | D102: =CONCATENATE(B102, " - ", C102) -> 10.1 - [Name of sub-vote] | E102: 10.1 - [Name of sub-vote]
B103: 10.2 | C103: [Name of sub-vote] | D103: 10.2 - [Name of sub-vote]
B104: 10.3 | C104: [Name of sub-vote] | D104: 10.3 - [Name of sub-vote]
B105: 10.4 | C105: [Name of sub-vote] | D105: 10.4 - [Name of sub-vote]
B106: 10.5 | C106: [Name of sub-vote] | D106: 10.5 - [Name of sub-vote]
B107: 10.6 | C107: [Name of sub-vote] | D107: 10.6 - [Name of sub-vote]
B108: 10.7 | C108: [Name of sub-vote] | D108: 10.7 - [Name of sub-vote]
B109: 10.8 | C109: [Name of sub-vote] | D109: 10.8 - [Name of sub-vote]
B110: 10.9 | C110: [Name of sub-vote] | D110: 10.9 - [Name of sub-vote]
B111: 10.10 | C111: [Name of sub-vote] | D111: 10.10 - [Name of sub-vote]
B112: Vote 11 | C112: [NAME OF VOTE 11]
B113: 11.1 | C113: [Name of sub-vote] | D113: =CONCATENATE(B113, " - ", C113) -> 11.1 - [Name of sub-vote] | E113: 11.1 - [Name of sub-vote]
B114: 11.2 | C114: [Name of sub-vote] | D114: 11.2 - [Name of sub-vote]
B115: 11.3 | C115: [Name of sub-vote] | D115: 11.3 - [Name of sub-vote]
B116: 11.4 | C116: [Name of sub-vote] | D116: 11.4 - [Name of sub-vote]
B117: 11.5 | C117: [Name of sub-vote] | D117: 11.5 - [Name of sub-vote]
B118: 11.6 | C118: [Name of sub-vote] | D118: 11.6 - [Name of sub-vote]
B119: 11.7 | C119: [Name of sub-vote] | D119: 11.7 - [Name of sub-vote]
B120: 11.8 | C120: [Name of sub-vote] | D120: 11.8 - [Name of sub-vote]
B121: 11.9 | C121: [Name of sub-vote] | D121: 11.9 - [Name of sub-vote]
B122: 11.10 | C122: [Name of sub-vote] | D122: 11.10 - [Name of sub-vote]
B123: Vote 12 | C123: [NAME OF VOTE 12]
B124: 12.1 | C124: [Name of sub-vote] | D124: =CONCATENATE(B124, " - ", C124) -> 12.1 - [Name of sub-vote] | E124: 12.1 - [Name of sub-vote]
B125: 12.2 | C125: [Name of sub-vote] | D125: 12.2 - [Name of sub-vote]
B126: 12.3 | C126: [Name of sub-vote] | D126: 12.3 - [Name of sub-vote]
B127: 12.4 | C127: [Name of sub-vote] | D127: 12.4 - [Name of sub-vote]
B128: 12.5 | C128: [Name of sub-vote] | D128: 12.5 - [Name of sub-vote]
B129: 12.6 | C129: [Name of sub-vote] | D129: 12.6 - [Name of sub-vote]
B130: 12.7 | C130: [Name of sub-vote] | D130: 12.7 - [Name of sub-vote]
B131: 12.8 | C131: [Name of sub-vote] | D131: 12.8 - [Name of sub-vote]
B132: 12.9 | C132: [Name of sub-vote] | D132: 12.9 - [Name of sub-vote]
B133: 12.10 | C133: [Name of sub-vote] | D133: 12.10 - [Name of sub-vote]
B134: Vote 13 | C134: [NAME OF VOTE 13]
B135: 13.1 | C135: [Name of sub-vote] | D135: =CONCATENATE(B135, " - ", C135) -> 13.1 - [Name of sub-vote] | E135: 13.1 - [Name of sub-vote]
B136: 13.2 | C136: [Name of sub-vote] | D136: 13.2 - [Name of sub-vote]
B137: 13.3 | C137: [Name of sub-vote] | D137: 13.3 - [Name of sub-vote]
B138: 13.4 | C138: [Name of sub-vote] | D138: 13.4 - [Name of sub-vote]
B139: 13.5 | C139: [Name of sub-vote] | D139: 13.5 - [Name of sub-vote]
B140: 13.6 | C140: [Name of sub-vote] | D140: 13.6 - [Name of sub-vote]
B141: 13.7 | C141: [Name of sub-vote] | D141: 13.7 - [Name of sub-vote]
B142: 13.8 | C142: [Name of sub-vote] | D142: 13.8 - [Name of sub-vote]
B143: 13.9 | C143: [Name of sub-vote] | D143: 13.9 - [Name of sub-vote]
B144: 13.10 | C144: [Name of sub-vote] | D144: 13.10 - [Name of sub-vote]
B145: Vote 14 | C145: [NAME OF VOTE 14]
B146: 14.1 | C146: [Name of sub-vote] | D146: =CONCATENATE(B146, " - ", C146) -> 14.1 - [Name of sub-vote] | E146: 14.1 - [Name of sub-vote]
B147: 14.2 | C147: [Name of sub-vote] | D147: 14.2 - [Name of sub-vote]
B148: 14.3 | C148: [Name of sub-vote] | D148: 14.3 - [Name of sub-vote]
B149: 14.4 | C149: [Name of sub-vote] | D149: 14.4 - [Name of sub-vote]
B150: 14.5 | C150: [Name of sub-vote] | D150: 14.5 - [Name of sub-vote]
B151: 14.6 | C151: [Name of sub-vote] | D151: 14.6 - [Name of sub-vote]
B152: 14.7 | C152: [Name of sub-vote] | D152: 14.7 - [Name of sub-vote]
B153: 14.8 | C153: [Name of sub-vote] | D153: 14.8 - [Name of sub-vote]
B154: 14.9 | C154: [Name of sub-vote] | D154: 14.9 - [Name of sub-vote]
B155: 14.10 | C155: [Name of sub-vote] | D155: 14.10 - [Name of sub-vote]
B156: Vote 15 | C156: [NAME OF VOTE 15]
B157: 15.1 | C157: [Name of sub-vote] | D157: =CONCATENATE(B157, " - ", C157) -> 15.1 - [Name of sub-vote] | E157: 15.1 - [Name of sub-vote]
B158: 15.2 | C158: [Name of sub-vote] | D158: 15.2 - [Name of sub-vote]
B159: 15.3 | C159: [Name of sub-vote] | D159: 15.3 - [Name of sub-vote]
B160: 15.4 | C160: [Name of sub-vote] | D160: 15.4 - [Name of sub-vote]
B161: 15.5 | C161: [Name of sub-vote] | D161: 15.5 - [Name of sub-vote]
B162: 15.6 | C162: [Name of sub-vote] | D162: 15.6 - [Name of sub-vote]
B163: 15.7 | C163: [Name of sub-vote] | D163: 15.7 - [Name of sub-vote]
B164: 15.8 | C164: [Name of sub-vote] | D164: 15.8 - [Name of sub-vote]
B165: 15.9 | C165: [Name of sub-vote] | D165: 15.9 - [Name of sub-vote]
B166: 15.10 | C166: [Name of sub-vote] | D166: 15.10 - [Name of sub-vote]

Sheet Contacts
A1: =muni&" - "&" Contact Information" -> KZN225 Msunduzi - Contact Information
A3: A. GENERAL INFORMATION
A4: Municipality | B4: =muni -> KZN225 Msunduzi | C4: Set name on 'Instructions' sheet
A6: Grade | C6: 1 Grade in terms of the Remuneration of Public Office Bearers Act.
A8: Province | B8: =IF(B4>" ",VLOOKUP(B4,'Lookup and lists'!B28:C311,2, FALSE)," ") -> KZN KWAZULU-NATAL
A10: Web Address
A12: e-mail Address
A14: B. CONTACT INFORMATION
A15: Postal address:
A16: P.O. Box
A17: City / Town
A18: Postal Code
A20: Street address
A21: Building
A22: Street No. & Name
A23: City / Town
A24: Postal Code
A26: General Contacts
A27: Telephone number
A28: Fax number
A30: C. POLITICAL LEADERSHIP
A31: Speaker: | C31: Secretary/PA to the Speaker:
A32: ID Number | C32: ID Number
A33: Title | C33: Title
A34: Name | C34: Name
A35: Telephone number | C35: Telephone number
A36: Cell number | C36: Cell number
A37: Fax number | C37: Fax number
A38: E-mail address | C38: E-mail address
A40: Mayor/Executive Mayor: | C40: Secretary/PA to the Mayor/Executive Mayor:
A41: ID Number | C41: ID Number
A42: Title | C42: Title
A43: Name | C43: Name
A44: Telephone number | C44: Telephone number
A45: Cell number | C45: Cell number
A46: Fax number | C46: Fax number
A47: E-mail address | C47: E-mail address
A49: Deputy Mayor/Executive Mayor: | C49: Secretary/PA to the Deputy Mayor/Executive Mayor:
A50: ID Number | C50: ID Number
A51: Title | C51: Title
A52: Name | C52: Name
A53: Telephone number | C53: Telephone number
A54: Cell number | C54: Cell number
A55: Fax number | C55: Fax number
A56: E-mail address | C56: E-mail address
A58: D. MANAGEMENT LEADERSHIP
A59: Municipal Manager: | C59: Secretary/PA to the Municipal Manager:
A60: ID Number | C60: ID Number
A61: Title | C61: Title
A62: Name | C62: Name
A63: Telephone number | C63: Telephone number
A64: Cell number | C64: Cell number
A65: Fax number | C65: Fax number
A66: E-mail address | C66: E-mail address
A68: Chief Financial Officer | C68: Secretary/PA to the Chief Financial Officer
A69: ID Number | C69: ID Number
A70: Title | C70: Title
A71: Name | C71: Name
A72: Telephone number | B72: Nelisiwe M Ngcobo | C72: Telephone number
A73: Cell number | B73: 0333922601 | C73: Cell number
A74: Fax number | C74: Fax number
A75: E-mail address | C75: E-mail address
A77: Official responsible for submitting financial information | C77: Official responsible for submitting financial information
A78: ID Number | C78: ID Number
A79: Title | C79: Title
A80: Name | C80: Name
A81: Telephone number | C81: Telephone number
A82: Cell number | C82: Cell number
A83: Fax number | C83: Fax number
A84: E-mail address | C84: E-mail address
A85: Official responsible for submitting financial information | C85: Official responsible for submitting financial information
A86: ID Number | C86: ID Number
A87: Title | C87: Title
A88: Name | C88: Name
A89: Telephone number | C89: Telephone number
A90: Cell number | C90: Cell number
A91: Fax number | C91: Fax number
A92: E-mail address | C92: E-mail address
A93: Official responsible for submitting financial information | C93: Official responsible for submitting financial information
A94: ID Number | C94: ID Number
A95: Title | C95: Title
A96: Name | C96: Name
A97: Telephone number | C97: Telephone number
A98: Cell number | C98: Cell number
A99: Fax number | C99: Fax number
A100: E-mail address | C100: E-mail address
A101: Official responsible for submitting financial information | C101: Official responsible for submitting financial information
A102: ID Number | C102: ID Number
A103: Title | C103: Title
A104: Name | C104: Name
A105: Telephone number | C105: Telephone number
A106: Cell number | C106: Cell number
A107: Fax number | C107: Fax number
A108: E-mail address | C108: E-mail address
A109: Official responsible for submitting financial information | C109: Official responsible for submitting financial information
A110: ID Number | C110: ID Number
A111: Title | C111: Title
A112: Name | C112: Name
A113: Telephone number | C113: Telephone number
A114: Cell number | C114: Cell number
A115: Fax number | C115: Fax number
A116: E-mail address | C116: E-mail address
A117: Official responsible for submitting financial information | C117: Official responsible for submitting financial information
A118: ID Number | C118: ID Number
A119: Title | C119: Title
A120: Name | C120: Name
A121: Telephone number | C121: Telephone number
A122: Cell number | C122: Cell number
A123: Fax number | C123: Fax number
A124: E-mail address | C124: E-mail address
A125: Official responsible for submitting financial information | C125: Official responsible for submitting financial information
A126: ID Number | C126: ID Number
A127: Title | C127: Title
A128: Name | C128: Name
A129: Telephone number | C129: Telephone number
A130: Cell number | C130: Cell number
A131: Fax number | C131: Fax number
A132: E-mail address | C132: E-mail address
A133: Official responsible for submitting financial information
A134: ID Number
A135: Title
A136: Name
A137: Telephone number
A138: Cell number
A139: Fax number
A140: E-mail address

Sheet C1-Sum
A1: =muni& " - "&s71sum& " - "&date -> KZN225 Msunduzi - Table C1 Monthly Budget Statement Summary - M01 July
A2: =desc -> Description | B2: =Head1 -> 2022/23 | C2: =Head2 -> Budget Year 2023/24
B3: =Head5 -> Audited Outcome | C3: =Head6 -> Original Budget | D3: =Head7 -> Adjusted Budget | E3: =Head38 -> Monthly actual | F3: =Head39 -> YearTD actual | G3: =Head40 -> YearTD budget | H3: =Head41 -> YTD variance | I3: =Head41 -> YTD variance | J3: =Head8 -> Full Year Forecast
A4: R thousands | I4: %
A5: Financial Performance
A6: Property rates | B6: =SUM('C4-FinPerf RE'!C22) -> 0 | C6: =SUM('C4-FinPerf RE'!D22) -> 1526985082 | D6: =SUM('C4-FinPerf RE'!E22) -> 0 | E6: =SUM('C4-FinPerf RE'!F22) -> 124453262 | F6: =SUM('C4-FinPerf RE'!G22) -> 124453262 | G6: =SUM('C4-FinPerf RE'!H22) -> 127248756.8 | H6: =F6-G6 -> -2795494.853 | I6: =IF(H6=0,"",H6/G6) -> -0.02196873999 | J6: =SUM('C4-FinPerf RE'!K22) -> 1526985082
A7: Service charges | B7: =SUM('C4-FinPerf RE'!C7:C10) -> 0 | C7: =SUM('C4-FinPerf RE'!D7:D10) -> 5135631234 | D7: =SUM('C4-FinPerf RE'!E7:E10) -> 0 | E7: =SUM('C4-FinPerf RE'!F7:F10) -> 414637587.5 | F7: =SUM('C4-FinPerf RE'!G7:G10) -> 414637587.5 | G7: =SUM('C4-FinPerf RE'!H7:H10) -> 427969269.5 | H7: =F7-G7 -> -13331682 | I7: =IF(H7=0,"",H7/G7) -> -0.03115102637 | J7: =SUM('C4-FinPerf RE'!K7:K10) -> 5135631234
A8: Investment revenue | B8: ='C4-FinPerf RE'!C15 -> 0 | C8: ='C4-FinPerf RE'!D27 -> 50691327 | D8: ='C4-FinPerf RE'!E27 -> 0 | E8: ='C4-FinPerf RE'!F27 -> 1754660.51 | F8: ='C4-FinPerf RE'!G27 -> 1754660.51 | G8: ='C4-FinPerf RE'!H27 -> 4224277.25 | H8: =F8-G8 -> -2469616.74 | I8: =IF(H8=0,"",H8/G8) -> -0.5846246811 | J8: ='C4-FinPerf RE'!K27 -> 50691327
A9: Transfers and subsidies - Operational | B9: ='C4-FinPerf RE'!C15 -> 0 | C9: ='C4-FinPerf RE'!D26 -> 838135150 | D9: ='C4-FinPerf RE'!E26 -> 0 | E9: ='C4-FinPerf RE'!F26 -> 320632417.2 | F9: ='C4-FinPerf RE'!G26 -> 320632417.2 | G9: ='C4-FinPerf RE'!H26 -> 69844595.83 | H9: =F9-G9 -> 250787821.3 | I9: =IF(H9=0,"",H9/G9) -> 3.590654629 | J9: ='C4-FinPerf RE'!K26 -> 838135150
A10: Other own revenue | B10: =+B11-SUM(B6:B9) -> 0 | C10: =+C11-SUM(C6:C9) -> 569283332.1 | D10: 0 | E10: 32390592.55 | F10: 32390592.55 | G10: 47440277.68 | H10: =F10-G10 -> -15049685.13 | I10: =IF(H10=0,"",H10/G10) -> -0.3172343389 | J10: =+J11-SUM(J6:J9) -> 569283332.1
A11: Total Revenue (excluding capital transfers and contributions) | B11: =+'C4-FinPerf RE'!C33 -> 0 | C11: =+'C4-FinPerf RE'!D33 -> 8120726125 | D11: =+'C4-FinPerf RE'!E33 -> 0 | E11: =+'C4-FinPerf RE'!F33 -> 893868519.7 | F11: =+'C4-FinPerf RE'!G33 -> 893868519.7 | G11: =+'C4-FinPerf RE'!H33 -> 676727177.1 | H11: =F11-G11 -> 217141342.6 | I11: =IF(H11=0,"",H11/G11) -> 0.3208698423 | J11: =+'C4-FinPerf RE'!K33 -> 8120726125
A12: Employee costs | B12: ='C4-FinPerf RE'!C35 -> 0 | C12: ='C4-FinPerf RE'!D35 -> 1781210508 | D12: ='C4-FinPerf RE'!E35 -> 0 | E12: ='C4-FinPerf RE'!F35 -> 123458316 | F12: ='C4-FinPerf RE'!G35 -> 123458316 | G12: ='C4-FinPerf RE'!H35 -> 148434209 | H12: -24975892.96 | I12: -0.1682623778 | J12: ='C4-FinPerf RE'!K35 -> 1781210508
A13: Remuneration of Councillors | B13: ='C4-FinPerf RE'!C36 -> 0 | C13: ='C4-FinPerf RE'!D36 -> 62699934.99 | D13: ='C4-FinPerf RE'!E36 -> 0 | E13: ='C4-FinPerf RE'!F36 -> 3878495.17 | F13: ='C4-FinPerf RE'!G36 -> 3878495.17 | G13: ='C4-FinPerf RE'!H36 -> 5224994.582 | H13: -1346499.412 | I13: -0.257703504 | J13: ='C4-FinPerf RE'!K36 -> 62699934.99
A14: Depreciation and amortisation | B14: ='C4-FinPerf RE'!C40 -> 0 | C14: ='C4-FinPerf RE'!D40 -> 460781797 | D14: ='C4-FinPerf RE'!E40 -> 0 | E14: ='C4-FinPerf RE'!F40 -> 29646737.24 | F14: ='C4-FinPerf RE'!G40 -> 29646737.24 | G14: ='C4-FinPerf RE'!H40 -> 38398483.08 | H14: -8751745.843 | I14: -0.2279190515 | J14: ='C4-FinPerf RE'!K40 -> 460781797
A15: Interest | B15: ='C4-FinPerf RE'!C41 -> 0 | C15: ='C4-FinPerf RE'!D41 -> 40400879.72 | D15: ='C4-FinPerf RE'!E41 -> 0 | E15: ='C4-FinPerf RE'!F41 -> 1129038.09 | F15: ='C4-FinPerf RE'!G41 -> 1129038.09 | G15: ='C4-FinPerf RE'!H41 -> 3366739.977 | H15: -2237701.887 | I15: -0.6646494539 | J15: ='C4-FinPerf RE'!K41 -> 40400879.72
A16: Inventory consumed and bulk purchases | B16: =SUM('C4-FinPerf RE'!C37+'C4-FinPerf RE'!C38) -> 0 | C16: =SUM('C4-FinPerf RE'!D37+'C4-FinPerf RE'!D38) -> 3484629036 | D16: =SUM('C4-FinPerf RE'!E37+'C4-FinPerf RE'!E38) -> 0 | E16: =SUM('C4-FinPerf RE'!F37+'C4-FinPerf RE'!F38) -> 360563854.8 | F16: =SUM('C4-FinPerf RE'!G37+'C4-FinPerf RE'!G38) -> 360563854.8 | G16: =SUM('C4-FinPerf RE'!H37+'C4-FinPerf RE'!H38) -> 290385753 | H16: 70178101.85 | I16: 0.2416719867 | J16: =SUM('C4-FinPerf RE'!K37+'C4-FinPerf RE'!K38) -> 3484629036
A17: Transfers and subsidies | B17: ='C4-FinPerf RE'!C43 -> 0 | C17: ='C4-FinPerf RE'!D43 -> 65884469.29 | D17: ='C4-FinPerf RE'!E43 -> 0 | E17: ='C4-FinPerf RE'!F43 -> 3021319.13 | F17: ='C4-FinPerf RE'!G43 -> 3021319.13 | G17: ='C4-FinPerf RE'!H43 -> 5490372.441 | H17: -2469053.311 | I17: -0.4497059785 | J17: ='C4-FinPerf RE'!K43 -> 65884469.29
A18: Other expenditure | B18: ='C4-FinPerf RE'!C48-SUM('C1-Sum'!B12:B17) -> 0 | C18: ='C4-FinPerf RE'!D48-SUM('C1-Sum'!C12:C17) -> 1809593170 | D18: ='C4-FinPerf RE'!E48-SUM('C1-Sum'!D12:D17) -> 0 | E18: ='C4-FinPerf RE'!F48-SUM('C1-Sum'!E12:E17) -> 44197897.87 | F18: ='C4-FinPerf RE'!G48-SUM('C1-Sum'!F12:F17) -> 44197897.87 | G18: ='C4-FinPerf RE'!H48-SUM('C1-Sum'!G12:G17) -> 150799430.8 | H18: -106601533 | I18: -0.7069093854 | J18: ='C4-FinPerf RE'!K48-SUM('C1-Sum'!J12:J17) -> 1809593170
A19: Total Expenditure | B19: =SUM(B12:B18) -> 0 | C19: 7705199795 | D19: 0 | E19: 565895658.4 | F19: 565895658.4 | G19: 642099982.9 | H19: -76204324.53 | I19: -0.118679842 | J19: =SUM(J12:J18) -> 7705199795
A20: Surplus/(Deficit) | B20: =B11-B19 -> 0 | C20: 415526330.3 | D20: 0 | E20: 327972861.3 | F20: 327972861.3 | G20: 34627194.19 | H20: 293345667.2 | I20: 8.471540188 | J20: =J11-J19 -> 415526330.3
A21: Transfers and subsidies - capital (monetary allocations) | B21: ='C4-FinPerf RE'!C50 -> 0 | C21: ='C4-FinPerf RE'!D50 -> 448700054.9 | D21: ='C4-FinPerf RE'!E50 -> 0 | E21: ='C4-FinPerf RE'!F50 -> 25211388.71 | F21: ='C4-FinPerf RE'!G50 -> 25211388.71 | G21: ='C4-FinPerf RE'!H50 -> 37391671.25 | H21: -12180282.54 | I21: -0.3257485459 | J21: ='C4-FinPerf RE'!K50 -> 448700054.9
A22: Transfers and subsidies - capital (in-kind) | B22: =SUM('C4-FinPerf RE'!C51:C51) -> 0 | C22: =SUM('C4-FinPerf RE'!D51:D51) -> 0 | D22: =SUM('C4-FinPerf RE'!E51:E51) -> 0 | E22: =SUM('C4-FinPerf RE'!F51:F51) -> 0 | F22: =SUM('C4-FinPerf RE'!G51:G51) -> 0 | G22: =SUM('C4-FinPerf RE'!H51:H51) -> 0 | H22: 0 | J22: =SUM('C4-FinPerf RE'!K51:K51) -> 0
A23: Surplus/(Deficit) after capital transfers & contributions | B23: =B20+B21+B22 -> 0 | C23: 864226385.2 | D23: 0 | E23: 353184250.1 | F23: 353184250.1 | G23: 72018865.43 | H23: 281165384.6 | I23: 3.904051847 | J23: =J20+J21+J22 -> 864226385.2
A24: Share of surplus/ (deficit) of associate | B24: ='C4-FinPerf RE'!C59 -> 0 | C24: ='C4-FinPerf RE'!D59 -> 0 | D24: ='C4-FinPerf RE'!E59 -> 0 | E24: ='C4-FinPerf RE'!F59 -> 0 | F24: ='C4-FinPerf RE'!G59 -> 0 | G24: ='C4-FinPerf RE'!H59 -> 0 | H24: 0 | J24: ='C4-FinPerf RE'!K59 -> 0
A25: Surplus/ (Deficit) for the year | B25: =B23+B24 -> 0 | C25: 864226385.2 | D25: 0 | E25: 353184250.1 | F25: 353184250.1 | G25: 72018865.43 | H25: 281165384.6 | I25: 3.904051847 | J25: =J23+J24 -> 864226385.2
A27: Capital expenditure & funds sources
A28: Capital expenditure | B28: ='C5-Capex'!C40 -> 0 | C28: ='C5-Capex'!D40 -> 768760054 | D28: ='C5-Capex'!E40 -> 0 | E28: ='C5-Capex'!F40 -> 16309726.66 | F28: ='C5-Capex'!G40 -> 16309726.66 | G28: ='C5-Capex'!H40 -> 64063337.83 | H28: =F28-G28 -> -47753611.17 | I28: =IF(H28=0,"",H28/G28) -> -0.7454124744 | J28: ='C5-Capex'!K40 -> 768760054
A29: Capital transfers recognised | B29: ='C5-Capex'!C70 -> 0 | C29: ='C5-Capex'!D70 -> 448700054.9 | D29: ='C5-Capex'!E70 -> 0 | E29: ='C5-Capex'!F70 -> 21994280.46 | F29: ='C5-Capex'!G70 -> 21994280.46 | G29: ='C5-Capex'!H70 -> 37391671.25 | H29: -15397390.79 | I29: -0.4117866432 | J29: ='C5-Capex'!K70 -> 448700054.9
A31: Borrowing | B31: ='C5-Capex'!C72 -> 0 | C31: ='C5-Capex'!D72 -> 200000000 | D31: ='C5-Capex'!E72 -> 0 | E31: ='C5-Capex'!F72 -> 0 | F31: ='C5-Capex'!G72 -> 0 | G31: ='C5-Capex'!H72 -> 16666666.67 | H31: -16666666.67 | I31: -1 | J31: ='C5-Capex'!K72 -> 200000000
A32: Internally generated funds | B32: ='C5-Capex'!C73 -> 0 | C32: ='C5-Capex'!D73 -> 120059999 | D32: ='C5-Capex'!E73 -> 0 | E32: ='C5-Capex'!F73 -> -5684553.8 | F32: ='C5-Capex'!G73 -> -5684553.8 | G32: ='C5-Capex'!H73 -> 10004999.92 | H32: -15689553.72 | I32: -1.568171299 | J32: ='C5-Capex'!K73 -> 120059999
A33: Total sources of capital funds | B33: =+B29+B31+B32 -> 0 | C33: 768760054 | D33: 0 | E33: 16309726.66 | F33: 16309726.66 | G33: 64063337.83 | H33: -47753611.17 | I33: -0.7454124744 | J33: =+J29+J31+J32 -> 768760054
A35: Financial position
A36: Total current assets | B36: ='C6-FinPos'!C14 -> 0 | C36: ='C6-FinPos'!D14 -> 2922956720 | D36: ='C6-FinPos'!E14 -> 0 | F36: ='C6-FinPos'!F14 -> 3764984605 | J36: ='C6-FinPos'!G14 -> 2922956720
A37: Total non current assets | B37: ='C6-FinPos'!C26 -> 0 | C37: ='C6-FinPos'!D26 -> 9291677655 | D37: ='C6-FinPos'!E26 -> 0 | F37: ='C6-FinPos'!F26 -> 8401075927 | J37: ='C6-FinPos'!G26 -> 9291677655
A38: Total current liabilities | B38: ='C6-FinPos'!C38 -> 0 | C38: ='C6-FinPos'!D38 -> 1645970335 | D38: ='C6-FinPos'!E38 -> 0 | F38: ='C6-FinPos'!F38 -> 2692635072 | J38: ='C6-FinPos'!G38 -> 1645970335
A39: Total non current liabilities | B39: ='C6-FinPos'!C44 -> 0 | C39: ='C6-FinPos'!D44 -> 855012692 | D39: ='C6-FinPos'!E44 -> 0 | F39: ='C6-FinPos'!F44 -> 658473828.5 | J39: ='C6-FinPos'!G44 -> 855012692
A40: Community wealth/Equity | B40: ='C6-FinPos'!C51 -> 0 | C40: ='C6-FinPos'!D51 -> 9713651348 | D40: ='C6-FinPos'!E51 -> 0 | F40: ='C6-FinPos'!F51 -> 8814951631 | J40: ='C6-FinPos'!G51 -> 9713651348
A42: Cash flows
A43: Net cash from (used) operating | B43: ='C7-CFlow'!C18 -> 0 | C43: ='C7-CFlow'!D18 -> 946378162.4 | D43: ='C7-CFlow'!E18 -> 0 | E43: ='C7-CFlow'!F18 -> 0 | F43: ='C7-CFlow'!G18 -> 0 | G43: ='C7-CFlow'!H18 -> 78864846.87 | H43: =G43-F43 -> 78864846.87 | I43: =IF(H43=0,"",H43/G43) -> 1 | J43: ='C7-CFlow'!K18 -> 946378162.4
A44: Net cash from (used) investing | B44: ='C7-CFlow'!C28 -> 0 | C44: ='C7-CFlow'!D28 -> -768501055 | D44: ='C7-CFlow'!E28 -> 0 | E44: ='C7-CFlow'!F28 -> 0 | F44: ='C7-CFlow'!G28 -> 0 | G44: ='C7-CFlow'!H28 -> -64041754.58 | H44: =G44-F44 -> -64041754.58 | I44: =IF(H44=0,"",H44/G44) -> 1 | J44: ='C7-CFlow'!K28 -> -768501055
A45: Net cash from (used) financing | B45: ='C7-CFlow'!C37 -> 0 | C45: ='C7-CFlow'!D37 -> 177000000 | D45: ='C7-CFlow'!E37 -> 0 | E45: ='C7-CFlow'!F37 -> 0 | F45: ='C7-CFlow'!G37 -> 0 | G45: ='C7-CFlow'!H37 -> 14750000 | H45: =G45-F45 -> 14750000 | I45: =IF(H45=0,"",H45/G45) -> 1 | J45: ='C7-CFlow'!K37 -> 177000000
A46: Cash/cash equivalents at the month/year end | B46: ='C7-CFlow'!C41 -> 0 | C46: ='C7-CFlow'!D41 -> 766879964.7 | D46: ='C7-CFlow'!E41 -> 0 | E46: ='C7-CFlow'!F41 -> 0 | F46: ='C7-CFlow'!G41 -> 0 | G46: ='C7-CFlow'!H41 -> 441575949.6 | H46: =G46-F46 -> 441575949.6 | I46: =IF(H46=0,"",H46/G46) -> 1 | J46: ='C7-CFlow'!K41 -> 354877107.4
A48: Debtors & creditors analysis | B48: ='SC3'!C3 -> 0-30 Days | C48: ='SC3'!D3 -> 31-60 Days | D48: ='SC3'!E3 -> 61-90 Days | E48: ='SC3'!F3 -> 91-120 Days | F48: ='SC3'!G3 -> 121-150 Dys | G48: ='SC3'!H3 -> 151-180 Dys | H48: ='SC3'!I3 -> 181 Dys-1 Yr | I48: ='SC3'!J3 -> Over 1Yr | J48: Total
A49: =LEFT('SC3'!A4,20) -> Debtors Age Analysis
A50: ='SC3'!A14 -> Total By Income Source | B50: ='SC3'!C14 -> 640378549 | C50: ='SC3'!D14 -> 126814388.2 | D50: ='SC3'!E14 -> 138088306.3 | E50: ='SC3'!F14 -> 108016495.8 | F50: ='SC3'!G14 -> 115597814.9 | G50: ='SC3'!H14 -> 98529703.94 | H50: ='SC3'!I14 -> 727925241.2 | I50: ='SC3'!J14 -> 4301175748 | J50: ='SC3'!K14 -> 6256526248
A51: =LEFT('SC4'!A5,22) -> Creditors Age Analysis
A52: Total Creditors | B52: ='SC4'!C15 -> 498517536.6 | C52: ='SC4'!D15 -> 266093359.7 | D52: ='SC4'!E15 -> -58788042.6 | E52: ='SC4'!F15 -> 65402811.75 | F52: ='SC4'!G15 -> 860492996.3 | G52: ='SC4'!H15 -> 0 | H52: ='SC4'!I15 -> 0 | I52: ='SC4'!J15 -> 0 | J52: ='SC4'!K15 -> 1631718662

Sheet C2-FinPerf SC
A1: =muni& " - "&S71A& " - "&date -> KZN225 Msunduzi - Table C2 Monthly Budget Statement - Financial Performance (functional classification) - M01 July
A2: =desc -> Description | B2: =head27 -> Ref | C2: =Head1 -> 2022/23 | D2: =Head2 -> Budget Year 2023/24
C3: =Head5 -> Audited Outcome | D3: =Head6 -> Original Budget | E3: =Head7 -> Adjusted Budget | F3: =Head38 -> Monthly actual | G3: =Head39 -> YearTD actual | H3: =Head40 -> YearTD budget | I3: =Head41 -> YTD variance | J3: =Head41 -> YTD variance | K3: =Head8 -> Full Year Forecast
A4: R thousands | B4: 1 | J4: %
A5: Revenue - Functional
A6: Governance and administration | C6: =SUM(C7:C9) -> 0 | D6: 2375779979 | E6: 0 | F6: 311830136.7 | G6: 311830136.7 | H6: 197981664.9 | I6: =G6-H6 -> 113848471.8 | J6: =IF(I6=0,"",I6/H6) -> 0.5750455319 | K6: =SUM(K7:K9) -> 2375779979
A7: Executive and council | C7: ='C2C'!C7 -> 0 | D7: ='C2C'!D7 -> 4979000 | E7: ='C2C'!E7 -> 0 | F7: ='C2C'!F7 -> 0 | G7: ='C2C'!G7 -> 0 | H7: ='C2C'!H7 -> 414916.6667 | I7: -414916.6667 | J7: =IF(I7=0,"",I7/H7) -> -1 | K7: ='C2C'!K7 -> 4979000
A8: Finance and administration | C8: ='C2C'!C10 -> 0 | D8: ='C2C'!D10 -> 2370800979 | E8: ='C2C'!E10 -> 0 | F8: ='C2C'!F10 -> 311830136.7 | G8: ='C2C'!G10 -> 311830136.7 | H8: ='C2C'!H10 -> 197566748.2 | I8: 114263388.5 | J8: 0.5783533387 | K8: ='C2C'!K10 -> 2370800979
A9: Internal audit | C9: ='C2C'!C24 -> 0 | D9: ='C2C'!D24 -> 0 | E9: ='C2C'!E24 -> 0 | F9: ='C2C'!F24 -> 0 | G9: ='C2C'!G24 -> 0 | H9: ='C2C'!H24 -> 0 | I9: 0 | K9: ='C2C'!K24 -> 0
A10: Community and public safety | C10: =SUM(C11:C15) -> 0 | D10: 338866615 | E10: 0 | F10: 8996999.67 | G10: 8996999.67 | H10: 28238884.58 | I10: -19241884.91 | J10: -0.681396776 | K10: =SUM(K11:K15) -> 338866615
A11: Community and social services | C11: ='C2C'!C27 -> 0 | D11: ='C2C'!D27 -> 276753844.2 | E11: ='C2C'!E27 -> 0 | F11: ='C2C'!F27 -> 3908226.27 | G11: ='C2C'!G27 -> 3908226.27 | H11: ='C2C'!H27 -> 23062820.35 | I11: -19154594.08 | J11: -0.8305399682 | K11: ='C2C'!K27 -> 276753844.2
A12: Sport and recreation | C12: ='C2C'!C49 -> 0 | D12: ='C2C'!D49 -> 21223330.41 | E12: ='C2C'!E49 -> 0 | F12: ='C2C'!F49 -> 15029.88 | G12: ='C2C'!G49 -> 15029.88 | H12: ='C2C'!H49 -> 1768610.867 | I12: -1753580.987 | J12: -0.9915018729 | K12: ='C2C'!K49 -> 21223330.41
A13: Public safety | C13: ='C2C'!C55 -> 0 | D13: ='C2C'!D55 -> 8568779.072 | E13: ='C2C'!E55 -> 0 | F13: ='C2C'!F55 -> 376302.71 | G13: ='C2C'!G55 -> 376302.71 | H13: ='C2C'!H55 -> 714064.9226 | I13: -337762.2126 | J13: -0.47301331 | K13: ='C2C'!K55 -> 8568779.072
A14: Housing | C14: ='C2C'!C64 -> 0 | D14: ='C2C'!D64 -> 32320661.28 | E14: ='C2C'!E64 -> 0 | F14: ='C2C'!F64 -> 4697440.81 | G14: ='C2C'!G64 -> 4697440.81 | H14: ='C2C'!H64 -> 2693388.44 | I14: 2004052.37 | J14: 0.7440636263 | K14: ='C2C'!K64 -> 32320661.28
A15: Health | C15: ='C2C'!C67 -> 0 | D15: ='C2C'!D67 -> 0 | E15: ='C2C'!E67 -> 0 | F15: ='C2C'!F67 -> 0 | G15: ='C2C'!G67 -> 0 | H15: ='C2C'!H67 -> 0 | I15: 0 | K15: ='C2C'!K67 -> 0
A16: Economic and environmental services | C16: =SUM(C17:C19) -> 0 | D16: 55600947.45 | E16: 0 | F16: 12149434.64 | G16: 12149434.64 | H16: 4633412.287 | I16: 7516022.353 | J16: 1.622135456 | K16: =SUM(K17:K19) -> 55600947.45
A17: Planning and development | C17: ='C2C'!C76 -> 0 | D17: ='C2C'!D76 -> 47684582.16 | E17: ='C2C'!E76 -> 0 | F17: ='C2C'!F76 -> 1508046.87 | G17: ='C2C'!G76 -> 1508046.87 | H17: ='C2C'!H76 -> 3973715.18 | I17: -2465668.31 | J17: -0.6204944739 | K17: ='C2C'!K76 -> 47684582.16
A18: Road transport | C18: ='C2C'!C87 -> 0 | D18: ='C2C'!D87 -> 0 | E18: ='C2C'!E87 -> 0 | F18: ='C2C'!F87 -> 10627152.81 | G18: ='C2C'!G87 -> 10627152.81 | H18: ='C2C'!H87 -> 0 | I18: 10627152.81 | K18: ='C2C'!K87 -> 0
A19: Environmental protection | C19: ='C2C'!C92 -> 0 | D19: ='C2C'!D92 -> 7916365.286 | E19: ='C2C'!E92 -> 0 | F19: ='C2C'!F92 -> 14234.96 | G19: ='C2C'!G92 -> 14234.96 | H19: ='C2C'!H92 -> 659697.1072 | I19: -645462.1472 | J19: -0.978421976 | K19: ='C2C'!K92 -> 7916365.286
A20: Trading services | C20: =SUM(C21:C24) -> 0 | D20: =SUM(D21:D24) -> 5698134020 | E20: 0 | F20: 583587075.1 | G20: 583587075.1 | H20: 474844501.7 | I20: 108742573.4 | J20: 0.2290067022 | K20: =SUM(K21:K24) -> 5698134020
A21: Energy sources | C21: ='C2C'!C100 -> 0 | D21: ='C2C'!D100 -> 4028755846 | E21: ='C2C'!E100 -> 0 | F21: ='C2C'!F100 -> 331700984.8 | G21: ='C2C'!G100 -> 331700984.8 | H21: ='C2C'!H100 -> 335729653.8 | I21: =G21-H21 -> -4028669.041 | J21: -0.01199974145 | K21: ='C2C'!K100 -> 4028755846
A22: Water management | C22: ='C2C'!C104 -> 0 | D22: ='C2C'!D104 -> 1300958056 | E22: ='C2C'!E104 -> 0 | F22: ='C2C'!F104 -> 189830877.6 | G22: ='C2C'!G104 -> 189830877.6 | H22: ='C2C'!H104 -> 108413171.3 | I22: =G22-H22 -> 81417706.27 | J22: 0.7509946004 | K22: ='C2C'!K104 -> 1300958056
A23: Waste water management | C23: ='C2C'!C108 -> 0 | D23: ='C2C'!D108 -> 209646015.9 | E23: ='C2C'!E108 -> 0 | F23: ='C2C'!F108 -> 39164602.48 | G23: ='C2C'!G108 -> 39164602.48 | H23: ='C2C'!H108 -> 17470501.32 | I23: =G23-H23 -> 21694101.16 | J23: 1.241756075 | K23: ='C2C'!K108 -> 209646015.9
A24: Waste management | C24: ='C2C'!C113 -> 0 | D24: ='C2C'!D113 -> 158774103.1 | E24: ='C2C'!E113 -> 0 | F24: ='C2C'!F113 -> 22890610.28 | G24: ='C2C'!G113 -> 22890610.28 | H24: ='C2C'!H113 -> 13231175.26 | I24: =G24-H24 -> 9659435.019 | J24: 0.730051173 | K24: ='C2C'!K113 -> 158774103.1
A25: Other | B25: 4 | C25: ='C2C'!C118 -> 0 | D25: ='C2C'!D118 -> 101044618.5 | E25: ='C2C'!E118 -> 0 | F25: ='C2C'!F118 -> 2516262.33 | G25: ='C2C'!G118 -> 2516262.33 | H25: ='C2C'!H118 -> 8420384.873 | I25: =G25-H25 -> -5904122.543 | J25: -0.7011701522 | K25: ='C2C'!K118 -> 101044618.5
A26: Total Revenue - Functional | B26: 2 | C26: =C6+C10+C16+C20+C25 -> 0 | D26: =D6+D10+D16+D20+D25 -> 8569426180 | E26: 0 | F26: 919079908.4 | G26: 919079908.4 | H26: 714118848.4 | I26: 204961060.1 | J26: 0.2870125338 | K26: =K6+K10+K16+K20+K25 -> 8569426180
A28: Expenditure - Functional
A29: Governance and administration | C29: =SUM(C30:C32) -> 0 | D29: 1480552759 | E29: 0 | F29: 67222843.61 | G29: 67222843.61 | H29: 123379396.6 | I29: =G29-H29 -> -56156552.98 | J29: =IF(I29=0,"",I29/H29) -> -0.4551534092 | K29: =SUM(K30:K32) -> 1480552759
A30: Executive and council | C30: ='C2C'!C129 -> 0 | D30: ='C2C'!D129 -> 258320031.1 | E30: ='C2C'!E129 -> 0 | F30: ='C2C'!F129 -> 8244348.17 | G30: ='C2C'!G129 -> 8244348.17 | H30: ='C2C'!H129 -> 21526669.25 | I30: -13282321.08 | J30: =IF(I30=0,"",I30/H30) -> -0.6170170093 | K30: ='C2C'!K129 -> 258320031.1
A31: Finance and administration | C31: ='C2C'!C132 -> 0 | D31: ='C2C'!D132 -> 1193777693 | E31: ='C2C'!E132 -> 0 | F31: ='C2C'!F132 -> 58112539.2 | G31: ='C2C'!G132 -> 58112539.2 | H31: ='C2C'!H132 -> 99481474.38 | I31: -41368935.18 | J31: -0.4158456179 | K31: ='C2C'!K132 -> 1193777693
A32: Internal audit | C32: ='C2C'!C146 -> 0 | D32: ='C2C'!D146 -> 28455035.46 | E32: ='C2C'!E146 -> 0 | F32: ='C2C'!F146 -> 865956.24 | G32: ='C2C'!G146 -> 865956.24 | H32: ='C2C'!H146 -> 2371252.955 | I32: -1505296.715 | J32: -0.634810686 | K32: ='C2C'!K146 -> 28455035.46
A33: Community and public safety | C33: =SUM(C34:C38) -> 0 | D33: 537195647.4 | E33: 0 | F33: 41391547.28 | G33: 41391547.28 | H33: 44766303.95 | I33: -3374756.669 | J33: -0.07538609112 | K33: =SUM(K34:K38) -> 537195647.4
A34: Community and social services | C34: ='C2C'!C149 -> 0 | D34: ='C2C'!D149 -> 135893001.6 | E34: ='C2C'!E149 -> 0 | F34: ='C2C'!F149 -> 11350310.05 | G34: ='C2C'!G149 -> 11350310.05 | H34: ='C2C'!H149 -> 11324416.8 | I34: 25893.25214 | J34: 0.002286497627 | K34: ='C2C'!K149 -> 135893001.6
A35: Sport and recreation | C35: ='C2C'!C171 -> 0 | D35: ='C2C'!D171 -> 130424689 | E35: ='C2C'!E171 -> 0 | F35: ='C2C'!F171 -> 10095062.16 | G35: ='C2C'!G171 -> 10095062.16 | H35: ='C2C'!H171 -> 10868724.09 | I35: -773661.9263 | J35: -0.0711824056 | K35: ='C2C'!K171 -> 130424689
A36: Public safety | C36: ='C2C'!C177 -> 0 | D36: ='C2C'!D177 -> 222097496 | E36: ='C2C'!E177 -> 0 | F36: ='C2C'!F177 -> 14350697.74 | G36: ='C2C'!G177 -> 14350697.74 | H36: ='C2C'!H177 -> 18508124.67 | I36: -4157426.928 | J36: -0.2246271301 | K36: ='C2C'!K177 -> 222097496
A37: Housing | C37: ='C2C'!C186 -> 0 | D37: ='C2C'!D186 -> 35263319.41 | E37: ='C2C'!E186 -> 0 | F37: ='C2C'!F186 -> 4811675.8 | G37: ='C2C'!G186 -> 4811675.8 | H37: ='C2C'!H186 -> 2938609.951 | I37: 1873065.849 | J37: 0.6373985934 | K37: ='C2C'!K186 -> 35263319.41
A38: Health | C38: ='C2C'!C189 -> 0 | D38: ='C2C'!D189 -> 13517141.35 | E38: ='C2C'!E189 -> 0 | F38: ='C2C'!F189 -> 783801.53 | G38: ='C2C'!G189 -> 783801.53 | H38: ='C2C'!H189 -> 1126428.446 | I38: -342626.9161 | J38: -0.3041710437 | K38: ='C2C'!K189 -> 13517141.35
A39: Economic and environmental services | C39: =SUM(C40:C42) -> 0 | D39: 513621030.7 | E39: 0 | F39: 23689880.77 | G39: 23689880.77 | H39: 42801752.56 | I39: -19111871.79 | J39: -0.4465207765 | K39: =SUM(K40:K42) -> 513621030.7
A40: Planning and development | C40: ='C2C'!C198 -> 0 | D40: ='C2C'!D198 -> 84862819.17 | E40: ='C2C'!E198 -> 0 | F40: ='C2C'!F198 -> 6067281.69 | G40: ='C2C'!G198 -> 6067281.69 | H40: ='C2C'!H198 -> 7071901.598 | I40: -1004619.908 | J40: -0.1420579591 | K40: ='C2C'!K198 -> 84862819.17
A41: Road transport | C41: ='C2C'!C209 -> 0 | D41: ='C2C'!D209 -> 402475671.2 | E41: ='C2C'!E209 -> 0 | F41: ='C2C'!F209 -> 15621865.88 | G41: ='C2C'!G209 -> 15621865.88 | H41: ='C2C'!H209 -> 33539639.26 | I41: -17917773.38 | J41: -0.5342267769 | K41: ='C2C'!K209 -> 402475671.2
A42: Environmental protection | C42: ='C2C'!C214 -> 0 | D42: ='C2C'!D214 -> 26282540.4 | E42: ='C2C'!E214 -> 0 | F42: ='C2C'!F214 -> 2000733.2 | G42: ='C2C'!G214 -> 2000733.2 | H42: ='C2C'!H214 -> 2190211.7 | I42: -189478.4996 | J42: -0.08651150009 | K42: ='C2C'!K214 -> 26282540.4
A43: Trading services | C43: =SUM(C44:C47) -> 0 | D43: =SUM(D44:D47) -> 5109852271 | E43: 0 | F43: 429412863.7 | G43: 429412863.7 | H43: 425821022.6 | I43: 3591841.133 | J43: 0.008435095834 | K43: =SUM(K44:K47) -> 5109852271
A44: Energy sources | C44: ='C2C'!C222 -> 0 | D44: ='C2C'!D222 -> 3289791560 | E44: ='C2C'!E222 -> 0 | F44: ='C2C'!F222 -> 311012253.5 | G44: ='C2C'!G222 -> 311012253.5 | H44: ='C2C'!H222 -> 274149296.6 | I44: 36862956.84 | J44: 0.1344630728 | K44: ='C2C'!K222 -> 3289791560
A45: Water management | C45: ='C2C'!C226 -> 0 | D45: ='C2C'!D226 -> 1293156974 | E45: ='C2C'!E226 -> 0 | F45: ='C2C'!F226 -> 80573697.81 | G45: ='C2C'!G226 -> 80573697.81 | H45: ='C2C'!H226 -> 107763081.1 | I45: -27189383.32 | J45: -0.2523070335 | K45: ='C2C'!K226 -> 1293156974
A46: Waste water management | C46: ='C2C'!C230 -> 0 | D46: ='C2C'!D230 -> 399300023.2 | E46: ='C2C'!E230 -> 0 | F46: ='C2C'!F230 -> 26110926.41 | G46: ='C2C'!G230 -> 26110926.41 | H46: ='C2C'!H230 -> 33275001.94 | I46: -7164075.526 | J46: -0.2152990266 | K46: ='C2C'!K230 -> 399300023.2
A47: Waste management | C47: ='C2C'!C235 -> 0 | D47: ='C2C'!D235 -> 127603714.5 | E47: ='C2C'!E235 -> 0 | F47: ='C2C'!F235 -> 11715986.01 | G47: ='C2C'!G235 -> 11715986.01 | H47: ='C2C'!H235 -> 10633642.87 | I47: 1082343.136 | J47: 0.1017847927 | K47: ='C2C'!K235 -> 127603714.5
A48: Other | C48: ='C2C'!C240 -> 0 | D48: ='C2C'!D240 -> 63978086.85 | E48: ='C2C'!E240 -> 0 | F48: ='C2C'!F240 -> 4178523.02 | G48: ='C2C'!G240 -> 4178523.02 | H48: ='C2C'!H240 -> 5331507.238 | I48: -1152984.218 | J48: -0.2162585863 | K48: ='C2C'!K240 -> 63978086.85
A49: Total Expenditure - Functional | B49: 3 | C49: =C29+C33+C39+C43+C48 -> 0 | D49: =D29+D33+D39+D43+D48 -> 7705199795 | E49: 0 | F49: 565895658.4 | G49: 565895658.4 | H49: 642099982.9 | I49: -76204324.53 | J49: -0.118679842 | K49: =K29+K33+K39+K43+K48 -> 7705199795
A50: Surplus/ (Deficit) for the year | C50: =C26-C49 -> 0 | D50: 864226385.2 | E50: 0 | F50: 353184250.1 | G50: 353184250.1 | H50: 72018865.43 | I50: =I26-I49 -> 281165384.6 | J50: =IF(I50=0,"",I50/H50) -> 3.904051847 | K50: =K26-K49 -> 864226385.2
A51: =head27a -> References
A52: 1. Government Finance Statistics Functions and Sub-functions are standardised to assist the compilation of national and international accounts for comparison purposes
A53: 2. Total Revenue by functional classification must reconcile to Total Operating Revenue shown in the Financial Performance Statement
A54: 3. Total Expenditure by functional classification must reconcile to total operating expenditure shown in 'Financial Performance Statement'
A55: 4. All amounts must be classified under a functional classification (modified GFS). The GFS function 'Other' is only for Abbatoirs, Air Transport, Licensing and Regulation, Markets and Tourism - and if used must be supported by footnotes. Nothing else may be placed under 'Other'. Assign associate share to relevant classification

Sheet C2C
A1: =muni& " - "&S71A& " - "&date -> KZN225 Msunduzi - Table C2 Monthly Budget Statement - Financial Performance (functional classification) - M01 July
A2: =desc -> Description | B2: =head27 -> Ref | C2: =Head1 -> 2022/23 | D2: =Head2 -> Budget Year 2023/24
C3: =Head5 -> Audited Outcome | D3: =Head6 -> Original Budget | E3: =Head7 -> Adjusted Budget | F3: =Head38 -> Monthly actual | G3: =Head39 -> YearTD actual | H3: =Head40 -> YearTD budget | I3: =Head41 -> YTD variance | J3: =Head41 -> YTD variance | K3: =Head8 -> Full Year Forecast
A4: R thousands | B4: 1 | J4: %
A5: Revenue - Functional
A6: Municipal governance and administration | C6: =C7+C10+C24 -> 0 | D6: 2375779979 | E6: 0 | F6: 311830136.7 | G6: 311830136.7 | H6: 197981664.9 | I6: =G6-H6 -> 113848471.8 | J6: =IF(I6=0,"",I6/H6) -> 0.5750455319 | K6: =K7+K10+K24 -> 2375779979
A7: Executive and council | C7: =SUM(C8:C9) -> 0 | D7: =SUM(D8:D9) -> 4979000 | E7: 0 | F7: 0 | G7: 0 | H7: 414916.6667 | I7: =G7-H7 -> -414916.6667 | J7: =IF(I7=0,"",I7/H7) -> -1 | K7: 4979000
A8: Mayor and Council | D8: 0 | H8: =D8/12*Instructions!X10 -> 0 | I8: 0 | K8: =D8 -> 0
A9: Municipal Manager, Town Secretary and Chief Executive | D9: 4979000 | H9: =D9/12*Instructions!X10 -> 414916.6667 | I9: -414916.6667 | J9: -1 | K9: =D9 -> 4979000
A10: Finance and administration | C10: =SUM(C11:C23) -> 0 | D10: 2370800979 | E10: 0 | F10: 311830136.7 | G10: 311830136.7 | H10: 197566748.2 | I10: 114263388.5 | J10: 0.5783533387 | K10: =SUM(K11:K23) -> 2370800979
A11: Administrative and Corporate Support | D11: 607186.8648 | H11: =D11/12*Instructions!X10 -> 50598.9054 | I11: -50598.9054 | J11: -1 | K11: =D11 -> 607186.8648
A12: Asset Management | D12: 13390566.77 | H12: =D12/12*Instructions!X10 -> 1115880.564 | I12: -1115880.564 | J12: -1 | K12: 13390566.77
A13: Finance | D13: 2305482256 | F13: 308795381.4 | G13: 308795381.4 | H13: =D13/12*Instructions!X10 -> 192123521.4 | I13: 116671860.1 | J13: 0.6072752531 | K13: 2305482256
A14: Fleet Management | D14: 0 | H14: =D14/12*Instructions!X10 -> 0 | I14: 0 | K14: 0
A15: Human Resources | D15: 12513790.28 | F15: 64041.55 | G15: 64041.55 | H15: =D15/12*Instructions!X10 -> 1042815.856 | I15: -978774.3065 | J15: -0.9385878632 | K15: 12513790.28
A16: Information Technology | D16: 2472.42645 | F16: 52.17 | G16: 52.17 | H16: =D16/12*Instructions!X10 -> 206.0355375 | I16: -153.8655375 | J16: -0.7467912544 | K16: 2472.42645
A17: Legal Services | D17: 315314.2694 | H17: =D17/12*Instructions!X10 -> 26276.18912 | I17: -26276.18912 | J17: -1 | K17: 315314.2694
A18: Marketing, Customer Relations, Publicity and Media Co-ordination | D18: 0 | H18: =D18/12*Instructions!X10 -> 0 | I18: 0 | K18: 0
A19: Property Services | D19: 38156452.56 | F19: 2969657.86 | G19: 2969657.86 | H19: =D19/12*Instructions!X10 -> 3179704.38 | I19: -210046.5198 | J19: -0.06605850567 | K19: 38156452.56
A20: Risk Management | D20: 0 | H20: =D20/12*Instructions!X10 -> 0 | I20: 0 | K20: 0
A21: Security Services | D21: 0 | H21: =D21/12*Instructions!X10 -> 0 | I21: 0 | K21: 0
A22: Supply Chain Management | D22: 332939.1845 | F22: 1003.67 | G22: 1003.67 | H22: =D22/12*Instructions!X10 -> 27744.93204 | I22: -26741.26204 | J22: -0.9638251051 | K22: 332939.1845
A23: Valuation Service | D23: 0 | H23: =D23/12*Instructions!X10 -> 0 | I23: 0 | K23: 0
A24: Internal audit | C24: =SUM(C25:C25) -> 0 | D24: 0 | E24: 0 | F24: 0 | G24: 0 | H24: 0 | I24: 0 | K24: =SUM(K25:K25) -> 0
A25: Governance Function | H25: =D25/12*Instructions!X10 -> 0 | I25: 0 | K25: =D25 -> 0
A26: Community and public safety | C26: =C27+C49+C55+C64+C67 -> 0 | D26: =D27+D49+D55+D64+D67 -> 338866615 | E26: 0 | F26: 8996999.67 | G26: 8996999.67 | H26: 28238884.58 | I26: -19241884.91 | J26: -0.681396776 | K26: 338866615
A27: Community and social services | C27: =SUM(C28:C48) -> 0 | D27: 276753844.2 | E27: 0 | F27: 3908226.27 | G27: 3908226.27 | H27: 23062820.35 | I27: -19154594.08 | J27: -0.8305399682 | K27: =SUM(K28:K48) -> 276753844.2
A28: Aged Care | D28: 0 | I28: 0 | K28: =D28 -> 0
A29: Agricultural | D29: 0 | I29: 0 | K29: 0
A30: Animal Care and Diseases | D30: 0 | I30: 0 | K30: 0
A31: Cemeteries, Funeral Parlours and Crematoriums | D31: 16617370.72 | F31: 264276.43 | G31: 264276.43 | H31: =D31/12*Instructions!X10 -> 1384780.893 | I31: -1120504.463 | J31: -0.8091565017 | K31: 16617370.72
A32: Child Care Facilities | D32: 0 | I32: 0 | K32: 0
A33: Community Halls and Facilities | D33: 245427473.6 | F33: 3083557.74 | G33: 3083557.74 | H33: =D33/12*Instructions!X10 -> 20452289.47 | I33: -17368731.73 | J33: -0.8492316596 | K33: 245427473.6
A34: Consumer Protection | D34: 0 | I34: 0 | K34: 0
A35: Cultural Matters | D35: 0 | I35: 0 | K35: 0
A36: Disaster Management | D36: 0 | I36: 0 | K36: 0
A37: Education | D37: 0 | I37: 0 | K37: 0
A38: Indigenous and Customary Law | D38: 0 | I38: 0 | K38: 0
A39: Industrial Promotion | D39: 0 | I39: 0 | K39: 0
A40: Language Policy | D40: 0 | I40: 0 | K40: 0
A41: Libraries and Archives | D41: 13537999.91 | F41: 560392.1 | G41: 560392.1 | H41: =D41/12*Instructions!X10 -> 1128166.659 | I41: -567774.5592 | J41: -0.5032718832 | K41: 13537999.91
A42: Literacy Programmes | D42: 0 | I42: 0 | K42: 0
A43: Media Services | D43: 0 | I43: 0 | K43: 0
A44: Museums and Art Galleries | D44: 1171000 | H44: =D44/12*Instructions!X10 -> 97583.33333 | I44: -97583.33333 | J44: -1 | K44: 1171000
A45: Population Development | D45: 0 | I45: 0 | K45: 0
A46: Provincial Cultural Matters | D46: 0 | I46: 0 | K46: 0
A47: Theatres | D47: 0 | I47: 0 | K47: 0
A48: Zoo's | D48: 0 | I48: 0 | K48: 0
A49: Sport and recreation | C49: =SUM(C50:C54) -> 0 | D49: =SUM(D50:D54) -> 21223330.41 | E49: 0 | F49: 15029.88 | G49: 15029.88 | H49: 1768610.867 | I49: -1753580.987 | J49: -0.9915018729 | K49: 21223330.41
A50: Beaches and Jetties | D50: 0 | I50: 0 | K50: =D50 -> 0
A51: Casinos, Racing, Gambling, Wagering | D51: 0 | I51: 0 | K51: 0
A52: Community Parks (including Nurseries) | D52: 0 | I52: 0 | K52: 0
A53: Recreational Facilities | D53: 21223330.41 | F53: 15029.88 | G53: 15029.88 | H53: =D53/12*Instructions!X10 -> 1768610.867 | I53: -1753580.987 | J53: -0.9915018729 | K53: 21223330.41
A54: Sports Grounds and Stadiums | D54: 0 | I54: 0 | K54: 0
A55: Public safety | C55: =SUM(C56:C63) -> 0 | D55: =SUM(D56:D63) -> 8568779.072 | E55: 0 | F55: 376302.71 | G55: 376302.71 | H55: 714064.9226 | I55: -337762.2126 | J55: -0.47301331 | K55: 8568779.072
A56: Civil Defence | D56: 0 | I56: 0 | K56: =D56 -> 0
A57: Cleansing | D57: 0 | I57: 0 | K57: 0
A58: Control of Public Nuisances | D58: 0 | I58: =G58-H58 -> 0 | J58: =IF(I58=0,"",I58/H58) ->  | K58: 0
A59: Fencing and Fences | D59: 0 | I59: 0 | K59: 0
A60: Fire Fighting and Protection | D60: 397088.8729 | F60: 6710.17 | G60: 6710.17 | H60: =D60/12*Instructions!X10 -> 33090.73941 | I60: -26380.56941 | J60: -0.7972190975 | K60: 397088.8729
A61: Licensing and Control of Animals | D61: 0 | I61: =G61-H61 -> 0 | J61: =IF(I61=0,"",I61/H61) ->  | K61: 0
A62: Police Forces, Traffic and Street Parking Control | D62: 8171690.199 | F62: 369592.54 | G62: 369592.54 | H62: =D62/12*Instructions!X10 -> 680974.1832 | I62: =G62-H62 -> -311381.6432 | J62: =IF(I62=0,"",I62/H62) -> -0.4572591016 | K62: 8171690.199
A63: Pounds | D63: 0 | I63: 0 | K63: 0
A64: Housing | C64: =SUM(C65:C66) -> 0 | D64: 32320661.28 | E64: 0 | F64: 4697440.81 | G64: 4697440.81 | H64: 2693388.44 | I64: =G64-H64 -> 2004052.37 | J64: =IF(I64=0,"",I64/H64) -> 0.7440636263 | K64: =SUM(K65:K66) -> 32320661.28
A65: Housing | D65: 32320661.28 | F65: 4697440.81 | G65: 4697440.81 | H65: =D65/12*Instructions!X10 -> 2693388.44 | I65: =G65-H65 -> 2004052.37 | J65: =IF(I65=0,"",I65/H65) -> 0.7440636263 | K65: =D65 -> 32320661.28
A66: Informal Settlements | D66: 0 | I66: =G66-H66 -> 0 | J66: =IF(I66=0,"",I66/H66) -> 
A67: Health | C67: =SUM(C68:C74) -> 0 | D67: 0 | E67: 0 | F67: 0 | G67: 0 | H67: 0 | I67: 0 | K67: =SUM(K68:K74) -> 0
A68: Ambulance | I68: 0
A69: Health Services | I69: 0
A70: Laboratory Services | I70: =G70-H70 -> 0 | J70: =IF(I70=0,"",I70/H70) -> 
A71: Food Control | I71: =G71-H71 -> 0 | J71: =IF(I71=0,"",I71/H71) -> 
A72: Health Surveillance and Prevention of Communicable Diseases including immunizations | I72: 0
A73: Vector Control | I73: 0
A74: Chemical Safety | I74: 0
A75: Economic and environmental services | C75: =C76+C87+C92 -> 0 | D75: 55600947.45 | E75: 0 | F75: 12149434.64 | G75: 12149434.64 | H75: 4633412.287 | I75: 7516022.353 | J75: 1.622135456 | K75: =K76+K87+K92 -> 55600947.45
A76: Planning and development | C76: =SUM(C77:C86) -> 0 | D76: 47684582.16 | E76: 0 | F76: 1508046.87 | G76: 1508046.87 | H76: 3973715.18 | I76: -2465668.31 | J76: -0.6204944739 | K76: =SUM(K77:K86) -> 47684582.16
A77: Billboards | D77: 0 | I77: =G77-H77 -> 0 | J77: =IF(I77=0,"",I77/H77) -> 
A78: Corporate Wide Strategic Planning (IDPs, LEDs) | D78: 0 | I78: 0
A79: Central City Improvement District | D79: 0 | I79: 0
A80: Development Facilitation | D80: 0 | I80: =G80-H80 -> 0 | J80: =IF(I80=0,"",I80/H80) -> 
A81: Economic Development/Planning | D81: 0 | I81: =G81-H81 -> 0 | J81: =IF(I81=0,"",I81/H81) -> 
A82: Regional Planning and Development | D82: 0 | I82: =G82-H82 -> 0 | J82: =IF(I82=0,"",I82/H82) -> 
A83: Town Planning, Building Regulations and Enforcement, and City Engineer | D83: 47684582.16 | F83: 1508046.87 | G83: 1508046.87 | H83: =D83/12*Instructions!X10 -> 3973715.18 | I83: =G83-H83 -> -2465668.31 | J83: =IF(I83=0,"",I83/H83) -> -0.6204944739 | K83: =D83 -> 47684582.16
A84: Project Management Unit | D84: 0 | I84: 0
A85: Provincial Planning | D85: 0 | I85: 0
A86: Support to Local Municipalities | D86: 0 | I86: 0
A87: Road transport | C87: =SUM(C88:C91) -> 0 | D87: 0 | E87: 0 | F87: 10627152.81 | G87: 10627152.81 | H87: 0 | I87: 10627152.81 | K87: =SUM(K88:K91) -> 0
A88: Public Transport | I88: 0
A89: Road and Traffic Regulation | I89: 0
A90: Roads | F90: 10627152.81 | G90: 10627152.81 | I90: 10627152.81
A91: Taxi Ranks | I91: 0
A92: Environmental protection | C92: =SUM(C93:C98) -> 0 | D92: =SUM(D93:D98) -> 7916365.286 | E92: 0 | F92: 14234.96 | G92: 14234.96 | H92: 659697.1072 | I92: -645462.1472 | J92: -0.978421976 | K92: 7916365.286
A93: Biodiversity and Landscape | D93: 0 | I93: 0
A94: Coastal Protection | D94: 0 | I94: 0
A95: Indigenous Forests | D95: 0 | I95: =G95-H95 -> 0 | J95: =IF(I95=0,"",I95/H95) -> 
A96: Nature Conservation | D96: 0 | I96: =G96-H96 -> 0 | J96: =IF(I96=0,"",I96/H96) -> 
A97: Pollution Control | D97: 7916365.286 | F97: 14234.96 | G97: 14234.96 | H97: =D97/12*Instructions!X10 -> 659697.1072 | I97: -645462.1472 | J97: -0.978421976 | K97: =D97 -> 7916365.286
A98: Soil Conservation | D98: 0 | I98: 0
A99: Trading services | C99: =C100+C104+C108+C113 -> 0 | D99: =D100+D104+D108+D113 -> 5698134020 | E99: 0 | F99: 583587075.1 | G99: 583587075.1 | H99: 474844501.7 | I99: 108742573.4 | J99: 0.2290067022 | K99: =K100+K104+K108+K113 -> 5698134020
A100: Energy sources | C100: =SUM(C101:C103) -> 0 | D100: =SUM(D101:D103) -> 4028755846 | E100: 0 | F100: 331700984.8 | G100: 331700984.8 | H100: 335729653.8 | I100: -4028669.041 | J100: -0.01199974145 | K100: 4028755846
A101: Electricity | D101: 4028755846 | F101: 331700984.8 | G101: 331700984.8 | H101: =D101/12*Instructions!X10 -> 335729653.8 | I101: -4028669.041 | J101: -0.01199974145 | K101: =D101 -> 4028755846
A102: Street Lighting and Signal Systems | D102: 0 | I102: =G102-H102 -> 0 | J102: =IF(I102=0,"",I102/H102) -> 
A103: Nonelectric Energy | D103: 0 | I103: 0
A104: Water management | C104: =SUM(C105:C107) -> 0 | D104: =SUM(D105:D107) -> 1300958056 | E104: 0 | F104: 189830877.6 | G104: 189830877.6 | H104: 108413171.3 | I104: 81417706.27 | J104: 0.7509946004 | K104: 1300958056
A105: Water Treatment | D105: 0 | I105: 0
A106: Water Distribution | D106: 1300958056 | F106: 189830877.6 | G106: 189830877.6 | H106: =D106/12*Instructions!X10 -> 108413171.3 | I106: =G106-H106 -> 81417706.27 | J106: =IF(I106=0,"",I106/H106) -> 0.7509946004 | K106: =D106 -> 1300958056
A107: Water Storage | D107: 0 | I107: 0
A108: Waste water management | C108: =SUM(C109:C112) -> 0 | D108: =SUM(D109:D112) -> 209646015.9 | E108: 0 | F108: 39164602.48 | G108: 39164602.48 | H108: 17470501.32 | I108: 21694101.16 | J108: 1.241756075 | K108: 209646015.9
A109: Public Toilets | I109: 0
A110: Sewerage | D110: 209646015.9 | F110: 39164602.48 | G110: 39164602.48 | H110: =D110/12*Instructions!X10 -> 17470501.32 | I110: 21694101.16 | J110: 1.241756075 | K110: =D110 -> 209646015.9
A111: Storm Water Management | D111: 0 | I111: =G111-H111 -> 0 | J111: =IF(I111=0,"",I111/H111) -> 
A112: Waste Water Treatment | D112: 0 | I112: 0
A113: Waste management | C113: =SUM(C114:C117) -> 0 | D113: 158774103.1 | E113: 0 | F113: 22890610.28 | G113: 22890610.28 | H113: 13231175.26 | I113: 9659435.019 | J113: 0.730051173 | K113: =SUM(K114:K117) -> 158774103.1
A114: Recycling | D114: 0 | I114: =G114-H114 -> 0 | J114: =IF(I114=0,"",I114/H114) -> 
A115: Solid Waste Disposal (Landfill Sites) | D115: 0 | F115: 11429402.02 | G115: 11429402.02 | I115: =G115-H115 -> 11429402.02 | J115: =IF(I115=0,"",I115/H115) -> 
A116: Solid Waste Removal | D116: 158774103.1 | F116: 11461208.26 | G116: 11461208.26 | H116: =D116/12*Instructions!X10 -> 13231175.26 | I116: -1769967.001 | J116: -0.1337724704 | K116: =D116 -> 158774103.1
A117: Street Cleaning | D117: 0 | I117: =G117-H117 -> 0 | J117: =IF(I117=0,"",I117/H117) -> 
A118: Other | C118: =SUM(C119:C124) -> 0 | D118: =SUM(D119:D124) -> 101044618.5 | E118: 0 | F118: 2516262.33 | G118: 2516262.33 | H118: 8420384.873 | I118: -5904122.543 | J118: -0.7011701522 | K118: 101044618.5
A119: Abattoirs | D119: 0 | I119: 0 | K119: =D119 -> 0
A120: Air Transport | D120: 41534302.45 | F120: 236546.56 | G120: 236546.56 | H120: =D120/12*Instructions!X10 -> 3461191.871 | I120: -3224645.311 | J120: -0.9316574842 | K120: 41534302.45
A121: Forestry | D121: 0 | I121: =G121-H121 -> 0 | J121: =IF(I121=0,"",I121/H121) ->  | K121: 0
A122: Licensing and Regulation | D122: 2292326.484 | F122: 14047.64 | G122: 14047.64 | H122: =D122/12*Instructions!X10 -> 191027.207 | I122: -176979.567 | J122: -0.9264626216 | K122: 2292326.484
A123: Markets | D123: 57217989.54 | F123: 2265668.13 | G123: 2265668.13 | H123: =D123/12*Instructions!X10 -> 4768165.795 | I123: -2502497.665 | J123: -0.5248344485 | K123: 57217989.54
A124: Tourism | D124: 0 | I124: =G124-H124 -> 0 | J124: =IF(I124=0,"",I124/H124) ->  | K124: 0
A125: ="Total "&A5 -> Total Revenue - Functional | B125: 2 | C125: =C6+C26+C75+C99+C118 -> 0 | D125: 8569426180 | E125: 0 | F125: 919079908.4 | G125: 919079908.4 | H125: 714118848.4 | I125: =G125-H125 -> 204961060.1 | J125: =IF(I125=0,"",I125/H125) -> 0.2870125338 | K125: =K6+K26+K75+K99+K118 -> 8569426180
A127: Expenditure - Functional
A128: =A6 -> Municipal governance and administration | C128: =C129+C132+C146 -> 0 | D128: 1480552759 | E128: 0 | F128: 67222843.61 | G128: 67222843.61 | H128: 123379396.6 | I128: =G128-H128 -> -56156552.98 | J128: =IF(I128=0,"",I128/H128) -> -0.4551534092 | K128: =K129+K132+K146 -> 1480552759
A129: Executive and council | C129: =SUM(C130:C131) -> 0 | D129: 258320031.1 | E129: 0 | F129: 8244348.17 | G129: 8244348.17 | H129: 21526669.25 | I129: -13282321.08 | J129: -0.6170170093 | K129: 258320031.1
A130: Mayor and Council | D130: 94350834.42 | F130: 5550209.91 | G130: 5550209.91 | H130: =D130/12*Instructions!X10 -> 7862569.535 | I130: -2312359.625 | J130: -0.2940971924 | K130: =D130 -> 94350834.42
A131: Municipal Manager, Town Secretary and Chief Executive | D131: 163969196.6 | F131: 2694138.26 | G131: 2694138.26 | H131: =D131/12*Instructions!X10 -> 13664099.72 | I131: -10969961.46 | J131: -0.8028308988 | K131: 163969196.6
A132: Finance and administration | C132: =SUM(C133:C145) -> 0 | D132: 1193777693 | E132: 0 | F132: 58112539.2 | G132: 58112539.2 | H132: 99481474.38 | I132: -41368935.18 | J132: -0.4158456179 | K132: =SUM(K133:K145) -> 1193777693
A133: Administrative and Corporate Support | D133: 59777153.1 | F133: 5141772.86 | G133: 5141772.86 | H133: =D133/12*Instructions!X10 -> 4981429.425 | I133: 160343.4348 | J133: 0.03218823777 | K133: =D133 -> 59777153.1
A134: Asset Management | D134: 62176445.61 | F134: 5084469.37 | G134: 5084469.37 | H134: =D134/12*Instructions!X10 -> 5181370.467 | I134: -96901.09741 | J134: -0.01870182764 | K134: 62176445.61
A135: Finance | D135: 626500972.8 | F135: 12592381.91 | G135: 12592381.91 | H135: =D135/12*Instructions!X10 -> 52208414.4 | I135: -39616032.49 | J135: -0.7588055095 | K135: 626500972.8
A136: Fleet Management | D136: 0 | H136: =D136/12*Instructions!X10 -> 0 | I136: 0 | K136: 0
A137: Human Resources | D137: 91046088.27 | F137: 15237917.29 | G137: 15237917.29 | H137: =D137/12*Instructions!X10 -> 7587174.022 | I137: 7650743.268 | J137: 1.008378514 | K137: 91046088.27
A138: Information Technology | D138: 57159369.86 | F138: 1368844.91 | G138: 1368844.91 | H138: =D138/12*Instructions!X10 -> 4763280.822 | I138: -3394435.912 | J138: -0.7126256122 | K138: 57159369.86
A139: Legal Services | D139: 18240282.65 | F139: 977466.55 | G139: 977466.55 | H139: =D139/12*Instructions!X10 -> 1520023.554 | I139: -542557.0045 | J139: -0.3569398664 | K139: 18240282.65
A140: Marketing, Customer Relations, Publicity and Media Co-ordination | D140: 19543388.62 | F140: 1547295.14 | G140: 1547295.14 | H140: =D140/12*Instructions!X10 -> 1628615.718 | I140: -81320.57807 | J140: -0.04993233036 | K140: 19543388.62
A141: Property Services | D141: 63488452.65 | F141: 4908990.84 | G141: 4908990.84 | H141: =D141/12*Instructions!X10 -> 5290704.387 | I141: -381713.5472 | J141: -0.07214796354 | K141: 63488452.65
A142: Risk Management | D142: 0 | H142: =D142/12*Instructions!X10 -> 0 | I142: 0 | K142: 0
A143: Security Services | D143: 120077387.9 | F143: 7048223.08 | G143: 7048223.08 | H143: =D143/12*Instructions!X10 -> 10006448.99 | I143: -2958225.909 | J143: -0.2956319382 | K143: 120077387.9
A144: Supply Chain Management | D144: 75768151.16 | F144: 4205177.25 | G144: 4205177.25 | H144: =D144/12*Instructions!X10 -> 6314012.596 | I144: -2108835.346 | J144: -0.3339928951 | K144: 75768151.16
A145: Valuation Service | H145: =D145/12*Instructions!X10 -> 0 | I145: 0 | K145: 0
A146: Internal audit | C146: =SUM(C147:C147) -> 0 | D146: 28455035.46 | E146: 0 | F146: 865956.24 | G146: 865956.24 | H146: 2371252.955 | I146: -1505296.715 | J146: -0.634810686 | K146: =SUM(K147:K147) -> 28455035.46
A147: Governance Function | D147: 28455035.46 | F147: 865956.24 | G147: 865956.24 | H147: =D147/12*Instructions!X10 -> 2371252.955 | I147: -1505296.715 | J147: -0.634810686 | K147: =D147 -> 28455035.46
A148: Community and public safety | C148: =C149+C171+C177+C186+C189 -> 0 | D148: 537195647.4 | E148: 0 | F148: 41391547.28 | G148: 41391547.28 | H148: 44766303.95 | I148: -3374756.669 | J148: -0.07538609112 | K148: =K149+K171+K177+K186+K189 -> 537195647.4
A149: Community and social services | C149: =SUM(C150:C170) -> 0 | D149: 135893001.6 | E149: 0 | F149: 11350310.05 | G149: 11350310.05 | H149: 11324416.8 | I149: 25893.25214 | J149: 0.002286497627 | K149: =SUM(K150:K170) -> 135893001.6
A150: Aged Care | D150: 658027.5577 | F150: 44.27 | G150: 44.27 | H150: =D150/12*Instructions!X10 -> 54835.62981 | I150: -54791.35981 | J150: -0.9991926782 | K150: =D150 -> 658027.5577
A151: Agricultural | D151: 0 | H151: =D151/12*Instructions!X10 -> 0 | I151: 0 | K151: 0
A152: Animal Care and Diseases | D152: 1257600 | H152: =D152/12*Instructions!X10 -> 104800 | I152: -104800 | J152: -1 | K152: 1257600
A153: Cemeteries, Funeral Parlours and Crematoriums | D153: 32803662.2 | F153: 2579875.35 | G153: 2579875.35 | H153: =D153/12*Instructions!X10 -> 2733638.517 | I153: -153763.1665 | J153: -0.05624853674 | K153: 32803662.2
A154: Child Care Facilities | D154: 0 | H154: =D154/12*Instructions!X10 -> 0 | I154: 0 | K154: 0
A155: Community Halls and Facilities | D155: 15799744.62 | F155: 2590539.12 | G155: 2590539.12 | H155: =D155/12*Instructions!X10 -> 1316645.385 | I155: 1273893.735 | J155: 0.9675298671 | K155: 15799744.62
A156: Consumer Protection | D156: 0 | H156: =D156/12*Instructions!X10 -> 0 | I156: 0 | K156: 0
A157: Cultural Matters | D157: 0 | H157: =D157/12*Instructions!X10 -> 0 | I157: =G157-H157 -> 0 | J157: =IF(I157=0,"",I157/H157) ->  | K157: 0
A158: Disaster Management | D158: 0 | H158: =D158/12*Instructions!X10 -> 0 | I158: =G158-H158 -> 0 | J158: =IF(I158=0,"",I158/H158) ->  | K158: 0
A159: Education | D159: 0 | H159: =D159/12*Instructions!X10 -> 0 | I159: =G159-H159 -> 0 | J159: =IF(I159=0,"",I159/H159) ->  | K159: 0
A160: Indigenous and Customary Law | D160: 0 | H160: =D160/12*Instructions!X10 -> 0 | I160: 0 | K160: 0
A161: Industrial Promotion | D161: 0 | H161: =D161/12*Instructions!X10 -> 0 | I161: 0 | K161: 0
A162: Language Policy | D162: 0 | H162: =D162/12*Instructions!X10 -> 0 | I162: 0 | K162: 0
A163: Libraries and Archives | D163: 73518450.61 | F163: 5202648.18 | G163: 5202648.18 | H163: =D163/12*Instructions!X10 -> 6126537.551 | I163: -923889.3712 | J163: -0.1508012256 | K163: 73518450.61
A164: Literacy Programmes | D164: 0 | H164: =D164/12*Instructions!X10 -> 0 | I164: 0 | K164: 0
A165: Media Services | D165: 0 | H165: =D165/12*Instructions!X10 -> 0 | I165: 0 | K165: 0
A166: Museums and Art Galleries | D166: 6040266.113 | F166: 570546.04 | G166: 570546.04 | H166: =D166/12*Instructions!X10 -> 503355.5094 | I166: 67190.53057 | J166: 0.1334852392 | K166: 6040266.113
A167: Population Development | D167: 5815250.466 | F167: 406119.77 | G167: 406119.77 | H167: =D167/12*Instructions!X10 -> 484604.2055 | I167: -78484.43554 | J167: -0.1619557458 | K167: 5815250.466
A168: Provincial Cultural Matters | I168: 0 | K168: 0
A169: Theatres | F169: 537.32 | G169: 537.32 | I169: 537.32 | K169: 0
A170: Zoo's | I170: 0 | K170: 0
A171: Sport and recreation | C171: =SUM(C172:C176) -> 0 | D171: 130424689 | E171: 0 | F171: 10095062.16 | G171: 10095062.16 | H171: 10868724.09 | I171: -773661.9263 | J171: -0.0711824056 | K171: 130424689
A172: Beaches and Jetties | I172: 0
A173: Casinos, Racing, Gambling, Wagering | I173: 0
A174: Community Parks (including Nurseries) | D174: 72878671.55 | F174: 4021096.25 | G174: 4021096.25 | H174: =D174/12*Instructions!X10 -> 6073222.629 | I174: -2052126.379 | J174: -0.3378974401 | K174: =D174 -> 72878671.55
A175: Recreational Facilities | D175: 56465275.91 | F175: 6073965.91 | G175: 6073965.91 | H175: =D175/12*Instructions!X10 -> 4705439.659 | I175: 1368526.251 | J175: 0.2908391882 | K175: 56465275.91
A176: Sports Grounds and Stadiums | D176: 1080741.568 | H176: =D176/12*Instructions!X10 -> 90061.79733 | I176: -90061.79733 | J176: -1 | K176: 1080741.568
A177: Public safety | C177: =SUM(C178:C185) -> 0 | D177: 222097496 | E177: 0 | F177: 14350697.74 | G177: 14350697.74 | H177: 18508124.67 | I177: -4157426.928 | J177: -0.2246271301 | K177: 222097496
A178: Civil Defence | D178: 19219679.35 | F178: 84321.75 | G178: 84321.75 | H178: =D178/12*Instructions!X10 -> 1601639.946 | I178: -1517318.196 | J178: -0.9473528678 | K178: =D178 -> 19219679.35
A179: Cleansing | D179: 0 | I179: 0 | K179: 0
A180: Control of Public Nuisances | D180: 0 | I180: =G180-H180 -> 0 | J180: =IF(I180=0,"",I180/H180) ->  | K180: 0
A181: Fencing and Fences | D181: 0 | I181: 0 | K181: 0
A182: Fire Fighting and Protection | D182: 115276517.8 | F182: 7815911.62 | G182: 7815911.62 | H182: =D182/12*Instructions!X10 -> 9606376.485 | I182: -1790464.865 | J182: -0.186382958 | K182: 115276517.8
A183: Licensing and Control of Animals | D183: 0 | I183: =G183-H183 -> 0 | J183: =IF(I183=0,"",I183/H183) ->  | K183: 0
A184: Police Forces, Traffic and Street Parking Control | D184: 87601298.84 | F184: 6450464.37 | G184: 6450464.37 | H184: =D184/12*Instructions!X10 -> 7300108.236 | I184: =G184-H184 -> -849643.8664 | J184: =IF(I184=0,"",I184/H184) -> -0.1163878451 | K184: 87601298.84
A185: Pounds | D185: 0 | I185: 0
A186: Housing | C186: =SUM(C187:C188) -> 0 | D186: 35263319.41 | E186: 0 | F186: 4811675.8 | G186: 4811675.8 | H186: 2938609.951 | I186: =G186-H186 -> 1873065.849 | J186: =IF(I186=0,"",I186/H186) -> 0.6373985934 | K186: =SUM(K187:K188) -> 35263319.41
A187: Housing | D187: 35263319.41 | F187: 4811675.8 | G187: 4811675.8 | H187: =D187/12*Instructions!X10 -> 2938609.951 | I187: =G187-H187 -> 1873065.849 | J187: =IF(I187=0,"",I187/H187) -> 0.6373985934 | K187: =D187 -> 35263319.41
A188: Informal Settlements | I188: =G188-H188 -> 0 | J188: =IF(I188=0,"",I188/H188) -> 
A189: Health | C189: =SUM(C190:C196) -> 0 | D189: 13517141.35 | E189: 0 | F189: 783801.53 | G189: 783801.53 | H189: 1126428.446 | I189: -342626.9161 | J189: -0.3041710437 | K189: 13517141.35
A190: Ambulance | I190: 0
A191: Health Services | D191: 13517141.35 | F191: 783801.53 | G191: 783801.53 | H191: =D191/12*Instructions!X10 -> 1126428.446 | I191: -342626.9161 | J191: -0.3041710437 | K191: =D191 -> 13517141.35
A192: =A70 -> Laboratory Services | I192: 0
A193: Food Control | I193: =G193-H193 -> 0 | J193: =IF(I193=0,"",I193/H193) -> 
A194: Health Surveillance and Prevention of Communicable Diseases including immunizations | I194: =G194-H194 -> 0 | J194: =IF(I194=0,"",I194/H194) -> 
A195: Vector Control | I195: 0
A196: Chemical Safety | I196: 0
A197: Economic and environmental services | C197: =C198+C209+C214 -> 0 | D197: 513621030.7 | E197: 0 | F197: 23689880.77 | G197: 23689880.77 | H197: 42801752.56 | I197: -19111871.79 | J197: -0.4465207765 | K197: =K198+K209+K214 -> 513621030.7
A198: Planning and development | C198: =SUM(C199:C208) -> 0 | D198: 84862819.17 | E198: 0 | F198: 6067281.69 | G198: 6067281.69 | H198: 7071901.598 | I198: -1004619.908 | J198: -0.1420579591 | K198: 84862819.17
A199: Billboards | D199: 0 | I199: 0
A200: Corporate Wide Strategic Planning (IDPs, LEDs) | D200: 9449713.077 | F200: 517583.99 | G200: 517583.99 | H200: =D200/12*Instructions!X10 -> 787476.0897 | I200: -269892.0997 | J200: -0.3427305327 | K200: =D200 -> 9449713.077
A201: Central City Improvement District | D201: 0 | I201: 0 | K201: 0
... 54 more rows

Sheet C3-FinPerf V
A1: =muni& " - "&S71C& " - "&date -> KZN225 Msunduzi - Table C3 Monthly Budget Statement - Financial Performance (revenue and expenditure by municipal vote) - M01 July
A2: =Vdesc -> Vote Description | B2: =head27 -> Ref | C2: =Head1 -> 2022/23 | D2: =Head2 -> Budget Year 2023/24
C3: =Head5 -> Audited Outcome | D3: =Head6 -> Original Budget | E3: =Head7 -> Adjusted Budget | F3: =Head38 -> Monthly actual | G3: =Head39 -> YearTD actual | H3: =Head40 -> YearTD budget | I3: =Head41 -> YTD variance | J3: =Head41 -> YTD variance | K3: =Head8 -> Full Year Forecast
A4: R thousands | J4: %
A5: Revenue by Vote | B5: 1
A6: ='Org structure'!A2 -> Vote 1 - City Manager | C6: ='C3C'!C6 -> 0 | D6: ='C3C'!D6 -> 0 | E6: ='C3C'!E6 -> 0 | F6: ='C3C'!F6 -> 0 | G6: ='C3C'!G6 -> 0 | H6: ='C3C'!H6 -> 0 | I6: =G6-H6 -> 0 | J6: =IF(I6=0,"",I6/H6) ->  | K6: ='C3C'!K6 -> 0
A7: ='Org structure'!A3 -> Vote 2 - City Finance | C7: ='C3C'!C17 -> 0 | D7: ='C3C'!D17 -> 2342934597 | E7: ='C3C'!E17 -> 0 | F7: ='C3C'!F17 -> 311713452.9 | G7: ='C3C'!G17 -> 311713452.9 | H7: ='C3C'!H17 -> 195244549.7 | I7: =G7-H7 -> 116468903.2 | J7: =IF(I7=0,"",I7/H7) -> 0.5965283195 | K7: ='C3C'!K17 -> 2342934597
A8: ='Org structure'!A4 -> Vote 3 - Corporate Services | C8: ='C3C'!C28 -> 0 | D8: ='C3C'!D28 -> 7980216.973 | E8: ='C3C'!E28 -> 0 | F8: ='C3C'!F28 -> 52.17 | G8: ='C3C'!G28 -> 52.17 | H8: ='C3C'!H28 -> 665018.0811 | I8: -664965.9111 | J8: -0.999921551 | K8: ='C3C'!K28 -> 7980216.973
A9: ='Org structure'!A5 -> Vote 4 - Community Services and Social Equity | C9: ='C3C'!C39 -> 0 | D9: ='C3C'!D39 -> 497013172.7 | E9: ='C3C'!E39 -> 0 | F9: ='C3C'!F39 -> 27242759.21 | G9: ='C3C'!G39 -> 27242759.21 | H9: ='C3C'!H39 -> 41417764.39 | I9: -14175005.18 | J9: -0.3422445752 | K9: ='C3C'!K39 -> 497013172.7
A10: ='Org structure'!A6 -> Vote 5 - Infrastructure Services | C10: ='C3C'!C50 -> 0 | D10: ='C3C'!D50 -> 1520657146 | E10: ='C3C'!E50 -> 0 | F10: ='C3C'!F50 -> 239686674.4 | G10: ='C3C'!G50 -> 239686674.4 | H10: ='C3C'!H50 -> 126721428.8 | I10: 112965245.6 | J10: 0.8914454851 | K10: ='C3C'!K50 -> 1520657146
A11: ='Org structure'!A7 -> Vote 6 - Sustainable Development and City Enterprises | C11: ='C3C'!C61 -> 0 | D11: ='C3C'!D61 -> 200280366 | E11: ='C3C'!E61 -> 0 | F11: ='C3C'!F61 -> 8735984.97 | G11: ='C3C'!G61 -> 8735984.97 | H11: ='C3C'!H61 -> 16690030.5 | I11: -7954045.531 | J11: -0.4765746552 | K11: ='C3C'!K61 -> 200280366
A12: ='Org structure'!A8 -> Vote 7 - Electricity | C12: ='C3C'!C72 -> 0 | D12: ='C3C'!D72 -> 4000560679 | E12: ='C3C'!E72 -> 0 | F12: ='C3C'!F72 -> 331700984.8 | G12: ='C3C'!G72 -> 331700984.8 | H12: ='C3C'!H72 -> 333380056.6 | I12: -1679071.85 | J12: -0.005036509582 | K12: ='C3C'!K72 -> 4000560679
A13: ='Org structure'!A9 -> Vote 8 - [NAME OF VOTE 8] | C13: ='C3C'!C83 -> 0 | D13: ='C3C'!D83 -> 0 | E13: ='C3C'!E83 -> 0 | F13: ='C3C'!F83 -> 0 | G13: ='C3C'!G83 -> 0 | H13: ='C3C'!H83 -> 0 | I13: 0 | K13: ='C3C'!K83 -> 0
A14: ='Org structure'!A10 -> Vote 9 - [NAME OF VOTE 9] | C14: ='C3C'!C94 -> 0 | D14: ='C3C'!D94 -> 0 | E14: ='C3C'!E94 -> 0 | F14: ='C3C'!F94 -> 0 | G14: ='C3C'!G94 -> 0 | H14: ='C3C'!H94 -> 0 | I14: 0 | K14: ='C3C'!K94 -> 0
A15: ='Org structure'!A11 -> Vote 10 - [NAME OF VOTE 10] | C15: ='C3C'!C105 -> 0 | D15: ='C3C'!D105 -> 0 | E15: ='C3C'!E105 -> 0 | F15: ='C3C'!F105 -> 0 | G15: ='C3C'!G105 -> 0 | H15: ='C3C'!H105 -> 0 | I15: 0 | K15: ='C3C'!K105 -> 0
A16: ='Org structure'!A12 -> Vote 11 - [NAME OF VOTE 11] | C16: ='C3C'!C116 -> 0 | D16: ='C3C'!D116 -> 0 | E16: ='C3C'!E116 -> 0 | F16: ='C3C'!F116 -> 0 | G16: ='C3C'!G116 -> 0 | H16: ='C3C'!H116 -> 0 | I16: 0 | K16: ='C3C'!K116 -> 0
A17: ='Org structure'!A13 -> Vote 12 - [NAME OF VOTE 12] | C17: ='C3C'!C127 -> 0 | D17: ='C3C'!D127 -> 0 | E17: ='C3C'!E127 -> 0 | F17: ='C3C'!F127 -> 0 | G17: ='C3C'!G127 -> 0 | H17: ='C3C'!H127 -> 0 | I17: 0 | K17: ='C3C'!K127 -> 0
A18: ='Org structure'!A14 -> Vote 13 - [NAME OF VOTE 13] | C18: ='C3C'!C138 -> 0 | D18: ='C3C'!D138 -> 0 | E18: ='C3C'!E138 -> 0 | F18: ='C3C'!F138 -> 0 | G18: ='C3C'!G138 -> 0 | H18: ='C3C'!H138 -> 0 | I18: 0 | K18: ='C3C'!K138 -> 0
A19: ='Org structure'!A15 -> Vote 14 - [NAME OF VOTE 14] | C19: ='C3C'!C149 -> 0 | D19: ='C3C'!D149 -> 0 | E19: ='C3C'!E149 -> 0 | F19: ='C3C'!F149 -> 0 | G19: ='C3C'!G149 -> 0 | H19: ='C3C'!H149 -> 0 | I19: 0 | K19: ='C3C'!K149 -> 0
A20: ='Org structure'!A16 -> Vote 15 - [NAME OF VOTE 15] | C20: ='C3C'!C160 -> 0 | D20: ='C3C'!D160 -> 0 | E20: ='C3C'!E160 -> 0 | F20: ='C3C'!F160 -> 0 | G20: ='C3C'!G160 -> 0 | H20: ='C3C'!H160 -> 0 | I20: 0 | K20: ='C3C'!K160 -> 0
A21: Total Revenue by Vote | B21: 2 | C21: =SUM(C6:C20) -> 0 | D21: =SUM(D6:D20) -> 8569426178 | E21: 0 | F21: 919079908.4 | G21: 919079908.4 | H21: 714118848.2 | I21: 204961060.3 | J21: 0.2870125341 | K21: =SUM(K6:K20) -> 8569426178
A23: Expenditure by Vote | B23: 1
A24: ='Org structure'!A2 -> Vote 1 - City Manager | C24: ='C3C'!C174 -> 0 | D24: ='C3C'!D174 -> 300105971.1 | E24: ='C3C'!E174 -> 0 | F24: ='C3C'!F174 -> 10547302.03 | G24: ='C3C'!G174 -> 10547302.03 | H24: ='C3C'!H174 -> 25008830.92 | I24: =G24-H24 -> -14461528.89 | J24: =IF(I24=0,"",I24/H24) -> -0.578256894 | K24: ='C3C'!K174 -> 300105971.1
A25: ='Org structure'!A3 -> Vote 2 - City Finance | C25: ='C3C'!C185 -> 0 | D25: ='C3C'!D185 -> 799187822.7 | E25: ='C3C'!E185 -> 0 | F25: ='C3C'!F185 -> 21890430.07 | G25: ='C3C'!G185 -> 21890430.07 | H25: ='C3C'!H185 -> 66598985.23 | I25: -44708555.16 | J25: -0.6713098556 | K25: ='C3C'!K185 -> 799187822.7
A26: ='Org structure'!A4 -> Vote 3 - Corporate Services | C26: ='C3C'!C196 -> 0 | D26: ='C3C'!D196 -> 195633443.4 | E26: ='C3C'!E196 -> 0 | F26: ='C3C'!F196 -> 20137341.08 | G26: ='C3C'!G196 -> 20137341.08 | H26: ='C3C'!H196 -> 16302786.95 | I26: 3834554.132 | J26: 0.2352085042 | K26: ='C3C'!K196 -> 195633443.4
A27: ='Org structure'!A5 -> Vote 4 - Community Services and Social Equity | C27: ='C3C'!C207 -> 0 | D27: ='C3C'!D207 -> 827458053.8 | E27: ='C3C'!E207 -> 0 | F27: ='C3C'!F207 -> 60185807.39 | G27: ='C3C'!G207 -> 60185807.39 | H27: ='C3C'!H207 -> 68954837.82 | I27: -8769030.43 | J27: -0.1271706338 | K27: ='C3C'!K207 -> 827458053.8
A28: ='Org structure'!A6 -> Vote 5 - Infrastructure Services | C28: ='C3C'!C218 -> 0 | D28: ='C3C'!D218 -> 2117250006 | E28: ='C3C'!E218 -> 0 | F28: ='C3C'!F218 -> 122703950.9 | G28: ='C3C'!G218 -> 122703950.9 | H28: ='C3C'!H218 -> 176437500.5 | I28: -53733549.6 | J28: -0.3045472161 | K28: ='C3C'!K218 -> 2117250006
A29: ='Org structure'!A7 -> Vote 6 - Sustainable Development and City Enterprises | C29: ='C3C'!C229 -> 0 | D29: ='C3C'!D229 -> 225419326.3 | E29: ='C3C'!E229 -> 0 | F29: ='C3C'!F229 -> 16995857.13 | G29: ='C3C'!G229 -> 16995857.13 | H29: ='C3C'!H229 -> 18784943.85 | I29: -1789086.725 | J29: -0.09524046165 | K29: ='C3C'!K229 -> 225419326.3
A30: ='Org structure'!A8 -> Vote 7 - Electricity | C30: ='C3C'!C240 -> 0 | D30: ='C3C'!D240 -> 3240145172 | E30: ='C3C'!E240 -> 0 | F30: ='C3C'!F240 -> 313434969.8 | G30: ='C3C'!G240 -> 313434969.8 | H30: ='C3C'!H240 -> 270012097.6 | I30: 43422872.15 | J30: 0.1608182468 | K30: ='C3C'!K240 -> 3240145172
A31: ='Org structure'!A9 -> Vote 8 - [NAME OF VOTE 8] | C31: ='C3C'!C251 -> 0 | D31: ='C3C'!D251 -> 0 | E31: ='C3C'!E251 -> 0 | F31: ='C3C'!F251 -> 0 | G31: ='C3C'!G251 -> 0 | H31: ='C3C'!H251 -> 0 | I31: 0 | K31: ='C3C'!K251 -> 0
A32: ='Org structure'!A10 -> Vote 9 - [NAME OF VOTE 9] | C32: ='C3C'!C262 -> 0 | D32: ='C3C'!D262 -> 0 | E32: ='C3C'!E262 -> 0 | F32: ='C3C'!F262 -> 0 | G32: ='C3C'!G262 -> 0 | H32: ='C3C'!H262 -> 0 | I32: 0 | K32: ='C3C'!K262 -> 0
A33: ='Org structure'!A11 -> Vote 10 - [NAME OF VOTE 10] | C33: ='C3C'!C273 -> 0 | D33: ='C3C'!D273 -> 0 | E33: ='C3C'!E273 -> 0 | F33: ='C3C'!F273 -> 0 | G33: ='C3C'!G273 -> 0 | H33: ='C3C'!H273 -> 0 | I33: 0 | J33: =IF(I33=0,"",I33/H33) ->  | K33: ='C3C'!K273 -> 0
A34: ='Org structure'!A12 -> Vote 11 - [NAME OF VOTE 11] | C34: ='C3C'!C284 -> 0 | D34: ='C3C'!D284 -> 0 | E34: ='C3C'!E284 -> 0 | F34: ='C3C'!F284 -> 0 | G34: ='C3C'!G284 -> 0 | H34: ='C3C'!H284 -> 0 | I34: 0 | J34: =IF(I34=0,"",I34/H34) ->  | K34: ='C3C'!K284 -> 0
A35: ='Org structure'!A13 -> Vote 12 - [NAME OF VOTE 12] | C35: ='C3C'!C295 -> 0 | D35: ='C3C'!D295 -> 0 | E35: ='C3C'!E295 -> 0 | F35: ='C3C'!F295 -> 0 | G35: ='C3C'!G295 -> 0 | H35: ='C3C'!H295 -> 0 | I35: 0 | J35: =IF(I35=0,"",I35/H35) ->  | K35: ='C3C'!K295 -> 0
A36: ='Org structure'!A14 -> Vote 13 - [NAME OF VOTE 13] | C36: ='C3C'!C306 -> 0 | D36: ='C3C'!D306 -> 0 | E36: ='C3C'!E306 -> 0 | F36: ='C3C'!F306 -> 0 | G36: ='C3C'!G306 -> 0 | H36: ='C3C'!H306 -> 0 | I36: 0 | J36: =IF(I36=0,"",I36/H36) ->  | K36: ='C3C'!K306 -> 0
A37: ='Org structure'!A15 -> Vote 14 - [NAME OF VOTE 14] | C37: ='C3C'!C317 -> 0 | D37: ='C3C'!D317 -> 0 | E37: ='C3C'!E317 -> 0 | F37: ='C3C'!F317 -> 0 | G37: ='C3C'!G317 -> 0 | H37: ='C3C'!H317 -> 0 | I37: 0 | J37: =IF(I37=0,"",I37/H37) ->  | K37: ='C3C'!K317 -> 0
A38: ='Org structure'!A16 -> Vote 15 - [NAME OF VOTE 15] | C38: ='C3C'!C328 -> 0 | D38: ='C3C'!D328 -> 0 | E38: ='C3C'!E328 -> 0 | F38: ='C3C'!F328 -> 0 | G38: ='C3C'!G328 -> 0 | H38: ='C3C'!H328 -> 0 | I38: 0 | K38: ='C3C'!K328 -> 0
A39: Total Expenditure by Vote | B39: 2 | C39: =SUM(C24:C38) -> 0 | D39: =SUM(D24:D38) -> 7705199795 | E39: 0 | F39: 565895658.4 | G39: 565895658.4 | H39: 642099982.9 | I39: -76204324.53 | J39: =IF(I39=0,"",I39/H39) -> -0.118679842 | K39: =SUM(K24:K38) -> 7705199795
A40: =result -> Surplus/ (Deficit) for the year | B40: 2 | C40: =C21-C39 -> 0 | D40: 864226383 | E40: 0 | F40: 353184250 | G40: 353184250 | H40: 72018865.25 | I40: =I21-I39 -> 281165384.8 | J40: =IF(I40=0,"",I40/H40) -> 3.90405186 | K40: =K21-K39 -> 864226383
A41: =head27a -> References
A42: 1. Insert 'Vote'; e.g. Department, if different to standard classification structure
A43: 2. Must reconcile to Monthly Budget Statement - Financial Performance Statement (standard classification)

Sheet C3C
A1: =muni& " - "&S71C& " - "&"A"& " - "&date -> KZN225 Msunduzi - Table C3 Monthly Budget Statement - Financial Performance (revenue and expenditure by municipal vote) - A - M01 July
A2: =Vdesc -> Vote Description | B2: =head27 -> Ref | C2: =Head1 -> 2022/23 | D2: =Head2 -> Budget Year 2023/24 | L2: =Head4 -> 
A3: R thousand | C3: =Head5 -> Audited Outcome | D3: =Head6 -> Original Budget | E3: =Head7 -> Adjusted Budget | F3: =Head38 -> Monthly actual | G3: =Head39 -> YearTD actual | H3: =Head40 -> YearTD budget | I3: =Head41 -> YTD variance | J3: =Head41 -> YTD variance | K3: =Head8 -> Full Year Forecast | L3: =Head12 -> Forecast 2010/11 | M3: =Head13 -> Forecast 2011/12 | N3: =Head14 -> Forecast 2012/13 | O3: =Head15 -> Forecast 2013/14 | P3: =Head16 -> Forecast 2014/15 | Q3: =Head17 -> Forecast 2015/16 | R3: =Head18 -> Forecast 2016/17 | S3: =Head19 -> Forecast 2017/18 | T3: =Head20 -> Forecast 2018/19 | U3: =Head21 -> Forecast 2019/20 | V3: =Head22 -> Forecast 2020/21 | W3: =Head23 -> Forecast 2021/22
J4: %
A5: Revenue by Vote | B5: 1
A6: ='Org structure'!A2 -> Vote 1 - City Manager | C6: =SUM(C7:C16) -> 0 | D6: =SUM(D7:D16) -> 0 | E6: 0 | F6: 0 | G6: 0 | H6: 0 | I6: =G6-H6 -> 0 | J6: =IF(I6=0,"",I6/H6) ->  | K6: 0
A7: ='Org structure'!E3 -> 1.1 - Internal Audit and Compliance | H7: =D7/12*Instructions!X10 -> 0 | I7: 0 | K7: =D7 -> 0
A8: ='Org structure'!E4 -> 1.2 - Office of the City Manager | H8: =D8/12*Instructions!X10 -> 0 | I8: 0 | K8: =D8 -> 0
A9: ='Org structure'!E5 -> 1.3 - Political Support | H9: =D9/12*Instructions!X10 -> 0 | I9: 0 | K9: 0
A10: ='Org structure'!E6 -> 1.4 - Strategic Planning | H10: =D10/12*Instructions!X10 -> 0 | I10: 0 | K10: 0
A11: ='Org structure'!E7 -> 0 | I11: 0
A12: ='Org structure'!E8 -> 0 | I12: 0
A13: ='Org structure'!E9 -> 0 | I13: 0
A14: ='Org structure'!E10 -> 0 | I14: 0
A15: ='Org structure'!E11 -> 0 | I15: 0
A16: ='Org structure'!E12 -> 0 | I16: 0
A17: ='Org structure'!A3 -> Vote 2 - City Finance | C17: =SUM(C18:C27) -> 0 | D17: =SUM(D18:D27) -> 2342934597 | E17: 0 | F17: 311713452.9 | G17: 311713452.9 | H17: 195244549.7 | I17: 116468903.2 | J17: 0.5965283195 | K17: 2342934597
A18: ='Org structure'!E14 -> 2.1 - Asset Management | D18: 19067376.06 | F18: 2966931.16 | G18: 2966931.16 | H18: =D18/12*Instructions!X10 -> 1588948.005 | I18: 1377983.155 | J18: 0.867229859 | K18: =D18 -> 19067376.06
A19: ='Org structure'!E15 -> 2.2 - Budget and Treasury Management | D19: 787224025.3 | F19: 178067206.1 | G19: 178067206.1 | H19: =D19/12*Instructions!X10 -> 65602002.11 | I19: 112465204 | J19: 1.714356276 | K19: 787224025.3
A20: ='Org structure'!E16 -> 2.3 - Expenditure Management | D20: 411255.6181 | F20: 0 | G20: 0 | H20: =D20/12*Instructions!X10 -> 34271.30151 | I20: -34271.30151 | J20: -1 | K20: 411255.6181
A21: ='Org structure'!E17 -> 2.4 - Revenue Management | D21: 1535899001 | F21: 130678312 | G21: 130678312 | H21: =D21/12*Instructions!X10 -> 127991583.4 | I21: 2686728.547 | J21: 0.02099144706 | K21: 1535899001
A22: ='Org structure'!E18 -> 2.5 - Supply Chain Management | D22: 332939.1845 | F22: 1003.67 | G22: 1003.67 | H22: =D22/12*Instructions!X10 -> 27744.93204 | I22: -26741.26204 | J22: -0.9638251051 | K22: 332939.1845
A23: ='Org structure'!E19 -> 0 | I23: 0
A24: ='Org structure'!E20 -> 0 | I24: 0
A25: ='Org structure'!E21 -> 0 | I25: 0
A26: ='Org structure'!E22 -> 0 | I26: 0
A27: ='Org structure'!E23 -> 0 | I27: 0
A28: ='Org structure'!A4 -> Vote 3 - Corporate Services | C28: =SUM(C29:C38) -> 0 | D28: 7980216.973 | E28: 0 | F28: 52.17 | G28: 52.17 | H28: 665018.0811 | I28: -664965.9111 | J28: -0.999921551 | K28: 7980216.973
A29: ='Org structure'!E25 -> 3.1 - Human Resources Management | D29: 2683430.277 | H29: =D29/12*Instructions!X10 -> 223619.1898 | I29: -223619.1898 | J29: -1 | K29: =D29 -> 2683430.277
A30: ='Org structure'!E26 -> 3.2 - Information Technology | D30: 2472.42645 | F30: 52.17 | G30: 52.17 | H30: =D30/12*Instructions!X10 -> 206.0355375 | I30: -153.8655375 | J30: -0.7467912544 | K30: 2472.42645
A31: ='Org structure'!E27 -> 3.3 - Legal Services | D31: 315314.2694 | H31: =D31/12*Instructions!X10 -> 26276.18912 | I31: -26276.18912 | J31: -1 | K31: 315314.2694
A32: ='Org structure'!E28 -> 3.4 - Secretariat and Auxiliary Services | D32: 0 | H32: =D32/12*Instructions!X10 -> 0 | I32: 0 | K32: 0
A33: ='Org structure'!E29 -> 3.5 - General Manager: Corporate Service | D33: 4979000 | H33: =D33/12*Instructions!X10 -> 414916.6667 | I33: -414916.6667 | J33: -1 | K33: 4979000
A34: ='Org structure'!E30 -> 0 | I34: 0
A35: ='Org structure'!E31 -> 0 | I35: 0
A36: ='Org structure'!E32 -> 0 | I36: 0
A37: ='Org structure'!E33 -> 0 | I37: 0
A38: ='Org structure'!E34 -> 0 | I38: 0
A39: ='Org structure'!A5 -> Vote 4 - Community Services and Social Equity | C39: =SUM(C40:C49) -> 0 | D39: 497013172.7 | E39: 0 | F39: 27242759.21 | G39: 27242759.21 | H39: 41417764.39 | I39: -14175005.18 | J39: -0.3422445752 | K39: 497013172.7
A40: ='Org structure'!E36 -> 4.1 - Area Based Management | D40: 9788096.706 | F40: 36093.9 | G40: 36093.9 | H40: =D40/12*Instructions!X10 -> 815674.7255 | I40: -779580.8255 | J40: -0.9557496403 | K40: =D40 -> 9788096.706
A41: ='Org structure'!E37 -> 4.2 - Public Safety, Emergency Services and Enforcement | D41: 8568779.072 | F41: 376302.71 | G41: 376302.71 | H41: =D41/12*Instructions!X10 -> 714064.9226 | I41: -337762.2126 | J41: -0.47301331 | K41: 8568779.072
A42: ='Org structure'!E38 -> 4.3 - Recreation and Facilities | D42: 319882193.8 | F42: 3939752.32 | G42: 3939752.32 | H42: =D42/12*Instructions!X10 -> 26656849.48 | I42: -22717097.16 | J42: -0.852204878 | K42: 319882193.8
A43: ='Org structure'!E39 -> 4.4 - Waste Management | D43: 158774103.1 | F43: 22890610.28 | G43: 22890610.28 | H43: =D43/12*Instructions!X10 -> 13231175.26 | I43: 9659435.019 | J43: 0.730051173 | K43: 158774103.1
A44: ='Org structure'!E40 -> 0 | I44: 0
A45: ='Org structure'!E41 -> 0 | I45: 0
A46: ='Org structure'!E42 -> 0 | I46: 0
A47: ='Org structure'!E43 -> 0 | I47: 0
A48: ='Org structure'!E44 -> 0 | I48: 0
A49: ='Org structure'!E45 -> 0 | I49: 0
A50: ='Org structure'!A6 -> Vote 5 - Infrastructure Services | C50: =SUM(C51:C60) -> 0 | D50: =SUM(D51:D60) -> 1520657146 | E50: 0 | F50: 239686674.4 | G50: 239686674.4 | H50: 126721428.8 | I50: 112965245.6 | J50: 0.8914454851 | K50: 1520657146
A51: ='Org structure'!E47 -> 5.1 - Project Management Office | D51: 9830360 | F51: 64041.55 | G51: 64041.55 | H51: =D51/12*Instructions!X10 -> 819196.6667 | I51: -755155.1167 | J51: -0.9218239617 | K51: =D51 -> 9830360
A52: ='Org structure'!E48 -> 5.2 - Roads and Transportation | D52: 222714.297 | F52: 10627152.81 | G52: 10627152.81 | H52: =D52/12*Instructions!X10 -> 18559.52475 | I52: 10608593.29 | J52: 571.5983264 | K52: 222714.297
A53: ='Org structure'!E49 -> 5.3 - Water and Sanitation | D53: 1510604072 | F53: 228995480.1 | G53: 228995480.1 | H53: =D53/12*Instructions!X10 -> 125883672.6 | I53: 103111807.4 | J53: 0.8191039017 | K53: 1510604072
A54: ='Org structure'!E50 -> 5.4 - General Manager: Infrastructure | D54: 0 | H54: =D54/12*Instructions!X10 -> 0 | I54: 0 | K54: 0
A55: ='Org structure'!E51 -> 0 | I55: 0
A56: ='Org structure'!E52 -> 0 | I56: 0
A57: ='Org structure'!E53 -> 0 | I57: 0
A58: ='Org structure'!E54 -> 0 | I58: 0
A59: ='Org structure'!E55 -> 0 | I59: 0
A60: ='Org structure'!E56 -> 0 | I60: 0
A61: ='Org structure'!A7 -> Vote 6 - Sustainable Development and City Enterprises | C61: =SUM(C62:C71) -> 0 | D61: =SUM(D62:D71) -> 200280366 | E61: 0 | F61: 8735984.97 | G61: 8735984.97 | H61: 16690030.5 | I61: -7954045.531 | J61: -0.4765746552 | K61: 200280366
A62: ='Org structure'!E58 -> 6.1 - City Entities | D62: 110066430.8 | F62: 2502214.69 | G62: 2502214.69 | H62: =D62/12*Instructions!X10 -> 9172202.567 | I62: -6669987.877 | J62: -0.7271958756 | K62: =D62 -> 110066430.8
A63: ='Org structure'!E59 -> 6.2 - Development Services | D63: 2292326.484 | F63: 14047.64 | G63: 14047.64 | H63: =D63/12*Instructions!X10 -> 191027.207 | I63: -176979.567 | J63: -0.9264626216 | K63: 2292326.484
A64: ='Org structure'!E60 -> 6.3 - Human Settlement Development | D64: 32320661.28 | F64: 4697440.81 | G64: 4697440.81 | H64: =D64/12*Instructions!X10 -> 2693388.44 | I64: 2004052.37 | J64: 0.7440636263 | K64: 32320661.28
A65: ='Org structure'!E61 -> 6.4 - Town Planning | D65: 55600947.45 | F65: 1522281.83 | G65: 1522281.83 | H65: =D65/12*Instructions!X10 -> 4633412.287 | I65: -3111130.457 | J65: -0.6714555633 | K65: 55600947.45
A66: ='Org structure'!E62 -> 6.5 - General Manager: Sustainable Development and City Enterprises | D66: 0 | H66: =D66/12*Instructions!X10 -> 0 | I66: 0 | K66: 0
A67: ='Org structure'!E63 -> 0 | I67: 0
A68: ='Org structure'!E64 -> 0 | I68: 0
A69: ='Org structure'!E65 -> 0 | I69: 0
A70: ='Org structure'!E66 -> 0 | I70: =G70-H70 -> 0 | J70: =IF(I70=0,"",I70/H70) -> 
A71: ='Org structure'!E67 -> 0 | I71: 0
A72: ='Org structure'!A8 -> Vote 7 - Electricity | C72: =SUM(C73:C82) -> 0 | D72: 4000560679 | E72: 0 | F72: 331700984.8 | G72: 331700984.8 | H72: 333380056.6 | I72: -1679071.85 | J72: -0.005036509582 | K72: 4000560679
A73: ='Org structure'!E69 -> 7.1 Electricity planning | D73: 12000000 | H73: =D73/12*Instructions!X10 -> 1000000 | I73: -1000000 | J73: -1 | K73: =D73 -> 12000000
A74: ='Org structure'!E70 -> 7.2 Methods and Standards | D74: 0 | H74: =D74/12*Instructions!X10 -> 0 | I74: 0 | K74: 0
A75: ='Org structure'!E71 -> 7.3 Operations and Maintenance | D75: 0 | H75: =D75/12*Instructions!X10 -> 0 | I75: 0 | K75: 0
A76: ='Org structure'!E72 -> 7.4 Revenue Management | D76: 3963821822 | F76: 331700984.8 | G76: 331700984.8 | H76: =D76/12*Instructions!X10 -> 330318485.2 | I76: 1382499.561 | J76: 0.004185353297 | K76: 3963821822
A77: ='Org structure'!E73 -> 7.5 General Manager Electricity | D77: 24738856.93 | H77: =D77/12*Instructions!X10 -> 2061571.411 | I77: -2061571.411 | J77: -1 | K77: 24738856.93
A78: ='Org structure'!E74 -> 0 | I78: 0
A79: ='Org structure'!E75 -> 0 | I79: 0
A80: ='Org structure'!E76 -> 0 | I80: 0
A81: ='Org structure'!E77 -> 0 | I81: 0
A82: ='Org structure'!E78 -> 0 | I82: 0
A83: ='Org structure'!A9 -> Vote 8 - [NAME OF VOTE 8] | C83: =SUM(C84:C93) -> 0 | D83: =SUM(D84:D93) -> 0 | E83: 0 | F83: 0 | G83: 0 | H83: 0 | I83: 0 | K83: 0
A84: ='Org structure'!E80 -> 8.1 - [Name of sub-vote] | I84: 0
A85: ='Org structure'!E81 -> 0 | I85: 0
A86: ='Org structure'!E82 -> 0 | I86: 0
A87: ='Org structure'!E83 -> 0 | I87: 0
A88: ='Org structure'!E84 -> 0 | I88: 0
A89: ='Org structure'!E85 -> 0 | I89: 0
A90: ='Org structure'!E86 -> 0 | I90: 0
A91: ='Org structure'!E87 -> 0 | I91: 0
A92: ='Org structure'!E88 -> 0 | I92: 0
A93: ='Org structure'!E89 -> 0 | I93: 0
A94: ='Org structure'!A10 -> Vote 9 - [NAME OF VOTE 9] | C94: =SUM(C95:C104) -> 0 | D94: =SUM(D95:D104) -> 0 | E94: 0 | F94: 0 | G94: 0 | H94: 0 | I94: 0 | K94: 0
A95: ='Org structure'!E91 -> 9.1 - [Name of sub-vote] | I95: 0
A96: ='Org structure'!E92 -> 0 | I96: 0
A97: ='Org structure'!E93 -> 0 | I97: 0
A98: ='Org structure'!E94 -> 0 | I98: 0
A99: ='Org structure'!E95 -> 0 | I99: 0
A100: ='Org structure'!E96 -> 0 | I100: 0
A101: ='Org structure'!E97 -> 0 | I101: 0
A102: ='Org structure'!E98 -> 0 | I102: 0
A103: ='Org structure'!E99 -> 0 | I103: 0
A104: ='Org structure'!E100 -> 0 | I104: 0
A105: ='Org structure'!A11 -> Vote 10 - [NAME OF VOTE 10] | C105: =SUM(C106:C115) -> 0 | D105: =SUM(D106:D115) -> 0 | E105: 0 | F105: 0 | G105: 0 | H105: 0 | I105: 0 | K105: 0
A106: ='Org structure'!E102 -> 10.1 - [Name of sub-vote] | I106: 0
A107: ='Org structure'!E103 -> 0 | I107: 0
A108: ='Org structure'!E104 -> 0 | I108: 0
A109: ='Org structure'!E105 -> 0 | I109: 0
A110: ='Org structure'!E106 -> 0 | I110: 0
A111: ='Org structure'!E107 -> 0 | I111: 0
A112: ='Org structure'!E108 -> 0 | I112: 0
A113: ='Org structure'!E109 -> 0 | I113: 0
A114: ='Org structure'!E110 -> 0 | I114: 0
A115: ='Org structure'!E111 -> 0 | I115: 0
A116: ='Org structure'!A12 -> Vote 11 - [NAME OF VOTE 11] | C116: =SUM(C117:C126) -> 0 | D116: =SUM(D117:D126) -> 0 | E116: 0 | F116: 0 | G116: 0 | H116: 0 | I116: 0 | K116: 0
A117: ='Org structure'!E113 -> 11.1 - [Name of sub-vote] | I117: 0
A118: ='Org structure'!E114 -> 0 | I118: 0
A119: ='Org structure'!E115 -> 0 | I119: 0
A120: ='Org structure'!E116 -> 0 | I120: 0
A121: ='Org structure'!E117 -> 0 | I121: 0
A122: ='Org structure'!E118 -> 0 | I122: 0
A123: ='Org structure'!E119 -> 0 | I123: 0
A124: ='Org structure'!E120 -> 0 | I124: 0
A125: ='Org structure'!E121 -> 0 | I125: 0
A126: ='Org structure'!E122 -> 0 | I126: 0
A127: ='Org structure'!A13 -> Vote 12 - [NAME OF VOTE 12] | C127: =SUM(C128:C137) -> 0 | D127: =SUM(D128:D137) -> 0 | E127: 0 | F127: 0 | G127: 0 | H127: 0 | I127: 0 | K127: 0
A128: ='Org structure'!E124 -> 12.1 - [Name of sub-vote] | I128: 0
A129: ='Org structure'!E125 -> 0 | I129: 0
A130: ='Org structure'!E126 -> 0 | I130: 0
A131: ='Org structure'!E127 -> 0 | I131: 0
A132: ='Org structure'!E128 -> 0 | I132: 0
A133: ='Org structure'!E129 -> 0 | I133: 0
A134: ='Org structure'!E130 -> 0 | I134: =G134-H134 -> 0 | J134: =IF(I134=0,"",I134/H134) -> 
A135: ='Org structure'!E131 -> 0 | I135: 0
A136: ='Org structure'!E132 -> 0 | I136: 0
A137: ='Org structure'!E133 -> 0 | I137: 0
A138: ='Org structure'!A14 -> Vote 13 - [NAME OF VOTE 13] | C138: =SUM(C139:C148) -> 0 | D138: =SUM(D139:D148) -> 0 | E138: 0 | F138: 0 | G138: 0 | H138: 0 | I138: 0 | K138: 0
A139: ='Org structure'!E135 -> 13.1 - [Name of sub-vote] | I139: 0
A140: ='Org structure'!E136 -> 0 | I140: 0
A141: ='Org structure'!E137 -> 0 | I141: 0
A142: ='Org structure'!E138 -> 0 | I142: 0
A143: ='Org structure'!E139 -> 0 | I143: 0
A144: ='Org structure'!E140 -> 0 | I144: 0
A145: ='Org structure'!E141 -> 0 | I145: 0
A146: ='Org structure'!E142 -> 0 | I146: 0
A147: ='Org structure'!E143 -> 0 | I147: 0
A148: ='Org structure'!E144 -> 0 | I148: 0
A149: ='Org structure'!A15 -> Vote 14 - [NAME OF VOTE 14] | C149: =SUM(C150:C159) -> 0 | D149: =SUM(D150:D159) -> 0 | E149: 0 | F149: 0 | G149: 0 | H149: 0 | I149: 0 | K149: 0
A150: ='Org structure'!E146 -> 14.1 - [Name of sub-vote] | I150: 0
A151: ='Org structure'!E147 -> 0 | I151: 0
A152: ='Org structure'!E148 -> 0 | I152: 0
A153: ='Org structure'!E149 -> 0 | I153: 0
A154: ='Org structure'!E150 -> 0 | I154: 0
A155: ='Org structure'!E151 -> 0 | I155: 0
A156: ='Org structure'!E152 -> 0 | I156: 0
A157: ='Org structure'!E153 -> 0 | I157: 0
A158: ='Org structure'!E154 -> 0 | I158: 0
A159: ='Org structure'!E155 -> 0 | I159: 0
A160: ='Org structure'!A16 -> Vote 15 - [NAME OF VOTE 15] | C160: =SUM(C161:C170) -> 0 | D160: =SUM(D161:D170) -> 0 | E160: 0 | F160: 0 | G160: 0 | H160: 0 | I160: 0 | K160: 0
A161: ='Org structure'!E157 -> 15.1 - [Name of sub-vote] | I161: 0
A162: ='Org structure'!E158 -> 0 | I162: 0
A163: ='Org structure'!E159 -> 0 | I163: 0
A164: ='Org structure'!E160 -> 0 | I164: 0
A165: ='Org structure'!E161 -> 0 | I165: 0
A166: ='Org structure'!E162 -> 0 | I166: 0
A167: ='Org structure'!E163 -> 0 | I167: 0
A168: ='Org structure'!E164 -> 0 | I168: 0
A169: ='Org structure'!E165 -> 0 | I169: 0
A170: ='Org structure'!E166 -> 0 | I170: 0 | L170: =SUM(L78:L81) -> 0 | M170: 0 | N170: 0 | O170: 0 | P170: 0 | Q170: 0 | R170: 0 | S170: 0 | T170: 0 | U170: 0 | V170: 0 | W170: 0
A171: Total Revenue by Vote | B171: 2 | C171: =C6+C17+C28+C39+C50+C61+C72+C83+C94+C105+C116+C127+C138+C149+C160 -> 0 | D171: =D6+D17+D28+D39+D50+D61+D72+D83+D94+D105+D116+D127+D138+D149+D160 -> 8569426178 | E171: 0 | F171: 919079908.4 | G171: 919079908.4 | H171: 714118848.2 | I171: 204961060.3 | J171: 0.2870125341 | K171: 8569426178
I172: 0
A173: Expenditure by Vote | B173: 1 | I173: 0
A174: ='Org structure'!A2 -> Vote 1 - City Manager | C174: =SUM(C175:C184) -> 0 | D174: 300105971.1 | E174: 0 | F174: 10547302.03 | G174: 10547302.03 | H174: 25008830.92 | I174: -14461528.89 | J174: -0.578256894 | K174: 300105971.1
A175: ='Org structure'!E3 -> 1.1 - Internal Audit and Compliance | D175: 28455035.46 | F175: 865956.24 | G175: 865956.24 | H175: =D175/12*Instructions!X10 -> 2371252.955 | I175: -1505296.715 | J175: -0.634810686 | K175: =D175 -> 28455035.46
A176: ='Org structure'!E4 -> 1.2 - Office of the City Manager | D176: 160808892.2 | F176: 2219962.51 | G176: 2219962.51 | H176: =D176/12*Instructions!X10 -> 13400741.02 | I176: -11180778.51 | J176: -0.8343403169 | K176: 160808892.2
A177: ='Org structure'!E5 -> 1.3 - Political Support | D177: 101392330.3 | F177: 6943799.29 | G177: 6943799.29 | H177: =D177/12*Instructions!X10 -> 8449360.861 | I177: -1505561.571 | J177: -0.1781864446 | K177: 101392330.3
A178: ='Org structure'!E6 -> 1.4 - Strategic Planning | D178: 9449713.077 | F178: 517583.99 | G178: 517583.99 | H178: =D178/12*Instructions!X10 -> 787476.0897 | I178: -269892.0997 | J178: -0.3427305327 | K178: 9449713.077
A179: ='Org structure'!E7 -> 0 | I179: 0
A180: ='Org structure'!E8 -> 0 | I180: 0
A181: ='Org structure'!E9 -> 0 | I181: 0
A182: ='Org structure'!E10 -> 0 | I182: 0
A183: ='Org structure'!E11 -> 0 | I183: 0
A184: ='Org structure'!E12 -> 0 | I184: 0
A185: ='Org structure'!A3 -> Vote 2 - City Finance | C185: =SUM(C186:C195) -> 0 | D185: =SUM(D186:D195) -> 799187822.7 | E185: =SUM(E186:E195) -> 0 | F185: 21890430.07 | G185: 21890430.07 | H185: 66598985.23 | I185: -44708555.16 | J185: -0.6713098556 | K185: 799187822.7
A186: ='Org structure'!E14 -> 2.1 - Asset Management | D186: 81457538.5 | F186: 4359493.22 | G186: 4359493.22 | H186: =D186/12*Instructions!X10 -> 6788128.209 | I186: -2428634.989 | J186: -0.3577768295 | K186: =D186 -> 81457538.5
A187: ='Org structure'!E15 -> 2.2 - Budget and Treasury Management | D187: 139219805.8 | F187: 6945772.59 | G187: 6945772.59 | H187: =D187/12*Instructions!X10 -> 11601650.48 | I187: -4655877.891 | J187: -0.401311684 | K187: 139219805.8
A188: ='Org structure'!E16 -> 2.3 - Expenditure Management | D188: 43561837.16 | F188: 2952096.45 | G188: 2952096.45 | H188: =D188/12*Instructions!X10 -> 3630153.097 | I188: -678056.6466 | J188: -0.1867845869 | K188: 43561837.16
A189: ='Org structure'!E17 -> 2.4 - Revenue Management | D189: 459180490.1 | F189: 3427890.56 | G189: 3427890.56 | H189: =D189/12*Instructions!X10 -> 38265040.85 | I189: -34837150.29 | J189: -0.9104171723 | K189: 459180490.1
A190: ='Org structure'!E18 -> 2.5 - Supply Chain Management | D190: 75768151.16 | F190: 4205177.25 | G190: 4205177.25 | H190: =D190/12*Instructions!X10 -> 6314012.596 | I190: -2108835.346 | J190: -0.3339928951 | K190: 75768151.16
A191: ='Org structure'!E19 -> 0 | I191: 0
A192: ='Org structure'!E20 -> 0 | I192: 0
A193: ='Org structure'!E21 -> 0 | I193: 0
A194: ='Org structure'!E22 -> 0 | I194: 0
A195: ='Org structure'!E23 -> 0 | I195: 0
A196: ='Org structure'!A4 -> Vote 3 - Corporate Services | C196: =SUM(C197:C206) -> 0 | D196: 195633443.4 | E196: 0 | F196: 20137341.08 | G196: 20137341.08 | H196: 16302786.95 | I196: 3834554.132 | J196: 0.2352085042 | K196: 195633443.4
A197: ='Org structure'!E25 -> 3.1 - Human Resources Management | D197: 82790450.05 | F197: 15245758 | G197: 15245758 | H197: =D197/12*Instructions!X10 -> 6899204.171 | I197: 8346553.829 | J197: 1.209785016 | K197: =D197 -> 82790450.05
A198: ='Org structure'!E26 -> 3.2 - Information Technology | D198: 56146777.96 | F198: 1364341.53 | G198: 1364341.53 | H198: =D198/12*Instructions!X10 -> 4678898.163 | I198: =G198-H198 -> -3314556.633 | J198: =IF(I198=0,"",I198/H198) -> -0.7084053804 | K198: 56146777.96
A199: ='Org structure'!E27 -> 3.3 - Legal Services | D199: 18240282.65 | F199: 977466.55 | G199: 977466.55 | H199: =D199/12*Instructions!X10 -> 1520023.554 | I199: -542557.0045 | J199: -0.3569398664 | K199: 18240282.65
A200: ='Org structure'!E28 -> 3.4 - Secretariat and Auxiliary Services | D200: 25452722.21 | F200: 2307395.25 | G200: 2307395.25 | H200: =D200/12*Instructions!X10 -> 2121060.184 | I200: 186335.0658 | J200: 0.08784996634 | K200: 25452722.21
... 147 more rows

Sheet C4-FinPerf RE
A1: =muni& " - "&S71B& " - "&date -> KZN225 Msunduzi - Table C4 Monthly Budget Statement - Financial Performance (revenue and expenditure) - M01 July
A2: =desc -> Description | B2: =head27 -> Ref | C2: =Head1 -> 2022/23 | D2: =Head2 -> Budget Year 2023/24
C3: =Head5 -> Audited Outcome | D3: =Head6 -> Original Budget | E3: =Head7 -> Adjusted Budget | F3: =Head38 -> Monthly actual | G3: =Head39 -> YearTD actual | H3: =Head40 -> YearTD budget | I3: =Head41 -> YTD variance | J3: =Head41 -> YTD variance | K3: =Head8 -> Full Year Forecast
A4: R thousands | J4: %
A5: Revenue
A6: Exchange Revenue
A7: Service charges - Electricity | D7: 3892818096 | F7: 316422192.2 | G7: 316422192.2 | H7: =D7/12*Instructions!X10 -> 324401508 | I7: =G7-H7 -> -7979315.782 | J7: =IF(I7=0,"",I7/H7) -> -0.02459703665 | K7: =D7 -> 3892818096
A8: Service charges - Water | D8: 901571501.8 | F8: 68890883.04 | G8: 68890883.04 | H8: =D8/12*Instructions!X10 -> 75130958.48 | I8: -6240075.44 | J8: -0.08305598074 | K8: =D8 -> 901571501.8
A9: Service charges - Waste Water Management | D9: 202499871.9 | F9: 18873864.5 | G9: 18873864.5 | H9: =D9/12*Instructions!X10 -> 16874989.33 | I9: 1998875.172 | J9: 0.1184519369 | K9: =D9 -> 202499871.9
A10: Service charges - Waste management | D10: 138741765.1 | F10: 10450647.81 | G10: 10450647.81 | H10: =D10/12*Instructions!X10 -> 11561813.76 | I10: -1111165.95 | J10: -0.09610654291 | K10: 138741765.1
A11: Sale of Goods and Rendering of Services | H11: =D11/12*Instructions!X10 -> 0 | I11: 0 | K11: 0
A12: Agency services | D12: 714790.3238 | F12: 243350 | G12: 243350 | H12: =D12/12*Instructions!X10 -> 59565.86032 | I12: 183784.1397 | J12: 3.08539386 | K12: 714790.3238
A13: Interest | H13: =D13/12*Instructions!X10 -> 0 | I13: 0 | K13: 0
A14: Interest earned from Receivables | D14: 198174144 | F14: 23871725.21 | G14: 23871725.21 | H14: =D14/12*Instructions!X10 -> 16514512 | I14: 7357213.21 | J14: 0.4454998858 | K14: 198174144
A15: Interest from Current and Non Current Assets | D15: 18052025.28 | H15: =D15/12*Instructions!X10 -> 1504335.44 | I15: -1504335.44 | J15: -1 | K15: 18052025.28
A16: Dividends | H16: =D16/12*Instructions!X10 -> 0 | I16: 0 | K16: 0
A17: Rent on Land | H17: =D17/12*Instructions!X10 -> 0 | I17: 0 | K17: 0
A18: Rental from Fixed Assets | D18: 104823531.7 | F18: 3889914.99 | G18: 3889914.99 | H18: =D18/12*Instructions!X10 -> 8735294.312 | I18: -4845379.322 | J18: -0.5546898764 | K18: 104823531.7
A19: Licence and permits | D19: 2451743.957 | F19: 118118.45 | G19: 118118.45 | H19: =D19/12*Instructions!X10 -> 204311.9964 | I19: -86193.54639 | J19: -0.4218721755 | K19: 2451743.957
A20: Operational Revenue | D20: 230407182.4 | F20: 4249326.55 | G20: 4249326.55 | H20: =D20/12*Instructions!X10 -> 19200598.53 | I20: -14951271.98 | J20: -0.7786878079 | K20: 230407182.4
A21: Non-Exchange Revenue | H21: =D21/12*Instructions!X10 -> 0 | I21: 0 | K21: 0
A22: Property rates | D22: 1526985082 | F22: 124453262 | G22: 124453262 | H22: =D22/12*Instructions!X10 -> 127248756.8 | I22: -2795494.853 | J22: -0.02196873999 | K22: 1526985082
A23: Surcharges and Taxes | H23: =D23/12*Instructions!X10 -> 0 | I23: 0 | K23: 0
A24: Fines, penalties and forfeits | D24: 14659914.48 | F24: 18157.35 | G24: 18157.35 | H24: =D24/12*Instructions!X10 -> 1221659.54 | I24: -1203502.19 | J24: -0.9851371439 | K24: 14659914.48
A25: Licence and permits | H25: =D25/12*Instructions!X10 -> 0 | I25: 0 | K25: 0
A26: Transfers and subsidies - Operational | D26: 838135150 | F26: 320632417.2 | G26: 320632417.2 | H26: =D26/12*Instructions!X10 -> 69844595.83 | I26: 250787821.3 | J26: 3.590654629 | K26: 838135150
A27: Interest | D27: 50691327 | F27: 1754660.51 | G27: 1754660.51 | H27: =D27/12*Instructions!X10 -> 4224277.25 | I27: -2469616.74 | J27: -0.5846246811 | K27: 50691327
A28: Fuel Levy | I28: 0 | K28: 0
A29: Operational Revenue | I29: 0 | K29: 0
A30: Gains on disposal of Assets | I30: 0 | K30: 0
A31: Other Gains | I31: 0 | K31: 0
A32: Discontinued Operations | I32: 0 | K32: 0
A33: Total Revenue (excluding capital transfers and contributions) | C33: =SUM(C7:C20)+SUM(C22:C32) -> 0 | D33: =SUM(D7:D20)+SUM(D22:D32) -> 8120726125 | E33: 0 | F33: 893868519.7 | G33: 893868519.7 | H33: 676727177.1 | I33: 217141342.6 | J33: 0.3208698423 | K33: =SUM(K7:K20)+SUM(K22:K32) -> 8120726125
A34: Expenditure By Type
A35: Employee related costs | D35: 1781210508 | F35: 123458316 | G35: 123458316 | H35: =D35/12*Instructions!X10 -> 148434209 | I35: -24975892.96 | J35: =IF(I35=0,"",I35/H35) -> -0.1682623778 | K35: =D35 -> 1781210508
A36: Remuneration of councillors | D36: 62699934.99 | F36: 3878495.17 | G36: 3878495.17 | H36: =D36/12*Instructions!X10 -> 5224994.582 | I36: -1346499.412 | J36: -0.257703504 | K36: 62699934.99
A37: Bulk purchases - electricity | D37: 2514000000 | F37: 287436435.6 | G37: 287436435.6 | H37: =D37/12*Instructions!X10 -> 209500000 | I37: 77936435.65 | J37: 0.372011626 | K37: 2514000000
A38: Inventory consumed | D38: 970629036 | F38: 73127419.2 | G38: 73127419.2 | H38: =D38/12*Instructions!X10 -> 80885753 | I38: -7758333.8 | J38: -0.09591718581 | K38: 970629036
A39: Debt impairment | D39: 600000000 | F39: 1009309.22 | G39: 1009309.22 | H39: =D39/12*Instructions!X10 -> 50000000 | I39: -48990690.78 | J39: -0.9798138156 | K39: 600000000
A40: Depreciation and amortisation | D40: 460781797 | F40: 29646737.24 | G40: 29646737.24 | H40: =D40/12*Instructions!X10 -> 38398483.08 | I40: -8751745.843 | J40: -0.2279190515 | K40: 460781797
A41: Interest | D41: 40400879.72 | F41: 1129038.09 | G41: 1129038.09 | H41: =D41/12*Instructions!X10 -> 3366739.977 | I41: -2237701.887 | J41: -0.6646494539 | K41: 40400879.72
A42: Contracted services | D42: 994210937 | F42: 21685938 | G42: 21685938 | H42: =D42/12*Instructions!X10 -> 82850911.42 | I42: -61164973.42 | J42: -0.7382534769 | K42: 994210937
A43: Transfers and subsidies | D43: 65884469.29 | F43: 3021319.13 | G43: 3021319.13 | H43: =D43/12*Instructions!X10 -> 5490372.441 | I43: -2469053.311 | J43: -0.4497059785 | K43: 65884469.29
A44: Irrecoverable debts written off | I44: 0
A45: Operational costs | D45: 215382233 | F45: 21502650.65 | G45: 21502650.65 | H45: =D45/12*Instructions!X10 -> 17948519.42 | I45: 3554131.233 | J45: 0.1980180733 | K45: 215382233
A46: Losses on Disposal of Assets | I46: 0
A47: Other Losses | I47: 0
A48: Total Expenditure | C48: =SUM(C35:C47) -> 0 | D48: =SUM(D35:D47) -> 7705199795 | E48: 0 | F48: 565895658.4 | G48: 565895658.4 | H48: 642099982.9 | I48: =G48-H48 -> -76204324.53 | J48: -0.118679842 | K48: =SUM(K35:K47) -> 7705199795
A49: Surplus/(Deficit) | C49: =C33-C48 -> 0 | D49: 415526330.3 | E49: 0 | F49: 327972861.3 | G49: 327972861.3 | H49: 34627194.19 | I49: 293345667.2 | J49: 8.471540188 | K49: =K33-K48 -> 415526330.3
A50: Transfers and subsidies - capital (monetary allocations) | D50: 448700054.9 | F50: 25211388.71 | G50: 25211388.71 | H50: =D50/12*Instructions!X10 -> 37391671.25 | I50: =G50-H50 -> -12180282.54 | J50: -0.3257485459 | K50: =D50 -> 448700054.9
A51: Transfers and subsidies - capital (in-kind) | I51: =G51-H51 -> 0
A52: Surplus/(Deficit) after capital transfers & contributions | C52: =C49+SUM(C50:C51) -> 0 | D52: 864226385.2 | E52: 0 | F52: 353184250.1 | G52: 353184250.1 | H52: 72018865.43 | K52: =K49+SUM(K50:K51) -> 864226385.2
A53: Income Tax | J53: =IF(I53=0,"",I53/H53) -> 
A54: Surplus/(Deficit) after income tax | C54: =C52-C53 -> 0 | D54: 864226385.2 | E54: 0 | F54: 353184250.1 | G54: 353184250.1 | H54: 72018865.43 | K54: =K52-K53 -> 864226385.2
A55: Share of Surplus/Deficit attributable to Joint Venture
A56: Share of Surplus/Deficit attributable to Minorities
A57: Surplus/(Deficit) attributable to municipality | C57: =SUM(C54:C55) -> 0 | D57: 864226385.2 | E57: 0 | F57: 353184250.1 | G57: 353184250.1 | H57: 72018865.43 | K57: =SUM(K54:K55) -> 864226385.2
A58: Share of Surplus/Deficit attributable to Associate
A59: Intercompany/Parent subsidiary transactions
A60: Surplus/ (Deficit) for the year | C60: =C57+C59 -> 0 | D60: 864226385.2 | E60: 0 | F60: 353184250.1 | G60: 353184250.1 | H60: 72018865.43 | K60: =K57+K59 -> 864226385.2
A61: =head27a -> References
A62: 1. Material variances to be explained on Table SC1
A65: =A33&" including capital transfers/contributions etc" -> Total Revenue (excluding capital transfers and contributions) including capital transfers/contributions etc | C65: =C33+SUM(C50:C51) -> 0 | D65: 8569426180 | E65: 0 | F65: 919079908.4 | G65: 919079908.4 | H65: 714118848.4 | K65: =K33+SUM(K50:K51) -> 8569426180

Sheet C5-Capex
A1: =muni& " - "&S71D& " - "&date -> KZN225 Msunduzi - Table C5 Monthly Budget Statement - Capital Expenditure (municipal vote, functional classification and funding) - M01 July
A2: =Vdesc -> Vote Description | B2: =head27 -> Ref | C2: =Head1 -> 2022/23 | D2: =Head2 -> Budget Year 2023/24
C3: =Head5 -> Audited Outcome | D3: =Head6 -> Original Budget | E3: =Head7 -> Adjusted Budget | F3: =Head38 -> Monthly actual | G3: =Head39 -> YearTD actual | H3: =Head40 -> YearTD budget | I3: =Head41 -> YTD variance | J3: =Head41 -> YTD variance | K3: =Head8 -> Full Year Forecast
A4: R thousands | B4: 1 | J4: %
A5: Multi-Year expenditure appropriation | B5: 2
A6: ='Org structure'!A2 -> Vote 1 - City Manager | C6: ='C5C'!C7 -> 0 | D6: ='C5C'!D7 -> 0 | E6: ='C5C'!E7 -> 0 | F6: ='C5C'!F7 -> 0 | G6: ='C5C'!G7 -> 0 | H6: ='C5C'!H7 -> 0 | I6: =G6-H6 -> 0 | J6: =IF(I6=0,"",I6/H6) ->  | K6: ='C5C'!K7 -> 0
A7: ='Org structure'!A3 -> Vote 2 - City Finance | C7: ='C5C'!C18 -> 0 | D7: ='C5C'!D18 -> 30000000 | E7: ='C5C'!E18 -> 0 | F7: ='C5C'!F18 -> 0 | G7: ='C5C'!G18 -> 0 | H7: ='C5C'!H18 -> 2500000 | I7: =G7-H7 -> -2500000 | J7: =IF(I7=0,"",I7/H7) -> -1 | K7: ='C5C'!K18 -> 30000000
A8: ='Org structure'!A4 -> Vote 3 - Corporate Services | C8: ='C5C'!C29 -> 0 | D8: ='C5C'!D29 -> 10000000 | E8: ='C5C'!E29 -> 0 | F8: ='C5C'!F29 -> 0 | G8: ='C5C'!G29 -> 0 | H8: ='C5C'!H29 -> 833333.3333 | I8: =G8-H8 -> -833333.3333 | J8: =IF(I8=0,"",I8/H8) -> -1 | K8: ='C5C'!K29 -> 10000000
A9: ='Org structure'!A5 -> Vote 4 - Community Services and Social Equity | C9: ='C5C'!C40 -> 0 | D9: ='C5C'!D40 -> 24886499.05 | E9: ='C5C'!E40 -> 0 | F9: ='C5C'!F40 -> 2700915.94 | G9: ='C5C'!G40 -> 2700915.94 | H9: ='C5C'!H40 -> 2073874.921 | I9: 627041.0192 | J9: 0.3023523805 | K9: ='C5C'!K40 -> 24886499.05
A10: ='Org structure'!A6 -> Vote 5 - Infrastructure Services | C10: ='C5C'!C51 -> 0 | D10: ='C5C'!D51 -> 318102140 | E10: ='C5C'!E51 -> 0 | F10: ='C5C'!F51 -> 10990950.19 | G10: ='C5C'!G51 -> 10990950.19 | H10: ='C5C'!H51 -> 26508511.67 | I10: -15517561.48 | J10: -0.5853803364 | K10: ='C5C'!K51 -> 318102140
A11: ='Org structure'!A7 -> Vote 6 - Sustainable Development and City Enterprises | C11: ='C5C'!C62 -> 0 | D11: ='C5C'!D62 -> 144745414.9 | E11: ='C5C'!E62 -> 0 | F11: ='C5C'!F62 -> 2617860.53 | G11: ='C5C'!G62 -> 2617860.53 | H11: ='C5C'!H62 -> 12062117.91 | I11: -9444257.383 | J11: -0.7829684182 | K11: ='C5C'!K62 -> 144745414.9
A12: ='Org structure'!A8 -> Vote 7 - Electricity | C12: ='C5C'!C73 -> 0 | D12: ='C5C'!D73 -> 175400000 | E12: ='C5C'!E73 -> 0 | F12: ='C5C'!F73 -> 0 | G12: ='C5C'!G73 -> 0 | H12: ='C5C'!H73 -> 14616666.67 | I12: -14616666.67 | J12: -1 | K12: ='C5C'!K73 -> 175400000
A13: ='Org structure'!A9 -> Vote 8 - [NAME OF VOTE 8] | C13: ='C5C'!C84 -> 0 | D13: ='C5C'!D84 -> 0 | E13: ='C5C'!E84 -> 0 | F13: ='C5C'!F84 -> 0 | G13: ='C5C'!G84 -> 0 | H13: ='C5C'!H84 -> 0 | I13: 0 | K13: ='C5C'!K84 -> 0
A14: ='Org structure'!A10 -> Vote 9 - [NAME OF VOTE 9] | C14: ='C5C'!C95 -> 0 | D14: ='C5C'!D95 -> 0 | E14: ='C5C'!E95 -> 0 | F14: ='C5C'!F95 -> 0 | G14: ='C5C'!G95 -> 0 | H14: ='C5C'!H95 -> 0 | I14: 0 | K14: ='C5C'!K95 -> 0
A15: ='Org structure'!A11 -> Vote 10 - [NAME OF VOTE 10] | C15: ='C5C'!C106 -> 0 | D15: ='C5C'!D106 -> 0 | E15: ='C5C'!E106 -> 0 | F15: ='C5C'!F106 -> 0 | G15: ='C5C'!G106 -> 0 | H15: ='C5C'!H106 -> 0 | I15: 0 | K15: ='C5C'!K106 -> 0
A16: ='Org structure'!A12 -> Vote 11 - [NAME OF VOTE 11] | C16: ='C5C'!C117 -> 0 | D16: ='C5C'!D117 -> 0 | E16: ='C5C'!E117 -> 0 | F16: ='C5C'!F117 -> 0 | G16: ='C5C'!G117 -> 0 | H16: ='C5C'!H117 -> 0 | I16: 0 | K16: ='C5C'!K117 -> 0
A17: ='Org structure'!A13 -> Vote 12 - [NAME OF VOTE 12] | C17: ='C5C'!C128 -> 0 | D17: ='C5C'!D128 -> 0 | E17: ='C5C'!E128 -> 0 | F17: ='C5C'!F128 -> 0 | G17: ='C5C'!G128 -> 0 | H17: ='C5C'!H128 -> 0 | I17: 0 | K17: ='C5C'!K128 -> 0
A18: ='Org structure'!A14 -> Vote 13 - [NAME OF VOTE 13] | C18: ='C5C'!C139 -> 0 | D18: ='C5C'!D139 -> 0 | E18: ='C5C'!E139 -> 0 | F18: ='C5C'!F139 -> 0 | G18: ='C5C'!G139 -> 0 | H18: ='C5C'!H139 -> 0 | I18: =G18-H18 -> 0 | J18: =IF(I18=0,"",I18/H18) ->  | K18: ='C5C'!K139 -> 0
A19: ='Org structure'!A15 -> Vote 14 - [NAME OF VOTE 14] | C19: ='C5C'!C150 -> 0 | D19: ='C5C'!D150 -> 0 | E19: ='C5C'!E150 -> 0 | F19: ='C5C'!F150 -> 0 | G19: ='C5C'!G150 -> 0 | H19: ='C5C'!H150 -> 0 | I19: =G19-H19 -> 0 | J19: =IF(I19=0,"",I19/H19) ->  | K19: ='C5C'!K150 -> 0
A20: ='Org structure'!A16 -> Vote 15 - [NAME OF VOTE 15] | C20: ='C5C'!C161 -> 0 | D20: ='C5C'!D161 -> 0 | E20: ='C5C'!E161 -> 0 | F20: ='C5C'!F161 -> 0 | G20: ='C5C'!G161 -> 0 | H20: ='C5C'!H161 -> 0 | I20: =G20-H20 -> 0 | J20: =IF(I20=0,"",I20/H20) ->  | K20: ='C5C'!K161 -> 0
A21: Total Capital Multi-year expenditure | B21: 4,7 | C21: =SUM(C6:C20) -> 0 | D21: =SUM(D6:D20) -> 703134054 | E21: 0 | F21: 16309726.66 | G21: 16309726.66 | H21: 58594504.5 | I21: -42284777.84 | J21: =IF(I21=0,"",I21/H21) -> -0.7216509159 | K21: =SUM(K6:K20) -> 703134054
A23: Single Year expenditure appropriation | B23: 2
A24: ='Org structure'!A2 -> Vote 1 - City Manager | C24: ='C5C'!C176 -> 0 | D24: ='C5C'!D176 -> 5000000 | E24: ='C5C'!E176 -> 0 | F24: ='C5C'!F176 -> 0 | G24: ='C5C'!G176 -> 0 | H24: ='C5C'!H176 -> 416666.6667 | I24: ='C5C'!I176 -> -416666.6667 | J24: =IF(I24=0,"",I24/H24) -> -1 | K24: ='C5C'!K176 -> 5000000
A25: ='Org structure'!A3 -> Vote 2 - City Finance | C25: ='C5C'!C187 -> 0 | D25: ='C5C'!D187 -> 0 | E25: ='C5C'!E187 -> 0 | F25: ='C5C'!F187 -> 0 | G25: ='C5C'!G187 -> 0 | H25: ='C5C'!H187 -> 0 | I25: ='C5C'!I187 -> 0 | J25: =IF(I25=0,"",I25/H25) ->  | K25: ='C5C'!K187 -> 0
A26: ='Org structure'!A4 -> Vote 3 - Corporate Services | C26: ='C5C'!C198 -> 0 | D26: ='C5C'!D198 -> 10000000 | E26: ='C5C'!E198 -> 0 | F26: ='C5C'!F198 -> 0 | G26: ='C5C'!G198 -> 0 | H26: ='C5C'!H198 -> 833333.3333 | I26: ='C5C'!I198 -> -833333.3333 | J26: -1 | K26: ='C5C'!K198 -> 10000000
A27: ='Org structure'!A5 -> Vote 4 - Community Services and Social Equity | C27: ='C5C'!C209 -> 0 | D27: ='C5C'!D209 -> 4000000 | E27: ='C5C'!E209 -> 0 | F27: ='C5C'!F209 -> 0 | G27: ='C5C'!G209 -> 0 | H27: ='C5C'!H209 -> 333333.3333 | I27: ='C5C'!I209 -> -333333.3333 | J27: -1 | K27: ='C5C'!K209 -> 4000000
A28: ='Org structure'!A6 -> Vote 5 - Infrastructure Services | C28: ='C5C'!C220 -> 0 | D28: ='C5C'!D220 -> 5000000 | E28: ='C5C'!E220 -> 0 | F28: ='C5C'!F220 -> 0 | G28: ='C5C'!G220 -> 0 | H28: ='C5C'!H220 -> 416666.6667 | I28: ='C5C'!I220 -> -416666.6667 | J28: -1 | K28: ='C5C'!K220 -> 5000000
A29: ='Org structure'!A7 -> Vote 6 - Sustainable Development and City Enterprises | C29: ='C5C'!C231 -> 0 | D29: ='C5C'!D231 -> 38026000 | E29: ='C5C'!E231 -> 0 | F29: ='C5C'!F231 -> 0 | G29: ='C5C'!G231 -> 0 | H29: ='C5C'!H231 -> 3168833.333 | I29: ='C5C'!I231 -> -3168833.333 | J29: -1 | K29: ='C5C'!K231 -> 38026000
A30: ='Org structure'!A8 -> Vote 7 - Electricity | C30: ='C5C'!C242 -> 0 | D30: ='C5C'!D242 -> 3600000 | E30: ='C5C'!E242 -> 0 | F30: ='C5C'!F242 -> 0 | G30: ='C5C'!G242 -> 0 | H30: ='C5C'!H242 -> 300000 | I30: ='C5C'!I242 -> -300000 | J30: -1 | K30: ='C5C'!K242 -> 3600000
A31: ='Org structure'!A9 -> Vote 8 - [NAME OF VOTE 8] | C31: ='C5C'!C253 -> 0 | D31: ='C5C'!D253 -> 0 | E31: ='C5C'!E253 -> 0 | F31: ='C5C'!F253 -> 0 | G31: ='C5C'!G253 -> 0 | H31: ='C5C'!H253 -> 0 | I31: ='C5C'!I253 -> 0 | K31: ='C5C'!K253 -> 0
A32: ='Org structure'!A10 -> Vote 9 - [NAME OF VOTE 9] | C32: ='C5C'!C264 -> 0 | D32: ='C5C'!D264 -> 0 | E32: ='C5C'!E264 -> 0 | F32: ='C5C'!F264 -> 0 | G32: ='C5C'!G264 -> 0 | H32: ='C5C'!H264 -> 0 | I32: ='C5C'!I264 -> 0 | K32: ='C5C'!K264 -> 0
A33: ='Org structure'!A11 -> Vote 10 - [NAME OF VOTE 10] | C33: ='C5C'!C275 -> 0 | D33: ='C5C'!D275 -> 0 | E33: ='C5C'!E275 -> 0 | F33: ='C5C'!F275 -> 0 | G33: ='C5C'!G275 -> 0 | H33: ='C5C'!H275 -> 0 | I33: ='C5C'!I275 -> 0 | K33: ='C5C'!K275 -> 0
A34: ='Org structure'!A12 -> Vote 11 - [NAME OF VOTE 11] | C34: ='C5C'!C286 -> 0 | D34: ='C5C'!D286 -> 0 | E34: ='C5C'!E286 -> 0 | F34: ='C5C'!F286 -> 0 | G34: ='C5C'!G286 -> 0 | H34: ='C5C'!H286 -> 0 | I34: ='C5C'!I286 -> 0 | K34: ='C5C'!K286 -> 0
A35: ='Org structure'!A13 -> Vote 12 - [NAME OF VOTE 12] | C35: ='C5C'!C297 -> 0 | D35: ='C5C'!D297 -> 0 | E35: ='C5C'!E297 -> 0 | F35: ='C5C'!F297 -> 0 | G35: ='C5C'!G297 -> 0 | H35: ='C5C'!H297 -> 0 | I35: ='C5C'!I297 -> 0 | K35: ='C5C'!K297 -> 0
A36: ='Org structure'!A14 -> Vote 13 - [NAME OF VOTE 13] | C36: ='C5C'!C308 -> 0 | D36: ='C5C'!D308 -> 0 | E36: ='C5C'!E308 -> 0 | F36: ='C5C'!F308 -> 0 | G36: ='C5C'!G308 -> 0 | H36: ='C5C'!H308 -> 0 | I36: ='C5C'!I308 -> 0 | K36: ='C5C'!K308 -> 0
A37: ='Org structure'!A15 -> Vote 14 - [NAME OF VOTE 14] | C37: ='C5C'!C319 -> 0 | D37: ='C5C'!D319 -> 0 | E37: ='C5C'!E319 -> 0 | F37: ='C5C'!F319 -> 0 | G37: ='C5C'!G319 -> 0 | H37: ='C5C'!H319 -> 0 | I37: ='C5C'!I319 -> 0 | K37: ='C5C'!K319 -> 0
A38: ='Org structure'!A16 -> Vote 15 - [NAME OF VOTE 15] | C38: ='C5C'!C330 -> 0 | D38: ='C5C'!D330 -> 0 | E38: ='C5C'!E330 -> 0 | F38: ='C5C'!F330 -> 0 | G38: ='C5C'!G330 -> 0 | H38: ='C5C'!H330 -> 0 | I38: ='C5C'!I330 -> 0 | K38: ='C5C'!K330 -> 0
A39: Total Capital single-year expenditure | B39: 4 | C39: =SUM(C24:C38) -> 0 | D39: 65626000 | E39: 0 | F39: 0 | G39: 0 | H39: 5468833.333 | I39: -5468833.333 | J39: -1 | K39: =SUM(K24:K38) -> 65626000
A40: Total Capital Expenditure | C40: =C39+C21 -> 0 | D40: 768760054 | E40: 0 | F40: 16309726.66 | G40: 16309726.66 | H40: 64063337.83 | I40: -47753611.17 | J40: =IF(I40=0,"",I40/H40) -> -0.7454124744 | K40: =K39+K21 -> 768760054
A42: Capital Expenditure - Functional Classification
A43: Governance and administration | C43: =SUM(C44:C46) -> 0 | D43: 51000000 | E43: 0 | F43: 0 | G43: 0 | H43: 4250000 | I43: =G43-H43 -> -4250000 | J43: =IF(I43=0,"",I43/H43) -> -1 | K43: =SUM(K44:K46) -> 51000000
A44: Executive and council | D44: 1000000 | H44: =D44/12*Instructions!X10 -> 83333.33333 | I44: -83333.33333 | J44: =IF(I44=0,"",I44/H44) -> -1 | K44: =D44 -> 1000000
A45: Finance and administration | D45: 50000000 | H45: =D45/12*Instructions!X10 -> 4166666.667 | I45: -4166666.667 | J45: -1 | K45: =D45 -> 50000000
A46: Internal audit | D46: 0 | H46: =D46/12*Instructions!X10 -> 0 | I46: 0
A47: Community and public safety | C47: =SUM(C48:C52) -> 0 | D47: 169251914 | E47: 0 | F47: 5189408.12 | G47: 5189408.12 | H47: 14104326.17 | I47: -8914918.047 | J47: -0.6320697594 | K47: =SUM(K48:K52) -> 169251914
A48: Community and social services | D48: 20307499.05 | F48: 2571547.59 | G48: 2571547.59 | H48: =D48/12*Instructions!X10 -> 1692291.587 | I48: 879256.0025 | J48: 0.5195653095 | K48: =D48 -> 20307499.05
A49: Sport and recreation | D49: 0 | H49: =D49/12*Instructions!X10 -> 0 | I49: 0
A50: Public safety | D50: 4199000 | H50: =D50/12*Instructions!X10 -> 349916.6667 | I50: -349916.6667 | J50: -1 | K50: =D50 -> 4199000
A51: Housing | D51: 144745414.9 | F51: 2617860.53 | G51: 2617860.53 | H51: =D51/12*Instructions!X10 -> 12062117.91 | I51: -9444257.383 | J51: -0.7829684182 | K51: 144745414.9
A52: Health | D52: 0 | H52: =D52/12*Instructions!X10 -> 0 | I52: 0
A53: Economic and environmental services | C53: =SUM(C54:C56) -> 0 | D53: 107006000 | E53: 0 | F53: 3427080.29 | G53: 3427080.29 | H53: 8917166.667 | I53: -5490086.377 | J53: -0.6156760978 | K53: =SUM(K54:K56) -> 107006000
A54: Planning and development | D54: 38606000 | H54: =D54/12*Instructions!X10 -> 3217166.667 | I54: -3217166.667 | J54: -1 | K54: =D54 -> 38606000
A55: Road transport | D55: 68400000 | F55: 3427080.29 | G55: 3427080.29 | H55: =D55/12*Instructions!X10 -> 5700000 | I55: -2272919.71 | J55: -0.3987578439 | K55: 68400000
A56: Environmental protection | D56: 0 | H56: =D56/12*Instructions!X10 -> 0 | I56: 0
A57: Trading services | C57: =SUM(C58:C61) -> 0 | D57: 438702140 | E57: 0 | F57: 7693238.25 | G57: 7693238.25 | H57: 36558511.67 | I57: -28865273.42 | J57: -0.7895636912 | K57: =SUM(K58:K61) -> 438702140
A58: Energy sources | D58: 179000000 | H58: =D58/12*Instructions!X10 -> 14916666.67 | I58: -14916666.67 | J58: -1 | K58: =D58 -> 179000000
A59: Water management | D59: 133924500 | F59: 1826327.3 | G59: 1826327.3 | H59: =D59/12*Instructions!X10 -> 11160375 | I59: -9334047.7 | J59: -0.8363560991 | K59: 133924500
A60: Waste water management | D60: 120777640 | F60: 5737542.6 | G60: 5737542.6 | H60: =D60/12*Instructions!X10 -> 10064803.33 | I60: -4327260.733 | J60: -0.4299399193 | K60: 120777640
A61: Waste management | D61: 5000000 | F61: 129368.35 | G61: 129368.35 | H61: =D61/12*Instructions!X10 -> 416666.6667 | I61: -287298.3167 | J61: -0.68951596 | K61: 5000000
A62: Other | D62: 2800000 | H62: =D62/12*Instructions!X10 -> 233333.3333 | I62: -233333.3333 | J62: -1 | K62: 2800000
A63: Total Capital Expenditure - Functional Classification | B63: 3 | C63: =C43+C47+C53+C57+C62 -> 0 | D63: =D43+D47+D53+D57+D62 -> 768760054 | E63: 0 | F63: 16309726.66 | G63: 16309726.66 | H63: 64063337.83 | I63: -47753611.17 | J63: -0.7454124744 | K63: =K43+K47+K53+K57+K62 -> 768760054
A65: Funded by:
A66: National Government | D66: 312534640 | F66: 21994280.46 | G66: 21994280.46 | H66: =D66/12*Instructions!X10 -> 26044553.33 | I66: =G66-H66 -> -4050272.873 | J66: =IF(I66=0,"",I66/H66) -> -0.15551324 | K66: =D66 -> 312534640
A67: Provincial Government | D67: 136165414.9 | H67: =D67/12*Instructions!X10 -> 11347117.91 | I67: -11347117.91 | J67: -1 | K67: 136165414.9
A68: District Municipality | I68: 0
A69: Transfers and subsidies - capital (monetary allocations) (Nat / Prov Departm Agencies, Households, Non-profit Institutions, Private Enterprises, Public Corporatons, Higher Educ Institutions) | I69: 0
A70: Transfers recognised - capital | C70: =SUM(C66:C69) -> 0 | D70: 448700054.9 | E70: 0 | F70: 21994280.46 | G70: 21994280.46 | H70: 37391671.25 | I70: -15397390.79 | J70: -0.4117866432 | K70: =SUM(K66:K69) -> 448700054.9
A72: Borrowing | B72: 6 | D72: 200000000 | H72: =D72/12*Instructions!X10 -> 16666666.67 | I72: -16666666.67 | J72: -1 | K72: =D72 -> 200000000
A73: Internally generated funds | D73: 120059999 | F73: -5684553.8 | G73: -5684553.8 | H73: =D73/12*Instructions!X10 -> 10004999.92 | I73: -15689553.72 | J73: -1.568171299 | K73: 120059999
A74: Total Capital Funding | C74: =+C70+C72+C73 -> 0 | D74: 768760054 | E74: 0 | F74: 16309726.66 | G74: 16309726.66 | H74: 64063337.83 | I74: -47753611.17 | J74: -0.7454124744 | K74: =+K70+K72+K73 -> 768760054
A75: =head27a -> References
A76: 1. Municipalities may choose to appropriate for capital expenditure for three years or for one year (if one year appropriation projected expenditure required for yr2 and yr3).
A77: 2. Include capital component of PPP unitary payment
A78: 3. Capital expenditure by functional classification must reconcile to the total of multi-year and single year appropriations
A79: 4. Include expenditure on investment property, intangible and biological assets
A81: 6. Include finance leases and PPP capital funding component of unitary payment - total borrowing/repayments to reconcile to changes in Table SA17
A82: 7. Total Capital Funding must balance with Total Capital Expenditure
A86: check balance | C86: =C40-C74 -> 0 | D86: =D40-D74 -> 0 | E86: 0 | F86: 0 | G86: 0 | H86: 0 | K86: 0

Sheet C5C
A1: =muni& " - "&S71D& " - "&"A"& " - "&date -> KZN225 Msunduzi - Table C5 Monthly Budget Statement - Capital Expenditure (municipal vote, functional classification and funding) - A - M01 July
A2: =Vdesc -> Vote Description | B2: =head27 -> Ref | C2: =Head1 -> 2022/23 | D2: =Head2 -> Budget Year 2023/24 | L2: =Head4 -> 
A3: R thousand | C3: =Head5 -> Audited Outcome | D3: =Head6 -> Original Budget | E3: =Head7 -> Adjusted Budget | F3: =Head38 -> Monthly actual | G3: =Head39 -> YearTD actual | H3: =Head40 -> YearTD budget | I3: =Head41 -> YTD variance | J3: =Head41 -> YTD variance | K3: =Head8 -> Full Year Forecast | L3: =Head12 -> Forecast 2010/11 | M3: =Head13 -> Forecast 2011/12 | N3: =Head14 -> Forecast 2012/13 | O3: =Head15 -> Forecast 2013/14 | P3: =Head16 -> Forecast 2014/15 | Q3: =Head17 -> Forecast 2015/16 | R3: =Head18 -> Forecast 2016/17 | S3: =Head19 -> Forecast 2017/18 | T3: =Head20 -> Forecast 2018/19 | U3: =Head21 -> Forecast 2019/20 | V3: =Head22 -> Forecast 2020/21 | W3: =Head23 -> Forecast 2021/22
J4: %
A5: Capital expenditure - Municipal Vote
A6: Expenditure of multi-year capital appropriation | B6: 1
A7: ='Org structure'!A2 -> Vote 1 - City Manager | C7: =SUM(C8:C17) -> 0 | D7: =SUM(D8:D17) -> 0 | E7: 0 | F7: 0 | G7: 0 | H7: 0 | I7: =G7-H7 -> 0 | J7: =IF(I7=0,"",I7/H7) ->  | K7: 0
A8: ='Org structure'!E3 -> 1.1 - Internal Audit and Compliance | I8: 0
A9: ='Org structure'!E4 -> 1.2 - Office of the City Manager | I9: 0
A10: ='Org structure'!E5 -> 1.3 - Political Support | I10: 0
A11: ='Org structure'!E6 -> 1.4 - Strategic Planning | I11: 0
A12: ='Org structure'!E7 -> 0 | I12: 0
A13: ='Org structure'!E8 -> 0 | I13: 0
A14: ='Org structure'!E9 -> 0 | I14: 0
A15: ='Org structure'!E10 -> 0 | I15: 0
A16: ='Org structure'!E11 -> 0 | I16: 0
A17: ='Org structure'!E12 -> 0 | I17: 0
A18: ='Org structure'!A3 -> Vote 2 - City Finance | C18: =SUM(C19:C28) -> 0 | D18: =SUM(D19:D28) -> 30000000 | E18: 0 | F18: 0 | G18: 0 | H18: 2500000 | I18: -2500000 | J18: -1 | K18: 30000000
A19: ='Org structure'!E14 -> 2.1 - Asset Management | D19: 0 | H19: =D19/12*Instructions!X10 -> 0 | I19: 0
A20: ='Org structure'!E15 -> 2.2 - Budget and Treasury Management | D20: 30000000 | H20: =D20/12*Instructions!X10 -> 2500000 | I20: -2500000 | J20: -1 | K20: =D20 -> 30000000
A21: ='Org structure'!E16 -> 2.3 - Expenditure Management | D21: 0 | I21: 0
A22: ='Org structure'!E17 -> 2.4 - Revenue Management | D22: 0 | I22: 0
A23: ='Org structure'!E18 -> 2.5 - Supply Chain Management | D23: 0 | I23: 0
A24: ='Org structure'!E19 -> 0 | I24: 0
A25: ='Org structure'!E20 -> 0 | I25: 0
A26: ='Org structure'!E21 -> 0 | I26: 0
A27: ='Org structure'!E22 -> 0 | I27: 0
A28: ='Org structure'!E23 -> 0 | I28: 0
A29: ='Org structure'!A4 -> Vote 3 - Corporate Services | C29: =SUM(C30:C39) -> 0 | D29: 10000000 | E29: 0 | F29: 0 | G29: 0 | H29: 833333.3333 | I29: -833333.3333 | J29: -1 | K29: 10000000
A30: ='Org structure'!E25 -> 3.1 - Human Resources Management | D30: 0 | I30: 0
A31: ='Org structure'!E26 -> 3.2 - Information Technology | D31: 10000000 | H31: =D31/12*Instructions!X10 -> 833333.3333 | I31: -833333.3333 | J31: -1 | K31: =D31 -> 10000000
A32: ='Org structure'!E27 -> 3.3 - Legal Services | D32: 0 | I32: 0
A33: ='Org structure'!E28 -> 3.4 - Secretariat and Auxiliary Services | D33: 0 | I33: 0
A34: ='Org structure'!E29 -> 3.5 - General Manager: Corporate Service | D34: 0 | I34: 0
A35: ='Org structure'!E30 -> 0 | I35: 0
A36: ='Org structure'!E31 -> 0 | I36: 0
A37: ='Org structure'!E32 -> 0 | I37: 0
A38: ='Org structure'!E33 -> 0 | I38: 0
A39: ='Org structure'!E34 -> 0 | I39: 0
A40: ='Org structure'!A5 -> Vote 4 - Community Services and Social Equity | C40: =SUM(C41:C50) -> 0 | D40: 24886499.05 | E40: 0 | F40: 2700915.94 | G40: 2700915.94 | H40: 2073874.921 | I40: 627041.0192 | J40: 0.3023523805 | K40: 24886499.05
A41: ='Org structure'!E36 -> 4.1 - Area Based Management | D41: 0 | I41: 0
A42: ='Org structure'!E37 -> 4.2 - Public Safety, Emergency Services and Enforcement | D42: 0 | I42: 0
A43: ='Org structure'!E38 -> 4.3 - Recreation and Facilities | D43: 19886499.05 | F43: 2571547.59 | G43: 2571547.59 | H43: =D43/12*Instructions!X10 -> 1657208.254 | I43: 914339.3358 | J43: 0.5517347223 | K43: =D43 -> 19886499.05
A44: ='Org structure'!E39 -> 4.4 - Waste Management | D44: 5000000 | F44: 129368.35 | G44: 129368.35 | H44: =D44/12*Instructions!X10 -> 416666.6667 | I44: -287298.3167 | J44: -0.68951596 | K44: 5000000
A45: ='Org structure'!E40 -> 0 | I45: 0
A46: ='Org structure'!E41 -> 0 | I46: 0
A47: ='Org structure'!E42 -> 0 | I47: 0
A48: ='Org structure'!E43 -> 0 | I48: 0
A49: ='Org structure'!E44 -> 0 | I49: 0
A50: ='Org structure'!E45 -> 0 | I50: 0
A51: ='Org structure'!A6 -> Vote 5 - Infrastructure Services | C51: =SUM(C52:C61) -> 0 | D51: =SUM(D52:D61) -> 318102140 | E51: 0 | F51: 10990950.19 | G51: 10990950.19 | H51: 26508511.67 | I51: -15517561.48 | J51: -0.5853803364 | K51: 318102140
A52: ='Org structure'!E47 -> 5.1 - Project Management Office | D52: 0 | I52: 0
A53: ='Org structure'!E48 -> 5.2 - Roads and Transportation | D53: 63400000 | F53: 3427080.29 | G53: 3427080.29 | H53: =D53/12*Instructions!X10 -> 5283333.333 | I53: -1856253.043 | J53: -0.35134127 | K53: =D53 -> 63400000
A54: ='Org structure'!E49 -> 5.3 - Water and Sanitation | D54: 254702140 | F54: 7563869.9 | G54: 7563869.9 | H54: =D54/12*Instructions!X10 -> 21225178.33 | I54: -13661308.43 | J54: -0.6436369212 | K54: 254702140
A55: ='Org structure'!E50 -> 5.4 - General Manager: Infrastructure | D55: 0 | I55: 0
A56: ='Org structure'!E51 -> 0 | I56: 0
A57: ='Org structure'!E52 -> 0 | I57: 0
A58: ='Org structure'!E53 -> 0 | I58: 0
A59: ='Org structure'!E54 -> 0 | I59: 0
A60: ='Org structure'!E55 -> 0 | I60: 0
A61: ='Org structure'!E56 -> 0 | I61: 0
A62: ='Org structure'!A7 -> Vote 6 - Sustainable Development and City Enterprises | C62: =SUM(C63:C72) -> 0 | D62: =SUM(D63:D72) -> 144745414.9 | E62: 0 | F62: 2617860.53 | G62: 2617860.53 | H62: 12062117.91 | I62: -9444257.383 | J62: -0.7829684182 | K62: 144745414.9
A63: ='Org structure'!E58 -> 6.1 - City Entities | D63: 0 | I63: 0
A64: ='Org structure'!E59 -> 6.2 - Development Services | D64: 0 | I64: 0
A65: ='Org structure'!E60 -> 6.3 - Human Settlement Development | D65: 144745414.9 | F65: 2617860.53 | G65: 2617860.53 | H65: =D65/12*Instructions!X10 -> 12062117.91 | I65: -9444257.383 | J65: -0.7829684182 | K65: =D65 -> 144745414.9
A66: ='Org structure'!E61 -> 6.4 - Town Planning | D66: 0 | I66: 0
A67: ='Org structure'!E62 -> 6.5 - General Manager: Sustainable Development and City Enterprises | D67: 0 | I67: 0
A68: ='Org structure'!E63 -> 0 | I68: 0
A69: ='Org structure'!E64 -> 0 | I69: 0
A70: ='Org structure'!E65 -> 0 | I70: 0
A71: ='Org structure'!E66 -> 0 | I71: =G71-H71 -> 0 | J71: =IF(I71=0,"",I71/H71) -> 
A72: ='Org structure'!E67 -> 0 | I72: 0
A73: ='Org structure'!A8 -> Vote 7 - Electricity | C73: =SUM(C74:C83) -> 0 | D73: 175400000 | E73: 0 | F73: 0 | G73: 0 | H73: 14616666.67 | I73: -14616666.67 | J73: -1 | K73: 175400000
A74: ='Org structure'!E69 -> 7.1 Electricity planning | D74: 155400000 | H74: =D74/12*Instructions!X10 -> 12950000 | I74: -12950000 | J74: -1 | K74: =D74 -> 155400000
A75: ='Org structure'!E70 -> 7.2 Methods and Standards | D75: 0 | I75: 0
A76: ='Org structure'!E71 -> 7.3 Operations and Maintenance | D76: 0 | I76: 0
A77: ='Org structure'!E72 -> 7.4 Revenue Management | D77: 20000000 | H77: =D77/12*Instructions!X10 -> 1666666.667 | I77: -1666666.667 | J77: -1 | K77: =D77 -> 20000000
A78: ='Org structure'!E73 -> 7.5 General Manager Electricity | D78: 0 | I78: 0
A79: ='Org structure'!E74 -> 0 | I79: 0
A80: ='Org structure'!E75 -> 0 | I80: 0
A81: ='Org structure'!E76 -> 0 | I81: 0
A82: ='Org structure'!E77 -> 0 | I82: 0
A83: ='Org structure'!E78 -> 0 | I83: 0
A84: ='Org structure'!A9 -> Vote 8 - [NAME OF VOTE 8] | C84: =SUM(C85:C94) -> 0 | D84: =SUM(D85:D94) -> 0 | E84: 0 | F84: 0 | G84: 0 | H84: 0 | I84: 0 | K84: 0
A85: ='Org structure'!E80 -> 8.1 - [Name of sub-vote] | I85: 0
A86: ='Org structure'!E81 -> 0 | I86: 0
A87: ='Org structure'!E82 -> 0 | I87: 0
A88: ='Org structure'!E83 -> 0 | I88: 0
A89: ='Org structure'!E84 -> 0 | I89: 0
A90: ='Org structure'!E85 -> 0 | I90: 0
A91: ='Org structure'!E86 -> 0 | I91: 0
A92: ='Org structure'!E87 -> 0 | I92: 0
A93: ='Org structure'!E88 -> 0 | I93: 0
A94: ='Org structure'!E89 -> 0 | I94: 0
A95: ='Org structure'!A10 -> Vote 9 - [NAME OF VOTE 9] | C95: =SUM(C96:C105) -> 0 | D95: =SUM(D96:D105) -> 0 | E95: 0 | F95: 0 | G95: 0 | H95: 0 | I95: 0 | K95: 0
A96: ='Org structure'!E91 -> 9.1 - [Name of sub-vote] | I96: 0
A97: ='Org structure'!E92 -> 0 | I97: 0
A98: ='Org structure'!E93 -> 0 | I98: 0
A99: ='Org structure'!E94 -> 0 | I99: 0
A100: ='Org structure'!E95 -> 0 | I100: 0
A101: ='Org structure'!E96 -> 0 | I101: 0
A102: ='Org structure'!E97 -> 0 | I102: 0
A103: ='Org structure'!E98 -> 0 | I103: 0
A104: ='Org structure'!E99 -> 0 | I104: 0
A105: ='Org structure'!E100 -> 0 | I105: 0
A106: ='Org structure'!A11 -> Vote 10 - [NAME OF VOTE 10] | C106: =SUM(C107:C116) -> 0 | D106: =SUM(D107:D116) -> 0 | E106: 0 | F106: 0 | G106: 0 | H106: 0 | I106: 0 | K106: 0
A107: ='Org structure'!E102 -> 10.1 - [Name of sub-vote] | I107: 0
A108: ='Org structure'!E103 -> 0 | I108: 0
A109: ='Org structure'!E104 -> 0 | I109: 0
A110: ='Org structure'!E105 -> 0 | I110: 0
A111: ='Org structure'!E106 -> 0 | I111: 0
A112: ='Org structure'!E107 -> 0 | I112: 0
A113: ='Org structure'!E108 -> 0 | I113: 0
A114: ='Org structure'!E109 -> 0 | I114: 0
A115: ='Org structure'!E110 -> 0 | I115: 0
A116: ='Org structure'!E111 -> 0 | I116: 0
A117: ='Org structure'!A12 -> Vote 11 - [NAME OF VOTE 11] | C117: =SUM(C118:C127) -> 0 | D117: =SUM(D118:D127) -> 0 | E117: 0 | F117: 0 | G117: 0 | H117: 0 | I117: 0 | K117: 0
A118: ='Org structure'!E113 -> 11.1 - [Name of sub-vote] | I118: 0
A119: ='Org structure'!E114 -> 0 | I119: 0
A120: ='Org structure'!E115 -> 0 | I120: 0
A121: ='Org structure'!E116 -> 0 | I121: 0
A122: ='Org structure'!E117 -> 0 | I122: 0
A123: ='Org structure'!E118 -> 0 | I123: 0
A124: ='Org structure'!E119 -> 0 | I124: 0
A125: ='Org structure'!E120 -> 0 | I125: 0
A126: ='Org structure'!E121 -> 0 | I126: 0
A127: ='Org structure'!E122 -> 0 | I127: 0
A128: ='Org structure'!A13 -> Vote 12 - [NAME OF VOTE 12] | C128: =SUM(C129:C138) -> 0 | D128: =SUM(D129:D138) -> 0 | E128: 0 | F128: 0 | G128: 0 | H128: 0 | I128: 0 | K128: 0
A129: ='Org structure'!E124 -> 12.1 - [Name of sub-vote] | I129: 0
A130: ='Org structure'!E125 -> 0 | I130: 0
A131: ='Org structure'!E126 -> 0 | I131: 0
A132: ='Org structure'!E127 -> 0 | I132: 0
A133: ='Org structure'!E128 -> 0 | I133: 0
A134: ='Org structure'!E129 -> 0 | I134: 0
A135: ='Org structure'!E130 -> 0 | I135: =G135-H135 -> 0 | J135: =IF(I135=0,"",I135/H135) -> 
A136: ='Org structure'!E131 -> 0 | I136: 0
A137: ='Org structure'!E132 -> 0 | I137: 0
A138: ='Org structure'!E133 -> 0 | I138: 0
A139: ='Org structure'!A14 -> Vote 13 - [NAME OF VOTE 13] | C139: =SUM(C140:C149) -> 0 | D139: =SUM(D140:D149) -> 0 | E139: 0 | F139: 0 | G139: 0 | H139: 0 | I139: 0 | K139: 0
A140: ='Org structure'!E135 -> 13.1 - [Name of sub-vote] | I140: 0
A141: ='Org structure'!E136 -> 0 | I141: 0
A142: ='Org structure'!E137 -> 0 | I142: 0
A143: ='Org structure'!E138 -> 0 | I143: 0
A144: ='Org structure'!E139 -> 0 | I144: 0
A145: ='Org structure'!E140 -> 0 | I145: 0
A146: ='Org structure'!E141 -> 0 | I146: 0
A147: ='Org structure'!E142 -> 0 | I147: 0
A148: ='Org structure'!E143 -> 0 | I148: 0
A149: ='Org structure'!E144 -> 0 | I149: 0
A150: ='Org structure'!A15 -> Vote 14 - [NAME OF VOTE 14] | C150: =SUM(C151:C160) -> 0 | D150: =SUM(D151:D160) -> 0 | E150: 0 | F150: 0 | G150: 0 | H150: 0 | I150: 0 | K150: 0
A151: ='Org structure'!E146 -> 14.1 - [Name of sub-vote] | I151: 0
A152: ='Org structure'!E147 -> 0 | I152: 0
A153: ='Org structure'!E148 -> 0 | I153: 0
A154: ='Org structure'!E149 -> 0 | I154: 0
A155: ='Org structure'!E150 -> 0 | I155: 0
A156: ='Org structure'!E151 -> 0 | I156: 0
A157: ='Org structure'!E152 -> 0 | I157: 0
A158: ='Org structure'!E153 -> 0 | I158: 0
A159: ='Org structure'!E154 -> 0 | I159: 0
A160: ='Org structure'!E155 -> 0 | I160: 0
A161: ='Org structure'!A16 -> Vote 15 - [NAME OF VOTE 15] | C161: =SUM(C162:C171) -> 0 | D161: =SUM(D162:D171) -> 0 | E161: 0 | F161: 0 | G161: 0 | H161: 0 | I161: 0 | K161: 0
A162: ='Org structure'!E157 -> 15.1 - [Name of sub-vote] | I162: 0
A163: ='Org structure'!E158 -> 0 | I163: 0
A164: ='Org structure'!E159 -> 0 | I164: 0
A165: ='Org structure'!E160 -> 0 | I165: 0
A166: ='Org structure'!E161 -> 0 | I166: 0
A167: ='Org structure'!E162 -> 0 | I167: 0
A168: ='Org structure'!E163 -> 0 | I168: 0
A169: ='Org structure'!E164 -> 0 | I169: 0
A170: ='Org structure'!E165 -> 0 | I170: 0
A171: ='Org structure'!E166 -> 0 | I171: 0 | L171: =SUM(L79:L82) -> 0 | M171: 0 | N171: 0 | O171: 0 | P171: 0 | Q171: 0 | R171: 0 | S171: 0 | T171: 0 | U171: 0 | V171: 0 | W171: 0
A172: Total multi-year capital expenditure | C172: =C7+C18+C29+C40+C51+C62+C73+C84+C95+C106+C117+C128+C139+C150+C161 -> 0 | D172: =D7+D18+D29+D40+D51+D62+D73+D84+D95+D106+D117+D128+D139+D150+D161 -> 703134054 | E172: 0 | F172: 16309726.66 | G172: 16309726.66 | H172: 58594504.5 | I172: -42284777.84 | J172: -0.7216509159 | K172: 703134054
I173: 0
A174: Capital expenditure - Municipal Vote
A175: Expenditue of single-year capital appropriation | B175: 1 | I175: 0
A176: ='Org structure'!A2 -> Vote 1 - City Manager | C176: =SUM(C177:C186) -> 0 | D176: 5000000 | E176: 0 | F176: 0 | G176: 0 | H176: 416666.6667 | I176: -416666.6667 | J176: -1 | K176: 5000000
A177: ='Org structure'!E3 -> 1.1 - Internal Audit and Compliance | D177: 0 | I177: 0
A178: ='Org structure'!E4 -> 1.2 - Office of the City Manager | D178: 1000000 | H178: =D178/12*Instructions!X10 -> 83333.33333 | I178: -83333.33333 | J178: -1 | K178: =D178 -> 1000000
A179: ='Org structure'!E5 -> 1.3 - Political Support | D179: 0 | I179: 0
A180: ='Org structure'!E6 -> 1.4 - Strategic Planning | D180: 4000000 | H180: =D180/12*Instructions!X10 -> 333333.3333 | I180: -333333.3333 | J180: -1 | K180: =D180 -> 4000000
A181: ='Org structure'!E7 -> 0 | I181: 0
A182: ='Org structure'!E8 -> 0 | I182: 0
A183: ='Org structure'!E9 -> 0 | I183: 0
A184: ='Org structure'!E10 -> 0 | I184: 0
A185: ='Org structure'!E11 -> 0 | I185: 0
A186: ='Org structure'!E12 -> 0 | I186: 0
A187: ='Org structure'!A3 -> Vote 2 - City Finance | C187: =SUM(C188:C197) -> 0 | D187: =SUM(D188:D197) -> 0 | E187: =SUM(E188:E197) -> 0 | F187: 0 | G187: 0 | H187: 0 | I187: 0 | K187: 0
A188: ='Org structure'!E14 -> 2.1 - Asset Management | I188: 0
A189: ='Org structure'!E15 -> 2.2 - Budget and Treasury Management | I189: 0
A190: ='Org structure'!E16 -> 2.3 - Expenditure Management | I190: 0
A191: ='Org structure'!E17 -> 2.4 - Revenue Management | I191: 0
A192: ='Org structure'!E18 -> 2.5 - Supply Chain Management | I192: 0
A193: ='Org structure'!E19 -> 0 | I193: 0
A194: ='Org structure'!E20 -> 0 | I194: 0
A195: ='Org structure'!E21 -> 0 | I195: 0
A196: ='Org structure'!E22 -> 0 | I196: 0
A197: ='Org structure'!E23 -> 0 | I197: 0
A198: ='Org structure'!A4 -> Vote 3 - Corporate Services | C198: =SUM(C199:C208) -> 0 | D198: 10000000 | E198: 0 | F198: 0 | G198: 0 | H198: 833333.3333 | I198: -833333.3333 | J198: -1 | K198: 10000000
A199: ='Org structure'!E25 -> 3.1 - Human Resources Management | D199: 0 | I199: 0
A200: ='Org structure'!E26 -> 3.2 - Information Technology | D200: 10000000 | H200: =D200/12*Instructions!X10 -> 833333.3333 | I200: =G200-H200 -> -833333.3333 | J200: =IF(I200=0,"",I200/H200) -> -1 | K200: =D200 -> 10000000
... 145 more rows

Sheet C6-FinPos
A1: =muni& " - "&S71E& " - "&date -> KZN225 Msunduzi - Table C6 Monthly Budget Statement - Financial Position - M01 July
A2: =desc -> Description | B2: =head27 -> Ref | C2: =Head1 -> 2022/23 | D2: =Head2 -> Budget Year 2023/24
C3: =Head5 -> Audited Outcome | D3: =Head6 -> Original Budget | E3: =Head7 -> Adjusted Budget | F3: =Head39 -> YearTD actual | G3: =Head8 -> Full Year Forecast
A4: R thousands | B4: 1
A5: ASSETS
A6: Current assets
A7: Cash and cash equivalents | D7: 602410696 | F7: 6711686.32 | G7: 602410696
A8: Trade and other receivables from exchange transactions | D8: 1296255145 | F8: 2795047523 | G8: 1296255145
A9: Receivables from non-exchange transactions | D9: 664796409.8 | F9: 34162169.57 | G9: 664796409.8
A10: Current portion of non-current receivables
A11: Inventory | D11: 359494469 | F11: 411552809 | G11: 359494469
A12: VAT
A13: Other current assets | F13: 517510417.5
A14: Total current assets | C14: =SUM(C7:C13) -> 0 | D14: =SUM(D7:D13) -> 2922956720 | E14: =SUM(E7:E13) -> 0 | F14: =SUM(F7:F13) -> 3764984605 | G14: =SUM(G7:G13) -> 2922956720
A15: Non current assets
A16: Investments
A17: Investment property | D17: 974255980.8 | F17: 924805184.4 | G17: 974255980.8
A18: Property, plant and equipment | D18: 7923582911 | F18: 7457744488 | G18: 7923582911
A19: Biological assets | D19: 84450600 | F19: 571805.41 | G19: 84450600
A20: Living and non-living resources | D20: 733076.487 | G20: 733076.487
A21: Heritage assets | D21: 287700639 | G21: 287700639
A22: Intangible assets | D22: 20954448 | F22: 17087451.88 | G22: 20954448
A23: Trade and other receivables from exchange transactions | D23: 0 | G23: 0
A24: Non-current receivables from non-exchange transactions | D24: 0 | F24: 866997.37 | G24: 0
A25: Other non-current assets | D25: 0 | G25: 0
A26: Total non current assets | C26: =SUM(C16:C25) -> 0 | D26: =SUM(D16:D25) -> 9291677655 | E26: =SUM(E16:E25) -> 0 | F26: =SUM(F16:F25) -> 8401075927 | G26: =SUM(G16:G25) -> 9291677655
A27: TOTAL ASSETS | C27: =C14+C26 -> 0 | D27: =D14+D26 -> 1.221463438e+10 | E27: =E14+E26 -> 0 | F27: =F14+F26 -> 1.216606053e+10 | G27: =G14+G26 -> 1.221463438e+10
A28: LIABILITIES
A29: Current liabilities
A30: Bank overdraft
A31: Financial liabilities | D31: 83358533.7 | F31: 74270955.21 | G31: 83358533.7
A32: Consumer deposits | D32: 140009384 | F32: 143084284.9 | G32: 140009384
A33: Trade and other payables from exchange transactions | D33: 1186050665 | F33: 2417035081 | G33: 1186050665
A34: Trade and other payables from non-exchange transactions | D34: 0 | G34: 0
A35: Provision | D35: 49000000 | F35: 58244751.59 | G35: 49000000
A36: VAT | D36: 187551752.5 | G36: 187551752.5
A37: Other current liabilities
A38: Total current liabilities | C38: =SUM(C30:C37) -> 0 | D38: =SUM(D30:D37) -> 1645970335 | E38: =SUM(E30:E37) -> 0 | F38: =SUM(F30:F37) -> 2692635072 | G38: =SUM(G30:G37) -> 1645970335
A39: Non current liabilities
A40: Financial liabilities | D40: 131184437.4 | G40: 131184437.4
A41: Provision | D41: 75576254.6 | G41: 75576254.6
A42: Long term portion of trade payables | F42: 50310655.54
A43: Other non-current liabilities | D43: 648252000 | F43: 608163173 | G43: 648252000
A44: Total non current liabilities | C44: =SUM(C40:C43) -> 0 | D44: =SUM(D40:D43) -> 855012692 | E44: =SUM(E40:E43) -> 0 | F44: =SUM(F40:F43) -> 658473828.5 | G44: =SUM(G40:G43) -> 855012692
A45: TOTAL LIABILITIES | C45: =C38+C44 -> 0 | D45: =D38+D44 -> 2500983027 | E45: =E38+E44 -> 0 | F45: =F38+F44 -> 3351108901 | G45: =G38+G44 -> 2500983027
A46: NET ASSETS | B46: 2 | C46: =C27-C45 -> 0 | D46: =D27-D45 -> 9713651348 | E46: =E27-E45 -> 0 | F46: =F27-F45 -> 8814951631 | G46: =G27-G45 -> 9713651348
A47: COMMUNITY WEALTH/EQUITY
A48: Accumulated surplus/(deficit) | D48: 9501123250 | F48: 8594402386 | G48: 9501123250
A49: Reserves and funds | D49: 212528097.8 | F49: 220549245 | G49: 212528097.8
A50: Other
A51: TOTAL COMMUNITY WEALTH/EQUITY | B51: 2 | C51: =SUM(C48:C50) -> 0 | D51: =SUM(D48:D50) -> 9713651348 | E51: =SUM(E48:E50) -> 0 | F51: =SUM(F48:F50) -> 8814951631 | G51: =SUM(G48:G50) -> 9713651348
A52: =head27a -> References
A53: 1. Material variances to be explained in Table SC1
A54: 2. Net assets must balance with Total Community Wealth/Equity
A57: check balance | C57: =C46-C51 -> 0 | D57: =D46-D51 -> 0 | E57: =E46-E51 -> 0 | F57: =F46-F51 -> 0 | G57: =G46-G51 -> 0

Sheet C7-CFlow
A1: =muni& " - "&S71F& " - "&date -> KZN225 Msunduzi - Table C7 Monthly Budget Statement - Cash Flow - M01 July
A2: =desc -> Description | B2: =head27 -> Ref | C2: =Head1 -> 2022/23 | D2: =Head2 -> Budget Year 2023/24
C3: =Head5 -> Audited Outcome | D3: =Head6 -> Original Budget | E3: =Head7 -> Adjusted Budget | F3: =Head38 -> Monthly actual | G3: =Head39 -> YearTD actual | H3: =Head40 -> YearTD budget | I3: =Head41 -> YTD variance | J3: =Head41 -> YTD variance | K3: =Head8 -> Full Year Forecast
A4: R thousands | B4: 1 | J4: %
A5: CASH FLOW FROM OPERATING ACTIVITIES
A6: Receipts
A7: Property rates | D7: 1435365977 | H7: =D7/12*Instructions!X10 -> 119613831.4 | I7: =G7-H7 -> -119613831.4 | J7: =IF(I7=0,"",I7/H7) -> -1 | K7: =D7 -> 1435365977
A8: Service charges | D8: 4467999174 | H8: =D8/12*Instructions!X10 -> 372333264.5 | I8: -372333264.5 | J8: =IF(I8=0,"",I8/H8) -> -1 | K8: =D8 -> 4467999174
A9: Other revenue | D9: 1106865000 | H9: =D9/12*Instructions!X10 -> 92238750.04 | I9: -92238750.04 | J9: =IF(I9=0,"",I9/H9) -> -1 | K9: 1106865000
A10: Transfers and Subsidies - Operational | D10: 834106196 | H10: =D10/12*Instructions!X10 -> 69508849.67 | I10: -69508849.67 | J10: =IF(I10=0,"",I10/H10) -> -1 | K10: 834106196
A11: Transfers and Subsidies - Capital | D11: 452578009 | H11: =D11/12*Instructions!X10 -> 37714834.08 | I11: -37714834.08 | J11: =IF(I11=0,"",I11/H11) -> -1 | K11: 452578009
A12: Interest | D12: 18052025 | H12: =D12/12*Instructions!X10 -> 1504335.417 | I12: -1504335.417 | J12: -1 | K12: 18052025
A13: Dividends | D13: 0 | H13: =D13/12*Instructions!X10 -> 0 | I13: 0
A14: Payments
A15: Suppliers and employees | D15: -7277163805 | H15: =D15/12*Instructions!X10 -> -606430317.1 | I15: =H15-G15 -> -606430317.1 | J15: 1 | K15: =D15 -> -7277163805
A16: Interest | D16: -40400878 | H16: =D16/12*Instructions!X10 -> -3366739.833 | I16: =H16-G16 -> -3366739.833 | J16: 1 | K16: -40400878
A17: Transfers and Subsidies | D17: -51023536 | H17: =D17/12*Instructions!X10 -> -4251961.333 | I17: =H17-G17 -> -4251961.333 | J17: 1 | K17: -51023536
A18: NET CASH FROM/(USED) OPERATING ACTIVITIES | C18: =SUM(C7:C13)+SUM(C15:C17) -> 0 | D18: 946378162.4 | E18: 0 | F18: 0 | G18: 0 | H18: 78864846.87 | I18: =H18-G18 -> 78864846.87 | J18: 1 | K18: =SUM(K7:K13)+SUM(K15:K17) -> 946378162.4
A20: CASH FLOWS FROM INVESTING ACTIVITIES
A21: Receipts
A22: Proceeds on disposal of PPE | I22: =G22-H22 -> 0 | J22: =IF(I22=0,"",I22/H22) -> 
A24: Decrease (increase) in non-current receivables | I24: =G24-H24 -> 0
A25: Decrease (increase) in non-current investments | I25: =G25-H25 -> 0
A26: Payments
A27: Capital assets | D27: -768501055 | H27: =D27/12*Instructions!X10 -> -64041754.58 | I27: =H27-G27 -> -64041754.58 | J27: 1 | K27: =D27 -> -768501055
A28: NET CASH FROM/(USED) INVESTING ACTIVITIES | C28: =SUM(C22:C25)+C27 -> 0 | D28: =SUM(D22:D25)+D27 -> -768501055 | E28: 0 | F28: 0 | G28: 0 | H28: -64041754.58 | I28: =H28-G28 -> -64041754.58 | J28: 1 | K28: =SUM(K22:K25)+K27 -> -768501055
A30: CASH FLOWS FROM FINANCING ACTIVITIES
A31: Receipts
A32: Short term loans | I32: =G32-H32 -> 0 | J32: =IF(I32=0,"",I32/H32) -> 
A33: Borrowing long term/refinancing | D33: 200000000 | H33: =D33/12*Instructions!X10 -> 16666666.67 | I33: =G33-H33 -> -16666666.67 | J33: -1 | K33: =D33 -> 200000000
A34: Increase (decrease) in consumer deposits | I34: =G34-H34 -> 0
A35: Payments
A36: Repayment of borrowing | D36: -23000000 | H36: =D36/12*Instructions!X10 -> -1916666.667 | I36: =H36-G36 -> -1916666.667 | J36: 1 | K36: =D36 -> -23000000
A37: NET CASH FROM/(USED) FINANCING ACTIVITIES | C37: =SUM(C32:C34)+C36 -> 0 | D37: 177000000 | E37: 0 | F37: 0 | G37: 0 | H37: 14750000 | I37: =H37-G37 -> 14750000 | J37: 1 | K37: =SUM(K32:K34)+K36 -> 177000000
A39: NET INCREASE/ (DECREASE) IN CASH HELD | C39: =C18+C28+C37 -> 0 | D39: 354877107.4 | E39: 0 | F39: 0 | G39: 0 | H39: 29573092.29 | K39: =K18+K28+K37 -> 354877107.4
A40: Cash/cash equivalents at beginning: | D40: 412002857.3 | H40: =IF(E40=0, D40, E40) -> 412002857.3 | K40: =G40 -> 0
A41: Cash/cash equivalents at month/year end: | C41: =C39+C40 -> 0 | D41: =D39+D40 -> 766879964.7 | E41: =E39+E40 -> 0 | G41: =G39+G40 -> 0 | H41: =H39+H40 -> 441575949.6 | K41: =K39+K40 -> 354877107.4
A42: References
A43: 1. Material variances to be explained in Table SC1

Sheet SC1
A1: =muni& " - "&S71G& " - "&date -> KZN225 Msunduzi - Supporting Table SC1 Material variance explanations - M01 July
A2: =head27 -> Ref | B2: =desc -> Description
C3: Variance | D3: Reasons for material deviations | E3: Remedial or corrective steps/remarks
B4: R thousands
A5: 1 | B5: ='C4-FinPerf RE'!A5 -> Revenue
B6: Agency services | C6: 3.08539386 | D6: Actual higher than the projected revenue | E6: No remedial action is required
B7: Interest earned from Receivables | C7: 0.4454998858 | D7: Actual higher than the projected revenue | E7: No remedial action is required
B8: Interest from Current and Non Current Assets | C8: -1 | D8: Rental lower than intially budgeted, hence interest is lower | E8: To be adjusted downwards during the adjustment budget
B9: Rental from Fixed Assets | C9: -0.5546898764 | D9: Projections higher than the actual revenue | E9: To be adjusted downwards during the adjustment budget
B10: Licence and permits | C10: -0.4218721755 | D10: Projections higher than the actual revenue | E10: To be adjusted downwards during the adjustment budget
B11: Operational Revenue | C11: -0.7786878079 | D11: Projections higher than the actual revenue | E11: To be adjusted downwards during the adjustment budget
B12: Fines, penalties and forfeits | C12: -0.9851371439 | D12: Projections higher than the actual revenue | E12: To be adjusted downwards during the adjustment budget
B13: Transfers and subsidies - Operational | C13: 3.590654629 | D13: Projections higher than the actual revenue | E13: To be adjusted downwards during the adjustment budget
B14: Interest | C14: -0.5846246811 | D14: Projections higher than the actual revenue | E14: To be adjusted downwards during the adjustment budget
A19: 2 | B19: ='C4-FinPerf RE'!A34 -> Expenditure By Type
B20: Employee related costs | C20: -0.1682623778 | D20: Projections higher than the actual expenditure. | E20: Vacant posts will be filled during the year
B21: Remuneration of councillors | C21: -0.257703504 | D21: Projections higher than the actual expenditure. | E21: Vacant posts for councillors will be filled during the year
B22: Bulk purchases - electricity | C22: 0.372011626 | D22: Actual higher than the projected revenue | E22: This will self correct during the year
B23: Debt impairment | C23: -0.9798138156 | D23: Projections higher than the actual expenditure. | E23: This will self correct during the year
B24: Depreciation and amortisation | C24: -0.2279190515 | D24: Projections higher than the actual expenditure. | E24: This will self correct during the year
B25: Interest | C25: -0.6646494539 | D25: Projections higher than the actual expenditure. | E25: This will self correct during the year
B26: Contracted services | C26: -0.7382534769 | D26: Projections higher than the actual expenditure. | E26: This will self correct during the year
B27: Transfers and subsidies | C27: -0.4497059785 | D27: Projections higher than the actual expenditure. | E27: This will self correct during the year
B28: Operational costs | C28: 0.1980180733 | D28: Actual higher than the projected revenue | E28: This will self correct during the year
A30: 3 | B30: =RIGHT('C5-Capex'!A40,19) -> Capital Expenditure
B31: Total Capital Funding | C31: -0.7454124744 | D31: Projections higher than the actual expenditure. | E31: This will self correct during the year
A35: 4 | B35: Financial Position
A40: 5 | B40: Cash Flow
A45: 6 | B45: Measureable performance
A50: 7 | B50: Municipal Entities
A56: =head27a -> References
A57: 1. Revenue for each source, vote and standard classification
A58: 2. Expenditure for each type, vote and standard classification
A59: 3. Capital expenditure for each vote and standard classification
A60: 4. Explain any material variances between the annual budget and the expected financial position based on current trends
A61: 5. Cash receipts by source and cash payments by type where not explained under revenue and expenditure
A62: 6. For Sept, Dec, Mar and Jun statements explain any material variances in achievement of measurable performance objectives

Sheet SC2
A1: =muni& " - "&S71H& " - "&Head57 -> KZN225 Msunduzi - Supporting Table SC2 Monthly Budget Statement - performance indicators - M01 July
A2: Description of financial indicator | B2: Basis of calculation | C2: =head27 -> Ref | D2: =Head1 -> 2022/23 | E2: =Head2 -> Budget Year 2023/24
D3: =Head5 -> Audited Outcome | E3: =Head6 -> Original Budget | F3: =Head7 -> Adjusted Budget | G3: =Head39 -> YearTD actual | H3: =Head8 -> Full Year Forecast
A5: Borrowing Management
A7: Capital Charges to Operating Expenditure | B7: Interest & principal paid/Operating Expenditure | D7: =IF(ISERROR((D42-D43)/D45),0,((D42-D43)/D45)) -> 0 | E7: =IF(ISERROR((E42+E44)/E45),0,((E42+E44)/E45)) -> 0.06504473473 | F7: =IF(ISERROR((F42+F44)/F45),0,((F42+F44)/F45)) -> 0 | G7: =IF(ISERROR((G42+G44)/G45),0,((G42+G44)/G45)) -> 0.001995134745 | H7: =IF(ISERROR((H42+H44)/H45),0,((H42+H44)/H45)) -> 0.01338068025
A8: Borrowed funding of 'own' capital expenditure | B8: Borrowings/Capital expenditure excl. transfers and grants | D8: =IF(ISERROR(D47/D46),0,(D47/D46)) -> 0 | E8: =IF(ISERROR(E47/E46),0,(E47/E46)) -> 0.2601591992 | F8: =IF(ISERROR(F47/F46),0,(F47/F46)) -> 0 | G8: =IF(ISERROR(G47/G46),0,(G47/G46)) -> 0 | H8: =IF(ISERROR(H47/H46),0,(H47/H46)) -> 12.26262121
A9: Safety of Capital
A10: Debt to Equity | B10: Loans, Accounts Payable, Overdraft & Tax Provision/ Funds & Reserves | D10: =IF(ISERROR(D48/D49),0,(D48/D49)) -> 0 | E10: =IF(ISERROR(E48/E49),0,(E48/E49)) -> 0.2109243541 | F10: =IF(ISERROR(F48/F49),0,(F48/F49)) -> 0 | G10: =IF(ISERROR(G48/G49),0,(G48/G49)) -> 0.351614999 | H10: =IF(ISERROR(H48/H49),0,(H48/H49)) -> 0.2109243541
A11: Gearing | B11: Long Term Borrowing/ Funds & Reserves | D11: =IF(ISERROR(D51/D50),0,(D51/D50)) -> 0 | E11: =IF(ISERROR(E51/E50),0,(E51/E50)) -> 0 | F11: =IF(ISERROR(F51/F50),0,(F51/F50)) -> 0 | G11: =IF(ISERROR(G51/G50),0,(G51/G50)) -> 0 | H11: =IF(ISERROR(H51/H50),0,(H51/H50)) -> 0
A12: Liquidity
A13: Current Ratio | B13: Current assets/current liabilities | C13: 1 | D13: =IF(ISERROR(D52/D53),0,(D52/D53)) -> 0 | E13: =IF(ISERROR(E52/E53),0,(E52/E53)) -> 1.77582588 | F13: =IF(ISERROR(F52/F53),0,(F52/F53)) -> 0 | G13: =IF(ISERROR(G52/G53),0,(G52/G53)) -> 1.398252828 | H13: =IF(ISERROR(H52/H53),0,(H52/H53)) -> 1.77582588
A14: Liquidity Ratio | B14: Monetary Assets/Current Liabilities | D14: =IF(ISERROR(D54/D53),0,(D54/D53)) -> 0 | E14: =IF(ISERROR(E54/E53),0,(E54/E53)) -> 0.365991223 | F14: =IF(ISERROR(F54/F53),0,(F54/F53)) -> 0 | G14: =IF(ISERROR(G54/G53),0,(G54/G53)) -> 0.002492608965 | H14: =IF(ISERROR(H54/H53),0,(H54/H53)) -> 0.365991223
A15: Revenue Management
A16: Annual Debtors Collection Rate (Payment Level %) | B16: Last 12 Mths Receipts/ Last 12 Mths Billing
A17: Outstanding Debtors to Revenue | B17: Total Outstanding Debtors to Annual Revenue | D17: =IF(ISERROR(D59/D55),0,(D59/D55)) -> 0 | E17: =IF(ISERROR(E59/E55),0,(E59/E55)) -> 0 | F17: =IF(ISERROR(F59/F55),0,(F59/F55)) -> 0 | G17: =IF(ISERROR(G59/G55),0,(G59/G55)) -> 0 | H17: =IF(ISERROR(H59/H55),0,(H59/H55)) -> 0
A18: Longstanding Debtors Recovered | B18: Debtors > 12 Mths Recovered/Total Debtors > 12 Months Old | D18: =IF(ISERROR(D64/D63),0,(D64/D63)) -> 0 | E18: =IF(ISERROR(E64/E63),0,(E64/E63)) -> 0 | F18: =IF(ISERROR(F64/F63),0,(F64/F63)) -> 0 | G18: =IF(ISERROR(G64/G63),0,(G64/G63)) -> 0 | H18: =IF(ISERROR(H64/H63),0,(H64/H63)) -> 0
A19: Creditors Management
A20: Creditors System Efficiency | B20: % of Creditors Paid Within Terms (within MFMA s 65(e))
A21: Funding of Provisions
A22: Percentage Of Provisions Not Funded | B22: Unfunded Provisions/Total Provisions
A23: Other Indicators
A24: Electricity Distribution Losses | B24: % Volume (units purchased and generated less units sold)/units purchased and generated | C24: 2
A25: Water Distribution Losses | B25: % Volume (units purchased and own source less units sold)/Total units purchased and own source | C25: 2
A26: Employee costs | B26: Employee costs/Total Revenue - capital revenue | D26: =IF(ISERROR(D40/D55),0,(D40/D55)) -> 0 | E26: =IF(ISERROR(E40/E55),0,(E40/E55)) -> 0.2193412856 | F26: =IF(ISERROR(F40/F55),0,(F40/F55)) -> 0 | G26: =IF(ISERROR(G40/G55),0,(G40/G55)) -> 0.1381168632 | H26: =IF(ISERROR(H40/H55),0,(H40/H55)) -> 0.2193412856
A27: Repairs & Maintenance | B27: R&M/Total Revenue - capital revenue | D27: =IF(ISERROR(D41/D55),0,(D41/D55)) -> 0 | E27: =IF(ISERROR(E41/E55),0,(E41/E55)) -> 0.07059546983 | F27: =IF(ISERROR(F41/F55),0,(F41/F55)) -> 0 | G27: =IF(ISERROR(G41/G55),0,(G41/G55)) -> 0.005185709383 | H27: =IF(ISERROR(H41/H55),0,(H41/H55)) -> 0.07059546983
A28: Interest & Depreciation | B28: I&D/Total Revenue - capital revenue | D28: =IF(ISERROR((D42+D44)/D55),0,((D42+D44)/D55)) -> 0 | E28: =IF(ISERROR((E42+E44)/E55),0,((E42+E44)/E55)) -> 0.06171648557 | F28: =IF(ISERROR((F42+F44)/F55),0,((F42+F44)/F55)) -> 0 | G28: =IF(ISERROR((G42+G44)/G55),0,((G42+G44)/G55)) -> 0.001263091903 | H28: =IF(ISERROR((H42+H44)/H55),0,((H42+H44)/H55)) -> 0.01269600934
A29: IDP regulation financial viability indicators
A30: i. Debt coverage | B30: (Total Operating Revenue - Operating Grants)/Debt service payments due within financial year)
A31: ii. O/S Service Debtors to Revenue | B31: Total outstanding service debtors/annual revenue received for services
A32: iii. Cost coverage | B32: (Available cash + Investments)/monthly fixed operational expenditure
A33: References
A34: 1. Consumer debtors > 12 months old are excluded from current assets.
A35: 2. Material variances to be explained.
A37: Calculations
A38: ='C6-FinPos'!A40 -> Financial liabilities | D38: ='C6-FinPos'!C40 -> 0 | E38: ='C6-FinPos'!D40 -> 131184437.4 | F38: ='C6-FinPos'!E40 -> 0 | G38: ='C6-FinPos'!F40 -> 0 | H38: 0
A39: Total Assets | D39: ='C6-FinPos'!C27 -> 0 | E39: ='C6-FinPos'!D27 -> 1.221463438e+10 | F39: ='C6-FinPos'!E27 -> 0 | G39: ='C6-FinPos'!F27 -> 1.216606053e+10 | H39: ='C6-FinPos'!G27 -> 1.221463438e+10
A40: ='C4-FinPerf RE'!A35 -> Employee related costs | D40: ='C4-FinPerf RE'!C35 -> 0 | E40: ='C4-FinPerf RE'!D35 -> 1781210508 | F40: ='C4-FinPerf RE'!E35 -> 0 | G40: ='C4-FinPerf RE'!G35 -> 123458316 | H40: ='C4-FinPerf RE'!K35 -> 1781210508
A41: =A27 -> Repairs & Maintenance | D41: =+SC13c!C173 -> 0 | E41: =+SC13c!D173 -> 573286476.2 | F41: =+SC13c!E173 -> 0 | G41: =+SC13c!G173 -> 4635342.37 | H41: =+SC13c!K173 -> 573286476.2
A42: Interest (finance charges) | D42: ='C4-FinPerf RE'!C41 -> 0 | E42: ='C4-FinPerf RE'!D41 -> 40400879.72 | F42: ='C4-FinPerf RE'!E41 -> 0 | G42: ='C4-FinPerf RE'!G41 -> 1129038.09 | H42: ='C4-FinPerf RE'!K41 -> 40400879.72
A43: Principal paid | D43: =-'C7-CFlow'!C36 -> 0 | E43: =-'C7-CFlow'!D36 -> 23000000 | F43: =-'C7-CFlow'!E36 -> 0 | G43: =-'C7-CFlow'!G36 -> 0 | H43: =-'C7-CFlow'!K36 -> 23000000
A44: Depreciation | D44: ='C4-FinPerf RE'!C40 -> 0 | E44: ='C4-FinPerf RE'!D40 -> 460781797 | F44: ='C4-FinPerf RE'!E40 -> 0 | H44: ='C4-FinPerf RE'!K36 -> 62699934.99
A45: Operating expenditure | D45: ='C4-FinPerf RE'!C48 -> 0 | E45: ='C4-FinPerf RE'!D48 -> 7705199795 | F45: ='C4-FinPerf RE'!E48 -> 0 | G45: ='C4-FinPerf RE'!G48 -> 565895658.4 | H45: ='C4-FinPerf RE'!K48 -> 7705199795
A46: ='C5-Capex'!A40 -> Total Capital Expenditure | D46: ='C5-Capex'!C63 -> 0 | E46: ='C5-Capex'!D63 -> 768760054 | F46: ='C5-Capex'!E63 -> 0 | G46: ='C5-Capex'!F63 -> 16309726.66 | H46: ='C5-Capex'!G63 -> 16309726.66
A47: Borrowed funding for capital | D47: ='C5-Capex'!C72 -> 0 | E47: ='C5-Capex'!D72 -> 200000000 | F47: ='C5-Capex'!E72 -> 0 | G47: ='C5-Capex'!G72 -> 0 | H47: ='C5-Capex'!K72 -> 200000000
A48: Debt | D48: ='C6-FinPos'!C30+'C6-FinPos'!C31+'C6-FinPos'!C33+'C6-FinPos'!C34+'C6-FinPos'!C40+'C6-FinPos'!C43 -> 0 | E48: ='C6-FinPos'!D30+'C6-FinPos'!D31+'C6-FinPos'!D33+'C6-FinPos'!D34+'C6-FinPos'!D40+'C6-FinPos'!D43 -> 2048845636 | F48: ='C6-FinPos'!E30+'C6-FinPos'!E31+'C6-FinPos'!E33+'C6-FinPos'!E34+'C6-FinPos'!E40+'C6-FinPos'!E43 -> 0 | G48: ='C6-FinPos'!F30+'C6-FinPos'!F31+'C6-FinPos'!F33+'C6-FinPos'!F34+'C6-FinPos'!F40+'C6-FinPos'!F43 -> 3099469209 | H48: ='C6-FinPos'!G30+'C6-FinPos'!G31+'C6-FinPos'!G33+'C6-FinPos'!G34+'C6-FinPos'!G40+'C6-FinPos'!G43 -> 2048845636
A49: Equity | D49: ='C6-FinPos'!C51 -> 0 | E49: ='C6-FinPos'!D51 -> 9713651348 | F49: ='C6-FinPos'!E51 -> 0 | G49: ='C6-FinPos'!F51 -> 8814951631 | H49: ='C6-FinPos'!G51 -> 9713651348
A50: ='C6-FinPos'!A49 -> Reserves and funds | D50: ='C6-FinPos'!C50 -> 0 | E50: ='C6-FinPos'!D50 -> 0 | F50: ='C6-FinPos'!E50 -> 0 | G50: ='C6-FinPos'!F50 -> 0 | H50: ='C6-FinPos'!G50 -> 0
A51: Borrowing | D51: ='C6-FinPos'!C40 -> 0 | E51: ='C6-FinPos'!D40 -> 131184437.4 | F51: ='C6-FinPos'!E40 -> 0 | G51: ='C6-FinPos'!F40 -> 0 | H51: ='C6-FinPos'!G40 -> 131184437.4
A52: ='C6-FinPos'!A6 -> Current assets | D52: ='C6-FinPos'!C14 -> 0 | E52: ='C6-FinPos'!D14 -> 2922956720 | F52: ='C6-FinPos'!E14 -> 0 | G52: ='C6-FinPos'!F14 -> 3764984605 | H52: ='C6-FinPos'!G14 -> 2922956720
A53: ='C6-FinPos'!A29 -> Current liabilities | D53: ='C6-FinPos'!C38 -> 0 | E53: ='C6-FinPos'!D38 -> 1645970335 | F53: ='C6-FinPos'!E38 -> 0 | G53: ='C6-FinPos'!F38 -> 2692635072 | H53: ='C6-FinPos'!G38 -> 1645970335
A54: Monetary assets | D54: ='C6-FinPos'!C7 -> 0 | E54: ='C6-FinPos'!D7 -> 602410696 | F54: ='C6-FinPos'!E7 -> 0 | G54: ='C6-FinPos'!F7 -> 6711686.32 | H54: ='C6-FinPos'!G7 -> 602410696
A55: ='C4-FinPerf RE'!A33 -> Total Revenue (excluding capital transfers and contributions) | D55: ='C4-FinPerf RE'!C33 -> 0 | E55: ='C4-FinPerf RE'!D33 -> 8120726125 | F55: ='C4-FinPerf RE'!E33 -> 0 | G55: ='C4-FinPerf RE'!G33 -> 893868519.7 | H55: ='C4-FinPerf RE'!K33 -> 8120726125
A56: ='C4-FinPerf RE'!A26 -> Transfers and subsidies - Operational | D56: ='C4-FinPerf RE'!C26 -> 0 | E56: ='C4-FinPerf RE'!D28 -> 0 | F56: ='C4-FinPerf RE'!E28 -> 0 | G56: ='C4-FinPerf RE'!G28 -> 0 | H56: ='C4-FinPerf RE'!K28 -> 0
A57: ='C4-FinPerf RE'!A50 -> Transfers and subsidies - capital (monetary allocations) | D57: ='C4-FinPerf RE'!C50 -> 0 | E57: ='C4-FinPerf RE'!D50 -> 448700054.9 | F57: ='C4-FinPerf RE'!E50 -> 0 | G57: ='C4-FinPerf RE'!G50 -> 25211388.71 | H57: ='C4-FinPerf RE'!K50 -> 448700054.9
A58: Debt service payments | D58: ='C7-CFlow'!C12+'C7-CFlow'!C36 -> 0 | E58: ='C7-CFlow'!D12+'C7-CFlow'!D36 -> -4947975 | F58: ='C7-CFlow'!E12+'C7-CFlow'!E36 -> 0 | G58: ='C7-CFlow'!G16+'C7-CFlow'!G36 -> 0 | H58: ='C7-CFlow'!K16+'C7-CFlow'!K36 -> -63400878
A59: Outstanding debtors (receivables) | D59: ='C6-FinPos'!C8+'C6-FinPos'!C9+'C6-FinPos'!C10+'C6-FinPos'!C13+'C6-FinPos'!C23+'C6-FinPos'!C24 -> 0 | E59: 0 | F59: 0 | G59: 0 | H59: 0
A60: Annual services revenue | D60: ='C4-FinPerf RE'!C7+'C4-FinPerf RE'!C8+'C4-FinPerf RE'!C9+'C4-FinPerf RE'!C10+'C4-FinPerf RE'!C22 -> 0 | E60: ='C4-FinPerf RE'!D7+'C4-FinPerf RE'!D8+'C4-FinPerf RE'!D9+'C4-FinPerf RE'!D10+'C4-FinPerf RE'!D22 -> 6662616316 | F60: ='C4-FinPerf RE'!E7+'C4-FinPerf RE'!E8+'C4-FinPerf RE'!E9+'C4-FinPerf RE'!E10+'C4-FinPerf RE'!E22 -> 0 | G60: ='C4-FinPerf RE'!F7+'C4-FinPerf RE'!F8+'C4-FinPerf RE'!F9+'C4-FinPerf RE'!F10+'C4-FinPerf RE'!F22 -> 539090849.5 | H60: ='C4-FinPerf RE'!G7+'C4-FinPerf RE'!G8+'C4-FinPerf RE'!G9+'C4-FinPerf RE'!G10+'C4-FinPerf RE'!G22 -> 539090849.5
A61: Cash + investments | B61: Including LT investments | D61: ='C6-FinPos'!C7+'C6-FinPos'!C16-'C6-FinPos'!C30 -> 0 | E61: ='C6-FinPos'!D7+'C6-FinPos'!D16-'C6-FinPos'!D30 -> 602410696 | F61: ='C6-FinPos'!E7+'C6-FinPos'!E16-'C6-FinPos'!E30 -> 0 | G61: ='C6-FinPos'!F7+'C6-FinPos'!F16-'C6-FinPos'!F30 -> 6711686.32 | H61: ='C6-FinPos'!G7+'C6-FinPos'!G16-'C6-FinPos'!G30 -> 602410696
A62: Fixed operational expend. (monthly)
A63: Longstanding debtors outstanding | D63: ='C6-FinPos'!C23+'C6-FinPos'!C24 -> 0 | E63: ='C6-FinPos'!D23+'C6-FinPos'!D24 -> 0 | F63: ='C6-FinPos'!E23+'C6-FinPos'!E24 -> 0 | G63: ='C6-FinPos'!F23+'C6-FinPos'!F24 -> 866997.37 | H63: ='C6-FinPos'!G23+'C6-FinPos'!G24 -> 0
A64: Longstanding debtors recovered
A65: Attorney collections

Sheet SC3
A1: =muni& " - "&S71I& " - "&Head57 -> KZN225 Msunduzi - Supporting Table SC3 Monthly Budget Statement - aged debtors - M01 July
A2: =desc -> Description | C2: =Head2 -> Budget Year 2023/24
A3: R thousands | B3: NT Code | C3: 0-30 Days | D3: 31-60 Days | E3: 61-90 Days | F3: 91-120 Days | G3: 121-150 Dys | H3: 151-180 Dys | I3: 181 Dys-1 Yr | J3: Over 1Yr | K3: Total | L3: Total over 90 days | M3: Actual Bad Debts Written Off against Debtors | N3: Impairment - Bad Debts i.t.o Council Policy
A4: Debtors Age Analysis By Income Source
A5: Trade and Other Receivables from Exchange Transactions - Water | B5: 1200 | C5: 123042922.9 | D5: 38637461.78 | E5: 56619404.43 | F5: 37882309.19 | G5: 42040303.5 | H5: 31138304.31 | I5: 351041787 | J5: 1811621997 | K5: =SUM(C5:J5) -> 2492024490 | L5: =SUM(F5:J5) -> 2273724701 | N5: 1459562621
A6: Trade and Other Receivables from Exchange Transactions - Electricity | B6: 1300 | C6: 272165120.8 | D6: 26692941.44 | E6: 21326944.8 | F6: 17034205.37 | G6: 18977515.93 | H6: 15610825.69 | I6: 72923363.75 | J6: 199164654.3 | K6: =SUM(C6:J6) -> 643895572.1 | L6: =SUM(F6:J6) -> 323710565.1 | N6: 127927804.5
A7: Receivables from Non-exchange Transactions - Property Rates | B7: 1400 | C7: 146786423.2 | D7: 26371999.08 | E7: 26224056.73 | F7: 21898424.5 | G7: 21666837.18 | H7: 20007462.61 | I7: 131574695 | J7: 764566536.6 | K7: =SUM(C7:J7) -> 1159096435 | L7: 959713955.9 | N7: 581338429.6
A8: Receivables from Exchange Transactions - Waste Water Management | B8: 1500 | C8: 30319006.8 | D8: 6158194.69 | E8: 6293291.82 | F8: 5773463.07 | G8: 5642733.23 | H8: 5598850.9 | I8: 31232215.96 | J8: 279879931.5 | K8: 370897688 | L8: 328127194.7 | N8: 231140759
A9: Receivables from Exchange Transactions - Waste Management | B9: 1600 | C9: 14249979.27 | D9: 3448224.64 | E9: 3211070.63 | F9: 3239909.23 | G9: 3299434.17 | H9: 2961620.05 | I9: 16641884.98 | J9: 156004339.8 | K9: 203056462.8 | L9: =SUM(F9:J9) -> 182147188.2 | N9: 128929900.7
A10: Receivables from Exchange Transactions - Property Rental Debtors | B10: 1700 | C10: 2547973.68 | D10: 2008478.47 | E10: 691283.48 | F10: 747680.49 | G10: 602183.73 | H10: 752811.05 | I10: 3428425.93 | J10: 46560007.68 | K10: 57338844.51 | L10: =SUM(F10:J10) -> 52091108.88 | N10: 38718933.75
A11: Interest on Arrear Debtor Accounts | B11: 1810 | C11: 45856300.96 | D11: 23212767.34 | E11: 23649446.01 | F11: 21059197.53 | G11: 22957914.59 | H11: 22392931.96 | I11: 120601270.8 | J11: 865493617.2 | K11: 1145223446 | L11: 1052504932 | N11: 673080446.6
A12: Recoverable unauthorised, irregular, fruitless and wasteful expenditure | B12: 1820 | K12: 0 | L12: 0
A13: Other | B13: 1900 | C13: 5410821.33 | D13: 284320.79 | E13: 72808.41 | F13: 381306.38 | G13: 410892.59 | H13: 66897.37 | I13: 481597.88 | J13: 177884663.8 | K13: 184993308.5 | L13: =SUM(F13:J13) -> 179225358 | N13: 175465722.9
A14: Total By Income Source | B14: 2000 | C14: =SUM(C5:C13) -> 640378549 | D14: 126814388.2 | E14: 138088306.3 | F14: 108016495.8 | G14: 115597814.9 | H14: 98529703.94 | I14: 727925241.2 | J14: 4301175748 | K14: 6256526248 | L14: =SUM(L5:L13) -> 5351245004 | M14: 0 | N14: 3416164618
A15: =Head1&" - totals only" -> 2022/23 - totals only | C15: 591669444 | D15: 142264476.7 | E15: 107457283.3 | F15: 97865773.83 | G15: 97655443.3 | H15: 95826535.31 | I15: 533449257.6 | J15: 3838539717 | K15: =SUM(C15:J15) -> 5504727931 | L15: =SUM(F15:J15) -> 4663336727 | N15: 2969518366
A16: Debtors Age Analysis By Customer Group
A17: Organs of State | B17: 2200 | C17: 72636439.49 | D17: 5554776.14 | E17: 5328278.94 | F17: 4247790.17 | G17: 3837281.52 | H17: 3432544.73 | I17: 20579097.68 | J17: 87702656.15 | K17: =SUM(C17:J17) -> 203318864.8 | L17: =SUM(F17:J17) -> 119799370.2 | N17: 69520641.63
A18: Commercial | B18: 2300 | C18: 320141963.2 | D18: 22482768.84 | E18: 21879293.35 | F18: 18701209.92 | G18: 20947949.09 | H18: 18604521.66 | I18: 91223386.79 | J18: 380082228.2 | K18: =SUM(C18:J18) -> 894063321.1 | L18: =SUM(F18:J18) -> 529559295.7 | N18: 272893797.1
A19: Households | B19: 2400 | C19: 245841958.2 | D19: 94232749.43 | E19: 106723795.9 | F19: 81399852.11 | G19: 87098093.33 | H19: 72828887.68 | I19: 594589654.2 | J19: 3638068906 | K19: =SUM(C19:J19) -> 4920783897 | L19: =SUM(F19:J19) -> 4473985393 | N19: 2911971119
A20: Other | B20: 2500 | C20: 1758188.15 | D20: 4544093.82 | E20: 4156938.14 | F20: 3667643.56 | G20: 3714490.98 | H20: 3663749.87 | I20: 21533102.56 | J20: 195321958.1 | K20: =SUM(C20:J20) -> 238360165.1 | L20: =SUM(F20:J20) -> 227900945 | N20: 161779060.1
A21: Total By Customer Group | B21: 2600 | C21: =SUM(C17:C20) -> 640378549 | D21: 126814388.2 | E21: 138088306.3 | F21: 108016495.8 | G21: 115597814.9 | H21: 98529703.94 | I21: 727925241.2 | J21: =SUM(J17:J20) -> 4301175748 | K21: =SUM(K17:K20) -> 6256526248 | L21: =SUM(L17:L20) -> 5351245004 | M21: =SUM(M17:M20) -> 0 | N21: =SUM(N17:N20) -> 3416164618
A22: Notes
A23: Material increases in value of debtors' categories compared to previous month to be explained
A24: Bad debts = amounts actually written off in the month
A25: Total by Income Source must reconcile with Total by Customer Group
C26: =C14-C21 -> 0 | D26: =D14-D21 -> 0 | E26: =E14-E21 -> 0 | F26: 0 | G26: 0 | H26: 0 | I26: 0 | J26: =J14-J21 -> 0 | K26: 0
C27: =IF(C26=0,"","MUST AGREE") ->  | D27: =IF(D26=0,"","MUST AGREE") -> 

Sheet SC4
A1: =muni& " - "&S71J& " - "&Head57 -> KZN225 Msunduzi - Supporting Table SC4 Monthly Budget Statement - aged creditors - M01 July
A2: =desc -> Description | B2: NT Code | C2: =Head2 -> Budget Year 2023/24 | L2: Prior year totals for chart (same period)
C3: 0 - 30 Days | D3: 31 - 60 Days | E3: 61 - 90 Days | F3: 91 - 120 Days | G3: 121 - 150 Days | H3: 151 - 180 Days | I3: 181 Days - 1 Year | J3: Over 1 Year | K3: Total
A4: R thousands
A5: Creditors Age Analysis By Customer Type
A6: Bulk Electricity | B6: 0100 | C6: 362937847.4 | D6: 198603241.2 | E6: 0 | F6: 0 | G6: 395950352.1 | K6: =SUM(C6:J6) -> 957491440.8 | L6: 612812576.9
A7: Bulk Water | B7: 0200 | C7: 122033143.7 | D7: 0 | E7: -60000000 | F7: 65374752.42 | G7: 464514584.8 | K7: =SUM(C7:J7) -> 591922480.9 | L7: 508017837.9
A8: PAYE deductions | B8: 0300 | K8: 0
A9: VAT (output less input) | B9: 0400 | K9: 0
A10: Pensions / Retirement deductions | B10: 0500 | K10: 0
A11: Loan repayments | B11: 0600 | K11: 0
A12: Trade Creditors | B12: 0700 | K12: 0
A13: Auditor General | B13: 0800 | K13: 0
A14: Other | B14: 0900 | C14: 13546545.48 | D14: 67490118.52 | E14: 1211957.4 | F14: 28059.33 | G14: 28059.33 | K14: =SUM(C14:J14) -> 82304740.06 | L14: 558863998.7
A15: Total By Customer Type | B15: 1000 | C15: =SUM(C6:C14) -> 498517536.6 | D15: =SUM(D6:D14) -> 266093359.7 | E15: -58788042.6 | F15: 65402811.75 | G15: 860492996.3 | H15: 0 | I15: 0 | J15: 0 | K15: =SUM(K6:K14) -> 1631718662 | L15: =SUM(L6:L14) -> 1679694414
A16: Notes
A17: Material increases in value of creditors' categories compared to previous month to be explained

Sheet SC5
A1: =muni& " - "&S71K& " - "&Head57 -> KZN225 Msunduzi - Supporting Table SC5 Monthly Budget Statement - investment portfolio - M01 July
A2: Investments by maturity Name of institution & investment ID | B2: Ref | C2: Period of Investment | D2: Type of Investment | E2: Capital Guarantee (Yes/ No) | F2: Variable or Fixed interest rate | G2: Interest Rate ᶟ | H2: Commission Paid (Rands) | I2: Commission Recipient | J2: Expiry date of investment | K2: Opening balance | L2: Interest to be realised | M2: Partial / Premature Withdrawal (4) | N2: Investment Top Up | O2: Closing Balance
A3: R thousands | C3: Yrs/Months
A4: Municipality
K5: 348555148.6 | L5: 1059524.45 | M5: -86715272.55 | N5: 254611017.1 | O5: =SUM(K5:N5) -> 517510417.5
O6: 0
O7: 0
O8: 0
O9: 0
O10: 0
O11: 0
A12: Municipality sub-total | K12: =SUM(K5:K11) -> 348555148.6 | M12: =SUM(M5:M11) -> -86715272.55 | N12: =SUM(N5:N11) -> 254611017.1 | O12: =SUM(O5:O11) -> 517510417.5
A14: Entities
O15: =SUM(K15:N15) -> 0
O16: 0
O17: 0
O18: 0
O19: 0
O20: 0
O21: 0
A22: Entities sub-total | K22: =SUM(K15:K21) -> 0 | M22: =SUM(M15:M21) -> 0 | N22: =SUM(N15:N21) -> 0 | O22: =SUM(O15:O21) -> 0
A24: TOTAL INVESTMENTS AND INTEREST | B24: 2 | K24: =K12+K22 -> 348555148.6 | M24: =M12+M22 -> -86715272.55 | N24: =N12+N22 -> 254611017.1 | O24: =O12+O22 -> 517510417.5
A25: =head27a -> References
A26: 2. List investments in expiry date order
A27: 3. If 'variable' is selected in column F, input interest rate range
A28: 4. Withdrawals to be entered as negative

Sheet SC6
A1: =muni& " - "&S71L& " - "&Head57 -> KZN225 Msunduzi - Supporting Table SC6 Monthly Budget Statement - transfers and grant receipts - M01 July
A2: =desc -> Description | B2: =head27 -> Ref | C2: =Head1 -> 2022/23 | D2: =Head2 -> Budget Year 2023/24
C3: =Head5 -> Audited Outcome | D3: =Head6 -> Original Budget | E3: =Head7 -> Adjusted Budget | F3: =Head38 -> Monthly actual | G3: =Head39 -> YearTD actual | H3: =Head40 -> YearTD budget | I3: =Head41 -> YTD variance | J3: =Head41 -> YTD variance | K3: =Head8 -> Full Year Forecast
A4: R thousands | J4: %
A5: RECEIPTS: | B5: 1,2
A7: Operating Transfers and Grants
A8: National Government: | C8: =SUM(C9:C28) -> 0 | D8: 805981360 | E8: 0 | F8: 328196000 | G8: 328196000 | H8: 67165113.33 | I8: 261030886.7 | J8: =IF(I8=0,"",I8/H8) -> 3.88640581 | K8: =SUM(K9:K28) -> 805981360
A9: Local Government Equitable Share | D9: 767222000 | F9: 319676000 | G9: 319676000 | H9: =D9/12*Instructions!X10 -> 63935166.67 | I9: =G9-H9 -> 255740833.3 | J9: 4.000002607 | K9: =D9 -> 767222000
A10: Finance Management | D10: 1950000 | H10: =D10/12*Instructions!X10 -> 162500 | I10: -162500 | J10: -1 | K10: =D10 -> 1950000
A11: Municipal Systems Improvement | I11: 0
A12: EPWP Incentive | D12: 4979000 | H12: =D12/12*Instructions!X10 -> 414916.6667 | I12: -414916.6667 | J12: -1 | K12: =D12 -> 4979000
A13: Water Services Operating Subsidy | I13: 0
A14: Public Transport Infrastracture | I14: 0
A15: Energy Efficiency and Demand Management | I15: 0
A16: Municipal Water Infrastructure Grant | D16: 22000000 | F16: 6000000 | G16: 6000000 | H16: =D16/12*Instructions!X10 -> 1833333.333 | I16: 4166666.667 | J16: 2.272727273 | K16: =D16 -> 22000000
A17: Operating costs-MIG | D17: 9830360 | F17: 2520000 | G17: 2520000 | H17: =D17/12*Instructions!X10 -> 819196.6667 | I17: 1700803.333 | J17: 2.076184392 | K17: 9830360
I18: 0
I19: 0
I20: 0
I21: 0
I22: 0
B23: 3 | I23: 0
I24: 0
I25: 0
I26: 0
I27: 0
A28: Other transfers and grants [insert description] | I28: 0
A29: Provincial Government: | C29: =SUM(C30:C50) -> 0 | D29: 32153789.91 | E29: 0 | F29: 0 | G29: 0 | H29: 2679482.492 | I29: -2679482.492 | J29: -1 | K29: =SUM(K30:K50) -> 32153789.91
A30: Provincial Government: | I30: =G30-H30 -> 0
A31: Expanded Public Works Grant | I31: 0
A32: Sport and Recreation | I32: 0
A33: Human Settlements - Title Deeds Restoration | I33: 0
A34: Human Settlements - Accredited Municipalities | I34: 0
A35: Human Settlements - Accredited Municipal RO | I35: 0
A36: Human Settlements - Housing Development | I36: 0
A37: Arts and Culture- Community Library Services | I37: 0
A38: Arts and Culture- Provincialisation | I38: 0
A39: Arts and Culture-Museum Subsidies | D39: 13657999.91 | H39: =D39/12*Instructions!X10 -> 1138166.659 | I39: -1138166.659 | J39: -1 | K39: =D39 -> 13657999.91
A40: Arts and Culture-Museum Subsidies - Tatham Art Gallery | I40: 0
A41: COGTA | D41: 151000 | H41: =D41/12*Instructions!X10 -> 12583.33333 | I41: -12583.33333 | J41: -1 | K41: =D41 -> 151000
A42: Municipal Employment Initiative - OPERATING | I42: 0
A43: Housing Projects -OPERATING | D43: 18344790 | H43: =D43/12*Instructions!X10 -> 1528732.5 | I43: -1528732.5 | J43: -1 | K43: =D43 -> 18344790
A44: Informal Economy Instructure Development | I44: 0
I47: 0
B48: 4 | I48: 0
I49: 0
A50: Other transfers and grants [insert description] | I50: 0
A51: District Municipality: | C51: =SUM(C52:C53) -> 0 | D51: 0 | E51: 0 | F51: 0 | G51: 0 | H51: 0 | I51: 0 | K51: =SUM(K52:K53) -> 0
A52: [insert description] | I52: 0
I53: 0
A54: Other grant providers: | C54: =SUM(C55:C61) -> 0 | D54: 0 | E54: 0 | F54: 0 | G54: 0 | H54: 0 | I54: 0 | K54: =SUM(K55:K61) -> 0
A55: [insert description] | I55: 0
I61: 0
A62: Total Operating Transfers and Grants | B62: 5 | C62: =C8+C29+C51+C54 -> 0 | D62: 838135149.9 | E62: 0 | F62: 328196000 | G62: 328196000 | H62: 69844595.83 | I62: 258351404.2 | J62: 3.698946227 | K62: =K8+K29+K51+K54 -> 838135149.9
A64: Capital Transfers and Grants
A65: =A8 -> National Government: | C65: =SUM(C66:C75) -> 0 | D65: 312534640 | E65: 0 | F65: 78480000 | G65: 78480000 | H65: 26044553.33 | I65: 52435446.67 | J65: =IF(I65=0,"",I65/H65) -> 2.013297982 | K65: 312534640
A66: Municipal Infrastructure Grant (MIG) | D66: 238928640 | F66: 60480000 | G66: 60480000 | H66: =D66/12*Instructions!X10 -> 19910720 | I66: =G66-H66 -> 40569280 | J66: 2.037559666 | K66: =D66 -> 238928640
A67: Public Transport and Systems | I67: 0
A68: Neighbourhood Development Partnership | D68: 33606000 | F68: 5500000 | G68: 5500000 | H68: =D68/12*Instructions!X10 -> 2800500 | I68: 2699500 | J68: 0.9639350116 | K68: =D68 -> 33606000
A69: Dept of Mineral/Electricty | I69: 0
A70: Intergrated National Electrification Porgramme | D70: 7000000 | F70: 2500000 | G70: 2500000 | H70: =D70/12*Instructions!X10 -> 583333.3333 | I70: 1916666.667 | J70: 3.285714286 | K70: =D70 -> 7000000
A71: Municipal Systems Improvement | I71: 0
A72: Water Services Infrastructure Grant | D72: 28000000 | F72: 10000000 | G72: 10000000 | H72: =D72/12*Instructions!X10 -> 2333333.333 | I72: 7666666.667 | J72: 3.285714286 | K72: =D72 -> 28000000
A73: Energy Efficiency and Demand Manaagement | D73: 5000000 | H73: =D73/12*Instructions!X10 -> 416666.6667 | I73: -416666.6667 | J73: -1 | K73: 5000000
A74: Other capital transfers/grants [insert desc] | I74: 0
I75: 0
A76: =A29 -> Provincial Government: | C76: =SUM(C77:C97) -> 0 | D76: 136165414.9 | E76: 0 | F76: 0 | G76: 0 | H76: 11347117.91 | I76: -11347117.91 | J76: =IF(I76=0,"",I76/H76) -> -1 | K76: =SUM(K77:K97) -> 136165414.9
A77: Airport Development Project | I77: 0 | J77: =IF(I77=0,"",I77/H77) -> 
A78: Sport and Recreation | I78: 0 | J78: =IF(I78=0,"",I78/H78) -> 
A79: KZNPA | I79: 0
A80: Economic development tourism | I80: 0
A81: Capital Provincial KZN Treausry | I81: 0
A82: Housing-Military Veterans | I82: 0
A83: Airport Grant | I83: 0
A84: Arts and Culture-Museum Subsidies | I84: 0
A85: COGTA | I85: 0
A86: Human Settlement | I86: 0
A87: Human Settlement - Housing Accreditation | D87: 700000 | H87: =D87/12*Instructions!X10 -> 58333.33333 | I87: -58333.33333 | J87: -1 | K87: =D87 -> 700000
A88: Housing | I88: 0
A89: Provincial Government: | I89: 0
A90: Arts and Culture- Community Library Services | D90: 420000 | H90: =D90/12*Instructions!X10 -> 35000 | I90: -35000 | J90: -1 | K90: =D90 -> 420000
A91: Arts and Culture-Museum Subsidies - Tatham Art Gallery | I91: 0
A92: PMB Airport- CAPITAL | D92: 3000000 | H92: =D92/12*Instructions!X10 -> 250000 | I92: -250000 | J92: -1 | K92: =D92 -> 3000000
A93: Housing Projects -Capital | D93: 14850000 | H93: =D93/12*Instructions!X10 -> 1237500 | I93: -1237500 | J93: -1 | K93: 14850000
A94: Human Settlement | D94: 116195415 | H94: =D94/12*Instructions!X10 -> 9682951.246 | I94: -9682951.246 | J94: -1 | K94: 116195415
A95: Informal Economy Instructure Development | D95: 1000000 | H95: =D95/12*Instructions!X10 -> 83333.33333 | I95: -83333.33333 | J95: -1 | K95: 1000000
I96: 0
I97: 0
A98: =A51 -> District Municipality: | C98: =SUM(C99:C100) -> 0 | D98: 0 | E98: 0 | F98: 0 | G98: 0 | H98: 0 | I98: 0 | K98: =SUM(K99:K100) -> 0
A99: [insert description] | I99: 0
I100: 0
A101: =A54 -> Other grant providers: | C101: =SUM(C102:C107) -> 0 | D101: 0 | E101: 0 | F101: 0 | G101: 0 | H101: 0 | I101: 0 | K101: =SUM(K102:K107) -> 0
A102: [insert description] | I102: 0 | J102: =IF(I102=0,"",I102/H102) -> 
I107: 0
A108: Total Capital Transfers and Grants | B108: 5 | C108: =C65+C76+C98+C101 -> 0 | D108: =D65+D76+D98+D101 -> 448700054.9 | E108: 0 | F108: 78480000 | G108: 78480000 | H108: 37391671.25 | I108: 41088328.75 | J108: 1.098863126 | K108: 448700054.9
A110: TOTAL RECEIPTS OF TRANSFERS & GRANTS | B110: 5 | C110: =C62+C108 -> 0 | D110: 1286835205 | E110: 0 | F110: 406676000 | G110: 406676000 | H110: 107236267.1 | I110: 299439732.9 | J110: 2.792336409 | K110: 1286835205
A111: =head27a -> References
A112: 1. Each grant is listed by name as gazetted together with the name of the transferring department or municipality, donor or other organisation
A113: 2. Grant expenditure must be separately listed for each grant received
A114: 3. Replacement of RSC levies
A115: 4. Housing subsidies for housing where ownership transferred
A116: 5. Total recurrent/capital grants and subsidies must reconcile to the 'Financial Performance' Statement

Sheet SC7(1)
A1: =muni& " - "&S71M& " - "&Head57 -> KZN225 Msunduzi - Supporting Table SC7(1) Monthly Budget Statement - transfers and grant expenditure - M01 July
A2: =desc -> Description | B2: =head27 -> Ref | C2: =Head1 -> 2022/23 | D2: =Head2 -> Budget Year 2023/24
C3: =Head5 -> Audited Outcome | D3: =Head6 -> Original Budget | E3: =Head7 -> Adjusted Budget | F3: =Head38 -> Monthly actual | G3: =Head39 -> YearTD actual | H3: =Head40 -> YearTD budget | I3: =Head41 -> YTD variance | J3: =Head41 -> YTD variance | K3: =Head8 -> Full Year Forecast
A4: R thousands | J4: %
A5: EXPENDITURE
A7: Operating expenditure of Transfers and Grants
A8: ='SC6'!A8 -> National Government: | C8: =SUM(C9:C19) -> 0 | D8: =SUM(D9:D19) -> 805981360 | E8: =SUM(E9:E17) -> 0 | F8: 319844013.2 | G8: 319844013.2 | H8: =SUM(H9:H17) -> 67165113.33 | I8: =SUM(I9:I19) -> 252678899.8 | J8: =IF(I8=0,"",I8/H8) -> 3.762055735 | K8: =SUM(K9:K19) -> 805981360
A9: ='SC6'!A9 -> Local Government Equitable Share | D9: 767222000 | F9: 319676000 | G9: 319676000 | H9: =D9/12*Instructions!X10 -> 63935166.67 | I9: =G9-H9 -> 255740833.3 | J9: 4.000002607 | K9: =D9 -> 767222000
A10: Finance Management | D10: 1950000 | F10: 103971.62 | G10: 103971.62 | H10: =D10/12*Instructions!X10 -> 162500 | I10: -58528.38 | J10: -0.3601746462 | K10: =D10 -> 1950000
A11: Municipal Systems Improvement | I11: 0
A12: EPWP Incentive | D12: 4979000 | H12: =D12/12*Instructions!X10 -> 414916.6667 | I12: -414916.6667 | J12: -1 | K12: =D12 -> 4979000
A13: Water Services Operating Subsidy | I13: 0
A14: Public Transport Infrastracture | I14: 0
A15: Energy Efficiency and Demand Management | I15: 0
A16: Municipal Water Infrastructure Grant | D16: 22000000 | H16: =D16/12*Instructions!X10 -> 1833333.333 | I16: -1833333.333 | J16: -1 | K16: =D16 -> 22000000
A17: Operating costs-MIG | D17: 9830360 | F17: 64041.55 | G17: 64041.55 | H17: =D17/12*Instructions!X10 -> 819196.6667 | I17: -755155.1167 | J17: -0.9218239617 | K17: 9830360
A18: ='SC6'!A23 -> 0 | I18: 0
I19: 0
A20: ='SC6'!A29 -> Provincial Government: | C20: =SUM(C21:C37) -> 0 | D20: 32153789.91 | E20: 0 | F20: 788404.01 | G20: 788404.01 | H20: 2679482.492 | I20: -1891078.482 | J20: -0.7057625821 | K20: =SUM(K21:K37) -> 32153789.91
A21: Provincial Government: | I21: =G21-H21 -> 0
A22: Expanded Public Works Grant | I22: 0
A23: Sport and Recreation | I23: 0
A24: Human Settlements - Title Deeds Restoration | I24: 0
A25: Human Settlements - Accredited Municipalities | F25: 228011.91 | G25: 228011.91 | I25: 228011.91
A26: Human Settlements - Accredited Municipal RO | I26: 0
A27: Human Settlements - Housing Development | I27: 0
A28: Arts and Culture- Community Library Services | F28: 560392.1 | G28: 560392.1 | I28: 560392.1
A29: Arts and Culture- Provincialisation | I29: 0
A30: Arts and Culture-Museum Subsidies | D30: 13657999.91 | H30: =D30/12*Instructions!X10 -> 1138166.659 | I30: -1138166.659 | J30: -1 | K30: =D30 -> 13657999.91
A31: Arts and Culture-Museum Subsidies - Tatham Art Gallery | I31: 0
A32: COGTA | D32: 151000 | H32: =D32/12*Instructions!X10 -> 12583.33333 | I32: -12583.33333 | J32: -1 | K32: =D32 -> 151000
A33: Municipal Employment Initiative - OPERATING | I33: 0
A34: Housing Projects -OPERATING | D34: 18344790 | H34: =D34/12*Instructions!X10 -> 1528732.5 | I34: -1528732.5 | J34: -1 | K34: =D34 -> 18344790
A35: Informal Economy Instructure Development | I35: 0
A36: ='SC6'!A49 -> 0 | I36: 0
A37: ='SC6'!A50 -> Other transfers and grants [insert description] | I37: 0
A38: ='SC6'!A51 -> District Municipality: | C38: =SUM(C39:C40) -> 0 | D38: 0 | E38: =SUM(E39:E40) -> 0 | F38: 0 | G38: 0 | H38: 0 | I38: 0 | K38: =SUM(K39:K40) -> 0
I39: 0
A40: ='SC6'!A52 -> [insert description] | I40: 0
A41: ='SC6'!A54 -> Other grant providers: | C41: =SUM(C42:C43) -> 0 | D41: 0 | E41: 0 | F41: 0 | G41: 0 | H41: 0 | I41: 0 | K41: =SUM(K42:K43) -> 0
I42: 0
A43: ='SC6'!A55 -> [insert description] | I43: 0
A44: Total operating expenditure of Transfers and Grants: | C44: =C8+C20+C38+C41 -> 0 | D44: 838135149.9 | E44: 0 | F44: 320632417.2 | G44: 320632417.2 | H44: 69844595.83 | I44: 250787821.4 | J44: 3.59065463 | K44: =K8+K20+K38+K41 -> 838135149.9
A46: Capital expenditure of Transfers and Grants
A47: ='SC6'!A65 -> National Government: | C47: =SUM(C48:C58) -> 0 | D47: 312534640 | E47: 0 | F47: 25211388.71 | G47: 25211388.71 | H47: 26044553.33 | I47: -833164.6233 | J47: =IF(I47=0,"",I47/H47) -> -0.03198997551 | K47: 312534640
A48: Municipal Infrastructure Grant (MIG) | D48: 238928640 | F48: 24671488.36 | G48: 24671488.36 | H48: =D48/12*Instructions!X10 -> 19910720 | I48: =G48-H48 -> 4760768.36 | J48: 0.2391057862 | K48: =D48 -> 238928640
A49: Public Transport and Systems | I49: 0
A50: Neighbourhood Development Partnership | D50: 33606000 | H50: =D50/12*Instructions!X10 -> 2800500 | I50: -2800500 | J50: -1 | K50: =D50 -> 33606000
A51: Dept of Mineral/Electricty | I51: 0
A52: Intergrated National Electrification Porgramme | D52: 7000000 | H52: =D52/12*Instructions!X10 -> 583333.3333 | I52: -583333.3333 | J52: -1 | K52: =D52 -> 7000000
A53: Municipal Systems Improvement | I53: 0
A54: Water Services Infrastructure Grant | D54: 28000000 | F54: 539900.35 | G54: 539900.35 | H54: =D54/12*Instructions!X10 -> 2333333.333 | I54: -1793432.983 | J54: -0.7686141357 | K54: =D54 -> 28000000
A55: Energy Efficiency and Demand Manaagement | D55: 5000000 | H55: =D55/12*Instructions!X10 -> 416666.6667 | I55: -416666.6667 | J55: -1 | K55: 5000000
A56: Other capital transfers/grants [insert desc] | I56: 0
A57: ='SC6'!A74 -> Other capital transfers/grants [insert desc] | I57: 0
A58: ='SC6'!A75 -> 0 | I58: 0
A59: ='SC6'!A76 -> Provincial Government: | C59: =SUM(C60:C85) -> 0 | D59: 136165414.9 | E59: 0 | F59: 0 | G59: 0 | H59: 11347117.91 | I59: -11347117.91 | J59: -1 | K59: =SUM(K60:K85) -> 136165414.9
A60: Airport Development Project | I60: 0
A61: Sport and Recreation | I61: 0
A62: KZNPA | I62: 0
A63: Economic development tourism | I63: 0
A64: Capital Provincial KZN Treausry | I64: 0
A65: Housing-Military Veterans | I65: 0
A66: Airport Grant | I66: 0
A67: Arts and Culture-Museum Subsidies | I67: 0
A68: COGTA | I68: 0
A69: Human Settlement | I69: 0
A70: Human Settlement - Housing Accreditation | D70: 700000 | H70: =D70/12*Instructions!X10 -> 58333.33333 | I70: -58333.33333 | J70: -1 | K70: =D70 -> 700000
A71: Housing | I71: 0
A72: Provincial Government: | I72: 0
A73: Arts and Culture- Community Library Services | D73: 420000 | H73: =D73/12*Instructions!X10 -> 35000 | I73: -35000 | J73: -1 | K73: =D73 -> 420000
A74: Arts and Culture-Museum Subsidies - Tatham Art Gallery | I74: 0
A75: PMB Airport- CAPITAL | D75: 3000000 | H75: =D75/12*Instructions!X10 -> 250000 | I75: -250000 | J75: -1 | K75: =D75 -> 3000000
A76: Housing Projects -Capital | D76: 14850000 | H76: =D76/12*Instructions!X10 -> 1237500 | I76: -1237500 | J76: -1 | K76: 14850000
A77: Human Settlement | D77: 116195415 | H77: =D77/12*Instructions!X10 -> 9682951.246 | I77: -9682951.246 | J77: -1 | K77: 116195415
A78: Informal Economy Instructure Development | D78: 1000000 | H78: =D78/12*Instructions!X10 -> 83333.33333 | I78: -83333.33333 | J78: -1 | K78: 1000000
A85: ='SC6'!A97 -> 0 | I85: 0
A86: ='SC6'!A98 -> District Municipality: | C86: =SUM(C87:C88) -> 0 | D86: 0 | E86: 0 | F86: 0 | G86: 0 | H86: 0 | I86: 0 | K86: =SUM(K87:K88) -> 0
I87: 0
A88: ='SC6'!A100 -> 0 | I88: 0
A89: ='SC6'!A101 -> Other grant providers: | C89: =SUM(C90:C91) -> 0 | D89: 0 | E89: 0 | F89: 0 | G89: 0 | H89: 0 | I89: 0 | K89: =SUM(K90:K91) -> 0
I90: 0
A91: ='SC6'!A107 -> 0 | I91: 0
A92: Total capital expenditure of Transfers and Grants | C92: =C47+C59+C86+C89 -> 0 | D92: =D47+D59+D86+D89 -> 448700054.9 | E92: 0 | F92: 25211388.71 | G92: 25211388.71 | H92: 37391671.25 | I92: -12180282.54 | J92: =IF(I92=0,"",I92/H92) -> -0.3257485459 | K92: 448700054.9
A94: TOTAL EXPENDITURE OF TRANSFERS AND GRANTS | C94: =C44+C92 -> 0 | D94: 1286835205 | E94: 0 | F94: 345843805.9 | G94: 345843805.9 | H94: 107236267.1 | I94: 238607538.8 | J94: =IF(I94=0,"",I94/H94) -> 2.225063827 | K94: 1286835205
A95: =head27a -> References

Sheet SC7(2)
A1: =muni& " - "&S71T& " - "&Head57 -> KZN225 Msunduzi - Supporting Table SC7(2) Monthly Budget Statement - Expenditure against approved rollovers - M01 July
A2: =desc -> Description | B2: =head27 -> Ref | C2: =Head2 -> Budget Year 2023/24
C3: ="Approved Rollover " &Head1 -> Approved Rollover 2022/23 | D3: =Head38 -> Monthly actual | E3: =Head39 -> YearTD actual | F3: =Head41 -> YTD variance | G3: =Head41 -> YTD variance
A4: R thousands | G4: %
A5: EXPENDITURE
A7: Operating expenditure of Approved Roll-overs
A8: ='SC6'!A8 -> National Government: | C8: =SUM(C9:C15) -> 0 | D8: =SUM(D9:D15) -> 0 | E8: =SUM(E9:E15) -> 0 | F8: =C8-E8 -> 0 | G8: =IF(F8=0,"",F8/C8) -> 
A9: ='SC6'!A9 -> Local Government Equitable Share | F9: =C9-E9 -> 0 | G9: =IF(F9=0,"",F9/C9) -> 
A10: ='SC6'!A10 -> Finance Management | F10: =C10-E10 -> 0
A11: ='SC6'!A20 -> 0 | F11: 0
A12: ='SC6'!A21 -> 0 | F12: 0
A13: ='SC6'!A22 -> 0 | F13: 0
A14: ='SC6'!A23 -> 0 | F14: 0
A15: ='SC6'!A28 -> Other transfers and grants [insert description] | F15: 0
A16: ='SC6'!A29 -> Provincial Government: | C16: =SUM(C17:C21) -> 0 | D16: =SUM(D17:D21) -> 0 | E16: =SUM(E17:E21) -> 0 | F16: =C16-E16 -> 0
A17: ='SC6'!A30 -> Provincial Government: | F17: 0
A18: ='SC6'!A47 -> 0 | F18: 0
A19: ='SC6'!A48 -> 0 | F19: 0
A20: ='SC6'!A49 -> 0 | F20: 0
A21: ='SC6'!A50 -> Other transfers and grants [insert description] | F21: 0
A22: ='SC6'!A51 -> District Municipality: | C22: =SUM(C23:C24) -> 0 | D22: =SUM(D23:D24) -> 0 | E22: =SUM(E23:E24) -> 0 | F22: 0
F23: 0
A24: ='SC6'!A52 -> [insert description] | F24: 0
A25: ='SC6'!A54 -> Other grant providers: | C25: =SUM(C26:C27) -> 0 | D25: =SUM(D26:D27) -> 0 | E25: =SUM(E26:E27) -> 0 | F25: 0
F26: 0
A27: ='SC6'!A55 -> [insert description] | F27: 0
A28: Total operating expenditure of Approved Roll-overs | C28: =C8+C16+C22+C25 -> 0 | D28: =D8+D16+D22+D25 -> 0 | E28: =E8+E16+E22+E25 -> 0 | F28: =F8+F16+F22+F25 -> 0
A30: Capital expenditure of Approved Roll-overs
A31: ='SC6'!A65 -> National Government: | C31: =SUM(C32:C37) -> 0 | D31: =SUM(D32:D37) -> 0 | E31: =SUM(E32:E37) -> 0 | F31: =SUM(F32:F37) -> 0
A32: ='SC6'!A66 -> Municipal Infrastructure Grant (MIG) | F32: =C32-E32 -> 0
A33: ='SC6'!A71 -> Municipal Systems Improvement | F33: 0
A34: ='SC6'!A72 -> Water Services Infrastructure Grant | F34: 0
A35: ='SC6'!A73 -> Energy Efficiency and Demand Manaagement | F35: 0
A36: ='SC6'!A74 -> Other capital transfers/grants [insert desc] | F36: 0
A37: ='SC6'!A75 -> 0 | F37: 0
A38: ='SC6'!A76 -> Provincial Government: | C38: =SUM(C39:C40) -> 0 | D38: =SUM(D39:D40) -> 0 | E38: =SUM(E39:E40) -> 0 | F38: 0
F39: =C39-E39 -> 0
A40: ='SC6'!A97 -> 0 | F40: 0
A41: ='SC6'!A98 -> District Municipality: | C41: =SUM(C42:C43) -> 0 | D41: =SUM(D42:D43) -> 0 | E41: =SUM(E42:E43) -> 0 | F41: 0
F42: 0
A43: ='SC6'!A100 -> 0 | F43: 0
A44: ='SC6'!A101 -> Other grant providers: | C44: =SUM(C45:C46) -> 0 | D44: =SUM(D45:D46) -> 0 | E44: =SUM(E45:E46) -> 0 | F44: 0
F45: 0
A46: ='SC6'!A107 -> 0 | F46: 0
A47: Total capital expenditure of Approved Roll-overs | C47: =C31+C38+C41+C44 -> 0 | D47: =D31+D38+D41+D44 -> 0 | E47: =E31+E38+E41+E44 -> 0 | F47: =F31+F38+F41+F44 -> 0
A49: TOTAL EXPENDITURE OF APPROVED ROLL-OVERS | C49: =C28+C47 -> 0 | D49: =D28+D47 -> 0 | E49: =E28+E47 -> 0 | F49: =F28+F47 -> 0
A50: =head27a -> References

Sheet SC8
A1: =muni& " - "&S71N& " - "&Head57 -> KZN225 Msunduzi - Supporting Table SC8 Monthly Budget Statement - councillor and staff benefits - M01 July
A2: Summary of Employee and Councillor remuneration | B2: =head27 -> Ref | C2: =Head1 -> 2022/23 | D2: =Head2 -> Budget Year 2023/24
C3: =Head5 -> Audited Outcome | D3: =Head6 -> Original Budget | E3: =Head7 -> Adjusted Budget | F3: =Head38 -> Monthly actual | G3: =Head39 -> YearTD actual | H3: =Head40 -> YearTD budget | I3: =Head41 -> YTD variance | J3: =Head41 -> YTD variance | K3: =Head8 -> Full Year Forecast
A4: R thousands | J4: %
B5: 1 | C5: A | D5: B | E5: C | K5: D
A6: Councillors (Political Office Bearers plus Other)
A7: Basic Salaries and Wages | D7: 3617588.364 | F7: 3036552.96 | G7: 3036552.96 | H7: =D7/12*Instructions!X10 -> 301465.697 | I7: =G7-H7 -> 2735087.263 | J7: =IF(I7=0,"",I7/H7) -> 9.072631779 | K7: =D7 -> 3617588.364
A8: Pension and UIF Contributions | D8: 3295202.909 | F8: 195602.21 | G8: 195602.21 | H8: =D8/12*Instructions!X10 -> 274600.2425 | I8: -78998.03245 | J8: -0.287683768 | K8: =D8 -> 3295202.909
A9: Medical Aid Contributions | D9: 8000704.203 | F9: 174669.01 | G9: 174669.01 | H9: =D9/12*Instructions!X10 -> 666725.3503 | I9: -492056.3403 | J9: -0.7380195459 | K9: 8000704.203
A10: Motor Vehicle Allowance | D10: 39272669.76 | F10: 196064.35 | G10: 196064.35 | H10: =D10/12*Instructions!X10 -> 3272722.48 | I10: =G10-H10 -> -3076658.13 | J10: =IF(I10=0,"",I10/H10) -> -0.9400913609 | K10: 39272669.76
A11: Cellphone Allowance | D11: 746801.9322 | F11: 272000 | G11: 272000 | H11: =D11/12*Instructions!X10 -> 62233.49435 | I11: =G11-H11 -> 209766.5057 | J11: =IF(I11=0,"",I11/H11) -> 3.370636791 | K11: 746801.9322
A12: Housing Allowances | D12: 7766967.825 | F12: 5221.02 | G12: 5221.02 | H12: =D12/12*Instructions!X10 -> 647247.3187 | I12: =G12-H12 -> -642026.2987 | J12: =IF(I12=0,"",I12/H12) -> -0.9919335008 | K12: 7766967.825
A13: Other benefits and allowances | F13: -1614.38 | G13: -1614.38 | I13: -1614.38 | K13: 0
A14: Sub Total - Councillors | C14: =SUM(C7:C13) -> 0 | D14: 62699934.99 | E14: 0 | F14: 3878495.17 | G14: 3878495.17 | H14: 5224994.582 | I14: -1346499.412 | J14: -0.257703504 | K14: 62699934.99
A15: % increase | B15: 4 | D15: =IF(D14=0,"",(D14/C14)-1) ->  | E15: =IF(E14=0,"",(E14/C14)-1) ->  | K15: =IF(K14=0,"",(K14/C14)-1) -> 
A17: Senior Managers of the Municipality | B17: 3
A18: Basic Salaries and Wages | D18: 8726581.202 | F18: 576123.42 | G18: 576123.42 | H18: =D18/12*Instructions!X10 -> 727215.1002 | I18: =G18-H18 -> -151091.6802 | J18: =IF(I18=0,"",I18/H18) -> -0.2077675232 | K18: =D18 -> 8726581.202
A19: Pension and UIF Contributions | D19: 686804.6124 | F19: 82040.93 | G19: 82040.93 | H19: =D19/12*Instructions!X10 -> 57233.7177 | I19: 24807.2123 | J19: 0.4334370245 | K19: 686804.6124
A20: Medical Aid Contributions | D20: 60106363.23 | F20: 17695.58 | G20: 17695.58 | H20: =D20/12*Instructions!X10 -> 5008863.603 | I20: -4991168.023 | J20: -0.9964671468 | K20: 60106363.23
A21: Overtime | D21: 0 | I21: 0
A22: Performance Bonus | D22: 0 | I22: =G22-H22 -> 0 | J22: =IF(I22=0,"",I22/H22) -> 
A23: Motor Vehicle Allowance | D23: 2558774.666 | F23: 97948.13 | G23: 97948.13 | H23: =D23/12*Instructions!X10 -> 213231.2222 | I23: =G23-H23 -> -115283.0922 | J23: =IF(I23=0,"",I23/H23) -> -0.5406482737 | K23: =D23 -> 2558774.666
A24: Cellphone Allowance | D24: 170918.655 | F24: 9150 | G24: 9150 | H24: =D24/12*Instructions!X10 -> 14243.22125 | I24: =G24-H24 -> -5093.22125 | J24: =IF(I24=0,"",I24/H24) -> -0.3575891409 | K24: 170918.655
A25: Housing Allowances | D25: 70026008.51 | F25: 17236.16 | G25: 17236.16 | H25: =D25/12*Instructions!X10 -> 5835500.71 | I25: =G25-H25 -> -5818264.55 | J25: =IF(I25=0,"",I25/H25) -> -0.9970463272 | K25: 70026008.51
A26: Other benefits and allowances | I26: 0
A27: Payments in lieu of leave | I27: 0
A28: Long service awards | I28: 0
A29: Post-retirement benefit obligations | B29: 2 | I29: 0
A30: Entertainment
A31: Scarcity
A32: Acting and post related allowance
A33: In kind benefits
A34: Sub Total - Senior Managers of Municipality | C34: =SUM(C18:C33) -> 0 | D34: =SUM(D18:D33) -> 142275450.9 | E34: 0 | F34: 800194.22 | G34: 800194.22 | H34: 11856287.57 | I34: -11056093.35 | J34: =IF(I34=0,"",I34/H34) -> -0.9325088722 | K34: =SUM(K18:K33) -> 142275450.9
A35: % increase | B35: 4 | D35: =IF(D34=0,"",(D34/C34)-1) ->  | E35: =IF(E34=0,"",(E34/C34)-1) ->  | K35: =IF(K34=0,"",(K34/C34)-1) -> 
A37: Other Municipal Staff
A38: Basic Salaries and Wages | D38: 1024836641 | F38: 80222176.3 | G38: 80222176.3 | H38: =D38/12*Instructions!X10 -> 85403053.46 | I38: =G38-H38 -> -5180877.157 | J38: =IF(I38=0,"",I38/H38) -> -0.06066383985 | K38: =D38 -> 1024836641
A39: Pension and UIF Contributions | D39: 291354034 | F39: 15834888.04 | G39: 15834888.04 | H39: =D39/12*Instructions!X10 -> 24279502.83 | I39: -8444614.791 | J39: -0.34780839 | K39: 291354034
A40: Medical Aid Contributions | D40: 122280401.9 | F40: 6440829.8 | G40: 6440829.8 | H40: =D40/12*Instructions!X10 -> 10190033.49 | I40: -3749203.691 | J40: -0.3679284954 | K40: 122280401.9
A41: Overtime | D41: 101319919.9 | F41: 9747503.66 | G41: 9747503.66 | H41: =D41/12*Instructions!X10 -> 8443326.661 | I41: 1304176.999 | J41: 0.1544624591 | K41: 101319919.9
A42: Performance Bonus | I42: 0
A43: Motor Vehicle Allowance | D43: 36571760.26 | F43: 2698285.32 | G43: 2698285.32 | H43: =D43/12*Instructions!X10 -> 3047646.688 | I43: =G43-H43 -> -349361.3681 | J43: =IF(I43=0,"",I43/H43) -> -0.1146331592 | K43: =D43 -> 36571760.26
A44: Cellphone Allowance | D44: 5140755.628 | F44: 440720.93 | G44: 440720.93 | H44: =D44/12*Instructions!X10 -> 428396.3024 | I44: =G44-H44 -> 12324.62764 | J44: =IF(I44=0,"",I44/H44) -> 0.02876922039 | K44: 5140755.628
A45: Housing Allowances | D45: 4915659.444 | F45: 394407.77 | G45: 394407.77 | H45: =D45/12*Instructions!X10 -> 409638.287 | I45: =G45-H45 -> -15230.51696 | J45: =IF(I45=0,"",I45/H45) -> -0.0371804039 | K45: 4915659.444
A46: Other benefits and allowances | D46: 39950483.13 | F46: 2763919.43 | G46: 2763919.43 | H46: =D46/12*Instructions!X10 -> 3329206.927 | I46: -565287.4973 | J46: -0.1697964439 | K46: 39950483.13
A47: Payments in lieu of leave | D47: 0 | H47: =D47/12*Instructions!X10 -> 0 | I47: 0
A48: Long service awards | D48: 18329951.14 | F48: 4115390.57 | G48: 4115390.57 | H48: =D48/12*Instructions!X10 -> 1527495.929 | I48: 2587894.641 | J48: 1.694207227 | K48: =D48 -> 18329951.14
A49: Post-retirement benefit obligations | B49: 2 | D49: 0 | H49: =D49/12*Instructions!X10 -> 0 | I49: 0
A50: Entertainment | I50: 0
A51: Scarcity | I51: 0
A52: Acting and post related allowance | I52: 0
A53: In kind benefits | I53: 0
A54: Sub Total - Other Municipal Staff | C54: =SUM(C38:C53) -> 0 | D54: 1644699607 | E54: 0 | F54: 122658121.8 | G54: 122658121.8 | H54: 137058300.6 | I54: -14400178.75 | J54: =IF(I54=0,"",I54/H54) -> -0.1050660828 | K54: =SUM(K38:K53) -> 1644699607
A55: % increase | B55: 4 | D55: =IF(D54=0,"",(D54/C54)-1) ->  | E55: =IF(E54=0,"",(E54/C54)-1) ->  | K55: =IF(K54=0,"",(K54/C54)-1) -> 
A56: Total Parent Municipality | C56: =C14+C34+C54 -> 0 | D56: 1849674993 | E56: 0 | F56: 127336811.2 | G56: 127336811.2 | H56: 154139582.7 | I56: =G56-H56 -> -26802771.52 | J56: =IF(I56=0,"",I56/H56) -> -0.1738863635 | K56: =K14+K34+K54 -> 1849674993
D57: =IF(D56=0,"",(D56/C56)-1) ->  | E57: =IF(E56=0,"",(E56/C56)-1) ->  | K57: =IF(K56=0,"",(K56/C56)-1) -> 
A58: Unpaid salary, allowances & benefits in arrears:
A60: Board Members of Entities
A61: Basic Salaries and Wages | I61: =G61-H61 -> 0 | J61: =IF(I61=0,"",I61/H61) -> 
A62: Pension and UIF Contributions | I62: 0
A63: Medical Aid Contributions | I63: 0
A64: Overtime | I64: 0 | J64: =IF(I64=0,"",I64/H64) -> 
A65: Performance Bonus | I65: 0 | J65: =IF(I65=0,"",I65/H65) -> 
A66: Motor Vehicle Allowance | I66: 0 | J66: =IF(I66=0,"",I66/H66) -> 
A67: Cellphone Allowance | I67: 0 | J67: =IF(I67=0,"",I67/H67) -> 
A68: Housing Allowances | I68: 0 | J68: =IF(I68=0,"",I68/H68) -> 
A69: Other benefits and allowances | I69: 0
A70: Board Fees | B70: 5 | I70: 0 | J70: =IF(I70=0,"",I70/H70) -> 
A71: Payments in lieu of leave | I71: 0
A72: Long service awards | I72: 0
A73: Post-retirement benefit obligations | I73: 0
A74: Entertainment
A75: Scarcity
A76: Acting and post related allowance
A77: In kind benefits
A78: Sub Total - Executive members Board | B78: 2 | C78: =SUM(C61:C77) -> 0 | D78: 0 | E78: 0 | F78: 0 | G78: 0 | H78: 0 | I78: =G78-H78 -> 0 | J78: =IF(I78=0,"",I78/H78) ->  | K78: =SUM(K61:K77) -> 0
A79: % increase | B79: 4 | D79: =IF(D78=0,"",(D78/C78)-1) ->  | E79: =IF(E78=0,"",(E78/C78)-1) ->  | K79: =IF(K78=0,"",(K78/C78)-1) -> 
A81: Senior Managers of Entities
A82: Basic Salaries and Wages | I82: =G82-H82 -> 0 | J82: =IF(I82=0,"",I82/H82) -> 
A83: Pension and UIF Contributions | I83: 0
A84: Medical Aid Contributions | I84: 0
A85: Overtime | I85: 0
A86: Performance Bonus | I86: =G86-H86 -> 0 | J86: =IF(I86=0,"",I86/H86) -> 
A87: Motor Vehicle Allowance | I87: =G87-H87 -> 0 | J87: =IF(I87=0,"",I87/H87) -> 
A88: Cellphone Allowance | I88: =G88-H88 -> 0 | J88: =IF(I88=0,"",I88/H88) -> 
A89: Housing Allowances | I89: =G89-H89 -> 0 | J89: =IF(I89=0,"",I89/H89) -> 
A90: Other benefits and allowances | I90: 0
A91: Payments in lieu of leave | I91: 0
A92: Long service awards | I92: 0
A93: Post-retirement benefit obligations | B93: 2 | I93: 0
A94: Entertainment
A95: Scarcity
A96: Acting and post related allowance
A97: In kind benefits
A98: Sub Total - Senior Managers of Entities | C98: =SUM(C82:C97) -> 0 | D98: 0 | E98: 0 | F98: 0 | G98: 0 | H98: 0 | I98: 0 | J98: =IF(I98=0,"",I98/H98) ->  | K98: =SUM(K82:K97) -> 0
A99: % increase | B99: 4 | D99: =IF(D98=0,"",(D98/C98)-1) ->  | E99: =IF(E98=0,"",(E98/C98)-1) ->  | K99: =IF(K98=0,"",(K98/C98)-1) -> 
A101: Other Staff of Entities
A102: Basic Salaries and Wages | I102: =G102-H102 -> 0 | J102: =IF(I102=0,"",I102/H102) -> 
A103: Pension and UIF Contributions | I103: 0
A104: Medical Aid Contributions | I104: =G104-H104 -> 0 | J104: =IF(I104=0,"",I104/H104) -> 
A105: Overtime | I105: =G105-H105 -> 0 | J105: =IF(I105=0,"",I105/H105) -> 
A106: Performance Bonus | I106: =G106-H106 -> 0 | J106: =IF(I106=0,"",I106/H106) -> 
A107: Motor Vehicle Allowance | I107: =G107-H107 -> 0 | J107: =IF(I107=0,"",I107/H107) -> 
A108: Cellphone Allowance | I108: 0
A109: Housing Allowances | I109: 0
A110: Other benefits and allowances | I110: 0
A111: Payments in lieu of leave | I111: 0
A112: Long service awards | I112: 0
A113: Post-retirement benefit obligations | I113: 0
A114: Entertainment
A115: Scarcity
A116: Acting and post related allowance
A117: In kind benefits
A118: Sub Total - Other Staff of Entities | C118: =SUM(C102:C117) -> 0 | D118: 0 | E118: 0 | F118: 0 | G118: 0 | H118: 0 | I118: 0 | J118: =IF(I118=0,"",I118/H118) ->  | K118: =SUM(K102:K117) -> 0
A119: % increase | B119: 4 | D119: =IF(D118=0,"",(D118/C118)-1) ->  | E119: =IF(E118=0,"",(E118/C118)-1) ->  | K119: =IF(K118=0,"",(K118/C118)-1) -> 
A120: Total Municipal Entities | C120: =C78+C98+C118 -> 0 | D120: 0 | E120: 0 | F120: 0 | G120: 0 | H120: 0 | I120: =G120-H120 -> 0 | J120: =IF(I120=0,"",I120/H120) ->  | K120: =K78+K98+K118 -> 0
A121: TOTAL SALARY, ALLOWANCES & BENEFITS | C121: =C56+C120 -> 0 | D121: 1849674993 | E121: 0 | F121: 127336811.2 | G121: 127336811.2 | H121: 154139582.7 | I121: =G121-H121 -> -26802771.52 | J121: =IF(I121=0,"",I121/H121) -> -0.1738863635 | K121: =K56+K120 -> 1849674993
A122: % increase | B122: 4 | D122: =IF(D121=0,"",(D121/C121)-1) ->  | E122: =IF(E121=0,"",(E121/C121)-1) ->  | K122: =IF(K121=0,"",(K121/C121)-1) -> 
A123: TOTAL MANAGERS AND STAFF | C123: =C34+C54+C98+C118 -> 0 | D123: 1786975058 | E123: 0 | F123: 123458316 | G123: 123458316 | H123: 148914588.1 | I123: -25456272.11 | J123: =IF(I123=0,"",I123/H123) -> -0.1709454555 | K123: =K34+K54+K98+K118 -> 1786975058
A124: =head27a -> References
A125: 1. Include 'Loans and advances' where applicable if any reportable amounts until phased compliance with s164 of MFMA achieved
A126: 2. If benefits in kind are provided (e.g. provision of living quarters) the full market value must be shown as the cost to the municipality
A127: 3. s57 of the Systems Act
A128: 4. B/A, C/A, D/A
A129: 5. Included in Contracted services
A130: Column Definitions:
A131: A. Audited actual 2022/23 (audited financial statements). If audited amounts unavailable, unaudited amounts must be provided with a note stating these are unaudited
A132: B. The original budget approved by council for the 2023/24 budget year.
A133: C. The budget for 2023/24 budget year as adjusted by council resolution in terms of section 28 of the MFMA.
A134: D. An estimate of final actual amounts (pre audit - 2006/07 budget year) at the time of preparing the budget for the 2007/08 budget year. This may differ from C.

Sheet SC9
A1: =muni& " - "&S71O& " - "&Head57 -> KZN225 Msunduzi - Supporting Table SC9 Monthly Budget Statement - actuals and revised targets for cash receipts - M01 July
A2: =desc -> Description | B2: =head27 -> Ref | C2: =Head2 -> Budget Year 2023/24 | O2: ='Template names'!B5 -> 2023/24 Medium Term Revenue & Expenditure Framework
C3: July | D3: August | E3: Sept | F3: October | G3: Nov | H3: Dec | I3: January | J3: Feb | K3: March | L3: April | M3: May | N3: June | O3: =Head9 -> Budget Year 2023/24 | P3: =Head10 -> Budget Year +1 2024/25 | Q3: =Head11 -> Budget Year +2 2025/26
A4: R thousands | B4: 1 | C4: Outcome | D4: Outcome | E4: Outcome | F4: Outcome | G4: Outcome | H4: Outcome | I4: Budget | J4: Budget | K4: Budget | L4: Budget | M4: Budget | N4: Budget
A5: Cash Receipts By Source
A6: Property rates | N6: =O6-SUM(C6:M6) -> 1435365977 | O6: 1435365977 | P6: 1521716983 | Q6: 1593237681
A7: Service charges - Electricity revenue | N7: 3386751744 | O7: 3386751744 | P7: 4849435829 | Q7: 5722334279
A8: Service charges - Water revenue | N8: 784367206 | O8: 784367206 | P8: 1015651656 | Q8: 1063387284
A9: Service charges - Waste Water Management | N9: 176174888 | O9: 176174888 | P9: 228123149 | Q9: 238844937
A10: Service charges - Waste Mangement | N10: 120705336 | O10: 120705336 | P10: 156297424 | Q10: 163643403
N11: 0
A12: Rental of facilities and equipment | N12: 104823532 | O12: 104823532 | P12: 67574148 | Q12: 70750133
A13: Interest earned - external investments | N13: 18052025 | O13: 18052025 | P13: 19225407 | Q13: 20494284
A14: Interest earned - outstanding debtors | N14: 0
A15: Dividends received | N15: 0
A16: Fines, penalties and forfeits | N16: 8795949 | O16: 8795949 | P16: 7620808 | Q16: 7978986
A17: Licences and permits | N17: 2451744 | O17: 2451744 | P17: 2400591 | Q17: 2513419
A18: Agency services | N18: 714790 | O18: 714790 | P18: 749815 | Q18: 785056
A19: Transfers and Subsidies - Operational | N19: 834106196 | O19: 834106196 | P19: 906109405 | Q19: 982491448
A20: Other revenue | N20: 990078985.4 | O20: 990078985.4 | P20: 152145895.1 | Q20: 159291111.5
A21: Cash Receipts by Source | C21: =SUM(C6:C10)+SUM(C15:C20) -> 0 | D21: 0 | E21: 0 | F21: 0 | G21: 0 | H21: 0 | I21: 0 | J21: 0 | K21: 0 | L21: 0 | M21: 0 | N21: 7739512815 | O21: 7739512815 | P21: 8840251555 | Q21: 9934507605
A22: Other Cash Flows by Source | N22: =O22-SUM(C22:M22) -> 0
A23: Transfers and subsidies - capital (monetary allocations) (National / Provincial and District) | N23: 452578009 | O23: 452578009 | P23: 321309343 | Q23: 327881560
A24: Transfers and subsidies - capital (monetary allocations) (Nat / Prov Departm Agencies, Households, Non-profit Institutions, Private Enterprises, Public Corporatons, Higher Educ Institutions) | N24: 0
A25: Proceeds on Disposal of Fixed and Intangible Assets | N25: 0
A26: Short term loans | N26: 0
A27: Borrowing long term/refinancing | N27: 200000000 | O27: 200000000 | P27: 150000000
A28: Increase (decrease) in consumer deposits | N28: 0
A30: Decrease (increase) in non-current receivables | N30: 0
A31: Decrease (increase) in non-current investments | N31: 0
A32: Total Cash Receipts by Source | C32: =SUM(C21:C28)+SUM(C30:C31) -> 0 | D32: 0 | E32: 0 | F32: 0 | G32: 0 | H32: 0 | I32: 0 | J32: 0 | K32: 0 | L32: 0 | M32: 0 | N32: 8392090824 | O32: 8392090824 | P32: 9311560898 | Q32: 1.026238916e+10
A33: Cash Payments by Type | N33: =O33-SUM(C33:M33) -> 0
A34: Employee related costs | N34: 1798912905 | O34: 1798912905 | P34: 1879949462 | Q34: 1964636935
A35: Remuneration of councillors | N35: 62699935 | O35: 62699935 | P35: 65521432 | Q35: 68469897
A36: Interest | N36: 40400878 | O36: 40400878 | P36: 42218918 | Q36: 44118769
A37: Bulk purchases - Electricity | N37: 2921100000 | O37: 2921100000 | P37: 3526843000 | Q37: 4055869450
A38: Acquisitions - water & other inventory | N38: 1110149118 | O38: 1110149118 | P38: 1164533075 | Q38: 1219405179
A40: Contracted services | N40: 1129698624 | O40: 1129698624 | P40: 1196746209 | Q40: 1219405179
A41: Transfers and subsidies - other municipalities | N41: 51023536 | O41: 51023536 | P41: 53395332 | Q41: 55899094
A42: Transfers and subsidies - other | N42: 0 | O42: 0 | P42: 0 | Q42: 0
A43: Other expenditure | N43: 254603223 | O43: 254603223 | P43: 260666475 | Q43: 272893145
A44: Cash Payments by Type | B44: =SUM(B34:B43) -> 0 | C44: =SUM(C34:C43) -> 0 | D44: =SUM(D34:D43) -> 0 | E44: 0 | F44: 0 | G44: 0 | H44: 0 | I44: 0 | J44: 0 | K44: 0 | L44: 0 | M44: 0 | N44: 7368588219 | O44: 7368588219 | P44: 8189873903 | Q44: 8900697648
A45: Other Cash Flows/Payments by Type
A46: Capital assets | N46: =O46-SUM(C46:M46) -> 768501055 | O46: 768501055 | P46: 668665745 | Q46: 515231794
A47: Repayment of borrowing | N47: =O47-SUM(C47:M47) -> 23000000 | O47: 23000000 | P47: 24000000 | Q47: 26000000
A48: Other Cash Flows/Payments | N48: =O48-SUM(C48:M48) -> 0
A49: Total Cash Payments by Type | B49: =SUM(B44:B48) -> 0 | C49: 0 | D49: 0 | E49: 0 | F49: 0 | G49: 0 | H49: 0 | I49: 0 | J49: 0 | K49: 0 | L49: 0 | M49: 0 | N49: 8160089274 | O49: 8160089274 | P49: 8882539648 | Q49: 9441929442
A50: NET INCREASE/(DECREASE) IN CASH HELD | B50: =B32-B49 -> 0 | C50: 0 | D50: 0 | E50: 0 | F50: 0 | G50: 0 | H50: 0 | I50: 0 | J50: 0 | K50: 0 | L50: 0 | M50: 0 | N50: 232001550.4 | O50: 232001550.4 | P50: 429021250.1 | Q50: 820459722.5
A51: Cash/cash equivalents at the month/year beginning: | D51: =C52 -> 0 | E51: =D52 -> 0 | F51: 0 | G51: 0 | H51: 0 | I51: 0 | J51: 0 | K51: 0 | L51: 0 | M51: 0 | N51: 0 | O51: =C51 -> 0 | P51: =O52 -> 232001550.4 | Q51: =P52 -> 661022800.5
A52: Cash/cash equivalents at the month/year end: | C52: =C50+C51 -> 0 | D52: =D50+D51 -> 0 | E52: =E50+E51 -> 0 | F52: 0 | G52: 0 | H52: 0 | I52: 0 | J52: 0 | K52: 0 | L52: 0 | M52: 0 | N52: 232001550.4 | O52: =O50+O51 -> 232001550.4 | P52: =P50+P51 -> 661022800.5 | Q52: =Q50+Q51 -> 1481482523
A53: =head27a -> References
A54: 1. Replace 'budget' heading with adjusted budget, or 'outcome' only for month/s complete
A55: 2. Total of monthly amounts must always agree to the approved or adjusted budget
A56: 3. Amend 'cash-at-beginning' when prior year actual known (as part of the adjustments budget)
E61: =E44+E60 -> 0 | F61: 0 | G61: 0 | H61: 0 | I61: 0 | J61: 0 | K61: 0 | L61: 0 | N61: =N44+N60 -> 7368588219 | O61: =O44+O60 -> 7368588219 | P61: =P44+P60 -> 8189873903
E62: =E50-E60 -> 0 | F62: 0 | G62: 0 | H62: 0 | I62: 0 | J62: 0 | K62: 0 | L62: 0 | M62: =M50-M60 -> 0 | N62: =N50-N60 -> 232001550.4 | O62: 232001550.4 | P62: 429021250.1

Sheet SC10
A1: =muni& " - "&S71P& " - "&Head57 -> KZN225 Msunduzi - NOT REQUIRED - municipality does not have entities or this is the parent municipality's budget - M01 July
A2: =desc -> Description | B2: =head27 -> Ref | C2: =Head1 -> 2022/23 | D2: =Head2 -> Budget Year 2023/24
C3: =Head5 -> Audited Outcome | D3: =Head6 -> Original Budget | E3: =Head7 -> Adjusted Budget | F3: =Head38 -> Monthly actual | G3: =Head39 -> YearTD actual | H3: =Head40 -> YearTD budget | I3: =Head41 -> YTD variance | J3: =Head41 -> YTD variance | K3: =Head8 -> Full Year Forecast
A4: R thousands | B4: 1 | J4: %
A5: ='C4-FinPerf RE'!A5 -> Revenue
A6: Exchange Revenue
A7: Service charges - Electricity | D7: 3892818096 | F7: 316422192.2 | G7: 316422192.2 | H7: =D7/12*Instructions!X10 -> 324401508 | I7: =G7-H7 -> -7979315.782 | J7: =IF(I7=0,"",I7/H7) -> -0.02459703665 | K7: =D7 -> 3892818096
A8: Service charges - Water | D8: 901571501.8 | F8: 68890883.04 | G8: 68890883.04 | H8: =D8/12*Instructions!X10 -> 75130958.48 | I8: -6240075.44 | J8: -0.08305598074 | K8: =D8 -> 901571501.8
A9: Service charges - Waste Water Management | D9: 202499871.9 | F9: 18873864.5 | G9: 18873864.5 | H9: =D9/12*Instructions!X10 -> 16874989.33 | I9: 1998875.172 | J9: 0.1184519369 | K9: 202499871.9
A10: Service charges - Waste management | D10: 138741765.1 | F10: 10450647.81 | G10: 10450647.81 | H10: =D10/12*Instructions!X10 -> 11561813.76 | I10: -1111165.95 | J10: -0.09610654291 | K10: 138741765.1
A11: Sale of Goods and Rendering of Services | I11: 0 | J11: =IF(I11=0,"",I11/H11) -> 
A12: Agency services | D12: 714790.3238 | F12: 243350 | G12: 243350 | H12: =D12/12*Instructions!X10 -> 59565.86032 | I12: 183784.1397 | J12: 3.08539386 | K12: =D12 -> 714790.3238
A13: Interest | I13: 0
A14: Interest earned from Receivables | D14: 198174144 | F14: 23871725.21 | G14: 23871725.21 | H14: =D14/12*Instructions!X10 -> 16514512 | I14: 7357213.21 | J14: 0.4454998858 | K14: =D14 -> 198174144
A15: Interest earned from Current and Non Current Assets | D15: 18052025.28 | H15: =D15/12*Instructions!X10 -> 1504335.44 | I15: -1504335.44 | J15: -1 | K15: =D15 -> 18052025.28
A16: Dividends | I16: 0
A17: Rent on Land | I17: 0
A18: Rental from Fixed Assets | D18: 104823531.7 | F18: 3889914.99 | G18: 3889914.99 | H18: =D18/12*Instructions!X10 -> 8735294.312 | I18: -4845379.322 | J18: -0.5546898764 | K18: =D18 -> 104823531.7
A19: Licence and permits | D19: 2451743.957 | F19: 118118.45 | G19: 118118.45 | H19: =D19/12*Instructions!X10 -> 204311.9964 | I19: -86193.54639 | J19: -0.4218721755 | K19: 2451743.957
A20: Operational Revenue | D20: 230407182.4 | F20: 4249326.55 | G20: 4249326.55 | H20: =D20/12*Instructions!X10 -> 19200598.53 | I20: -14951271.98 | J20: -0.7786878079 | K20: 230407182.4
A21: Non-Exchange Revenue | I21: 0
A22: Property rates | D22: 1526985082 | F22: 124453262 | G22: 124453262 | H22: =D22/12*Instructions!X10 -> 127248756.8 | I22: -2795494.853 | J22: -0.02196873999 | K22: =D22 -> 1526985082
A23: Surcharges and Taxes | I23: 0
A24: Fines, penalties and forfeits | D24: 14659914.48 | F24: 18157.35 | G24: 18157.35 | H24: =D24/12*Instructions!X10 -> 1221659.54 | I24: -1203502.19 | J24: -0.9851371439 | K24: =D24 -> 14659914.48
A25: Licences or permits | I25: 0
A26: Transfer and subsidies - Operational | D26: 838135150 | F26: 320632417.2 | G26: 320632417.2 | H26: =D26/12*Instructions!X10 -> 69844595.83 | I26: 250787821.3 | J26: 3.590654629 | K26: =D26 -> 838135150
A27: Interest | D27: 50691327 | F27: 1754660.51 | G27: 1754660.51 | H27: =D27/12*Instructions!X10 -> 4224277.25 | I27: -2469616.74 | J27: -0.5846246811 | K27: 50691327
A28: Fuel Levy | I28: 0
A29: Operational Revenue | I29: 0
A30: Gains on disposal of Assets | I30: 0
A31: Other Gains | I31: 0
A32: Discontinued Operations | I32: 0
A33: Total Revenue (excluding capital transfers and contributions) | C33: =SUM(C7:C20)+SUM(C22:C32) -> 0 | D33: =SUM(D7:D20)+SUM(D22:D32) -> 8120726125 | E33: 0 | F33: =SUM(F7:F20)+SUM(F22:F32) -> 893868519.7 | G33: =SUM(G7:G20)+SUM(G22:G32) -> 893868519.7 | H33: =SUM(H7:H20)+SUM(H22:H32) -> 676727177.1 | I33: =G33-H33 -> 217141342.6 | J33: 0.3208698423 | K33: =SUM(K7:K20)+SUM(K22:K32) -> 8120726125
A34: Expenditure By Type
A35: Employee related costs | D35: 1781210508 | F35: 123458316 | G35: 123458316 | H35: =D35/12*Instructions!X10 -> 148434209 | I35: =G35-H35 -> -24975892.96 | J35: =IF(I35=0,"",I35/H35) -> -0.1682623778 | K35: =D35 -> 1781210508
A36: Remuneration of councillors | D36: 62699934.99 | F36: 3878495.17 | G36: 3878495.17 | H36: =D36/12*Instructions!X10 -> 5224994.582 | I36: -1346499.412 | J36: -0.257703504 | K36: 62699934.99
A37: Bulk purchases - electricity | D37: 2514000000 | F37: 287436435.6 | G37: 287436435.6 | H37: =D37/12*Instructions!X10 -> 209500000 | I37: 77936435.65 | J37: 0.372011626 | K37: 2514000000
A38: Inventory consumed | D38: 970629036 | F38: 73127419.2 | G38: 73127419.2 | H38: =D38/12*Instructions!X10 -> 80885753 | I38: -7758333.8 | J38: -0.09591718581 | K38: 970629036
A39: Debt impairment | D39: 600000000 | F39: 1009309.22 | G39: 1009309.22 | H39: =D39/12*Instructions!X10 -> 50000000 | I39: -48990690.78 | J39: -0.9798138156 | K39: 600000000
A40: Depreciation and amortisation | D40: 460781797 | F40: 29646737.24 | G40: 29646737.24 | H40: =D40/12*Instructions!X10 -> 38398483.08 | I40: -8751745.843 | J40: -0.2279190515 | K40: 460781797
A41: Interest | D41: 40400879.72 | F41: 1129038.09 | G41: 1129038.09 | H41: =D41/12*Instructions!X10 -> 3366739.977 | I41: -2237701.887 | J41: -0.6646494539 | K41: 40400879.72
A42: Contracted services | D42: 994210937 | F42: 21685938 | G42: 21685938 | H42: =D42/12*Instructions!X10 -> 82850911.42 | I42: -61164973.42 | J42: -0.7382534769 | K42: 994210937
A43: Transfers and subsidies | D43: 65884469.29 | F43: 3021319.13 | G43: 3021319.13 | H43: =D43/12*Instructions!X10 -> 5490372.441 | I43: -2469053.311 | J43: -0.4497059785 | K43: 65884469.29
A44: Irrecoverable debts written off | I44: 0
A45: Operational costs | D45: 215382233 | F45: 21502650.65 | G45: 21502650.65 | H45: =D45/12*Instructions!X10 -> 17948519.42 | I45: 3554131.233 | J45: 0.1980180733 | K45: =D45 -> 215382233
A46: Losses on disposal of Assets
A47: Other Losses
A48: Total Expenditure | C48: =SUM(C35:C47) -> 0 | D48: =SUM(D35:D47) -> 7705199795 | E48: 0 | F48: 565895658.4 | G48: 565895658.4 | H48: 642099982.9 | I48: -76204324.53 | J48: -0.118679842 | K48: =SUM(K35:K47) -> 7705199795
A49: ='C4-FinPerf RE'!A49 -> Surplus/(Deficit) | C49: =C33-C48 -> 0 | D49: 415526330.3 | E49: 0 | F49: 327972861.3 | G49: 327972861.3 | H49: 34627194.19 | I49: 293345667.2 | J49: 8.471540188 | K49: =K33-K48 -> 415526330.3
A50: ='C4-FinPerf RE'!A50 -> Transfers and subsidies - capital (monetary allocations) | D50: 448700054.9 | F50: 25211388.71 | G50: 25211388.71 | H50: =D50/12*Instructions!X10 -> 37391671.25 | I50: -12180282.54 | J50: -0.3257485459 | K50: =D50 -> 448700054.9
A51: ='C4-FinPerf RE'!A51 -> Transfers and subsidies - capital (in-kind) | I51: 0
A52: ='C4-FinPerf RE'!A52 -> Surplus/(Deficit) after capital transfers & contributions | C52: =C49+SUM(C50:C51) -> 0 | D52: 864226385.2 | E52: 0 | F52: 353184250.1 | G52: 353184250.1 | H52: 72018865.43 | I52: 281165384.6 | J52: 3.904051847 | K52: =K49+SUM(K50:K51) -> 864226385.2
A53: ='C4-FinPerf RE'!A53 -> Income Tax | I53: 0
A54: ='C4-FinPerf RE'!A54 -> Surplus/(Deficit) after income tax | C54: =C52-C53 -> 0 | D54: 864226385.2 | E54: 0 | F54: 353184250.1 | G54: 353184250.1 | H54: 72018865.43 | I54: 281165384.6 | J54: 3.904051847 | K54: =K52-K53 -> 864226385.2
A55: =head27a -> References
A56: 1. Votes (consolidated) are revenue sources and expenditure type

Sheet SC11
A1: =muni& " - "&S71Q& " - "&Head57 -> KZN225 Msunduzi - NOT REQUIRED - municipality does not have entities or this is the parent municipality's budget - M01 July
A2: =desc -> Description | B2: =head27 -> Ref | C2: =Head1 -> 2022/23 | D2: =Head2 -> Budget Year 2023/24
C3: =Head5 -> Audited Outcome | D3: =Head6 -> Original Budget | E3: =Head7 -> Adjusted Budget | F3: =Head38 -> Monthly actual | G3: =Head39 -> YearTD actual | H3: =Head40 -> YearTD budget | I3: =Head41 -> YTD variance | J3: =Head41 -> YTD variance | K3: =Head8 -> Full Year Forecast
A4: R thousands | J4: %
A5: Revenue By Municipal Entity
A6: Insert name of municipal entity | I6: =G6-H6 -> 0 | J6: =IF(I6=0,"",I6/H6) -> 
I7: 0 | J7: =IF(I7=0,"",I7/H7) -> 
I8: 0
I9: 0
I10: 0
I11: 0
I12: 0
I13: 0
I14: 0
I15: 0
A16: Total Operating Revenue | B16: 1 | C16: =SUM(C6:C15) -> 0 | D16: 0 | E16: 0 | F16: 0 | G16: 0 | H16: 0 | I16: 0 | K16: =SUM(K6:K15) -> 0
A18: Expenditure By Municipal Entity
A19: =A6 -> Insert name of municipal entity | I19: 0 | J19: =IF(I19=0,"",I19/H19) -> 
A20: =IF(A7="","",A7) ->  | I20: 0
A21: =IF(A8="","",A8) ->  | I21: 0
I22: 0
I23: 0
I24: 0
I25: 0
I26: 0
I27: 0
I28: 0
A29: Total Operating Expenditure | B29: 2 | C29: =SUM(C19:C28) -> 0 | D29: 0 | E29: 0 | F29: 0 | G29: 0 | H29: 0 | I29: 0 | K29: =SUM(K19:K28) -> 0
A31: =Head42 -> Surplus/ (Deficit) for the yr/period | C31: =C16-C29 -> 0 | D31: =D16-D29 -> 0 | E31: 0 | F31: 0 | G31: 0 | H31: 0 | I31: =I16+I29 -> 0 | K31: 0
A32: Capital Expenditure By Municipal Entity
A33: =$A$6 -> Insert name of municipal entity | I33: 0
A34: =IF(A7="","",A7) ->  | I34: 0
A35: =IF(A8="","",A8) ->  | I35: 0
I36: 0
I37: 0
I38: 0
I39: 0
I40: 0
I41: 0
A43: Total Capital Expenditure | B43: 3 | C43: =SUM(C32:C42) -> 0 | D43: =SUM(D32:D42) -> 0 | E43: 0 | F43: 0 | G43: 0 | H43: =SUM(H32:H42) -> 0 | I43: =G43-H43 -> 0 | K43: 0
A44: =head27a -> References
A45: 1. Must reconcile to the sum of all municipal entity monthly revenue reports
A46: 2. Must reconcile to the sum of all municipal entity monthly expenditure reports
A47: 3. YTD = Year to date; FAV - favourable variance or unfavourable variance
A48: 4. Material variances to be explained
A49: 5. Insert additional 'Adjustment' Budget column for each Adjustment made by an entity

Sheet SC12
A1: =muni& " - "&S71R& " - "&Head57 -> KZN225 Msunduzi - Supporting Table SC12 Monthly Budget Statement - capital expenditure trend - M01 July
A2: Month | B2: =Head1 -> 2022/23 | C2: =Head2 -> Budget Year 2023/24
B3: =Head5 -> Audited Outcome | C3: =Head6 -> Original Budget | D3: =Head7 -> Adjusted Budget | E3: =Head38 -> Monthly actual | F3: =Head39 -> YearTD actual | G3: =Head40 -> YearTD budget | H3: =Head41 -> YTD variance | I3: =Head41 -> YTD variance | J3: % spend of Original Budget
A4: R thousands | I4: %
A5: Monthly expenditure performance trend
A6: July | C6: 64063337.83 | E6: 16309726.66 | F6: =IF(E6>0,E6,"") -> 16309726.66 | G6: =IF(D6>0,D6,C6) -> 64063337.83 | H6: =IF(F6="",0,G6-F6) -> 47753611.17 | I6: =IF(F6="","",IF(H6=0,"",H6/G6)) -> 0.7454124744 | J6: =IF(F6="","",F6/$C$18) -> 0.02121562713
A7: August | C7: 64063337.83 | F7: =IF(E7>0,E7+F6,"") ->  | G7: =IF(D7>0,D7+D6,C7+C6) -> 128126675.7 | H7: 0
A8: September | C8: 64063337.83 | F8: =IF(E8>0,E8+F7,"") ->  | G8: =IF(D8>0,D8+G7,C8+G7) -> 192190013.5 | H8: 0
A9: October | C9: 64063337.83 | G9: =IF(D9>0,D9+G8,C9+G8) -> 256253351.3 | H9: 0
A10: November | C10: 64063337.83 | G10: 320316689.2 | H10: 0
A11: December | C11: 64063337.83 | G11: 384380027 | H11: 0
A12: January | C12: 64063337.83 | G12: 448443364.8 | H12: 0
A13: February | C13: 64063337.83 | G13: 512506702.7 | H13: 0
A14: March | C14: 64063337.83 | G14: 576570040.5 | H14: 0
A15: April | C15: 64063337.83 | G15: 640633378.3 | H15: 0
A16: May | C16: 64063337.83 | G16: 704696716.2 | H16: 0
A17: June | C17: 64063337.83 | G17: 768760054 | H17: =IF(F17="",0,G17-F17) -> 0 | I17: =IF(F17="","",IF(H17=0,"",H17/G17)) ->  | J17: =IF(F17="","",F17/$C$18) -> 
A18: Total Capital expenditure | B18: =SUM(B6:B17) -> 0 | C18: =SUM(C6:C17) -> 768760054 | D18: =SUM(D6:D17) -> 0 | E18: =SUM(E6:E17) -> 16309726.66

Sheet SC13a
A1: =muni& " - "&S71Sa& " - "&Head57 -> KZN225 Msunduzi - Supporting Table SC13a Monthly Budget Statement - capital expenditure on new assets by asset class - M01 July
A2: =desc -> Description | B2: =head27 -> Ref | C2: =Head1 -> 2022/23 | D2: =Head2 -> Budget Year 2023/24
C3: =Head5 -> Audited Outcome | D3: =Head6 -> Original Budget | E3: =Head7 -> Adjusted Budget | F3: =Head38 -> Monthly actual | G3: =Head39 -> YearTD actual | H3: =Head40 -> YearTD budget | I3: =Head41 -> YTD variance | J3: =Head41 -> YTD variance | K3: =Head8 -> Full Year Forecast
A4: R thousands | B4: 1 | J4: %
A5: Capital expenditure on new assets by Asset Class/Sub-class
A7: Infrastructure | C7: =C8+C13+C17+C27+C38+C45+C53+C63+C69 -> 0 | D7: 291587640 | E7: 0 | F7: 5179738.4 | G7: 5179738.4 | H7: 24298970 | I7: =H7-G7 -> 19119231.6 | J7: =IF(I7=0,"",I7/H7) -> 0.7868330057 | K7: =K8+K13+K17+K27+K38+K45+K53+K63+K69 -> 291587640
A8: Roads Infrastructure | C8: =SUM(C9:C12) -> 0 | D8: 2250000 | E8: 0 | F8: 48561.49 | G8: 48561.49 | H8: 187500 | I8: 138938.51 | J8: 0.7410053867 | K8: =SUM(K9:K12) -> 2250000
A9: Roads | D9: 2250000 | F9: 48561.49 | G9: 48561.49 | H9: =D9/12*Instructions!X10 -> 187500 | I9: 138938.51 | J9: 0.7410053867 | K9: =D9 -> 2250000
A10: Road Structures | I10: 0
A11: Road Furniture | I11: 0
A12: Capital Spares | I12: 0
A13: Storm water Infrastructure | C13: =SUM(C14:C16) -> 0 | D13: 0 | E13: 0 | F13: 0 | G13: 0 | H13: 0 | I13: 0 | K13: =SUM(K14:K16) -> 0
A14: Drainage Collection | I14: 0
A15: Storm water Conveyance | I15: 0
A16: Attenuation | I16: 0
A17: Electrical Infrastructure | C17: =SUM(C18:C26) -> 0 | D17: 194000000 | E17: 0 | F17: 0 | G17: 0 | H17: 16166666.67 | I17: 16166666.67 | J17: 1 | K17: =SUM(K18:K26) -> 194000000
A18: Power Plants | D18: 194000000 | H18: =D18/12*Instructions!X10 -> 16166666.67 | I18: 16166666.67 | J18: 1 | K18: =D18 -> 194000000
A19: HV Substations | I19: 0
A20: HV Switching Station | I20: 0
A21: HV Transmission Conductors | I21: 0
A22: MV Substations | I22: 0
A23: MV Switching Stations | I23: 0
A24: MV Networks | I24: 0
A25: LV Networks | I25: 0
A26: Capital Spares | I26: 0
A27: Water Supply Infrastructure | C27: =SUM(C28:C37) -> 0 | D27: 29860000 | E27: 0 | F27: 0 | G27: 0 | H27: 2488333.333 | I27: 2488333.333 | J27: 1 | K27: =SUM(K28:K37) -> 29860000
A28: Dams and Weirs | I28: 0
A29: Boreholes | I29: 0
A30: Reservoirs | D30: 29860000 | H30: =D30/12*Instructions!X10 -> 2488333.333 | I30: 2488333.333 | J30: 1 | K30: =D30 -> 29860000
A31: Pump Stations | I31: 0
A32: Water Treatment Works | I32: 0
A33: Bulk Mains | I33: 0
A34: Distribution | I34: 0
A35: Distribution Points | I35: 0
A36: PRV Stations | I36: 0
A37: Capital Spares | I37: 0
A38: Sanitation Infrastructure | C38: =SUM(C39:C44) -> 0 | D38: 65477640 | E38: 0 | F38: 5131176.91 | G38: 5131176.91 | H38: 5456470 | I38: 325293.09 | J38: 0.05961603198 | K38: =SUM(K39:K44) -> 65477640
A39: Pump Station | I39: 0
A40: Reticulation | D40: 65477640 | F40: 5131176.91 | G40: 5131176.91 | H40: =D40/12*Instructions!X10 -> 5456470 | I40: =H40-G40 -> 325293.09 | J40: =IF(I40=0,"",I40/H40) -> 0.05961603198 | K40: =D40 -> 65477640
A41: Waste Water Treatment Works | I41: =H41-G41 -> 0 | J41: =IF(I41=0,"",I41/H41) -> 
A42: Outfall Sewers | I42: =H42-G42 -> 0 | J42: =IF(I42=0,"",I42/H42) -> 
A43: Toilet Facilities | I43: 0
A44: Capital Spares | I44: 0
A45: Solid Waste Infrastructure | C45: =SUM(C46:C52) -> 0 | D45: 0 | E45: 0 | F45: 0 | G45: 0 | H45: 0 | I45: 0 | K45: =SUM(K46:K52) -> 0
A46: Landfill Sites | I46: 0
A47: Waste Transfer Stations | I47: 0
A48: Waste Processing Facilities | I48: =H48-G48 -> 0 | J48: =IF(I48=0,"",I48/H48) -> 
A49: Waste Drop-off Points | I49: 0
A50: Waste Separation Facilities | I50: 0
A51: Electricity Generation Facilities | I51: 0
A52: Capital Spares | I52: 0
A53: Rail Infrastructure | C53: =SUM(C54:C62) -> 0 | D53: 0 | E53: 0 | F53: 0 | G53: 0 | H53: 0 | I53: 0 | K53: =SUM(K54:K62) -> 0
A54: Rail Lines | I54: 0
A55: Rail Structures | I55: 0
A56: Rail Furniture | I56: 0
A57: Drainage Collection | I57: 0
A58: Storm water Conveyance | I58: 0
A59: Attenuation | I59: 0
A60: MV Substations | I60: 0
A61: LV Networks | I61: 0
A62: Capital Spares | I62: 0
A63: Coastal Infrastructure | C63: =SUM(C64:C68) -> 0 | D63: 0 | E63: 0 | F63: 0 | G63: 0 | H63: 0 | I63: 0 | K63: =SUM(K64:K68) -> 0
A64: Sand Pumps | I64: 0
A65: Piers | I65: 0
A66: Revetments | I66: 0
A67: Promenades | I67: 0
A68: Capital Spares | I68: 0
A69: Information and Communication Infrastructure | C69: =SUM(C70:C73) -> 0 | D69: 0 | E69: 0 | F69: 0 | G69: 0 | H69: 0 | I69: =H69-G69 -> 0 | K69: =SUM(K70:K73) -> 0
A70: Data Centres | I70: =H70-G70 -> 0
A71: Core Layers | I71: =H71-G71 -> 0 | J71: =IF(I71=0,"",I71/H71) -> 
A72: Distribution Layers | I72: =H72-G72 -> 0
A73: Capital Spares | I73: =H73-G73 -> 0
A75: Community Assets | C75: =+C76+C99 -> 0 | D75: 25607499.05 | E75: 0 | F75: 2571547.59 | G75: 2571547.59 | H75: 2133958.254 | I75: =H75-G75 -> -437589.3358 | J75: -0.2050599326 | K75: =+K76+K99 -> 25607499.05
A76: Community Facilities | C76: =SUM(C77:C98) -> 0 | D76: 25607499.05 | E76: 0 | F76: 2571547.59 | G76: 2571547.59 | H76: 2133958.254 | I76: =H76-G76 -> -437589.3358 | J76: -0.2050599326 | K76: =SUM(K77:K98) -> 25607499.05
A77: Halls | D77: 25607499.05 | F77: 2571547.59 | G77: 2571547.59 | H77: =D77/12*Instructions!X10 -> 2133958.254 | I77: -437589.3358 | J77: -0.2050599326 | K77: =D77 -> 25607499.05
A78: Centres | I78: 0
A79: Crèches | I79: 0
A80: Clinics/Care Centres | I80: 0
A81: Fire/Ambulance Stations | I81: 0
A82: Testing Stations | I82: 0
A83: Museums | I83: 0
A84: Galleries | I84: 0
A85: Theatres | I85: 0
A86: Libraries | I86: 0
A87: Cemeteries/Crematoria | I87: 0
A88: Police | I88: 0
A89: Purls | I89: 0
A90: Public Open Space | I90: 0
A91: Nature Reserves | I91: 0
A92: Public Ablution Facilities | I92: 0
A93: Markets | I93: 0
A94: Stalls | I94: 0
A95: Abattoirs | I95: 0
A96: Airports | I96: 0
A97: Taxi Ranks/Bus Terminals | I97: 0
A98: Capital Spares | I98: 0
A99: Sport and Recreation Facilities | C99: =SUM(C100:C102) -> 0 | D99: 0 | E99: 0 | F99: 0 | G99: 0 | H99: 0 | I99: 0 | K99: =SUM(K100:K102) -> 0
A100: Indoor Facilities | I100: 0
A101: Outdoor Facilities | I101: 0
A102: Capital Spares | I102: 0
A103: Heritage assets | C103: =SUM(C104:C108) -> 0 | D103: 0 | E103: 0 | F103: 0 | G103: 0 | H103: 0 | I103: 0 | K103: =SUM(K104:K108) -> 0
A104: Monuments | I104: 0
A105: Historic Buildings | I105: 0
A106: Works of Art | I106: 0
A107: Conservation Areas | I107: 0
A108: Other Heritage | I108: 0
I109: 0
A110: Investment properties | C110: =+C111+C114 -> 0 | D110: 0 | E110: 0 | F110: 0 | G110: 0 | H110: 0 | I110: 0 | K110: =+K111+K114 -> 0
A111: Revenue Generating | C111: =SUM(C112:C113) -> 0 | D111: 0 | E111: 0 | F111: 0 | G111: 0 | H111: 0 | I111: 0 | K111: =SUM(K112:K113) -> 0
A112: Improved Property | I112: 0
A113: Unimproved Property | I113: 0
A114: Non-revenue Generating | C114: =SUM(C115:C116) -> 0 | D114: 0 | E114: 0 | F114: 0 | G114: 0 | H114: 0 | I114: 0 | K114: =SUM(K115:K116) -> 0
A115: Improved Property | I115: 0
A116: Unimproved Property | I116: 0
A117: Other assets | C117: =+C118+C130 -> 0 | D117: 145545414.9 | E117: 0 | F117: 2617860.53 | G117: 2617860.53 | H117: 12128784.58 | I117: 9510924.049 | J117: 0.7841613467 | K117: =+K118+K130 -> 145545414.9
A118: Operational Buildings | C118: =SUM(C119:C129) -> 0 | D118: 10000000 | E118: 0 | F118: 2617860.53 | G118: 2617860.53 | H118: 833333.3333 | I118: -1784527.197 | J118: -2.141432636 | K118: =SUM(K119:K129) -> 10000000
A119: Municipal Offices | I119: 0
A120: Pay/Enquiry Points | I120: 0
A121: Building Plan Offices | I121: 0
A122: Workshops | D122: 10000000 | F122: 2617860.53 | G122: 2617860.53 | H122: =D122/12*Instructions!X10 -> 833333.3333 | I122: -1784527.197 | J122: -2.141432636 | K122: =D122 -> 10000000
A123: Yards | I123: 0
A124: Stores | I124: 0
A125: Laboratories | I125: 0
A126: Training Centres | I126: 0
A127: Manufacturing Plant | I127: 0
A128: Depots | I128: 0
A129: Capital Spares | I129: 0
A130: Housing | C130: =SUM(C131:C133) -> 0 | D130: 135545414.9 | E130: 0 | F130: 0 | G130: 0 | H130: 11295451.25 | I130: 11295451.25 | J130: 1 | K130: =SUM(K131:K133) -> 135545414.9
A131: Staff Housing | I131: 0
A132: Social Housing | D132: 135545414.9 | H132: =D132/12*Instructions!X10 -> 11295451.25 | I132: 11295451.25 | J132: 1 | K132: =D132 -> 135545414.9
A133: Capital Spares | I133: 0
A135: Biological or Cultivated Assets | C135: =SUM(C136:C136) -> 0 | D135: 0 | E135: 0 | F135: 0 | G135: 0 | H135: 0 | I135: =H135-G135 -> 0 | J135: =IF(I135=0,"",I135/H135) ->  | K135: =SUM(K136) -> 0
A136: Biological or Cultivated Assets | I136: =H136-G136 -> 0
A138: Intangible Assets | C138: =SUM(C139:C140) -> 0 | D138: 30000000 | E138: 0 | F138: 0 | G138: 0 | H138: 2500000 | I138: =H138-G138 -> 2500000 | J138: 1 | K138: =SUM(K139:K140) -> 30000000
A139: Servitudes | D139: 30000000 | H139: =D139/12*Instructions!X10 -> 2500000 | I139: 2500000 | J139: 1 | K139: =D139 -> 30000000
A140: Licences and Rights | C140: =SUM(C141:C146) -> 0 | D140: 0 | E140: 0 | F140: 0 | G140: 0 | H140: 0 | I140: 0 | K140: =SUM(K141:K146) -> 0
A141: Water Rights | I141: 0
A142: Effluent Licenses | I142: 0
A143: Solid Waste Licenses | I143: 0
A144: Computer Software and Applications | I144: 0
A145: Load Settlement Software Applications | I145: 0
A146: Unspecified | I146: 0
A148: Computer Equipment | C148: =SUM(C149:C149) -> 0 | D148: 0 | E148: 0 | F148: 0 | G148: 0 | H148: 0 | I148: =H148-G148 -> 0 | J148: =IF(I148=0,"",I148/H148) ->  | K148: =SUM(K149) -> 0
A149: Computer Equipment | I149: =H149-G149 -> 0 | J149: =IF(I149=0,"",I149/H149) -> 
A151: Furniture and Office Equipment | C151: =SUM(C152:C152) -> 0 | D151: 15000000 | E151: 0 | F151: 0 | G151: 0 | H151: 1250000 | I151: =H151-G151 -> 1250000 | J151: =IF(I151=0,"",I151/H151) -> 1 | K151: =SUM(K152) -> 15000000
A152: Furniture and Office Equipment | D152: 15000000 | H152: =D152/12*Instructions!X10 -> 1250000 | I152: =H152-G152 -> 1250000 | J152: =IF(I152=0,"",I152/H152) -> 1 | K152: =D152 -> 15000000
J153: =IF(I153=0,"",I153/H153) -> 
A154: Machinery and Equipment | C154: =SUM(C155:C155) -> 0 | D154: 199000 | E154: 0 | F154: 0 | G154: 0 | H154: 16583.33333 | I154: =H154-G154 -> 16583.33333 | J154: =IF(I154=0,"",I154/H154) -> 1 | K154: =SUM(K155) -> 199000
A155: Machinery and Equipment | D155: 199000 | H155: =D155/12*Instructions!X10 -> 16583.33333 | I155: =H155-G155 -> 16583.33333 | J155: =IF(I155=0,"",I155/H155) -> 1 | K155: =D155 -> 199000
A157: Transport Assets | C157: =SUM(C158:C158) -> 0 | D157: 0 | E157: 0 | F157: 0 | G157: 0 | H157: 0 | I157: =H157-G157 -> 0 | J157: =IF(I157=0,"",I157/H157) ->  | K157: =SUM(K158) -> 0
A158: Transport Assets | I158: =H158-G158 -> 0 | J158: =IF(I158=0,"",I158/H158) -> 
A160: Land | C160: =SUM(C161:C161) -> 0 | D160: 0 | E160: 0 | F160: 0 | G160: 0 | H160: 0 | I160: =H160-G160 -> 0 | J160: =IF(I160=0,"",I160/H160) ->  | K160: =SUM(K161) -> 0
A161: Land | I161: =H161-G161 -> 0 | J161: =IF(I161=0,"",I161/H161) -> 
A163: Zoo's, Marine and Non-biological Animals | C163: =SUM(C164:C164) -> 0 | D163: 0 | E163: 0 | F163: 0 | G163: 0 | H163: 0 | I163: =H163-G163 -> 0 | J163: =IF(I163=0,"",I163/H163) ->  | K163: =SUM(K164) -> 0
A164: Zoo's, Marine and Non-biological Animals | I164: =H164-G164 -> 0 | J164: =IF(I164=0,"",I164/H164) -> 
A166: Living resources | C166: =+C167+C170 -> 0 | D166: 0 | E166: 0 | F166: 0 | G166: 0 | H166: 0 | I166: =H166-G166 -> 0 | J166: =IF(I166=0,"",I166/H166) ->  | K166: 0
A167: Mature | C167: =+C168+C169 -> 0 | D167: 0 | E167: 0 | F167: 0 | G167: 0 | H167: 0 | I167: 0 | K167: 0
A168: Policing and Protection | I168: 0
A169: Zoological plants and animals | I169: 0
A170: Immature | C170: =+C171+C172 -> 0 | D170: =+D171+D172 -> 0 | E170: 0 | F170: 0 | G170: 0 | H170: 0 | I170: 0 | K170: =+K171+K172 -> 0
A171: Policing and Protection | I171: 0
A172: Zoological plants and animals | I172: 0
A173: Total Capital Expenditure on new assets | B173: 1 | C173: =C7+C75+C103+C110+C117+C135+C138+C148+C151+C154+C157+C160+C163+C166 -> 0 | D173: 507939554 | E173: 0 | F173: 10369146.52 | G173: 10369146.52 | H173: 42328296.17 | I173: =H173-G173 -> 31959149.65 | J173: =IF(I173=0,"",I173/H173) -> 0.7550303825 | K173: =K7+K75+K103+K110+K117+K135+K138+K148+K151+K154+K157+K160+K163+K166 -> 507939554
A175: =head27a -> References
A176: 1. Total Capital Expenditure on new assets (SC13a) plus Total Capital Expenditure on renewal of existing assets (SC13b) plus Total Capital Expenditure on upgrading of existing assets (SC13e) must reconcile to total capital expenditure in Table C5
A178: check balance | C178: =C173+SC13b!C173+SC13e!C173-'C5-Capex'!C40 -> 0 | D178: =D173+SC13b!D173+SC13e!D173-'C5-Capex'!D40 -> 0 | E178: =E173+SC13b!E173+SC13e!E173-'C5-Capex'!E40 -> 0 | F178: =F173+SC13b!F173+SC13e!F173-'C5-Capex'!F40 -> 0 | G178: =G173+SC13b!G173+SC13e!G173-'C5-Capex'!G40 -> 0 | H178: =H173+SC13b!H173+SC13e!H173-'C5-Capex'!H40 -> 0 | K178: =K173+SC13b!K173+SC13e!K173-'C5-Capex'!K40 -> 0

Sheet SC13b
A1: =muni& " - "&S71Sb& " - "&Head57 -> KZN225 Msunduzi - Supporting Table SC13b Monthly Budget Statement - capital expenditure on renewal of existing assets by asset class - M01 July
A2: =desc -> Description | B2: =head27 -> Ref | C2: =Head1 -> 2022/23 | D2: =Head2 -> Budget Year 2023/24
C3: =Head5 -> Audited Outcome | D3: =Head6 -> Original Budget | E3: =Head7 -> Adjusted Budget | F3: =Head38 -> Monthly actual | G3: =Head39 -> YearTD actual | H3: =Head40 -> YearTD budget | I3: =Head41 -> YTD variance | J3: =Head41 -> YTD variance | K3: =Head8 -> Full Year Forecast
A4: R thousands | B4: 1 | J4: %
A5: Capital expenditure on renewal of existing assets by Asset Class/Sub-class
A7: Infrastructure | C7: =C8+C13+C17+C27+C38+C45+C53+C63+C69 -> 0 | D7: 47356000 | E7: 0 | F7: -5862483.64 | G7: -5862483.64 | H7: 3946333.333 | I7: =H7-G7 -> 9808816.973 | J7: =IF(I7=0,"",I7/H7) -> 2.485552067 | K7: =K8+K13+K17+K27+K38+K45+K53+K63+K69 -> 47356000
A8: Roads Infrastructure | C8: =SUM(C9:C12) -> 0 | D8: 33150000 | E8: 0 | F8: -5862483.64 | G8: -5862483.64 | H8: 2762500 | I8: 8624983.64 | J8: 3.122166024 | K8: =SUM(K9:K12) -> 33150000
A9: Roads | D9: 33150000 | F9: -5862483.64 | G9: -5862483.64 | H9: =D9/12*Instructions!X10 -> 2762500 | I9: 8624983.64 | J9: 3.122166024 | K9: =D9 -> 33150000
A10: Road Structures | I10: 0
A11: Road Furniture | I11: 0
A12: Capital Spares | I12: 0
A13: Storm water Infrastructure | C13: =SUM(C14:C16) -> 0 | D13: 0 | E13: 0 | F13: 0 | G13: 0 | H13: 0 | I13: 0 | K13: =SUM(K14:K16) -> 0
A14: Drainage Collection | I14: 0
A15: Storm water Conveyance | I15: 0
A16: Attenuation | I16: 0
A17: Electrical Infrastructure | C17: =SUM(C18:C26) -> 0 | D17: 0 | E17: 0 | F17: 0 | G17: 0 | H17: 0 | I17: 0 | K17: =SUM(K18:K26) -> 0
A18: Power Plants | I18: 0
A19: HV Substations | I19: 0
A20: HV Switching Station | I20: 0
A21: HV Transmission Conductors | I21: 0
A22: MV Substations | I22: 0
A23: MV Switching Stations | I23: 0
A24: MV Networks | I24: 0
A25: LV Networks | I25: 0
A26: Capital Spares | I26: 0
A27: Water Supply Infrastructure | C27: =SUM(C28:C37) -> 0 | D27: 0 | E27: 0 | F27: 0 | G27: 0 | H27: 0 | I27: 0 | K27: =SUM(K28:K37) -> 0
A28: Dams and Weirs | I28: 0
A29: Boreholes | I29: 0
A30: Reservoirs | I30: 0
A31: Pump Stations | I31: 0
A32: Water Treatment Works | I32: 0
A33: Bulk Mains | I33: 0
A34: Distribution | I34: 0
A35: Distribution Points | I35: 0
A36: PRV Stations | I36: 0
A37: Capital Spares | I37: 0
A38: Sanitation Infrastructure | C38: =SUM(C39:C44) -> 0 | D38: 0 | E38: 0 | F38: 0 | G38: 0 | H38: 0 | I38: 0 | K38: =SUM(K39:K44) -> 0
A39: Pump Station | I39: 0
A40: Reticulation | I40: 0
A41: Waste Water Treatment Works | I41: 0
A42: Outfall Sewers | I42: 0
A43: Toilet Facilities | I43: 0
A44: Capital Spares | I44: 0
A45: Solid Waste Infrastructure | C45: =SUM(C46:C52) -> 0 | D45: 0 | E45: 0 | F45: 0 | G45: 0 | H45: 0 | I45: 0 | K45: =SUM(K46:K52) -> 0
A46: Landfill Sites | I46: 0
A47: Waste Transfer Stations | I47: 0
A48: Waste Processing Facilities | I48: 0
A49: Waste Drop-off Points | I49: 0
A50: Waste Separation Facilities | I50: 0
A51: Electricity Generation Facilities | I51: 0
A52: Capital Spares | I52: 0
A53: Rail Infrastructure | C53: =SUM(C54:C62) -> 0 | D53: 0 | E53: 0 | F53: 0 | G53: 0 | H53: 0 | I53: 0 | K53: =SUM(K54:K62) -> 0
A54: Rail Lines | I54: 0
A55: Rail Structures | I55: 0
A56: Rail Furniture | I56: 0
A57: Drainage Collection | I57: 0
A58: Storm water Conveyance | I58: 0
A59: Attenuation | I59: 0
A60: MV Substations | I60: 0
A61: LV Networks | I61: 0
A62: Capital Spares | I62: 0
A63: Coastal Infrastructure | C63: =SUM(C64:C68) -> 0 | D63: 14206000 | E63: 0 | F63: 0 | G63: 0 | H63: 1183833.333 | I63: 1183833.333 | J63: 1 | K63: =SUM(K64:K68) -> 14206000
A64: Sand Pumps | I64: 0
A65: Piers | I65: 0
A66: Revetments | I66: 0
A67: Promenades | D67: 14206000 | H67: =D67/12*Instructions!X10 -> 1183833.333 | I67: 1183833.333 | J67: 1 | K67: =D67 -> 14206000
A68: Capital Spares | I68: 0
A69: Information and Communication Infrastructure | C69: =SUM(C70:C73) -> 0 | D69: 0 | E69: 0 | F69: 0 | G69: 0 | H69: 0 | I69: 0 | K69: =SUM(K70:K73) -> 0
A70: Data Centres | I70: 0
A71: Core Layers | I71: 0
A72: Distribution Layers | I72: 0
A73: Capital Spares | I73: 0
A75: Community Assets | C75: =+C76+C99 -> 0 | D75: 8000000 | E75: 0 | F75: 0 | G75: 0 | H75: 666666.6667 | I75: 666666.6667 | J75: 1 | K75: =+K76+K99 -> 8000000
A76: Community Facilities | C76: =SUM(C77:C98) -> 0 | D76: 8000000 | E76: 0 | F76: 0 | G76: 0 | H76: 666666.6667 | I76: 666666.6667 | J76: 1 | K76: =SUM(K77:K98) -> 8000000
A77: Halls | I77: 0
A78: Centres | I78: 0
A79: Crèches | I79: 0
A80: Clinics/Care Centres | I80: 0
A81: Fire/Ambulance Stations | I81: 0
A82: Testing Stations | I82: 0
A83: Museums | I83: 0
A84: Galleries | I84: 0
A85: Theatres | I85: 0
A86: Libraries | I86: 0
A87: Cemeteries/Crematoria | I87: 0
A88: Police | I88: 0
A89: Purls | I89: 0
A90: Public Open Space | I90: 0
A91: Nature Reserves | I91: 0
A92: Public Ablution Facilities | I92: 0
A93: Markets | D93: 8000000 | H93: =D93/12*Instructions!X10 -> 666666.6667 | I93: 666666.6667 | J93: 1 | K93: =D93 -> 8000000
A94: Stalls | I94: 0
A95: Abattoirs | I95: 0
A96: Airports | I96: 0
A97: Taxi Ranks/Bus Terminals | I97: 0
A98: Capital Spares | I98: 0
A99: Sport and Recreation Facilities | C99: =SUM(C100:C102) -> 0 | D99: 0 | E99: 0 | F99: 0 | G99: 0 | H99: 0 | I99: 0 | K99: =SUM(K100:K102) -> 0
A100: Indoor Facilities | I100: 0
A101: Outdoor Facilities | I101: =H101-G101 -> 0 | J101: =IF(I101=0,"",I101/H101) -> 
A102: Capital Spares | I102: 0
A103: Heritage assets | C103: =SUM(C104:C108) -> 0 | D103: 0 | E103: 0 | F103: 0 | G103: 0 | H103: 0 | I103: 0 | K103: =SUM(K104:K108) -> 0
A104: Monuments | I104: 0
A105: Historic Buildings | I105: 0
A106: Works of Art | I106: 0
A107: Conservation Areas | I107: 0
A108: Other Heritage | I108: 0
I109: 0
A110: Investment properties | C110: =+C111+C114 -> 0 | D110: 0 | E110: 0 | F110: 0 | G110: 0 | H110: 0 | I110: 0 | K110: =+K111+K114 -> 0
A111: Revenue Generating | C111: =SUM(C112:C113) -> 0 | D111: 0 | E111: 0 | F111: 0 | G111: 0 | H111: 0 | I111: 0 | K111: =SUM(K112:K113) -> 0
A112: Improved Property | I112: 0
A113: Unimproved Property | I113: 0
A114: Non-revenue Generating | C114: =SUM(C115:C116) -> 0 | D114: 0 | E114: 0 | F114: 0 | G114: 0 | H114: 0 | I114: 0 | K114: =SUM(K115:K116) -> 0
A115: Improved Property | I115: 0
A116: Unimproved Property | I116: =H116-G116 -> 0 | J116: =IF(I116=0,"",I116/H116) -> 
A117: Other assets | C117: =+C118+C130 -> 0 | D117: 0 | E117: 0 | F117: 0 | G117: 0 | H117: 0 | I117: 0 | K117: =+K118+K130 -> 0
A118: Operational Buildings | C118: =SUM(C119:C129) -> 0 | D118: 0 | E118: 0 | F118: 0 | G118: 0 | H118: 0 | I118: 0 | K118: =SUM(K119:K129) -> 0
A119: Municipal Offices | I119: 0
A120: Pay/Enquiry Points | I120: 0
A121: Building Plan Offices | I121: 0
A122: Workshops | I122: 0
A123: Yards | I123: 0
A124: Stores | I124: 0
A125: Laboratories | I125: 0
A126: Training Centres | I126: 0
A127: Manufacturing Plant | I127: 0
A128: Depots | I128: 0
A129: Capital Spares | I129: 0
A130: Housing | C130: =SUM(C131:C133) -> 0 | D130: 0 | E130: 0 | F130: 0 | G130: 0 | H130: 0 | I130: 0 | K130: =SUM(K131:K133) -> 0
A131: Staff Housing | I131: 0
A132: Social Housing | I132: 0
A133: Capital Spares | I133: 0
A135: Biological or Cultivated Assets | C135: =SUM(C136:C136) -> 0 | D135: 0 | E135: 0 | F135: 0 | G135: 0 | H135: 0 | I135: =H135-G135 -> 0 | K135: =SUM(K136) -> 0
A136: Biological or Cultivated Assets | I136: =H136-G136 -> 0
J137: =IF(I137=0,"",I137/H137) -> 
A138: Intangible Assets | C138: =SUM(C139:C140) -> 0 | D138: 0 | E138: 0 | F138: 0 | G138: 0 | H138: 0 | I138: =H138-G138 -> 0 | K138: =SUM(K139:K140) -> 0
A139: Servitudes | I139: 0
A140: Licences and Rights | C140: =SUM(C141:C146) -> 0 | D140: 0 | E140: 0 | F140: 0 | G140: 0 | H140: 0 | I140: 0 | K140: =SUM(K141:K146) -> 0
A141: Water Rights | I141: 0
A142: Effluent Licenses | I142: 0
A143: Solid Waste Licenses | I143: 0
A144: Computer Software and Applications | I144: 0
A145: Load Settlement Software Applications | I145: 0
A146: Unspecified | I146: 0
A148: Computer Equipment | C148: =SUM(C149:C149) -> 0 | D148: 0 | E148: 0 | F148: 0 | G148: 0 | H148: 0 | I148: =H148-G148 -> 0 | J148: =IF(I148=0,"",I148/H148) ->  | K148: =SUM(K149) -> 0
A149: Computer Equipment | I149: =H149-G149 -> 0 | J149: =IF(I149=0,"",I149/H149) -> 
A151: Furniture and Office Equipment | C151: =SUM(C152:C152) -> 0 | D151: 0 | E151: 0 | F151: 0 | G151: 0 | H151: 0 | I151: =H151-G151 -> 0 | J151: =IF(I151=0,"",I151/H151) ->  | K151: =SUM(K152) -> 0
A152: Furniture and Office Equipment | I152: =H152-G152 -> 0 | J152: =IF(I152=0,"",I152/H152) -> 
J153: =IF(I153=0,"",I153/H153) -> 
A154: Machinery and Equipment | C154: =SUM(C155:C155) -> 0 | D154: 0 | E154: 0 | F154: 0 | G154: 0 | H154: 0 | I154: =H154-G154 -> 0 | J154: =IF(I154=0,"",I154/H154) ->  | K154: =SUM(K155) -> 0
A155: Machinery and Equipment | I155: =H155-G155 -> 0 | J155: =IF(I155=0,"",I155/H155) -> 
A157: Transport Assets | C157: =SUM(C158:C158) -> 0 | D157: 0 | E157: 0 | F157: 0 | G157: 0 | H157: 0 | I157: =H157-G157 -> 0 | J157: =IF(I157=0,"",I157/H157) ->  | K157: =SUM(K158) -> 0
A158: Transport Assets | I158: =H158-G158 -> 0 | J158: =IF(I158=0,"",I158/H158) -> 
A160: Land | C160: =SUM(C161:C161) -> 0 | D160: 0 | E160: 0 | F160: 0 | G160: 0 | H160: 0 | I160: =H160-G160 -> 0 | J160: =IF(I160=0,"",I160/H160) ->  | K160: =SUM(K161) -> 0
A161: Land | I161: =H161-G161 -> 0 | J161: =IF(I161=0,"",I161/H161) -> 
J162: .
A163: Zoo's, Marine and Non-biological Animals | C163: =SUM(C164:C164) -> 0 | D163: 0 | E163: 0 | F163: 0 | G163: 0 | H163: 0 | I163: =H163-G163 -> 0 | J163: =IF(I163=0,"",I163/H163) ->  | K163: =SUM(K164) -> 0
A164: Zoo's, Marine and Non-biological Animals | I164: =H164-G164 -> 0 | J164: =IF(I164=0,"",I164/H164) -> 
A166: Living resources | C166: =+C167+C170 -> 0 | D166: 0 | E166: 0 | F166: 0 | G166: 0 | H166: 0 | I166: =H166-G166 -> 0 | J166: =IF(I166=0,"",I166/H166) ->  | K166: =+K167+K170 -> 0
A167: Mature | C167: =+C168+C169 -> 0 | D167: 0 | E167: 0 | F167: 0 | G167: 0 | H167: 0 | I167: 0 | K167: =+K168+K169 -> 0
A168: Policing and Protection | I168: 0
A169: Zoological plants and animals | I169: 0
A170: Immature | C170: =+C171+C172 -> 0 | D170: 0 | E170: 0 | F170: 0 | G170: 0 | H170: 0 | I170: 0 | K170: =+K171+K172 -> 0
A171: Policing and Protection | I171: 0
A172: Zoological plants and animals | I172: 0
A173: Total Capital Expenditure on renewal of existing assets | B173: 1 | C173: =C7+C75+C103+C110+C117+C135+C138+C148+C151+C154+C157+C160+C163+C166 -> 0 | D173: 55356000 | E173: 0 | F173: -5862483.64 | G173: -5862483.64 | H173: 4613000 | I173: =H173-G173 -> 10475483.64 | J173: =IF(I173=0,"",I173/H173) -> 2.2708614 | K173: =K7+K75+K103+K110+K117+K135+K138+K148+K151+K154+K157+K160+K163+K166 -> 55356000
A175: =head27a -> References
A176: 1. Total Capital Expenditure on new assets (SC13a) plus Total Capital Expenditure on renewal of existing assets (SC13b) plus Total Capital Expenditure on upgrading of existing assets (SC13e) must reconcile to total capital expenditure in Table C5
A178: check balance | C178: =C173+SC13a!C173+SC13e!C173-'C5-Capex'!C40 -> 0 | D178: =D173+SC13a!D173+SC13e!D173-'C5-Capex'!D40 -> 0 | E178: =E173+SC13a!E173+SC13e!E173-'C5-Capex'!E40 -> 0 | F178: =F173+SC13a!F173+SC13e!F173-'C5-Capex'!F40 -> 0 | G178: =G173+SC13a!G173+SC13e!G173-'C5-Capex'!G40 -> 0 | H178: =H173+SC13a!H173+SC13e!H173-'C5-Capex'!H40 -> 0 | K178: =K173+SC13a!K173+SC13e!K173-'C5-Capex'!K40 -> 0

Sheet SC13c
A1: =muni& " - "&S71Sc& " - "&Head57 -> KZN225 Msunduzi - Supporting Table SC13c Monthly Budget Statement - expenditure on repairs and maintenance by asset class - M01 July
A2: =desc -> Description | B2: =head27 -> Ref | C2: =Head1 -> 2022/23 | D2: =Head2 -> Budget Year 2023/24
C3: =Head5 -> Audited Outcome | D3: =Head6 -> Original Budget | E3: =Head7 -> Adjusted Budget | F3: =Head38 -> Monthly actual | G3: =Head39 -> YearTD actual | H3: =Head40 -> YearTD budget | I3: =Head41 -> YTD variance | J3: =Head41 -> YTD variance | K3: =Head8 -> Full Year Forecast
A4: R thousands | B4: 1 | J4: %
A5: Repairs and maintenance expenditure by Asset Class/Sub-class
A7: Infrastructure | C7: =C8+C13+C17+C27+C38+C45+C53+C63+C69 -> 0 | D7: 169862603.1 | E7: 0 | F7: 4276101.7 | G7: 4276101.7 | H7: 14155216.92 | I7: =H7-G7 -> 9879115.225 | J7: =IF(I7=0,"",I7/H7) -> 0.6979133755 | K7: =K8+K13+K17+K27+K38+K45+K53+K63+K69 -> 169862603.1
A8: Roads Infrastructure | C8: =SUM(C9:C12) -> 0 | D8: 0 | E8: 0 | F8: 0 | G8: 0 | H8: 0 | I8: 0 | K8: =SUM(K9:K12) -> 0
A9: Roads | I9: 0
A10: Road Structures | I10: 0
A11: Road Furniture | I11: 0
A12: Capital Spares | I12: 0
A13: Storm water Infrastructure | C13: =SUM(C14:C16) -> 0 | D13: 0 | E13: 0 | F13: 0 | G13: 0 | H13: 0 | I13: 0 | K13: =SUM(K14:K16) -> 0
A14: Drainage Collection | I14: 0
A15: Storm water Conveyance | I15: 0
A16: Attenuation | I16: 0
A17: Electrical Infrastructure | C17: =SUM(C18:C26) -> 0 | D17: 161182203.1 | E17: 0 | F17: 3070243.05 | G17: 3070243.05 | H17: 13431850.26 | I17: 10361607.21 | J17: 0.771420691 | K17: =SUM(K18:K26) -> 161182203.1
A18: Power Plants | D18: 161182203.1 | F18: 3070243.05 | G18: 3070243.05 | H18: =D18/12*Instructions!X10 -> 13431850.26 | I18: 10361607.21 | J18: 0.771420691 | K18: =D18 -> 161182203.1
A19: HV Substations | I19: 0
A20: HV Switching Station | I20: 0
A21: HV Transmission Conductors | I21: 0
A22: MV Substations | I22: 0
A23: MV Switching Stations | I23: 0
A24: MV Networks | I24: 0
A25: LV Networks | I25: 0
A26: Capital Spares | I26: 0
A27: Water Supply Infrastructure | C27: =SUM(C28:C37) -> 0 | D27: 8680400 | E27: 0 | F27: 1205858.65 | G27: 1205858.65 | H27: 723366.6667 | I27: -482491.9833 | J27: -0.6670088706 | K27: =SUM(K28:K37) -> 8680400
A28: Dams and Weirs | I28: 0
A29: Boreholes | I29: 0
A30: Reservoirs | D30: 8680400 | F30: 1205858.65 | G30: 1205858.65 | H30: =D30/12*Instructions!X10 -> 723366.6667 | I30: -482491.9833 | J30: -0.6670088706 | K30: =D30 -> 8680400
A31: Pump Stations | I31: 0
A32: Water Treatment Works | I32: 0
A33: Bulk Mains | I33: 0
A34: Distribution | I34: 0
A35: Distribution Points | I35: 0
A36: PRV Stations | I36: 0
A37: Capital Spares | I37: 0
A38: Sanitation Infrastructure | C38: =SUM(C39:C44) -> 0 | D38: 0 | E38: 0 | F38: 0 | G38: 0 | H38: 0 | I38: 0 | K38: =SUM(K39:K44) -> 0
A39: Pump Station | I39: 0
A40: Reticulation | I40: 0
A41: Waste Water Treatment Works | I41: 0
A42: Outfall Sewers | I42: 0
A43: Toilet Facilities | I43: 0
A44: Capital Spares | I44: 0
A45: Solid Waste Infrastructure | C45: =SUM(C46:C52) -> 0 | D45: 0 | E45: 0 | F45: 0 | G45: 0 | H45: 0 | I45: 0 | K45: =SUM(K46:K52) -> 0
A46: Landfill Sites | I46: 0
A47: Waste Transfer Stations | I47: 0
A48: Waste Processing Facilities | I48: 0
A49: Waste Drop-off Points | I49: 0
A50: Waste Separation Facilities | I50: 0
A51: Electricity Generation Facilities | I51: 0
A52: Capital Spares | I52: 0
A53: Rail Infrastructure | C53: =SUM(C54:C62) -> 0 | D53: 0 | E53: 0 | F53: 0 | G53: 0 | H53: 0 | I53: 0 | K53: =SUM(K54:K62) -> 0
A54: Rail Lines | I54: 0
A55: Rail Structures | I55: 0
A56: Rail Furniture | I56: 0
A57: Drainage Collection | I57: 0
A58: Storm water Conveyance | I58: 0
A59: Attenuation | I59: 0
A60: MV Substations | I60: 0
A61: LV Networks | I61: 0
A62: Capital Spares | I62: 0
A63: Coastal Infrastructure | C63: =SUM(C64:C68) -> 0 | D63: 0 | E63: 0 | F63: 0 | G63: 0 | H63: 0 | I63: 0 | K63: =SUM(K64:K68) -> 0
A64: Sand Pumps | I64: 0
A65: Piers | I65: 0
A66: Revetments | I66: 0
A67: Promenades | I67: 0
A68: Capital Spares | I68: 0
A69: Information and Communication Infrastructure | C69: =SUM(C70:C73) -> 0 | D69: 0 | E69: 0 | F69: 0 | G69: 0 | H69: 0 | I69: 0 | K69: =SUM(K70:K73) -> 0
A70: Data Centres | I70: 0
A71: Core Layers | I71: 0
A72: Distribution Layers | I72: 0
A73: Capital Spares | I73: 0
A75: Community Assets | C75: =+C76+C99 -> 0 | D75: 15000 | E75: 0 | F75: 0 | G75: 0 | H75: 1250 | I75: 1250 | J75: 1 | K75: =+K76+K99 -> 15000
A76: Community Facilities | C76: =SUM(C77:C98) -> 0 | D76: 15000 | E76: 0 | F76: 0 | G76: 0 | H76: 1250 | I76: 1250 | J76: 1 | K76: =SUM(K77:K98) -> 15000
A77: Halls | D77: 15000 | H77: =D77/12*Instructions!X10 -> 1250 | I77: 1250 | J77: 1 | K77: =D77 -> 15000
A78: Centres | I78: 0
A79: Crèches | I79: 0
A80: Clinics/Care Centres | I80: 0
A81: Fire/Ambulance Stations | I81: 0
A82: Testing Stations | I82: 0
A83: Museums | I83: 0
A84: Galleries | I84: 0
A85: Theatres | I85: 0
A86: Libraries | I86: 0
A87: Cemeteries/Crematoria | I87: 0
A88: Police | I88: 0
A89: Purls | I89: 0
A90: Public Open Space | I90: 0
A91: Nature Reserves | I91: 0
A92: Public Ablution Facilities | I92: 0
A93: Markets | I93: 0
A94: Stalls | I94: 0
A95: Abattoirs | I95: 0
A96: Airports | I96: 0
A97: Taxi Ranks/Bus Terminals | I97: 0
A98: Capital Spares | I98: 0
A99: Sport and Recreation Facilities | C99: =SUM(C100:C102) -> 0 | D99: 0 | E99: 0 | F99: 0 | G99: 0 | H99: 0 | I99: 0 | K99: =SUM(K100:K102) -> 0
A100: Indoor Facilities | I100: 0
A101: Outdoor Facilities | I101: =H101-G101 -> 0 | J101: =IF(I101=0,"",I101/H101) -> 
A102: Capital Spares | I102: 0
A103: Heritage assets | C103: =SUM(C104:C108) -> 0 | D103: 0 | E103: 0 | F103: 0 | G103: 0 | H103: 0 | I103: 0 | K103: =SUM(K104:K108) -> 0
A104: Monuments | I104: 0
A105: Historic Buildings | I105: 0
A106: Works of Art | I106: 0
A107: Conservation Areas | I107: 0
A108: Other Heritage | I108: 0
I109: 0
A110: Investment properties | C110: =+C111+C114 -> 0 | D110: 0 | E110: 0 | F110: 0 | G110: 0 | H110: 0 | I110: 0 | K110: =+K111+K114 -> 0
A111: Revenue Generating | C111: =SUM(C112:C113) -> 0 | D111: 0 | E111: 0 | F111: 0 | G111: 0 | H111: 0 | I111: 0 | K111: =SUM(K112:K113) -> 0
A112: Improved Property | I112: 0
A113: Unimproved Property | I113: 0
A114: Non-revenue Generating | C114: =SUM(C115:C116) -> 0 | D114: 0 | E114: 0 | F114: 0 | G114: 0 | H114: 0 | I114: 0 | K114: =SUM(K115:K116) -> 0
A115: Improved Property | I115: 0
A116: Unimproved Property | I116: =H116-G116 -> 0 | J116: =IF(I116=0,"",I116/H116) -> 
A117: Other assets | C117: =+C118+C130 -> 0 | D117: 163462034.6 | E117: 0 | F117: 62435.22 | G117: 62435.22 | H117: 13621836.21 | I117: 13559400.99 | J117: 0.9954165342 | K117: =+K118+K130 -> 163462034.6
A118: Operational Buildings | C118: =SUM(C119:C129) -> 0 | D118: 163462034.6 | E118: 0 | F118: 62435.22 | G118: 62435.22 | H118: 13621836.21 | I118: 13559400.99 | J118: 0.9954165342 | K118: =SUM(K119:K129) -> 163462034.6
A119: Municipal Offices | D119: 50406689.06 | F119: 62435.22 | G119: 62435.22 | H119: =D119/12*Instructions!X10 -> 4200557.422 | I119: 4138122.202 | J119: 0.9851364441 | K119: =D119 -> 50406689.06
A120: Pay/Enquiry Points | I120: 0
A121: Building Plan Offices | I121: 0
A122: Workshops | I122: 0
A123: Yards | I123: 0
A124: Stores | D124: 113055345.5 | H124: =D124/12*Instructions!X10 -> 9421278.792 | I124: 9421278.792 | J124: 1 | K124: =D124 -> 113055345.5
A125: Laboratories | I125: 0
A126: Training Centres | I126: 0
A127: Manufacturing Plant | I127: 0
A128: Depots | I128: 0
A129: Capital Spares | I129: 0
A130: Housing | C130: =SUM(C131:C133) -> 0 | D130: 0 | E130: 0 | F130: 0 | G130: 0 | H130: 0 | I130: 0 | K130: =SUM(K131:K133) -> 0
A131: Staff Housing | I131: 0
A132: Social Housing | I132: 0
A133: Capital Spares | I133: 0
A135: Biological or Cultivated Assets | C135: =SUM(C136:C136) -> 0 | D135: 0 | E135: 0 | F135: 0 | G135: 0 | H135: 0 | I135: =H135-G135 -> 0 | K135: =SUM(K136) -> 0
A136: Biological or Cultivated Assets | I136: =H136-G136 -> 0
A138: Intangible Assets | C138: =SUM(C139:C140) -> 0 | D138: 0 | E138: 0 | F138: 0 | G138: 0 | H138: 0 | I138: =H138-G138 -> 0 | K138: =SUM(K139:K140) -> 0
A139: Servitudes | I139: 0
A140: Licences and Rights | C140: =SUM(C141:C146) -> 0 | D140: 0 | E140: 0 | F140: 0 | G140: 0 | H140: 0 | I140: 0 | K140: =SUM(K141:K146) -> 0
A141: Water Rights | I141: 0
A142: Effluent Licenses | I142: 0
A143: Solid Waste Licenses | I143: 0
A144: Computer Software and Applications | I144: 0
A145: Load Settlement Software Applications | I145: 0
A146: Unspecified | I146: 0
A148: Computer Equipment | C148: =SUM(C149:C149) -> 0 | D148: 0 | E148: 0 | F148: 0 | G148: 0 | H148: 0 | I148: =H148-G148 -> 0 | J148: =IF(I148=0,"",I148/H148) ->  | K148: =SUM(K149) -> 0
A149: Computer Equipment | I149: =H149-G149 -> 0 | J149: =IF(I149=0,"",I149/H149) -> 
A151: Furniture and Office Equipment | C151: =SUM(C152:C152) -> 0 | D151: 0 | E151: 0 | F151: 0 | G151: 0 | H151: 0 | I151: =H151-G151 -> 0 | J151: =IF(I151=0,"",I151/H151) ->  | K151: =SUM(K152) -> 0
A152: Furniture and Office Equipment | I152: =H152-G152 -> 0 | J152: =IF(I152=0,"",I152/H152) -> 
J153: =IF(I153=0,"",I153/H153) -> 
A154: Machinery and Equipment | C154: =SUM(C155:C155) -> 0 | D154: 214841689.5 | E154: 0 | F154: 266830.87 | G154: 266830.87 | H154: 17903474.13 | I154: =H154-G154 -> 17636643.26 | J154: =IF(I154=0,"",I154/H154) -> 0.9850961401 | K154: =SUM(K155) -> 214841689.5
A155: Machinery and Equipment | D155: 214841689.5 | F155: 266830.87 | G155: 266830.87 | H155: =D155/12*Instructions!X10 -> 17903474.13 | I155: =H155-G155 -> 17636643.26 | J155: =IF(I155=0,"",I155/H155) -> 0.9850961401 | K155: =D155 -> 214841689.5
A157: Transport Assets | C157: =SUM(C158:C158) -> 0 | D157: 25105149 | E157: 0 | F157: 29974.58 | G157: 29974.58 | H157: 2092095.75 | I157: =H157-G157 -> 2062121.17 | J157: =IF(I157=0,"",I157/H157) -> 0.9856724626 | K157: =SUM(K158) -> 25105149
A158: Transport Assets | D158: 25105149 | F158: 29974.58 | G158: 29974.58 | H158: =D158/12*Instructions!X10 -> 2092095.75 | I158: =H158-G158 -> 2062121.17 | J158: =IF(I158=0,"",I158/H158) -> 0.9856724626 | K158: =D158 -> 25105149
A160: Land | C160: =SUM(C161:C161) -> 0 | D160: 0 | E160: 0 | F160: 0 | G160: 0 | H160: 0 | I160: =H160-G160 -> 0 | J160: =IF(I160=0,"",I160/H160) ->  | K160: =SUM(K161) -> 0
A161: Land | I161: =H161-G161 -> 0 | J161: =IF(I161=0,"",I161/H161) -> 
A163: Zoo's, Marine and Non-biological Animals | C163: =SUM(C164:C164) -> 0 | D163: 0 | E163: 0 | F163: 0 | G163: 0 | H163: 0 | I163: =H163-G163 -> 0 | J163: =IF(I163=0,"",I163/H163) ->  | K163: =SUM(K164) -> 0
A164: Zoo's, Marine and Non-biological Animals | I164: =H164-G164 -> 0 | J164: =IF(I164=0,"",I164/H164) -> 
A166: Living resources | C166: =+C167+C170 -> 0 | D166: 0 | E166: 0 | F166: 0 | G166: 0 | H166: 0 | I166: =H166-G166 -> 0 | J166: =IF(I166=0,"",I166/H166) ->  | K166: =+K167+K170 -> 0
A167: Mature | C167: =+C168+C169 -> 0 | D167: 0 | E167: 0 | F167: 0 | G167: 0 | H167: 0 | I167: 0 | K167: =+K168+K169 -> 0
A168: Policing and Protection | I168: 0
A169: Zoological plants and animals | I169: 0
A170: Immature | C170: =+C171+C172 -> 0 | D170: 0 | E170: 0 | F170: 0 | G170: 0 | H170: 0 | I170: 0 | K170: =+K171+K172 -> 0
A171: Policing and Protection | I171: 0
A172: Zoological plants and animals | I172: 0
A173: Total Repairs and Maintenance Expenditure | B173: 1 | C173: =C7+C75+C103+C110+C117+C135+C138+C148+C151+C154+C157+C160+C163+C166 -> 0 | D173: 573286476.2 | E173: 0 | F173: 4635342.37 | G173: 4635342.37 | H173: 47773873.02 | I173: =H173-G173 -> 43138530.65 | J173: =IF(I173=0,"",I173/H173) -> 0.9029732765 | K173: =K7+K75+K103+K110+K117+K135+K138+K148+K151+K154+K157+K160+K163+K166 -> 573286476.2

Sheet SC13d
A1: =muni& " - "&S71Sd& " - "&Head57 -> KZN225 Msunduzi - Supporting Table SC13d Monthly Budget Statement - depreciation by asset class - M01 July
A2: =desc -> Description | B2: =head27 -> Ref | C2: =Head1 -> 2022/23 | D2: =Head2 -> Budget Year 2023/24
C3: =Head5 -> Audited Outcome | D3: =Head6 -> Original Budget | E3: =Head7 -> Adjusted Budget | F3: =Head38 -> Monthly actual | G3: =Head39 -> YearTD actual | H3: =Head40 -> YearTD budget | I3: =Head41 -> YTD variance | J3: =Head41 -> YTD variance | K3: =Head8 -> Full Year Forecast
A4: R thousands | B4: 1 | J4: %
A5: Depreciation by Asset Class/Sub-class
A7: Infrastructure | C7: =C8+C13+C17+C27+C38+C45+C53+C63+C69 -> 0 | D7: 342269027.6 | E7: 0 | F7: 23149367.95 | G7: 23149367.95 | H7: 28522418.97 | I7: =H7-G7 -> 5373051.019 | J7: =IF(I7=0,"",I7/H7) -> 0.1883799205 | K7: =K8+K13+K17+K27+K38+K45+K53+K63+K69 -> 342269027.6
A8: Roads Infrastructure | C8: =SUM(C9:C12) -> 0 | D8: 119425760.1 | E8: 0 | F8: 6980390.57 | G8: 6980390.57 | H8: 9952146.678 | I8: 2971756.108 | J8: 0.2986045327 | K8: =SUM(K9:K12) -> 119425760.1
A9: Roads | D9: 119425760.1 | F9: 6980390.57 | G9: 6980390.57 | H9: =D9/12*Instructions!X10 -> 9952146.678 | I9: 2971756.108 | J9: 0.2986045327 | K9: =D9 -> 119425760.1
A10: Road Structures | I10: 0
A11: Road Furniture | I11: 0
A12: Capital Spares | I12: 0
A13: Storm water Infrastructure | C13: =SUM(C14:C16) -> 0 | D13: 0 | E13: 0 | F13: 0 | G13: 0 | H13: 0 | I13: 0 | K13: =SUM(K14:K16) -> 0
A14: Drainage Collection | I14: 0
A15: Storm water Conveyance | I15: 0
A16: Attenuation | I16: 0
A17: Electrical Infrastructure | C17: =SUM(C18:C26) -> 0 | D17: 104984887.7 | E17: 0 | F17: 8080812.29 | G17: 8080812.29 | H17: 8748740.642 | I17: 667928.3518 | J17: 0.07634565695 | K17: =SUM(K18:K26) -> 104984887.7
A18: Power Plants | I18: 0
A19: HV Substations | D19: 38685433.28 | F19: 3270198.84 | G19: 3270198.84 | H19: =D19/12*Instructions!X10 -> 3223786.107 | I19: -46412.73316 | J19: -0.0143969642 | K19: =D19 -> 38685433.28
A20: HV Switching Station | D20: 5218688.984 | F20: 364950.95 | G20: 364950.95 | H20: =D20/12*Instructions!X10 -> 434890.7486 | I20: 69939.79865 | J20: 0.160821537 | K20: 5218688.984
A21: HV Transmission Conductors | D21: 58677373.06 | F21: 4292518.29 | G21: 4292518.29 | H21: =D21/12*Instructions!X10 -> 4889781.088 | I21: 597262.7984 | J21: 0.1221450997 | K21: 58677373.06
A22: MV Substations | D22: 0 | I22: 0
A23: MV Switching Stations | D23: 0 | I23: 0
A24: MV Networks | D24: 0 | I24: 0
A25: LV Networks | D25: 2403392.375 | F25: 153144.21 | G25: 153144.21 | H25: =D25/12*Instructions!X10 -> 200282.698 | I25: 47138.48795 | J25: 0.2353597612 | K25: =D25 -> 2403392.375
A26: Capital Spares | D26: 0 | I26: 0
A27: Water Supply Infrastructure | C27: =SUM(C28:C37) -> 0 | D27: 81811183.13 | E27: 0 | F27: 5994211.31 | G27: 5994211.31 | H27: 6817598.594 | I27: 823387.284 | J27: 0.1207737993 | K27: =SUM(K28:K37) -> 81811183.13
A28: Dams and Weirs | I28: 0
A29: Boreholes | I29: 0
A30: Reservoirs | I30: 0
A31: Pump Stations | I31: 0
A32: Water Treatment Works | I32: 0
A33: Bulk Mains | I33: 0
A34: Distribution | D34: 81811183.13 | F34: 5994211.31 | G34: 5994211.31 | H34: =D34/12*Instructions!X10 -> 6817598.594 | I34: 823387.284 | J34: 0.1207737993 | K34: =D34 -> 81811183.13
A35: Distribution Points | I35: 0
A36: PRV Stations | I36: 0
A37: Capital Spares | I37: 0
A38: Sanitation Infrastructure | C38: =SUM(C39:C44) -> 0 | D38: 34418266.76 | E38: 0 | F38: 1955947.2 | G38: 1955947.2 | H38: 2868188.897 | I38: 912241.6967 | J38: 0.3180549572 | K38: =SUM(K39:K44) -> 34418266.76
A39: Pump Station | I39: 0
A40: Reticulation | I40: 0
A41: Waste Water Treatment Works | D41: 34418266.76 | F41: 1955947.2 | G41: 1955947.2 | H41: =D41/12*Instructions!X10 -> 2868188.897 | I41: 912241.6967 | J41: 0.3180549572 | K41: =D41 -> 34418266.76
A42: Outfall Sewers | I42: 0
A43: Toilet Facilities | I43: 0
A44: Capital Spares | I44: 0
A45: Solid Waste Infrastructure | C45: =SUM(C46:C52) -> 0 | D45: 1498016.309 | E45: 0 | F45: 128359.13 | G45: 128359.13 | H45: 124834.6924 | I45: -3524.437554 | J45: -0.02823283724 | K45: =SUM(K46:K52) -> 1498016.309
A46: Landfill Sites | D46: 1498016.309 | F46: 128359.13 | G46: 128359.13 | H46: =D46/12*Instructions!X10 -> 124834.6924 | I46: -3524.437554 | J46: -0.02823283724 | K46: =D46 -> 1498016.309
A47: Waste Transfer Stations | I47: 0
A48: Waste Processing Facilities | I48: 0
A49: Waste Drop-off Points | I49: 0
A50: Waste Separation Facilities | I50: 0
A51: Electricity Generation Facilities | I51: 0
A52: Capital Spares | I52: 0
A53: Rail Infrastructure | C53: =SUM(C54:C62) -> 0 | D53: 130913.5976 | E53: 0 | F53: 9647.45 | G53: 9647.45 | H53: 10909.46647 | I53: 1262.016471 | J53: 0.1156808607 | K53: =SUM(K54:K62) -> 130913.5976
A54: Rail Lines | D54: 130913.5976 | F54: 9647.45 | G54: 9647.45 | H54: =D54/12*Instructions!X10 -> 10909.46647 | I54: 1262.016471 | J54: 0.1156808607 | K54: =D54 -> 130913.5976
A55: Rail Structures | I55: 0
A56: Rail Furniture | I56: 0
A57: Drainage Collection | I57: 0
A58: Storm water Conveyance | I58: 0
A59: Attenuation | I59: 0
A60: MV Substations | I60: 0
A61: LV Networks | I61: 0
A62: Capital Spares | I62: 0
A63: Coastal Infrastructure | C63: =SUM(C64:C68) -> 0 | D63: 0 | E63: 0 | F63: 0 | G63: 0 | H63: 0 | I63: 0 | K63: =SUM(K64:K68) -> 0
A64: Sand Pumps | I64: 0
A65: Piers | I65: 0
A66: Revetments | I66: 0
A67: Promenades | I67: 0
A68: Capital Spares | I68: 0
A69: Information and Communication Infrastructure | C69: =SUM(C70:C73) -> 0 | D69: 0 | E69: 0 | F69: 0 | G69: 0 | H69: 0 | I69: 0 | K69: =SUM(K70:K73) -> 0
A70: Data Centres | I70: 0
A71: Core Layers | I71: 0
A72: Distribution Layers | I72: 0
A73: Capital Spares | I73: 0
A75: Community Assets | C75: =+C76+C99 -> 0 | D75: 33383812.77 | E75: 0 | F75: 2072858.07 | G75: 2072858.07 | H75: 2781984.398 | I75: 709126.3279 | J75: 0.2548994626 | K75: =+K76+K99 -> 33383812.77
A76: Community Facilities | C76: =SUM(C77:C98) -> 0 | D76: 18528459.1 | E76: 0 | F76: 1174021.95 | G76: 1174021.95 | H76: 1544038.258 | I76: 370016.3083 | J76: 0.23964193 | K76: =SUM(K77:K98) -> 18528459.1
A77: Halls | D77: 0 | I77: 0
A78: Centres | D78: 3918147.547 | F78: 270276.94 | G78: 270276.94 | H78: =D78/12*Instructions!X10 -> 326512.2956 | I78: 56235.35559 | J78: 0.1722304377 | K78: =D78 -> 3918147.547
A79: Crèches | D79: 548659.0147 | F79: 38005.15 | G79: 38005.15 | H79: =D79/12*Instructions!X10 -> 45721.58456 | I79: 7716.434562 | J79: 0.1687700598 | K79: 548659.0147
A80: Clinics/Care Centres | D80: 764478.643 | F80: 57374.44 | G80: 57374.44 | H80: =D80/12*Instructions!X10 -> 63706.55358 | I80: 6332.113579 | J80: 0.09939501077 | K80: 764478.643
A81: Fire/Ambulance Stations | D81: 678885.7861 | F81: 42498.75 | G81: 42498.75 | H81: =D81/12*Instructions!X10 -> 56573.81551 | I81: 14075.06551 | J81: 0.2487911658 | K81: 678885.7861
A82: Testing Stations | I82: 0
A83: Museums | I83: 0
A84: Galleries | I84: 0
A85: Theatres | D85: 416635.2613 | F85: 14184.88 | G85: 14184.88 | H85: =D85/12*Instructions!X10 -> 34719.60511 | I85: 20534.72511 | J85: 0.5914446621 | K85: =D85 -> 416635.2613
A86: Libraries | D86: 3009039.911 | F86: 188442.7 | G86: 188442.7 | H86: =D86/12*Instructions!X10 -> 250753.3259 | I86: 62310.62595 | J86: 0.2484937167 | K86: 3009039.911
A87: Cemeteries/Crematoria | D87: 490039.8651 | F87: 28147.16 | G87: 28147.16 | H87: =D87/12*Instructions!X10 -> 40836.65543 | I87: 12689.49543 | J87: 0.3107378725 | K87: 490039.8651
A88: Police | I88: 0
A89: Purls | I89: 0
A90: Public Open Space | D90: 12373.636 | F90: 6789.76 | G90: 6789.76 | H90: =D90/12*Instructions!X10 -> 1031.136333 | I90: -5758.623667 | J90: -5.584735481 | K90: =D90 -> 12373.636
A91: Nature Reserves | I91: 0
A92: Public Ablution Facilities | D92: 1136930.176 | F92: 80677.13 | G92: 80677.13 | H92: =D92/12*Instructions!X10 -> 94744.18131 | I92: 14067.05131 | J92: 0.1484740394 | K92: =D92 -> 1136930.176
A93: Markets | D93: 6310441.04 | F93: 402609.04 | G93: 402609.04 | H93: =D93/12*Instructions!X10 -> 525870.0867 | I93: 123261.0467 | J93: 0.2343944822 | K93: 6310441.04
A94: Stalls | I94: 0
A95: Abattoirs | I95: 0
A96: Airports | D96: 1242828.218 | F96: 45016 | G96: 45016 | H96: =D96/12*Instructions!X10 -> 103569.0182 | I96: 58553.01821 | J96: 0.5653526433 | K96: =D96 -> 1242828.218
A97: Taxi Ranks/Bus Terminals | I97: 0
A98: Capital Spares | I98: 0
A99: Sport and Recreation Facilities | C99: =SUM(C100:C102) -> 0 | D99: 14855353.68 | E99: 0 | F99: 898836.12 | G99: 898836.12 | H99: 1237946.14 | I99: 339110.0196 | J99: 0.2739295425 | K99: =SUM(K100:K102) -> 14855353.68
A100: Indoor Facilities | D100: 0 | I100: 0
A101: Outdoor Facilities | D101: 14855353.68 | F101: 898836.12 | G101: 898836.12 | H101: =D101/12*Instructions!X10 -> 1237946.14 | I101: =H101-G101 -> 339110.0196 | J101: =IF(I101=0,"",I101/H101) -> 0.2739295425 | K101: =D101 -> 14855353.68
A102: Capital Spares | D102: 0 | I102: 0
A103: Heritage assets | C103: =SUM(C104:C108) -> 0 | D103: 0 | E103: 0 | F103: 0 | G103: 0 | H103: 0 | I103: 0 | K103: =SUM(K104:K108) -> 0
A104: Monuments | I104: 0
A105: Historic Buildings | I105: 0
A106: Works of Art | I106: 0
A107: Conservation Areas | I107: 0
A108: Other Heritage | I108: 0
I109: 0
A110: Investment properties | C110: =+C111+C114 -> 0 | D110: 0 | E110: 0 | F110: 0 | G110: 0 | H110: 0 | I110: 0 | K110: =+K111+K114 -> 0
A111: Revenue Generating | C111: =SUM(C112:C113) -> 0 | D111: 0 | E111: 0 | F111: 0 | G111: 0 | H111: 0 | I111: 0 | K111: =SUM(K112:K113) -> 0
A112: Improved Property | I112: 0
A113: Unimproved Property | I113: 0
A114: Non-revenue Generating | C114: =SUM(C115:C116) -> 0 | D114: 0 | E114: 0 | F114: 0 | G114: 0 | H114: 0 | I114: 0 | K114: =SUM(K115:K116) -> 0
A115: Improved Property | I115: 0
A116: Unimproved Property | I116: =H116-G116 -> 0 | J116: =IF(I116=0,"",I116/H116) -> 
A117: Other assets | C117: =+C118+C130 -> 0 | D117: 28585069.52 | E117: 0 | F117: 1611283.81 | G117: 1611283.81 | H117: 2382089.126 | I117: 770805.3165 | J117: 0.3235837433 | K117: =+K118+K130 -> 28585069.52
A118: Operational Buildings | C118: =SUM(C119:C129) -> 0 | D118: 28546344.51 | E118: 0 | F118: 1608831.73 | G118: 1608831.73 | H118: 2378862.043 | I118: 770030.3128 | J118: 0.3236969185 | K118: =SUM(K119:K129) -> 28546344.51
A119: Municipal Offices | D119: 27636906.49 | F119: 1545170.22 | G119: 1545170.22 | H119: =D119/12*Instructions!X10 -> 2303075.541 | I119: 757905.3209 | J119: 0.3290840042 | K119: =D119 -> 27636906.49
